Workbook

Sheet Input
B16: For Contract Works, please select the period of the contract --> | I16: Open
B18: Voluntary Deductible | I18: 0
B19: Voluntary Deductible (M8) | I19: 0
B21: Co-Insurance | I21: 0
B22: Co-Insurance (M8) | I22: 0

Sheet Output
C2: Aggregate | D2: =IF(C2 = "", 12, VLOOKUP(C2, Metadata!$S$1:$T$11, 2, FALSE)) -> 12
C5: ABC Ltd
C8: Voluntary Deductible | D8: =Input!I18 -> 0
C9: Applicable Discount | D9: =IF(C2 = "", 0, VLOOKUP(D8, 'Voluntary Deductible'!$B$3:$C$13, 2, FALSE)) -> 0
C11: Voluntary Deductible (M8) | D11: =Input!I19 -> 0
C12: Applicable Discount (M8) | D12: =IF(C2 = "", 0, VLOOKUP(D11, 'Voluntary Deductible'!$B$17:$C$21, 2, FALSE)) -> 0
C14: Co-insurance | D14: =IF(Input!I21 = "", 0, Input!I21) -> 0
C15: Co-insurance (M8) | D15: =IF(Input!I22 = "", 0, Input!I22) -> 0
C17: Magnitude Discount | D17: ='Loss Limit Discount'!$D$93 -> 0
C18: Contract Works Discount | D18: ='Contract Works Discount'!$D$102 -> 0
C20: Class | D20: Sum Insured* | E20: Premium
C21: Fire | D21: =VLOOKUP($C21, Results!$B$22:$M$35, Output!$D$2, FALSE) -> 0 | E21: =VLOOKUP($C21, Results!$B$5:$M$18, Output!$D$2, FALSE) -> 0 | F21: =IF(AND(E21 = 0, D21 <> 0), "!!!","") -> 
C22: Standing Charges | D22: =VLOOKUP($C22, Results!$B$22:$M$35, Output!$D$2, FALSE) + VLOOKUP("Advance Standing Charges", Results!$B$22:$M$35, Output!$D$2, FALSE) -> 0 | E22: =(VLOOKUP($C22, Results!$B$5:$M$18, Output!$D$2, FALSE) ) + VLOOKUP("Advance Standing Charges", Results!$B$5:$M$18, Output!$D$2, FALSE) -> 0
C23: Working Expenses | D23: =VLOOKUP($C23, Results!$B$22:$M$35, Output!$D$2, FALSE) -> 0 | E23: =VLOOKUP($C23, Results!$B$5:$M$18, Output!$D$2, FALSE) -> 0
C24: Net Profit | D24: =VLOOKUP($C24, Results!$B$22:$M$35, Output!$D$2, FALSE) -> 0 | E24: =VLOOKUP($C24, Results!$B$5:$M$18, Output!$D$2, FALSE) -> 0
C25: Gross Profit | D25: =VLOOKUP($C25, Results!$B$22:$M$35, Output!$D$2, FALSE) -> 0 | E25: =VLOOKUP($C25, Results!$B$5:$M$18, Output!$D$2, FALSE) -> 0
C26: Revenue | D26: =VLOOKUP($C26, Results!$B$22:$M$35, Output!$D$2, FALSE) -> 0 | E26: =VLOOKUP($C26, Results!$B$5:$M$18, Output!$D$2, FALSE) -> 0
C27: Motor | D27: =VLOOKUP($C27, Results!$B$22:$M$35, Output!$D$2, FALSE) -> 0 | E27: =VLOOKUP($C27, Results!$B$5:$M$18, Output!$D$2, FALSE) -> 0
C28: Contract Works | D28: =VLOOKUP($C28, Results!$B$22:$M$35, Output!$D$2, FALSE) -> 0 | E28: =VLOOKUP($C28, Results!$B$5:$M$18, Output!$D$2, FALSE) -> 0
C29: Money | D29: =VLOOKUP($C29, Results!$B$22:$M$35, Output!$D$2, FALSE) -> 0 | E29: =VLOOKUP($C29, Results!$B$5:$M$18, Output!$D$2, FALSE) -> 0
C30: Goods In Transit | D30: =VLOOKUP($C30, Results!$B$22:$M$35, Output!$D$2, FALSE) -> 0 | E30: =VLOOKUP($C30, Results!$B$5:$M$18, Output!$D$2, FALSE) -> 0
C31: Total | D31: =SUM(D21:D30) -> 0 | E31: =SUM(E21:E30) -> 0
C32: * Declared values only

Sheet Results (hidden)
B3: Gross Written Premium
B4: Class | C4: Domestic - Monthly | D4: Domestic (Tertiary) - Monthly | E4: Domestic - Annual | F4: Domestic (Tertiary) - Annual | G4: Commercial - Monthly | H4: Commercial - Annual | I4: Fire (Office) - Monthly | J4: Fire (Office) - Annual | K4: Municipalities - Monthly | L4: Municipalities - Annual | M4: Aggregate
B5: Fire | C5: =SUMIF('Domestic - Monthly'!$D:$D, Results!$B5, 'Domestic - Monthly'!$M:$M) -> 0 | D5: =SUMIF('Domestic (Tertiary) - Monthly'!$D:$D, Results!$B5, 'Domestic (Tertiary) - Monthly'!$M:$M) -> 0 | E5: =SUMIF('Domestic - Annual'!$D:$D, Results!$B5, 'Domestic - Annual'!$M:$M) -> 0 | F5: =SUMIF('Domestic (Tertiary) - Annual'!$D:$D, Results!$B5, 'Domestic (Tertiary) - Annual'!$M:$M) -> 0 | G5: =SUMIF('Commercial - Monthly'!$D:$D, Results!$B5, 'Commercial - Monthly'!$M:$M) -> 0 | H5: =SUMIF('Commercial - Annual'!$D:$D, Results!$B5, 'Commercial - Annual'!$M:$M) -> 0 | I5: =SUMIF('Fire (Office) - Monthly'!$D:$D, Results!$B5, 'Fire (Office) - Monthly'!$M:$M) -> 0 | J5: =SUMIF('Fire (Office) - Annual'!$D:$D, Results!$B5, 'Fire (Office) - Annual'!$M:$M) -> 0 | K5: =SUMIF('Municipalities - Monthly'!$D:$D, Results!$B5, 'Municipalities - Monthly'!$M:$M) -> 0 | L5: =SUMIF('Municipalities - Annual'!$D:$D, Results!$B5, 'Municipalities - Annual'!$M:$M) -> 0 | M5: =SUM(C5:L5) -> 0
B6: Extensions | M6: =SUM(C6:L6) -> 0
B7: Static Risk | C7: =SUMIF('Domestic - Monthly'!$D:$D, Results!$B7, 'Domestic - Monthly'!$M:$M) -> 0 | D7: =SUMIF('Domestic (Tertiary) - Monthly'!$D:$D, Results!$B7, 'Domestic (Tertiary) - Monthly'!$M:$M) -> 0 | E7: =SUMIF('Domestic - Annual'!$D:$D, Results!$B7, 'Domestic - Annual'!$M:$M) -> 0 | F7: =SUMIF('Domestic (Tertiary) - Annual'!$D:$D, Results!$B7, 'Domestic (Tertiary) - Annual'!$M:$M) -> 0 | G7: =SUMIF('Commercial - Monthly'!$D:$D, Results!$B7, 'Commercial - Monthly'!$M:$M) -> 0 | H7: =SUMIF('Commercial - Annual'!$D:$D, Results!$B7, 'Commercial - Annual'!$M:$M) -> 0 | I7: =SUMIF('Fire (Office) - Monthly'!$D:$D, Results!$B7, 'Fire (Office) - Monthly'!$M:$M) -> 0 | J7: =SUMIF('Fire (Office) - Annual'!$D:$D, Results!$B7, 'Fire (Office) - Annual'!$M:$M) -> 0 | K7: =SUMIF('Municipalities - Monthly'!$D:$D, Results!$B7, 'Municipalities - Monthly'!$M:$M) -> 0 | L7: =SUMIF('Municipalities - Annual'!$D:$D, Results!$B7, 'Municipalities - Annual'!$M:$M) -> 0 | M7: 0
B8: Escalation | M8: 0
B9: Standing Charges | C9: =SUMIF('Domestic - Monthly'!$D:$D, Results!$B9, 'Domestic - Monthly'!$M:$M) -> 0 | D9: =SUMIF('Domestic (Tertiary) - Monthly'!$D:$D, Results!$B9, 'Domestic (Tertiary) - Monthly'!$M:$M) -> 0 | E9: =SUMIF('Domestic - Annual'!$D:$D, Results!$B9, 'Domestic - Annual'!$M:$M) -> 0 | F9: =SUMIF('Domestic (Tertiary) - Annual'!$D:$D, Results!$B9, 'Domestic (Tertiary) - Annual'!$M:$M) -> 0 | G9: =SUMIF('Commercial - Monthly'!$D:$D, Results!$B9, 'Commercial - Monthly'!$M:$M) -> 0 | H9: =SUMIF('Commercial - Annual'!$D:$D, Results!$B9, 'Commercial - Annual'!$M:$M) -> 0 | I9: =SUMIF('Fire (Office) - Monthly'!$D:$D, Results!$B9, 'Fire (Office) - Monthly'!$M:$M) -> 0 | J9: =SUMIF('Fire (Office) - Annual'!$D:$D, Results!$B9, 'Fire (Office) - Annual'!$M:$M) -> 0 | K9: =SUMIF('Municipalities - Monthly'!$D:$D, Results!$B9, 'Municipalities - Monthly'!$M:$M) -> 0 | L9: =SUMIF('Municipalities - Annual'!$D:$D, Results!$B9, 'Municipalities - Annual'!$M:$M) -> 0 | M9: 0
B10: Advance Standing Charges | C10: =SUMIF('Domestic - Monthly'!$D:$D, Results!$B10, 'Domestic - Monthly'!$M:$M) -> 0 | D10: =SUMIF('Domestic (Tertiary) - Monthly'!$D:$D, Results!$B10, 'Domestic (Tertiary) - Monthly'!$M:$M) -> 0 | E10: =SUMIF('Domestic - Annual'!$D:$D, Results!$B10, 'Domestic - Annual'!$M:$M) -> 0 | F10: =SUMIF('Domestic (Tertiary) - Annual'!$D:$D, Results!$B10, 'Domestic (Tertiary) - Annual'!$M:$M) -> 0 | G10: =SUMIF('Commercial - Monthly'!$D:$D, Results!$B10, 'Commercial - Monthly'!$M:$M) -> 0 | H10: =SUMIF('Commercial - Annual'!$D:$D, Results!$B10, 'Commercial - Annual'!$M:$M) -> 0 | I10: =SUMIF('Fire (Office) - Monthly'!$D:$D, Results!$B10, 'Fire (Office) - Monthly'!$M:$M) -> 0 | J10: =SUMIF('Fire (Office) - Annual'!$D:$D, Results!$B10, 'Fire (Office) - Annual'!$M:$M) -> 0 | K10: =SUMIF('Municipalities - Monthly'!$D:$D, Results!$B10, 'Municipalities - Monthly'!$M:$M) -> 0 | L10: =SUMIF('Municipalities - Annual'!$D:$D, Results!$B10, 'Municipalities - Annual'!$M:$M) -> 0 | M10: 0
B11: Working Expenses | C11: =SUMIF('Domestic - Monthly'!$D:$D, Results!$B11, 'Domestic - Monthly'!$M:$M) -> 0 | D11: =SUMIF('Domestic (Tertiary) - Monthly'!$D:$D, Results!$B11, 'Domestic (Tertiary) - Monthly'!$M:$M) -> 0 | E11: =SUMIF('Domestic - Annual'!$D:$D, Results!$B11, 'Domestic - Annual'!$M:$M) -> 0 | F11: =SUMIF('Domestic (Tertiary) - Annual'!$D:$D, Results!$B11, 'Domestic (Tertiary) - Annual'!$M:$M) -> 0 | G11: =SUMIF('Commercial - Monthly'!$D:$D, Results!$B11, 'Commercial - Monthly'!$M:$M) -> 0 | H11: =SUMIF('Commercial - Annual'!$D:$D, Results!$B11, 'Commercial - Annual'!$M:$M) -> 0 | I11: =SUMIF('Fire (Office) - Monthly'!$D:$D, Results!$B11, 'Fire (Office) - Monthly'!$M:$M) -> 0 | J11: =SUMIF('Fire (Office) - Annual'!$D:$D, Results!$B11, 'Fire (Office) - Annual'!$M:$M) -> 0 | K11: =SUMIF('Municipalities - Monthly'!$D:$D, Results!$B11, 'Municipalities - Monthly'!$M:$M) -> 0 | L11: =SUMIF('Municipalities - Annual'!$D:$D, Results!$B11, 'Municipalities - Annual'!$M:$M) -> 0 | M11: 0
B12: Net Profit | C12: =SUMIF('Domestic - Monthly'!$D:$D, Results!$B12, 'Domestic - Monthly'!$M:$M) -> 0 | D12: =SUMIF('Domestic (Tertiary) - Monthly'!$D:$D, Results!$B12, 'Domestic (Tertiary) - Monthly'!$M:$M) -> 0 | E12: =SUMIF('Domestic - Annual'!$D:$D, Results!$B12, 'Domestic - Annual'!$M:$M) -> 0 | F12: =SUMIF('Domestic (Tertiary) - Annual'!$D:$D, Results!$B12, 'Domestic (Tertiary) - Annual'!$M:$M) -> 0 | G12: =SUMIF('Commercial - Monthly'!$D:$D, Results!$B12, 'Commercial - Monthly'!$M:$M) -> 0 | H12: =SUMIF('Commercial - Annual'!$D:$D, Results!$B12, 'Commercial - Annual'!$M:$M) -> 0 | I12: =SUMIF('Fire (Office) - Monthly'!$D:$D, Results!$B12, 'Fire (Office) - Monthly'!$M:$M) -> 0 | J12: =SUMIF('Fire (Office) - Annual'!$D:$D, Results!$B12, 'Fire (Office) - Annual'!$M:$M) -> 0 | K12: =SUMIF('Municipalities - Monthly'!$D:$D, Results!$B12, 'Municipalities - Monthly'!$M:$M) -> 0 | L12: =SUMIF('Municipalities - Annual'!$D:$D, Results!$B12, 'Municipalities - Annual'!$M:$M) -> 0 | M12: 0
B13: Gross Profit | C13: =SUMIF('Domestic - Monthly'!$D:$D, Results!$B13, 'Domestic - Monthly'!$M:$M) -> 0 | D13: =SUMIF('Domestic (Tertiary) - Monthly'!$D:$D, Results!$B13, 'Domestic (Tertiary) - Monthly'!$M:$M) -> 0 | E13: =SUMIF('Domestic - Annual'!$D:$D, Results!$B13, 'Domestic - Annual'!$M:$M) -> 0 | F13: =SUMIF('Domestic (Tertiary) - Annual'!$D:$D, Results!$B13, 'Domestic (Tertiary) - Annual'!$M:$M) -> 0 | G13: =SUMIF('Commercial - Monthly'!$D:$D, Results!$B13, 'Commercial - Monthly'!$M:$M) -> 0 | H13: =SUMIF('Commercial - Annual'!$D:$D, Results!$B13, 'Commercial - Annual'!$M:$M) -> 0 | I13: =SUMIF('Fire (Office) - Monthly'!$D:$D, Results!$B13, 'Fire (Office) - Monthly'!$M:$M) -> 0 | J13: =SUMIF('Fire (Office) - Annual'!$D:$D, Results!$B13, 'Fire (Office) - Annual'!$M:$M) -> 0 | K13: =SUMIF('Municipalities - Monthly'!$D:$D, Results!$B13, 'Municipalities - Monthly'!$M:$M) -> 0 | L13: =SUMIF('Municipalities - Annual'!$D:$D, Results!$B13, 'Municipalities - Annual'!$M:$M) -> 0 | M13: 0
B14: Revenue | C14: =SUMIF('Domestic - Monthly'!$D:$D, Results!$B14, 'Domestic - Monthly'!$M:$M) -> 0 | D14: =SUMIF('Domestic (Tertiary) - Monthly'!$D:$D, Results!$B14, 'Domestic (Tertiary) - Monthly'!$M:$M) -> 0 | E14: =SUMIF('Domestic - Annual'!$D:$D, Results!$B14, 'Domestic - Annual'!$M:$M) -> 0 | F14: =SUMIF('Domestic (Tertiary) - Annual'!$D:$D, Results!$B14, 'Domestic (Tertiary) - Annual'!$M:$M) -> 0 | G14: =SUMIF('Commercial - Monthly'!$D:$D, Results!$B14, 'Commercial - Monthly'!$M:$M) -> 0 | H14: =SUMIF('Commercial - Annual'!$D:$D, Results!$B14, 'Commercial - Annual'!$M:$M) -> 0 | I14: =SUMIF('Fire (Office) - Monthly'!$D:$D, Results!$B14, 'Fire (Office) - Monthly'!$M:$M) -> 0 | J14: =SUMIF('Fire (Office) - Annual'!$D:$D, Results!$B14, 'Fire (Office) - Annual'!$M:$M) -> 0 | K14: =SUMIF('Municipalities - Monthly'!$D:$D, Results!$B14, 'Municipalities - Monthly'!$M:$M) -> 0 | L14: =SUMIF('Municipalities - Annual'!$D:$D, Results!$B14, 'Municipalities - Annual'!$M:$M) -> 0 | M14: 0
B15: Motor | C15: =SUMIF('Domestic - Monthly'!$D:$D, Results!$B15, 'Domestic - Monthly'!$M:$M) -> 0 | D15: =SUMIF('Domestic (Tertiary) - Monthly'!$D:$D, Results!$B15, 'Domestic (Tertiary) - Monthly'!$M:$M) -> 0 | E15: =SUMIF('Domestic - Annual'!$D:$D, Results!$B15, 'Domestic - Annual'!$M:$M) -> 0 | F15: =SUMIF('Domestic (Tertiary) - Annual'!$D:$D, Results!$B15, 'Domestic (Tertiary) - Annual'!$M:$M) -> 0 | G15: =SUMIF('Commercial - Monthly'!$D:$D, Results!$B15, 'Commercial - Monthly'!$M:$M) -> 0 | H15: =SUMIF('Commercial - Annual'!$D:$D, Results!$B15, 'Commercial - Annual'!$M:$M) -> 0 | I15: =SUMIF('Fire (Office) - Monthly'!$D:$D, Results!$B15, 'Fire (Office) - Monthly'!$M:$M) -> 0 | J15: =SUMIF('Fire (Office) - Annual'!$D:$D, Results!$B15, 'Fire (Office) - Annual'!$M:$M) -> 0 | K15: =SUMIF('Municipalities - Monthly'!$D:$D, Results!$B15, 'Municipalities - Monthly'!$M:$M) -> 0 | L15: =SUMIF('Municipalities - Annual'!$D:$D, Results!$B15, 'Municipalities - Annual'!$M:$M) -> 0 | M15: 0
B16: Contract Works | C16: =SUMIF('Domestic - Monthly'!$D:$D, Results!$B16, 'Domestic - Monthly'!$M:$M) -> 0 | D16: =SUMIF('Domestic (Tertiary) - Monthly'!$D:$D, Results!$B16, 'Domestic (Tertiary) - Monthly'!$M:$M) -> 0 | E16: =SUMIF('Domestic - Annual'!$D:$D, Results!$B16, 'Domestic - Annual'!$M:$M) -> 0 | F16: =SUMIF('Domestic (Tertiary) - Annual'!$D:$D, Results!$B16, 'Domestic (Tertiary) - Annual'!$M:$M) -> 0 | G16: =SUMIF('Commercial - Monthly'!$D:$D, Results!$B16, 'Commercial - Monthly'!$M:$M) -> 0 | H16: =SUMIF('Commercial - Annual'!$D:$D, Results!$B16, 'Commercial - Annual'!$M:$M) -> 0 | I16: =SUMIF('Fire (Office) - Monthly'!$D:$D, Results!$B16, 'Fire (Office) - Monthly'!$M:$M) -> 0 | J16: =SUMIF('Fire (Office) - Annual'!$D:$D, Results!$B16, 'Fire (Office) - Annual'!$M:$M) -> 0 | K16: =SUMIF('Municipalities - Monthly'!$D:$D, Results!$B16, 'Municipalities - Monthly'!$M:$M) -> 0 | L16: =SUMIF('Municipalities - Annual'!$D:$D, Results!$B16, 'Municipalities - Annual'!$M:$M) -> 0 | M16: 0
B17: Money | C17: =SUMIF('Domestic - Monthly'!$D:$D, Results!$B17, 'Domestic - Monthly'!$M:$M) -> 0 | D17: =SUMIF('Domestic (Tertiary) - Monthly'!$D:$D, Results!$B17, 'Domestic (Tertiary) - Monthly'!$M:$M) -> 0 | E17: =SUMIF('Domestic - Annual'!$D:$D, Results!$B17, 'Domestic - Annual'!$M:$M) -> 0 | F17: =SUMIF('Domestic (Tertiary) - Annual'!$D:$D, Results!$B17, 'Domestic (Tertiary) - Annual'!$M:$M) -> 0 | G17: =SUMIF('Commercial - Monthly'!$D:$D, Results!$B17, 'Commercial - Monthly'!$M:$M) -> 0 | H17: =SUMIF('Commercial - Annual'!$D:$D, Results!$B17, 'Commercial - Annual'!$M:$M) -> 0 | I17: =SUMIF('Fire (Office) - Monthly'!$D:$D, Results!$B17, 'Fire (Office) - Monthly'!$M:$M) -> 0 | J17: =SUMIF('Fire (Office) - Annual'!$D:$D, Results!$B17, 'Fire (Office) - Annual'!$M:$M) -> 0 | K17: =SUMIF('Municipalities - Monthly'!$D:$D, Results!$B17, 'Municipalities - Monthly'!$M:$M) -> 0 | L17: =SUMIF('Municipalities - Annual'!$D:$D, Results!$B17, 'Municipalities - Annual'!$M:$M) -> 0 | M17: 0
B18: Goods In Transit | C18: =SUMIF('Domestic - Monthly'!$D:$D, Results!$B18, 'Domestic - Monthly'!$M:$M) -> 0 | D18: =SUMIF('Domestic (Tertiary) - Monthly'!$D:$D, Results!$B18, 'Domestic (Tertiary) - Monthly'!$M:$M) -> 0 | E18: =SUMIF('Domestic - Annual'!$D:$D, Results!$B18, 'Domestic - Annual'!$M:$M) -> 0 | F18: =SUMIF('Domestic (Tertiary) - Annual'!$D:$D, Results!$B18, 'Domestic (Tertiary) - Annual'!$M:$M) -> 0 | G18: =SUMIF('Commercial - Monthly'!$D:$D, Results!$B18, 'Commercial - Monthly'!$M:$M) -> 0 | H18: =SUMIF('Commercial - Annual'!$D:$D, Results!$B18, 'Commercial - Annual'!$M:$M) -> 0 | I18: =SUMIF('Fire (Office) - Monthly'!$D:$D, Results!$B18, 'Fire (Office) - Monthly'!$M:$M) -> 0 | J18: =SUMIF('Fire (Office) - Annual'!$D:$D, Results!$B18, 'Fire (Office) - Annual'!$M:$M) -> 0 | K18: =SUMIF('Municipalities - Monthly'!$D:$D, Results!$B18, 'Municipalities - Monthly'!$M:$M) -> 0 | L18: =SUMIF('Municipalities - Annual'!$D:$D, Results!$B18, 'Municipalities - Annual'!$M:$M) -> 0 | M18: 0
B20: Sum Insured
B21: Class | C21: Domestic - Monthly | D21: Domestic (Tertiary) - Monthly | E21: Domestic - Annual | F21: Domestic (Tertiary) - Annual | G21: Commercial - Monthly | H21: Commercial - Annual | I21: Fire (Office) - Monthly | J21: Fire (Office) - Monthly | K21: Municipalities - Monthly | L21: Municipalities - Annual | M21: Aggregate
B22: Fire | C22: =SUMIF('Domestic - Monthly'!$D:$D, Results!$B22, 'Domestic - Monthly'!$E:$E) - SUMIF('Domestic - Monthly'!$B:$B, "F1-MC", 'Domestic - Monthly'!$E:$E) -> 0 | D22: =SUMIF('Domestic (Tertiary) - Monthly'!$D:$D, Results!$B22, 'Domestic (Tertiary) - Monthly'!$E:$E) -> 0 | E22: =SUMIF('Domestic - Annual'!$D:$D, Results!$B22, 'Domestic - Annual'!$E:$E) - SUMIF('Domestic - Annual'!$B:$B, "F1-MC", 'Domestic - Annual'!$E:$E) -> 0 | F22: =SUMIF('Domestic (Tertiary) - Annual'!$D:$D, Results!$B22, 'Domestic (Tertiary) - Annual'!$E:$E) -> 0 | G22: =SUMIF('Commercial - Monthly'!$D:$D, Results!$B22, 'Commercial - Monthly'!$E:$E) -> 0 | H22: =SUMIF('Commercial - Annual'!$D:$D, Results!$B22, 'Commercial - Annual'!$E:$E) -> 0 | I22: =SUMIF('Fire (Office) - Monthly'!$D:$D, Results!$B22, 'Fire (Office) - Monthly'!$E:$E) -> 0 | J22: =SUMIF('Fire (Office) - Annual'!$D:$D, Results!$B22, 'Fire (Office) - Annual'!$E:$E) -> 0 | K22: =SUMIF('Municipalities - Monthly'!$D:$D, Results!$B22, 'Municipalities - Monthly'!$E:$E) -> 0 | L22: =SUMIF('Municipalities - Annual'!$D:$D, Results!$B22, 'Municipalities - Annual'!$E:$E) -> 0 | M22: =SUM(C22:L22) -> 0
B23: Extensions | M23: =SUM(C23:L23) -> 0
B24: Static Risk | C24: =SUMIF('Domestic - Monthly'!$D:$D, Results!$B24, 'Domestic - Monthly'!$E:$E) -> 0 | D24: =SUMIF('Domestic (Tertiary) - Monthly'!$D:$D, Results!$B24, 'Domestic (Tertiary) - Monthly'!$E:$E) -> 0 | E24: =SUMIF('Domestic - Annual'!$D:$D, Results!$B24, 'Domestic - Annual'!$E:$E) -> 0 | F24: =SUMIF('Domestic (Tertiary) - Annual'!$D:$D, Results!$B24, 'Domestic (Tertiary) - Annual'!$E:$E) -> 0 | G24: =SUMIF('Commercial - Monthly'!$D:$D, Results!$B24, 'Commercial - Monthly'!$E:$E) -> 0 | H24: =SUMIF('Commercial - Annual'!$D:$D, Results!$B24, 'Commercial - Annual'!$E:$E) -> 0 | I24: =SUMIF('Fire (Office) - Monthly'!$D:$D, Results!$B24, 'Fire (Office) - Monthly'!$E:$E) -> 0 | J24: =SUMIF('Fire (Office) - Annual'!$D:$D, Results!$B24, 'Fire (Office) - Annual'!$E:$E) -> 0 | K24: =SUMIF('Municipalities - Monthly'!$D:$D, Results!$B24, 'Municipalities - Monthly'!$E:$E) -> 0 | L24: =SUMIF('Municipalities - Annual'!$D:$D, Results!$B24, 'Municipalities - Annual'!$E:$E) -> 0 | M24: 0
B25: Escalation | M25: 0
B26: Standing Charges | C26: =SUMIF('Domestic - Monthly'!$D:$D, Results!$B26, 'Domestic - Monthly'!$E:$E) -> 0 | D26: =SUMIF('Domestic (Tertiary) - Monthly'!$D:$D, Results!$B26, 'Domestic (Tertiary) - Monthly'!$E:$E) -> 0 | E26: =SUMIF('Domestic - Annual'!$D:$D, Results!$B26, 'Domestic - Annual'!$E:$E) -> 0 | F26: =SUMIF('Domestic (Tertiary) - Annual'!$D:$D, Results!$B26, 'Domestic (Tertiary) - Annual'!$E:$E) -> 0 | G26: =SUMIF('Commercial - Monthly'!$D:$D, Results!$B26, 'Commercial - Monthly'!$E:$E) -> 0 | H26: =SUMIF('Commercial - Annual'!$D:$D, Results!$B26, 'Commercial - Annual'!$E:$E) -> 0 | I26: =SUMIF('Fire (Office) - Monthly'!$D:$D, Results!$B26, 'Fire (Office) - Monthly'!$E:$E) -> 0 | J26: =SUMIF('Fire (Office) - Annual'!$D:$D, Results!$B26, 'Fire (Office) - Annual'!$E:$E) -> 0 | K26: =SUMIF('Municipalities - Monthly'!$D:$D, Results!$B26, 'Municipalities - Monthly'!$E:$E) -> 0 | L26: =SUMIF('Municipalities - Annual'!$D:$D, Results!$B26, 'Municipalities - Annual'!$E:$E) -> 0 | M26: 0
B27: Advance Standing Charges | C27: =SUMIF('Domestic - Monthly'!$D:$D, Results!$B27, 'Domestic - Monthly'!$E:$E) -> 0 | D27: =SUMIF('Domestic (Tertiary) - Monthly'!$D:$D, Results!$B27, 'Domestic (Tertiary) - Monthly'!$E:$E) -> 0 | E27: =SUMIF('Domestic - Annual'!$D:$D, Results!$B27, 'Domestic - Annual'!$E:$E) -> 0 | F27: =SUMIF('Domestic (Tertiary) - Annual'!$D:$D, Results!$B27, 'Domestic (Tertiary) - Annual'!$E:$E) -> 0 | G27: =SUMIF('Commercial - Monthly'!$D:$D, Results!$B27, 'Commercial - Monthly'!$E:$E) -> 0 | H27: =SUMIF('Commercial - Annual'!$D:$D, Results!$B27, 'Commercial - Annual'!$E:$E) -> 0 | I27: =SUMIF('Fire (Office) - Monthly'!$D:$D, Results!$B27, 'Fire (Office) - Monthly'!$E:$E) -> 0 | J27: =SUMIF('Fire (Office) - Annual'!$D:$D, Results!$B27, 'Fire (Office) - Annual'!$E:$E) -> 0 | K27: =SUMIF('Municipalities - Monthly'!$D:$D, Results!$B27, 'Municipalities - Monthly'!$E:$E) -> 0 | L27: =SUMIF('Municipalities - Annual'!$D:$D, Results!$B27, 'Municipalities - Annual'!$E:$E) -> 0 | M27: 0
B28: Working Expenses | C28: =SUMIF('Domestic - Monthly'!$D:$D, Results!$B28, 'Domestic - Monthly'!$E:$E) -> 0 | D28: =SUMIF('Domestic (Tertiary) - Monthly'!$D:$D, Results!$B28, 'Domestic (Tertiary) - Monthly'!$E:$E) -> 0 | E28: =SUMIF('Domestic - Annual'!$D:$D, Results!$B28, 'Domestic - Annual'!$E:$E) -> 0 | F28: =SUMIF('Domestic (Tertiary) - Annual'!$D:$D, Results!$B28, 'Domestic (Tertiary) - Annual'!$E:$E) -> 0 | G28: =SUMIF('Commercial - Monthly'!$D:$D, Results!$B28, 'Commercial - Monthly'!$E:$E) -> 0 | H28: =SUMIF('Commercial - Annual'!$D:$D, Results!$B28, 'Commercial - Annual'!$E:$E) -> 0 | I28: =SUMIF('Fire (Office) - Monthly'!$D:$D, Results!$B28, 'Fire (Office) - Monthly'!$E:$E) -> 0 | J28: =SUMIF('Fire (Office) - Annual'!$D:$D, Results!$B28, 'Fire (Office) - Annual'!$E:$E) -> 0 | K28: =SUMIF('Municipalities - Monthly'!$D:$D, Results!$B28, 'Municipalities - Monthly'!$E:$E) -> 0 | L28: =SUMIF('Municipalities - Annual'!$D:$D, Results!$B28, 'Municipalities - Annual'!$E:$E) -> 0 | M28: 0
B29: Net Profit | C29: =SUMIF('Domestic - Monthly'!$D:$D, Results!$B29, 'Domestic - Monthly'!$E:$E) -> 0 | D29: =SUMIF('Domestic (Tertiary) - Monthly'!$D:$D, Results!$B29, 'Domestic (Tertiary) - Monthly'!$E:$E) -> 0 | E29: =SUMIF('Domestic - Annual'!$D:$D, Results!$B29, 'Domestic - Annual'!$E:$E) -> 0 | F29: =SUMIF('Domestic (Tertiary) - Annual'!$D:$D, Results!$B29, 'Domestic (Tertiary) - Annual'!$E:$E) -> 0 | G29: =SUMIF('Commercial - Monthly'!$D:$D, Results!$B29, 'Commercial - Monthly'!$E:$E) -> 0 | H29: =SUMIF('Commercial - Annual'!$D:$D, Results!$B29, 'Commercial - Annual'!$E:$E) -> 0 | I29: =SUMIF('Fire (Office) - Monthly'!$D:$D, Results!$B29, 'Fire (Office) - Monthly'!$E:$E) -> 0 | J29: =SUMIF('Fire (Office) - Annual'!$D:$D, Results!$B29, 'Fire (Office) - Annual'!$E:$E) -> 0 | K29: =SUMIF('Municipalities - Monthly'!$D:$D, Results!$B29, 'Municipalities - Monthly'!$E:$E) -> 0 | L29: =SUMIF('Municipalities - Annual'!$D:$D, Results!$B29, 'Municipalities - Annual'!$E:$E) -> 0 | M29: 0
B30: Gross Profit | C30: =SUMIF('Domestic - Monthly'!$D:$D, Results!$B30, 'Domestic - Monthly'!$E:$E) -> 0 | D30: =SUMIF('Domestic (Tertiary) - Monthly'!$D:$D, Results!$B30, 'Domestic (Tertiary) - Monthly'!$E:$E) -> 0 | E30: =SUMIF('Domestic - Annual'!$D:$D, Results!$B30, 'Domestic - Annual'!$E:$E) -> 0 | F30: =SUMIF('Domestic (Tertiary) - Annual'!$D:$D, Results!$B30, 'Domestic (Tertiary) - Annual'!$E:$E) -> 0 | G30: =SUMIF('Commercial - Monthly'!$D:$D, Results!$B30, 'Commercial - Monthly'!$E:$E) -> 0 | H30: =SUMIF('Commercial - Annual'!$D:$D, Results!$B30, 'Commercial - Annual'!$E:$E) -> 0 | I30: =SUMIF('Fire (Office) - Monthly'!$D:$D, Results!$B30, 'Fire (Office) - Monthly'!$E:$E) -> 0 | J30: =SUMIF('Fire (Office) - Annual'!$D:$D, Results!$B30, 'Fire (Office) - Annual'!$E:$E) -> 0 | K30: =SUMIF('Municipalities - Monthly'!$D:$D, Results!$B30, 'Municipalities - Monthly'!$E:$E) -> 0 | L30: =SUMIF('Municipalities - Annual'!$D:$D, Results!$B30, 'Municipalities - Annual'!$E:$E) -> 0 | M30: 0
B31: Revenue | C31: =SUMIF('Domestic - Monthly'!$D:$D, Results!$B31, 'Domestic - Monthly'!$E:$E) -> 0 | D31: =SUMIF('Domestic (Tertiary) - Monthly'!$D:$D, Results!$B31, 'Domestic (Tertiary) - Monthly'!$E:$E) -> 0 | E31: =SUMIF('Domestic - Annual'!$D:$D, Results!$B31, 'Domestic - Annual'!$E:$E) -> 0 | F31: =SUMIF('Domestic (Tertiary) - Annual'!$D:$D, Results!$B31, 'Domestic (Tertiary) - Annual'!$E:$E) -> 0 | G31: =SUMIF('Commercial - Monthly'!$D:$D, Results!$B31, 'Commercial - Monthly'!$E:$E) -> 0 | H31: =SUMIF('Commercial - Annual'!$D:$D, Results!$B31, 'Commercial - Annual'!$E:$E) -> 0 | I31: =SUMIF('Fire (Office) - Monthly'!$D:$D, Results!$B31, 'Fire (Office) - Monthly'!$E:$E) -> 0 | J31: =SUMIF('Fire (Office) - Annual'!$D:$D, Results!$B31, 'Fire (Office) - Annual'!$E:$E) -> 0 | K31: =SUMIF('Municipalities - Monthly'!$D:$D, Results!$B31, 'Municipalities - Monthly'!$E:$E) -> 0 | L31: =SUMIF('Municipalities - Annual'!$D:$D, Results!$B31, 'Municipalities - Annual'!$E:$E) -> 0 | M31: 0
B32: Motor | C32: =SUMIF('Domestic - Monthly'!$D:$D, Results!$B32, 'Domestic - Monthly'!$E:$E) - SUMIF('Domestic - Monthly'!$B:$B, "M1", 'Domestic - Monthly'!$E:$E) -> 0 | D32: =SUMIF('Domestic (Tertiary) - Monthly'!$D:$D, Results!$B32, 'Domestic (Tertiary) - Monthly'!$E:$E) - SUMIF('Domestic (Tertiary) - Monthly'!$B:$B, "M1", 'Domestic (Tertiary) - Monthly'!$E:$E) -> 0 | E32: =SUMIF('Domestic - Annual'!$D:$D, Results!$B32, 'Domestic - Annual'!$E:$E) - SUMIF('Domestic - Annual'!$B:$B, "M1", 'Domestic - Annual'!$E:$E) -> 0 | F32: =SUMIF('Domestic (Tertiary) - Annual'!$D:$D, Results!$B32, 'Domestic (Tertiary) - Annual'!$E:$E) - SUMIF('Domestic (Tertiary) - Annual'!$B:$B, "M1", 'Domestic (Tertiary) - Annual'!$E:$E) -> 0 | G32: =SUMIF('Commercial - Monthly'!$D:$D, Results!$B32, 'Commercial - Monthly'!$E:$E) - SUMIF('Commercial - Monthly'!$B:$B, "M1", 'Commercial - Monthly'!$E:$E) -> 0 | H32: =SUMIF('Commercial - Annual'!$D:$D, Results!$B32, 'Commercial - Annual'!$E:$E) - SUMIF('Commercial - Annual'!$B:$B, "M1", 'Commercial - Annual'!$E:$E) -> 0 | I32: =SUMIF('Fire (Office) - Monthly'!$D:$D, Results!$B32, 'Fire (Office) - Monthly'!$E:$E) - SUMIF('Fire (Office) - Monthly'!$B:$B, "M1", 'Fire (Office) - Monthly'!$E:$E) -> 0 | J32: =SUMIF('Fire (Office) - Annual'!$D:$D, Results!$B32, 'Fire (Office) - Annual'!$E:$E) - SUMIF('Fire (Office) - Annual'!$B:$B, "M1", 'Fire (Office) - Annual'!$E:$E) -> 0 | K32: =SUMIF('Municipalities - Monthly'!$D:$D, Results!$B32, 'Municipalities - Monthly'!$E:$E) - SUMIF('Municipalities - Monthly'!$B:$B, "M1", 'Municipalities - Monthly'!$E:$E) -> 0 | L32: =SUMIF('Municipalities - Annual'!$D:$D, Results!$B32, 'Municipalities - Annual'!$E:$E) - SUMIF('Municipalities - Annual'!$B:$B, "M1", 'Municipalities - Annual'!$E:$E) -> 0 | M32: 0
B33: Contract Works | C33: =SUMIF('Domestic - Monthly'!$D:$D, Results!$B33, 'Domestic - Monthly'!$E:$E) -> 0 | D33: =SUMIF('Domestic (Tertiary) - Monthly'!$D:$D, Results!$B33, 'Domestic (Tertiary) - Monthly'!$E:$E) -> 0 | E33: =SUMIF('Domestic - Annual'!$D:$D, Results!$B33, 'Domestic - Annual'!$E:$E) -> 0 | F33: =SUMIF('Domestic (Tertiary) - Annual'!$D:$D, Results!$B33, 'Domestic (Tertiary) - Annual'!$E:$E) -> 0 | G33: =SUMIF('Commercial - Monthly'!$D:$D, Results!$B33, 'Commercial - Monthly'!$E:$E) -> 0 | H33: =SUMIF('Commercial - Annual'!$D:$D, Results!$B33, 'Commercial - Annual'!$E:$E) -> 0 | I33: =SUMIF('Fire (Office) - Monthly'!$D:$D, Results!$B33, 'Fire (Office) - Monthly'!$E:$E) -> 0 | J33: =SUMIF('Fire (Office) - Annual'!$D:$D, Results!$B33, 'Fire (Office) - Annual'!$E:$E) -> 0 | K33: =SUMIF('Municipalities - Monthly'!$D:$D, Results!$B33, 'Municipalities - Monthly'!$E:$E) -> 0 | L33: =SUMIF('Municipalities - Annual'!$D:$D, Results!$B33, 'Municipalities - Annual'!$E:$E) -> 0 | M33: 0
B34: Money | C34: =SUMIF('Domestic - Monthly'!$D:$D, Results!$B34, 'Domestic - Monthly'!$E:$E) -> 0 | D34: =SUMIF('Domestic (Tertiary) - Monthly'!$D:$D, Results!$B34, 'Domestic (Tertiary) - Monthly'!$E:$E) -> 0 | E34: =SUMIF('Domestic - Annual'!$D:$D, Results!$B34, 'Domestic - Annual'!$E:$E) -> 0 | F34: =SUMIF('Domestic (Tertiary) - Annual'!$D:$D, Results!$B34, 'Domestic (Tertiary) - Annual'!$E:$E) -> 0 | G34: =SUMIF('Commercial - Monthly'!$D:$D, Results!$B34, 'Commercial - Monthly'!$E:$E) -> 0 | H34: =SUMIF('Commercial - Annual'!$D:$D, Results!$B34, 'Commercial - Annual'!$E:$E) -> 0 | I34: =SUMIF('Fire (Office) - Monthly'!$D:$D, Results!$B34, 'Fire (Office) - Monthly'!$E:$E) -> 0 | J34: =SUMIF('Fire (Office) - Annual'!$D:$D, Results!$B34, 'Fire (Office) - Annual'!$E:$E) -> 0 | K34: =SUMIF('Municipalities - Monthly'!$D:$D, Results!$B34, 'Municipalities - Monthly'!$E:$E) -> 0 | L34: =SUMIF('Municipalities - Annual'!$D:$D, Results!$B34, 'Municipalities - Annual'!$E:$E) -> 0 | M34: 0
B35: Goods In Transit | C35: =SUMIF('Domestic - Monthly'!$D:$D, Results!$B35, 'Domestic - Monthly'!$E:$E) -> 0 | D35: =SUMIF('Domestic (Tertiary) - Monthly'!$D:$D, Results!$B35, 'Domestic (Tertiary) - Monthly'!$E:$E) -> 0 | E35: =SUMIF('Domestic - Annual'!$D:$D, Results!$B35, 'Domestic - Annual'!$E:$E) -> 0 | F35: =SUMIF('Domestic (Tertiary) - Annual'!$D:$D, Results!$B35, 'Domestic (Tertiary) - Annual'!$E:$E) -> 0 | G35: =SUMIF('Commercial - Monthly'!$D:$D, Results!$B35, 'Commercial - Monthly'!$E:$E) -> 0 | H35: =SUMIF('Commercial - Annual'!$D:$D, Results!$B35, 'Commercial - Annual'!$E:$E) -> 0 | I35: =SUMIF('Fire (Office) - Monthly'!$D:$D, Results!$B35, 'Fire (Office) - Monthly'!$E:$E) -> 0 | J35: =SUMIF('Fire (Office) - Annual'!$D:$D, Results!$B35, 'Fire (Office) - Annual'!$E:$E) -> 0 | K35: =SUMIF('Municipalities - Monthly'!$D:$D, Results!$B35, 'Municipalities - Monthly'!$E:$E) -> 0 | L35: =SUMIF('Municipalities - Annual'!$D:$D, Results!$B35, 'Municipalities - Annual'!$E:$E) -> 0 | M35: 0

Sheet Domestic - Monthly
A1: Domestic - Monthly | O1: Cells with green borders have a drop-down selection!
A2: Category | B2: Code | C2: Description | D2: Total Code | E2: Sum Insured/No. of insured items | F2: Rate | G2: Add To Sum Insured Discount | H2: Receive Sum Insured Discount | I2: Add To CW Discount | J2: Receive CW Discount | K2: Minimum Premium | L2: Has Fire Extension Discount | M2: Premium
B3: Fire
A4: Domestic Fire | B4: F1 | C4: Domestic Fire | D4: Fire | F4: =F1_Monthly -> 3.63e-06 | G4: TRUE | H4: TRUE | I4: FALSE | J4: FALSE | K4: =F1_MonthlyMin -> 3 | L4: FALSE | M4: =IF(E4 = 0, 0, MAX(((E4 * F4) * (IF(H4 = TRUE, 1 - 'Loss Limit Discount'!$D$93, 1)) ) * (1 - Voluntary_Deductible) * (1 - Co_insurance), K4)) -> 0
A5: Domestic Fire | B5: F1-MC | C5: Mayors and Councilors | D5: Fire | F5: =F1MC_Monthly -> 5.45 | G5: FALSE | H5: FALSE | I5: FALSE | J5: FALSE | K5: =F1MC_MonthlyMin -> 0 | L5: FALSE | M5: =IF(E5 = 0, 0, MAX((F5 * E5) * (IF(H5 = TRUE, 1 - 'Loss Limit Discount'!$D$93, 1) * (1 - Co_insurance)), K5 * E5)) -> 0
A6: Extension | B6: Sasria Extensions
A7: Extension | B7: =IFERROR(RANK($P7, $P$7:$P$66, 1), "") ->  | C7: Rent | D7: Fire | F7: =$F$4 -> 3.63e-06 | G7: TRUE | H7: TRUE | I7: FALSE | J7: FALSE | K7: 0 | L7: TRUE | M7: =IF(E7 = 0, 0, MAX(((VLOOKUP($B7, DM_NonFreeExt, 60, FALSE) * F7) * (IF(H7 = TRUE, 1 - 'Loss Limit Discount'!$D$93, 1))) * (1 - Voluntary_Deductible), K7)) -> 0 | O7: =MyTimestamp(E7) ->  | P7: =IFERROR(VALUE(O7), "") -> 
A8: Extension | C8: Claims Preparation Costs | D8: Fire | F8: =$F$4 -> 3.63e-06 | G8: TRUE | H8: TRUE | I8: FALSE | J8: FALSE | K8: 0 | L8: TRUE | M8: =IF(E8 = 0, 0, MAX(((VLOOKUP($B8, DM_NonFreeExt, 60, FALSE) * F8) * (IF(H8 = TRUE, 1 - 'Loss Limit Discount'!$D$93, 1))) * (1 - Voluntary_Deductible), K8)) -> 0 | O8: =MyTimestamp(E8) ->  | P8: =IFERROR(VALUE(O8), "") -> 
A9: Extension | C9: Capital Additions | D9: Fire | F9: 3.63e-06 | G9: TRUE | H9: TRUE | I9: FALSE | J9: FALSE | K9: 0 | L9: TRUE | M9: =IF(E9 = 0, 0, MAX(((VLOOKUP($B9, DM_NonFreeExt, 60, FALSE) * F9) * (IF(H9 = TRUE, 1 - 'Loss Limit Discount'!$D$93, 1))) * (1 - Voluntary_Deductible), K9)) -> 0 | O9: =MyTimestamp(E9) -> 
A10: Extension | C10: Professional fees | D10: Fire | F10: 3.63e-06 | G10: TRUE | H10: TRUE | I10: FALSE | J10: FALSE | K10: 0 | L10: TRUE | M10: =IF(E10 = 0, 0, MAX(((VLOOKUP($B10, DM_NonFreeExt, 60, FALSE) * F10) * (IF(H10 = TRUE, 1 - 'Loss Limit Discount'!$D$93, 1))) * (1 - Voluntary_Deductible), K10)) -> 0 | O10: =MyTimestamp(E10) -> 
A11: Extension | C11: Clearance costs | D11: Fire | F11: 3.63e-06 | G11: TRUE | H11: TRUE | I11: FALSE | J11: FALSE | K11: 0 | L11: TRUE | M11: =IF(E11 = 0, 0, MAX(((VLOOKUP($B11, DM_NonFreeExt, 60, FALSE) * F11) * (IF(H11 = TRUE, 1 - 'Loss Limit Discount'!$D$93, 1))) * (1 - Voluntary_Deductible), K11)) -> 0 | O11: =MyTimestamp(E11) -> 
A12: Extension | C12: Security Costs (During and after a loss) | D12: Fire | F12: 3.63e-06 | G12: TRUE | H12: TRUE | I12: FALSE | J12: FALSE | K12: 0 | L12: TRUE | M12: =IF(E12 = 0, 0, MAX(((VLOOKUP($B12, DM_NonFreeExt, 60, FALSE) * F12) * (IF(H12 = TRUE, 1 - 'Loss Limit Discount'!$D$93, 1))) * (1 - Voluntary_Deductible), K12)) -> 0 | O12: =MyTimestamp(E12) -> 
A13: Extension | C13: Statutory Duties | D13: Fire | F13: 3.63e-06 | G13: TRUE | H13: TRUE | I13: FALSE | J13: FALSE | K13: 0 | L13: TRUE | M13: =IF(E13 = 0, 0, MAX(((VLOOKUP($B13, DM_NonFreeExt, 60, FALSE) * F13) * (IF(H13 = TRUE, 1 - 'Loss Limit Discount'!$D$93, 1))) * (1 - Voluntary_Deductible), K13)) -> 0 | O13: =MyTimestamp(E13) -> 
A14: Extension | C14: Additional Premises | D14: Fire | F14: 3.63e-06 | G14: TRUE | H14: TRUE | I14: FALSE | J14: FALSE | K14: 0 | L14: TRUE | M14: =IF(E14 = 0, 0, MAX(((VLOOKUP($B14, DM_NonFreeExt, 60, FALSE) * F14) * (IF(H14 = TRUE, 1 - 'Loss Limit Discount'!$D$93, 1))) * (1 - Voluntary_Deductible), K14)) -> 0 | O14: =MyTimestamp(E14) -> 
A15: Extension | C15: Acquisitions | D15: Fire | F15: 3.63e-06 | G15: TRUE | H15: TRUE | I15: FALSE | J15: FALSE | K15: 0 | L15: TRUE | M15: =IF(E15 = 0, 0, MAX(((VLOOKUP($B15, DM_NonFreeExt, 60, FALSE) * F15) * (IF(H15 = TRUE, 1 - 'Loss Limit Discount'!$D$93, 1))) * (1 - Voluntary_Deductible), K15)) -> 0 | O15: =MyTimestamp(E15) -> 
A16: Extension | C16: Import Surcharges | D16: Fire | F16: 3.63e-06 | G16: TRUE | H16: TRUE | I16: FALSE | J16: FALSE | K16: 0 | L16: TRUE | M16: =IF(E16 = 0, 0, MAX(((VLOOKUP($B16, DM_NonFreeExt, 60, FALSE) * F16) * (IF(H16 = TRUE, 1 - 'Loss Limit Discount'!$D$93, 1))) * (1 - Voluntary_Deductible), K16)) -> 0 | O16: =MyTimestamp(E16) -> 
A17: Extension | C17: Property in the course of Construction | D17: Fire | F17: 3.63e-06 | G17: FALSE | H17: FALSE | I17: FALSE | J17: FALSE | K17: 0 | L17: TRUE | M17: =IF(E17 = 0, 0, MAX(((VLOOKUP($B17, DM_NonFreeExt, 60, FALSE) * F17) * (IF(H17 = TRUE, 1 - 'Loss Limit Discount'!$D$93, 1))) * (1 - Voluntary_Deductible), K17)) -> 0 | O17: =MyTimestamp(E17) ->  | P17: =IFERROR(VALUE(O17), "") -> 
A18: Extension | B18: =IFERROR(RANK($P18, $P$7:$P$66, 1), "") ->  | C18: Fire Protection System Update | D18: Fire | F18: 3.63e-06 | G18: TRUE | H18: TRUE | I18: FALSE | J18: FALSE | K18: 0 | L18: TRUE | M18: =IF(E18 = 0, 0, MAX(((VLOOKUP($B18, DM_NonFreeExt, 60, FALSE) * F18) * (IF(H18 = TRUE, 1 - 'Loss Limit Discount'!$D$93, 1))) * (1 - Voluntary_Deductible), K18)) -> 0 | O18: =MyTimestamp(E18) -> 
A19: Extension | C19: Accumulation of Motor Vehicles/Static Risk | D19: Fire | F19: =StaticRisk_Monthly -> 8.165e-05 | G19: FALSE | H19: FALSE | I19: FALSE | J19: FALSE | K19: =StaticRisk_MonthlyMin -> 50 | L19: TRUE | M19: =IF(E19 = 0, 0, MAX(((E19 * F19) * (IF(H19 = TRUE, 1 - 'Loss Limit Discount'!$D$93, 1))) * (1 - Voluntary_Deductible), K19)) -> 0
A20: Extension | C20: Goods in the open | D20: Fire | F20: 3.63e-06 | G20: TRUE | H20: TRUE | I20: FALSE | J20: FALSE | K20: 0 | L20: TRUE | M20: =IF(E20 = 0, 0, MAX(((VLOOKUP($B20, DM_NonFreeExt, 60, FALSE) * F20) * (IF(H20 = TRUE, 1 - 'Loss Limit Discount'!$D$93, 1))) * (1 - Voluntary_Deductible), K20)) -> 0 | O20: =MyTimestamp(E20) -> 
A21: Extension | C21: Fire Extinguishing | D21: Fire | F21: 3.63e-06 | G21: TRUE | H21: TRUE | I21: FALSE | J21: FALSE | K21: 0 | L21: TRUE | M21: =IF(E21 = 0, 0, MAX(((VLOOKUP($B21, DM_NonFreeExt, 60, FALSE) * F21) * (IF(H21 = TRUE, 1 - 'Loss Limit Discount'!$D$93, 1))) * (1 - Voluntary_Deductible), K21)) -> 0 | O21: =MyTimestamp(E21) -> 
A22: Extension | C22: Imminent Danger (Protection of property prior a loss) | D22: Fire | F22: 3.63e-06 | G22: TRUE | H22: TRUE | I22: FALSE | J22: FALSE | K22: 0 | L22: FALSE | M22: =IF(E22 = 0, 0, MAX(((E22 * F22) * (IF(H22 = TRUE, 1 - 'Loss Limit Discount'!$D$93, 1))) * (1 - Voluntary_Deductible), K22)) -> 0
A23: Other Extension | B23: Other Extensions
A24: Other Extension | B24: =IFERROR(RANK($P24, $P$7:$P$66, 1), "") ->  | C24: Other | D24: Fire | F24: =$F$4 -> 3.63e-06 | G24: TRUE | H24: TRUE | I24: FALSE | J24: FALSE | K24: 0 | L24: TRUE | M24: =IF(E24 = 0, 0, MAX(((VLOOKUP($B24, DM_NonFreeExt, 60, FALSE) * F24) * (IF(H24 = TRUE, 1 - 'Loss Limit Discount'!$D$93, 1))) * (1 - Voluntary_Deductible), K24)) -> 0 | O24: =MyTimestamp(E24) ->  | P24: =IFERROR(VALUE(O24), "") -> 
A25: Other Extension | C25: Other | D25: Fire | F25: 3.63e-06 | G25: TRUE | H25: TRUE | I25: FALSE | J25: FALSE | K25: 0 | L25: TRUE | M25: =IF(E25 = 0, 0, MAX(((VLOOKUP($B25, DM_NonFreeExt, 60, FALSE) * F25) * (IF(H25 = TRUE, 1 - 'Loss Limit Discount'!$D$93, 1))) * (1 - Voluntary_Deductible), K25)) -> 0 | O25: =MyTimestamp(E25) -> 
A26: Other Extension | C26: Other | D26: Fire | F26: 3.63e-06 | G26: TRUE | H26: TRUE | I26: FALSE | J26: FALSE | K26: 0 | L26: TRUE | M26: =IF(E26 = 0, 0, MAX(((VLOOKUP($B26, DM_NonFreeExt, 60, FALSE) * F26) * (IF(H26 = TRUE, 1 - 'Loss Limit Discount'!$D$93, 1))) * (1 - Voluntary_Deductible), K26)) -> 0 | O26: =MyTimestamp(E26) -> 
A27: Other Extension | C27: Other | D27: Fire | F27: 3.63e-06 | G27: TRUE | H27: TRUE | I27: FALSE | J27: FALSE | K27: 0 | L27: TRUE | M27: =IF(E27 = 0, 0, MAX(((VLOOKUP($B27, DM_NonFreeExt, 60, FALSE) * F27) * (IF(H27 = TRUE, 1 - 'Loss Limit Discount'!$D$93, 1))) * (1 - Voluntary_Deductible), K27)) -> 0 | O27: =MyTimestamp(E27) -> 
A28: Other Extension | C28: Other | D28: Fire | F28: 3.63e-06 | G28: TRUE | H28: TRUE | I28: FALSE | J28: FALSE | K28: 0 | L28: TRUE | M28: =IF(E28 = 0, 0, MAX(((VLOOKUP($B28, DM_NonFreeExt, 60, FALSE) * F28) * (IF(H28 = TRUE, 1 - 'Loss Limit Discount'!$D$93, 1))) * (1 - Voluntary_Deductible), K28)) -> 0 | O28: =MyTimestamp(E28) -> 
A29: Other Extension | C29: Other | D29: Fire | F29: 3.63e-06 | G29: TRUE | H29: TRUE | I29: FALSE | J29: FALSE | K29: 0 | L29: TRUE | M29: =IF(E29 = 0, 0, MAX(((VLOOKUP($B29, DM_NonFreeExt, 60, FALSE) * F29) * (IF(H29 = TRUE, 1 - 'Loss Limit Discount'!$D$93, 1))) * (1 - Voluntary_Deductible), K29)) -> 0 | O29: =MyTimestamp(E29) -> 
A30: Other Extension | C30: Other | D30: Fire | F30: 3.63e-06 | G30: TRUE | H30: TRUE | I30: FALSE | J30: FALSE | K30: 0 | L30: TRUE | M30: =IF(E30 = 0, 0, MAX(((VLOOKUP($B30, DM_NonFreeExt, 60, FALSE) * F30) * (IF(H30 = TRUE, 1 - 'Loss Limit Discount'!$D$93, 1))) * (1 - Voluntary_Deductible), K30)) -> 0 | O30: =MyTimestamp(E30) -> 
A31: Other Extension | C31: Other | D31: Fire | F31: 3.63e-06 | G31: TRUE | H31: TRUE | I31: FALSE | J31: FALSE | K31: 0 | L31: TRUE | M31: =IF(E31 = 0, 0, MAX(((VLOOKUP($B31, DM_NonFreeExt, 60, FALSE) * F31) * (IF(H31 = TRUE, 1 - 'Loss Limit Discount'!$D$93, 1))) * (1 - Voluntary_Deductible), K31)) -> 0 | O31: =MyTimestamp(E31) -> 
A32: Other Extension | C32: Other | D32: Fire | F32: 3.63e-06 | G32: TRUE | H32: TRUE | I32: FALSE | J32: FALSE | K32: 0 | L32: TRUE | M32: =IF(E32 = 0, 0, MAX(((VLOOKUP($B32, DM_NonFreeExt, 60, FALSE) * F32) * (IF(H32 = TRUE, 1 - 'Loss Limit Discount'!$D$93, 1))) * (1 - Voluntary_Deductible), K32)) -> 0 | O32: =MyTimestamp(E32) -> 
A33: Other Extension | C33: Other | D33: Fire | F33: 3.63e-06 | G33: TRUE | H33: TRUE | I33: FALSE | J33: FALSE | K33: 0 | L33: TRUE | M33: =IF(E33 = 0, 0, MAX(((VLOOKUP($B33, DM_NonFreeExt, 60, FALSE) * F33) * (IF(H33 = TRUE, 1 - 'Loss Limit Discount'!$D$93, 1))) * (1 - Voluntary_Deductible), K33)) -> 0 | O33: =MyTimestamp(E33) -> 
A34: Other Extension | C34: Other | D34: Fire | F34: 3.63e-06 | G34: TRUE | H34: TRUE | I34: FALSE | J34: FALSE | K34: 0 | L34: TRUE | M34: =IF(E34 = 0, 0, MAX(((VLOOKUP($B34, DM_NonFreeExt, 60, FALSE) * F34) * (IF(H34 = TRUE, 1 - 'Loss Limit Discount'!$D$93, 1))) * (1 - Voluntary_Deductible), K34)) -> 0 | O34: =MyTimestamp(E34) -> 
A35: Other Extension | C35: Other | D35: Fire | F35: 3.63e-06 | G35: TRUE | H35: TRUE | I35: FALSE | J35: FALSE | K35: 0 | L35: TRUE | M35: =IF(E35 = 0, 0, MAX(((VLOOKUP($B35, DM_NonFreeExt, 60, FALSE) * F35) * (IF(H35 = TRUE, 1 - 'Loss Limit Discount'!$D$93, 1))) * (1 - Voluntary_Deductible), K35)) -> 0 | O35: =MyTimestamp(E35) -> 
A36: Other Extension | C36: Other | D36: Fire | F36: 3.63e-06 | G36: TRUE | H36: TRUE | I36: FALSE | J36: FALSE | K36: 0 | L36: TRUE | M36: =IF(E36 = 0, 0, MAX(((VLOOKUP($B36, DM_NonFreeExt, 60, FALSE) * F36) * (IF(H36 = TRUE, 1 - 'Loss Limit Discount'!$D$93, 1))) * (1 - Voluntary_Deductible), K36)) -> 0 | O36: =MyTimestamp(E36) -> 
A37: Other Extension | C37: Other | D37: Fire | F37: 3.63e-06 | G37: TRUE | H37: TRUE | I37: FALSE | J37: FALSE | K37: 0 | L37: TRUE | M37: =IF(E37 = 0, 0, MAX(((VLOOKUP($B37, DM_NonFreeExt, 60, FALSE) * F37) * (IF(H37 = TRUE, 1 - 'Loss Limit Discount'!$D$93, 1))) * (1 - Voluntary_Deductible), K37)) -> 0 | O37: =MyTimestamp(E37) -> 
A38: Other Extension | C38: Other | D38: Fire | F38: 3.63e-06 | G38: TRUE | H38: TRUE | I38: FALSE | J38: FALSE | K38: 0 | L38: TRUE | M38: =IF(E38 = 0, 0, MAX(((VLOOKUP($B38, DM_NonFreeExt, 60, FALSE) * F38) * (IF(H38 = TRUE, 1 - 'Loss Limit Discount'!$D$93, 1))) * (1 - Voluntary_Deductible), K38)) -> 0 | O38: =MyTimestamp(E38) -> 
A39: Other Extension | C39: Other | D39: Fire | F39: 3.63e-06 | G39: TRUE | H39: TRUE | I39: FALSE | J39: FALSE | K39: 0 | L39: TRUE | M39: =IF(E39 = 0, 0, MAX(((VLOOKUP($B39, DM_NonFreeExt, 60, FALSE) * F39) * (IF(H39 = TRUE, 1 - 'Loss Limit Discount'!$D$93, 1))) * (1 - Voluntary_Deductible), K39)) -> 0 | O39: =MyTimestamp(E39) -> 
A40: Other Extension | C40: Other | D40: Fire | F40: 3.63e-06 | G40: TRUE | H40: TRUE | I40: FALSE | J40: FALSE | K40: 0 | L40: TRUE | M40: =IF(E40 = 0, 0, MAX(((VLOOKUP($B40, DM_NonFreeExt, 60, FALSE) * F40) * (IF(H40 = TRUE, 1 - 'Loss Limit Discount'!$D$93, 1))) * (1 - Voluntary_Deductible), K40)) -> 0 | O40: =MyTimestamp(E40) -> 
A41: Other Extension | C41: Other | D41: Fire | F41: 3.63e-06 | G41: TRUE | H41: TRUE | I41: FALSE | J41: FALSE | K41: 0 | L41: TRUE | M41: =IF(E41 = 0, 0, MAX(((VLOOKUP($B41, DM_NonFreeExt, 60, FALSE) * F41) * (IF(H41 = TRUE, 1 - 'Loss Limit Discount'!$D$93, 1))) * (1 - Voluntary_Deductible), K41)) -> 0 | O41: =MyTimestamp(E41) -> 
A42: Other Extension | C42: Other | D42: Fire | F42: 3.63e-06 | G42: TRUE | H42: TRUE | I42: FALSE | J42: FALSE | K42: 0 | L42: TRUE | M42: =IF(E42 = 0, 0, MAX(((VLOOKUP($B42, DM_NonFreeExt, 60, FALSE) * F42) * (IF(H42 = TRUE, 1 - 'Loss Limit Discount'!$D$93, 1))) * (1 - Voluntary_Deductible), K42)) -> 0 | O42: =MyTimestamp(E42) -> 
A43: Other Extension | C43: Other | D43: Fire | F43: 3.63e-06 | G43: TRUE | H43: TRUE | I43: FALSE | J43: FALSE | K43: 0 | L43: TRUE | M43: =IF(E43 = 0, 0, MAX(((VLOOKUP($B43, DM_NonFreeExt, 60, FALSE) * F43) * (IF(H43 = TRUE, 1 - 'Loss Limit Discount'!$D$93, 1))) * (1 - Voluntary_Deductible), K43)) -> 0 | O43: =MyTimestamp(E43) -> 
A44: Other Extension | C44: Other | D44: Fire | F44: 3.63e-06 | G44: TRUE | H44: TRUE | I44: FALSE | J44: FALSE | K44: 0 | L44: TRUE | M44: =IF(E44 = 0, 0, MAX(((VLOOKUP($B44, DM_NonFreeExt, 60, FALSE) * F44) * (IF(H44 = TRUE, 1 - 'Loss Limit Discount'!$D$93, 1))) * (1 - Voluntary_Deductible), K44)) -> 0 | O44: =MyTimestamp(E44) -> 
A45: Other Extension | C45: Other | D45: Fire | F45: 3.63e-06 | G45: TRUE | H45: TRUE | I45: FALSE | J45: FALSE | K45: 0 | L45: TRUE | M45: =IF(E45 = 0, 0, MAX(((VLOOKUP($B45, DM_NonFreeExt, 60, FALSE) * F45) * (IF(H45 = TRUE, 1 - 'Loss Limit Discount'!$D$93, 1))) * (1 - Voluntary_Deductible), K45)) -> 0 | O45: =MyTimestamp(E45) -> 
A46: Other Extension | C46: Other | D46: Fire | F46: 3.63e-06 | G46: TRUE | H46: TRUE | I46: FALSE | J46: FALSE | K46: 0 | L46: TRUE | M46: =IF(E46 = 0, 0, MAX(((VLOOKUP($B46, DM_NonFreeExt, 60, FALSE) * F46) * (IF(H46 = TRUE, 1 - 'Loss Limit Discount'!$D$93, 1))) * (1 - Voluntary_Deductible), K46)) -> 0 | O46: =MyTimestamp(E46) -> 
A47: Other Extension | C47: Other | D47: Fire | F47: 3.63e-06 | G47: TRUE | H47: TRUE | I47: FALSE | J47: FALSE | K47: 0 | L47: TRUE | M47: =IF(E47 = 0, 0, MAX(((VLOOKUP($B47, DM_NonFreeExt, 60, FALSE) * F47) * (IF(H47 = TRUE, 1 - 'Loss Limit Discount'!$D$93, 1))) * (1 - Voluntary_Deductible), K47)) -> 0 | O47: =MyTimestamp(E47) -> 
A48: Other Extension | C48: Other | D48: Fire | F48: 3.63e-06 | G48: TRUE | H48: TRUE | I48: FALSE | J48: FALSE | K48: 0 | L48: TRUE | M48: =IF(E48 = 0, 0, MAX(((VLOOKUP($B48, DM_NonFreeExt, 60, FALSE) * F48) * (IF(H48 = TRUE, 1 - 'Loss Limit Discount'!$D$93, 1))) * (1 - Voluntary_Deductible), K48)) -> 0 | O48: =MyTimestamp(E48) -> 
A49: Other Extension | C49: Other | D49: Fire | F49: 3.63e-06 | G49: TRUE | H49: TRUE | I49: FALSE | J49: FALSE | K49: 0 | L49: TRUE | M49: =IF(E49 = 0, 0, MAX(((VLOOKUP($B49, DM_NonFreeExt, 60, FALSE) * F49) * (IF(H49 = TRUE, 1 - 'Loss Limit Discount'!$D$93, 1))) * (1 - Voluntary_Deductible), K49)) -> 0 | O49: =MyTimestamp(E49) -> 
A50: Other Extension | C50: Other | D50: Fire | F50: 3.63e-06 | G50: TRUE | H50: TRUE | I50: FALSE | J50: FALSE | K50: 0 | L50: TRUE | M50: =IF(E50 = 0, 0, MAX(((VLOOKUP($B50, DM_NonFreeExt, 60, FALSE) * F50) * (IF(H50 = TRUE, 1 - 'Loss Limit Discount'!$D$93, 1))) * (1 - Voluntary_Deductible), K50)) -> 0 | O50: =MyTimestamp(E50) -> 
A51: Other Extension | C51: Other | D51: Fire | F51: 3.63e-06 | G51: TRUE | H51: TRUE | I51: FALSE | J51: FALSE | K51: 0 | L51: TRUE | M51: =IF(E51 = 0, 0, MAX(((VLOOKUP($B51, DM_NonFreeExt, 60, FALSE) * F51) * (IF(H51 = TRUE, 1 - 'Loss Limit Discount'!$D$93, 1))) * (1 - Voluntary_Deductible), K51)) -> 0 | O51: =MyTimestamp(E51) -> 
A52: Other Extension | C52: Other | D52: Fire | F52: 3.63e-06 | G52: TRUE | H52: TRUE | I52: FALSE | J52: FALSE | K52: 0 | L52: TRUE | M52: =IF(E52 = 0, 0, MAX(((VLOOKUP($B52, DM_NonFreeExt, 60, FALSE) * F52) * (IF(H52 = TRUE, 1 - 'Loss Limit Discount'!$D$93, 1))) * (1 - Voluntary_Deductible), K52)) -> 0 | O52: =MyTimestamp(E52) -> 
A53: Other Extension | C53: Other | D53: Fire | F53: 3.63e-06 | G53: TRUE | H53: TRUE | I53: FALSE | J53: FALSE | K53: 0 | L53: TRUE | M53: =IF(E53 = 0, 0, MAX(((VLOOKUP($B53, DM_NonFreeExt, 60, FALSE) * F53) * (IF(H53 = TRUE, 1 - 'Loss Limit Discount'!$D$93, 1))) * (1 - Voluntary_Deductible), K53)) -> 0 | O53: =MyTimestamp(E53) -> 
A54: Escalation | B54: Escalation and or Inflation
A55: Escalation UL | B55: Charge on U/L
A56: Escalation UL | B56: =IFERROR(RANK($P56, $P$7:$P$66, 1), "") ->  | C56: First Year (90-100%) | D56: Fire | F56: =IF(C56 = "", 0, VLOOKUP(C56, Escalation!$C$6:$D$50, 2, FALSE)) -> 3.63e-06 | G56: FALSE | H56: TRUE | I56: FALSE | J56: FALSE | K56: 0 | M56: =IF(E56 = 0, 0, MAX(((VLOOKUP($B56, DM_NonFreeExt, 60, FALSE) * F56) * (IF(H56 = TRUE, 1 - 'Loss Limit Discount'!$D$93, 1))) * (1 - Voluntary_Deductible), K56)) -> 0 | O56: =MyTimestamp(E56) ->  | P56: =IFERROR(VALUE(O56), "") -> 
A57: Escalation UL | C57: Second Year (90-100%) | D57: Fire | F57: =IF(C57 = "", 0, VLOOKUP(C57, Escalation!$C$6:$D$50, 2, FALSE)) -> 1.815e-06 | G57: FALSE | H57: TRUE | I57: FALSE | J57: FALSE | K57: 0 | M57: =IF(E57 = 0, 0, MAX(((VLOOKUP($B57, DM_NonFreeExt, 60, FALSE) * F57) * (IF(H57 = TRUE, 1 - 'Loss Limit Discount'!$D$93, 1))) * (1 - Voluntary_Deductible), K57)) -> 0 | O57: =MyTimestamp(E57) -> 
A58: Escalation UL | C58: Third Year (90-100%) | D58: Fire | F58: =IF(C58 = "", 0, VLOOKUP(C58, Escalation!$C$6:$D$50, 2, FALSE)) -> 9.075e-07 | G58: FALSE | H58: TRUE | I58: FALSE | J58: FALSE | K58: 0 | M58: =IF(E58 = 0, 0, MAX(((VLOOKUP($B58, DM_NonFreeExt, 60, FALSE) * F58) * (IF(H58 = TRUE, 1 - 'Loss Limit Discount'!$D$93, 1))) * (1 - Voluntary_Deductible), K58)) -> 0 | O58: =MyTimestamp(E58) -> 
A59: Escalation UL | C59: Fourth Year (90-100%) | D59: Fire | F59: =IF(C59 = "", 0, VLOOKUP(C59, Escalation!$C$6:$D$50, 2, FALSE)) -> 7.26e-07 | G59: FALSE | H59: TRUE | I59: FALSE | J59: FALSE | K59: 0 | M59: =IF(E59 = 0, 0, MAX(((VLOOKUP($B59, DM_NonFreeExt, 60, FALSE) * F59) * (IF(H59 = TRUE, 1 - 'Loss Limit Discount'!$D$93, 1))) * (1 - Voluntary_Deductible), K59)) -> 0 | O59: =MyTimestamp(E59) -> 
A60: Escalation UL | C60: Fifth Year (90-100%) | D60: Fire | F60: =IF(C60 = "", 0, VLOOKUP(C60, Escalation!$C$6:$D$50, 2, FALSE)) -> 5.445e-07 | G60: FALSE | H60: TRUE | I60: FALSE | J60: FALSE | K60: 0 | M60: =IF(E60 = 0, 0, MAX(((VLOOKUP($B60, DM_NonFreeExt, 60, FALSE) * F60) * (IF(H60 = TRUE, 1 - 'Loss Limit Discount'!$D$93, 1))) * (1 - Voluntary_Deductible), K60)) -> 0 | O60: =MyTimestamp(E60) -> 
A61: Escalation Not UL | B61: Not Charge on U/L
A62: Escalation Not UL | B62: =IFERROR(RANK($P62, $P$7:$P$66, 1), "") ->  | C62: First Year | D62: Fire | F62: =$F$4 -> 3.63e-06 | G62: FALSE | H62: TRUE | I62: FALSE | J62: FALSE | K62: 0 | M62: =IF(E62 = 0, 0, MAX(((VLOOKUP($B62, DM_NonFreeExt, 60, FALSE) * F62) * (IF(H62 = TRUE, 1 - 'Loss Limit Discount'!$D$93, 1))) * (1 - Voluntary_Deductible), K62)) -> 0 | O62: =MyTimestamp(E62) ->  | P62: =IFERROR(VALUE(O62), "") -> 
A63: Escalation Not UL | C63: Second Year | D63: Fire | F63: =$F$4 * 0.5 -> 1.815e-06 | G63: FALSE | H63: TRUE | I63: FALSE | J63: FALSE | K63: 0 | M63: =IF(E63 = 0, 0, MAX(((VLOOKUP($B63, DM_NonFreeExt, 60, FALSE) * F63) * (IF(H63 = TRUE, 1 - 'Loss Limit Discount'!$D$93, 1))) * (1 - Voluntary_Deductible), K63)) -> 0 | O63: =MyTimestamp(E63) -> 
A64: Escalation Not UL | C64: Third Year | D64: Fire | F64: =$F$4 * 0.25 -> 9.075e-07 | G64: FALSE | H64: TRUE | I64: FALSE | J64: FALSE | K64: 0 | M64: =IF(E64 = 0, 0, MAX(((VLOOKUP($B64, DM_NonFreeExt, 60, FALSE) * F64) * (IF(H64 = TRUE, 1 - 'Loss Limit Discount'!$D$93, 1))) * (1 - Voluntary_Deductible), K64)) -> 0 | O64: =MyTimestamp(E64) -> 
A65: Escalation Not UL | C65: Fourth Year | D65: Fire | F65: =$F$4 * 0.2 -> 7.26e-07 | G65: FALSE | H65: TRUE | I65: FALSE | J65: FALSE | K65: 0 | M65: =IF(E65 = 0, 0, MAX(((VLOOKUP($B65, DM_NonFreeExt, 60, FALSE) * F65) * (IF(H65 = TRUE, 1 - 'Loss Limit Discount'!$D$93, 1))) * (1 - Voluntary_Deductible), K65)) -> 0 | O65: =MyTimestamp(E65) -> 
A66: Escalation Not UL | C66: Fifth Year | D66: Fire | F66: =$F$4 * 0.15 -> 5.445e-07 | G66: FALSE | H66: TRUE | I66: FALSE | J66: FALSE | K66: 0 | M66: =IF(E66 = 0, 0, MAX(((VLOOKUP($B66, DM_NonFreeExt, 60, FALSE) * F66) * (IF(H66 = TRUE, 1 - 'Loss Limit Discount'!$D$93, 1))) * (1 - Voluntary_Deductible), K66)) -> 0 | O66: =MyTimestamp(E66) -> 
B68: Business Interruption
B69: Specified Standing Charges
A70: Business Interruption | B70: SC | C70: 12 Months | D70: Standing Charges | F70: =_xlfn.IFNA(VLOOKUP(C70, Metadata!$D$2:$E$8, 2, FALSE),0) -> 4.9e-06 | G70: TRUE | H70: TRUE | I70: FALSE | J70: FALSE | K70: =BI1_12M_MonthlyMin -> 5 | L70: FALSE | M70: =IF(E70 = 0, 0, MAX((E70 * F70) * (IF(H70 = TRUE, 1 - 'Loss Limit Discount'!$D$93, 1) * (1 - Voluntary_Deductible) * (1 - Co_insurance)), K70)) -> 0
A71: Business Interruption | B71: AICOW | C71: Additional Increase In Cost Of Working | D71: Standing Charges | F71: =F70 * 1.5 -> 7.35e-06 | G71: TRUE | H71: TRUE | I71: FALSE | J71: FALSE | K71: 0 | L71: FALSE | M71: =IF(E71 = 0, 0, MAX((E71 * F71) * (IF(H71 = TRUE, 1 - 'Loss Limit Discount'!$D$93, 1) * (1 - Voluntary_Deductible) * (1 - Co_insurance)), K71)) -> 0
B72: Working Expenses
A73: Business Interruption | B73: WE | C73: 12 Months | D73: Working Expenses | F73: =_xlfn.IFNA(VLOOKUP(C73, Metadata!$D$10:$E$16, 2, FALSE),0) -> 4.9e-06 | G73: TRUE | H73: TRUE | I73: FALSE | J73: FALSE | K73: =BI1_12M_MonthlyMin -> 5 | L73: FALSE | M73: =IF(E73 = 0, 0, MAX((E73 * F73) * (IF(H73 = TRUE, 1 - 'Loss Limit Discount'!$D$93, 1) * (1 - Voluntary_Deductible) * (1 - Co_insurance)), K73)) -> 0
A74: Business Interruption | B74: AICOW | C74: Additional Increase In Cost Of Working | D74: Working Expenses | F74: =F73 * 1.5 -> 7.35e-06 | G74: TRUE | H74: TRUE | I74: FALSE | J74: FALSE | K74: 0 | L74: FALSE | M74: =IF(E74 = 0, 0, MAX((E74 * F74) * (IF(H74 = TRUE, 1 - 'Loss Limit Discount'!$D$93, 1) * (1 - Voluntary_Deductible) * (1 - Co_insurance)), K74)) -> 0
B75: Revenue
A76: Business Interruption | B76: R | C76: 12 Months | D76: Revenue | F76: =_xlfn.IFNA(VLOOKUP(C76, Metadata!$D$34:$E$40, 2, FALSE),0) -> 4.9e-06 | G76: TRUE | H76: TRUE | I76: FALSE | J76: FALSE | K76: =BI1_12M_MonthlyMin -> 5 | L76: FALSE | M76: =IF(E76 = 0, 0, MAX((E76 * F76) * (IF(H76 = TRUE, 1 - 'Loss Limit Discount'!$D$93, 1) * (1 - Voluntary_Deductible) * (1 - Co_insurance)), K76)) -> 0
A77: Business Interruption | B77: AICOW | C77: Additional Increase In Cost Of Working | D77: Revenue | F77: =F76 * 1.5 -> 7.35e-06 | G77: TRUE | H77: TRUE | I77: FALSE | J77: FALSE | K77: 0 | L77: FALSE | M77: =IF(E77 = 0, 0, MAX((E77 * F77) * (IF(H77 = TRUE, 1 - 'Loss Limit Discount'!$D$93, 1) * (1 - Voluntary_Deductible) * (1 - Co_insurance)), K77)) -> 0
B78: Net Profit
A79: Business Interruption | B79: NP | C79: 12 Months | D79: Net Profit | F79: =_xlfn.IFNA(VLOOKUP(C79, Metadata!$D$18:$E$24, 2, FALSE),0) -> 4.9e-06 | G79: TRUE | H79: TRUE | I79: FALSE | J79: FALSE | K79: =BI1_12M_MonthlyMin -> 5 | L79: FALSE | M79: =IF(E79 = 0, 0, MAX((E79 * F79) * (IF(H79 = TRUE, 1 - 'Loss Limit Discount'!$D$93, 1) * (1 - Voluntary_Deductible) * (1 - Co_insurance)), K79)) -> 0
A80: Business Interruption | B80: AICOW | C80: Additional Increase In Cost Of Working | D80: Net Profit | F80: =F79 * 1.5 -> 7.35e-06 | G80: TRUE | H80: TRUE | I80: FALSE | J80: FALSE | K80: 0 | L80: FALSE | M80: =IF(E80 = 0, 0, MAX((E80 * F80) * (IF(H80 = TRUE, 1 - 'Loss Limit Discount'!$D$93, 1) * (1 - Voluntary_Deductible) * (1 - Co_insurance)), K80)) -> 0
B81: Gross Profit
A82: Business Interruption | B82: GP | C82: 12 Months | D82: Gross Profit | F82: =_xlfn.IFNA(VLOOKUP(C82, Metadata!$D$26:$E$32, 2, FALSE),0) -> 4.9e-06 | G82: TRUE | H82: TRUE | I82: FALSE | J82: FALSE | K82: =BI1_12M_MonthlyMin -> 5 | L82: FALSE | M82: =IF(E82 = 0, 0, MAX((E82 * F82) * (IF(H82 = TRUE, 1 - 'Loss Limit Discount'!$D$93, 1) * (1 - Voluntary_Deductible) * (1 - Co_insurance)), K82)) -> 0
A83: Business Interruption | B83: AICOW | C83: Additional Increase In Cost Of Working | D83: Gross Profit | F83: =F82 * 1.5 -> 7.35e-06 | G83: TRUE | H83: TRUE | I83: FALSE | J83: FALSE | K83: 0 | L83: FALSE | M83: =IF(E83 = 0, 0, MAX((E83 * F83) * (IF(H83 = TRUE, 1 - 'Loss Limit Discount'!$D$93, 1) * (1 - Voluntary_Deductible) * (1 - Co_insurance)), K83)) -> 0
B85: Motor
B86: Motor
A87: Motor | B87: M1 | C87: Cars (Primary use: Domestic/Private) | D87: Motor | F87: =M1_Monthly -> 2.62 | G87: FALSE | H87: FALSE | I87: FALSE | J87: FALSE | K87: =M1_MonthlyMin -> 2.62 | L87: FALSE | M87: =IF(E87 = 0, 0, MAX((F87 * E87) * (IF(H87 = TRUE, 1 - 'Loss Limit Discount'!$D$93, 1) ), K87 * E87)) -> 0
A88: Motor | B88: M2 | C88: Light Commercial Vehicles (3500kg GVM or less) | D88: Motor | F88: =M2_Monthly -> 7.062e-05 | G88: FALSE | H88: FALSE | I88: FALSE | J88: FALSE | K88: =M2_MonthlyMin -> 4.54 | L88: FALSE | M88: =IF(E88 = 0, 0, MAX((E88 * F88) * (IF(H88 = TRUE, 1 - 'Loss Limit Discount'!$D$93, 1)), K88)) -> 0
A89: Motor | B89: M3 | C89: Taxis | D89: Motor | F89: =M3_Monthly -> 3.535e-05 | G89: FALSE | H89: FALSE | I89: FALSE | J89: FALSE | K89: =M3_MonthlyMin -> 4.54 | L89: FALSE | M89: =IF(E89 = 0, 0, MAX((E89 * F89) * (IF(H89 = TRUE, 1 - 'Loss Limit Discount'!$D$93, 1) ), K89)) -> 0
A90: Motor | B90: M4 | C90: Ferries & Traders | D90: Motor | F90: =M4_Monthly -> 8.68e-06 | G90: FALSE | H90: FALSE | I90: FALSE | J90: FALSE | K90: =M4_MonthlyMin -> 10 | L90: FALSE | M90: =IF(E90 = 0, 0, MAX((E90 * F90) * (IF(H90 = TRUE, 1 - 'Loss Limit Discount'!$D$93, 1) ), K90)) -> 0
A91: Motor | B91: M5 | C91: Buses | D91: Motor | F91: =M5_Monthly -> 0.00075143 | G91: FALSE | H91: FALSE | I91: FALSE | J91: FALSE | K91: =M5_MonthlyMin -> 200 | L91: FALSE | M91: =IF(E91 = 0, 0, MAX((E91 * F91) * (IF(H91 = TRUE, 1 - 'Loss Limit Discount'!$D$93, 1) ), K91)) -> 0
A92: Motor | B92: M6 | C92: Mobile Plant | D92: Motor | F92: =M6_Monthly -> 0.00011326 | G92: FALSE | H92: FALSE | I92: FALSE | J92: FALSE | K92: =M6_MonthlyMin -> 50 | L92: FALSE | M92: =IF(E92 = 0, 0, MAX((E92 * F92) * (IF(H92 = TRUE, 1 - 'Loss Limit Discount'!$D$93, 1) ), K92)) -> 0
A93: Motor | B93: M8 | C93: Heavy Commercial Vehicles (>3500kg GVM) | D93: Motor | F93: =M8_Monthly -> 0.00039682 | G93: FALSE | H93: FALSE | I93: FALSE | J93: FALSE | K93: =M8_MonthlyMin -> 5.45 | L93: FALSE | M93: =IF(E93 = 0, 0, MAX((E93 * F93) * (IF(H93 = TRUE, 1 - 'Loss Limit Discount'!$D$93, 1) * (1 - Voluntary_Deductible_M8) * (1 - Co_insurance_M8)), K93)) -> 0
B95: Contract Work / Construction Plant
B96: Contract Works
A97: Contract Works | B97: CW | C97: =Input!$I$16 -> Open | D97: Contract Works | F97: =CW_OnWorks_Monthly -> 1.133e-05 | G97: FALSE | H97: FALSE | I97: TRUE | J97: TRUE | K97: =CW_OnWorks_MonthlyMin -> 50 | L97: FALSE | M97: =IF(E97 = 0, 0, MAX((E97 * F97) * (IF(H97 = TRUE, 1 - 'Loss Limit Discount'!$D$93, 1)) * (IF(J97 = TRUE, 1 - 'Contract Works Discount'!$D$102, 1) * (1 - Voluntary_Deductible) * (1 - Co_insurance)), K97)) -> 0
B98: Construction plant
A99: Contract Works | B99: CW | C99: On Fee Basis | D99: Contract Works | F99: =CW_OnFees_Monthly -> 0.00038376 | G99: FALSE | H99: FALSE | I99: FALSE | J99: FALSE | K99: =CW_OnFees_MonthlyMin -> 50 | L99: FALSE | M99: =IF(E99 = 0, 0, MAX((E99 * F99) * (IF(H99 = TRUE, 1 - 'Loss Limit Discount'!$D$93, 1)) * (IF(J99 = TRUE, 1 - 'Contract Works Discount'!$D$102, 1) * (1 - Voluntary_Deductible) * (1 - Co_insurance)), K99)) -> 0
A100: Contract Works | B100: CW | C100: On Value Basis | D100: Contract Works | F100: =CW_OnValue_Monthly -> 0.00011326 | G100: FALSE | H100: FALSE | I100: FALSE | J100: FALSE | K100: =CW_OnValue_MonthlyMin -> 50 | L100: FALSE | M100: =IF(E100 = 0, 0, MAX((E100 * F100) * (IF(H100 = TRUE, 1 - 'Loss Limit Discount'!$D$93, 1)) * (IF(J100 = TRUE, 1 - 'Contract Works Discount'!$D$102, 1) * (1 - Voluntary_Deductible) * (1 - Co_insurance)), K100)) -> 0
B101: Mobile plant
A102: Contract Works | B102: CW | C102: On Value Basis | D102: Contract Works | F102: =F100 -> 0.00011326 | G102: FALSE | H102: FALSE | I102: FALSE | J102: FALSE | K102: =CW_OnValue_MonthlyMin -> 50 | L102: FALSE | M102: =IF(E102 = 0, 0, MAX((E102 * F102) * (IF(H102 = TRUE, 1 - 'Loss Limit Discount'!$D$93, 1)) * (IF(J102 = TRUE, 1 - 'Contract Works Discount'!$D$102, 1) * (1 - Voluntary_Deductible) * (1 - Co_insurance)), K102)) -> 0

Sheet Domestic - Annual
A1: Domestic - Annual | O1: Cells with green borders have a drop-down selection!
A2: Category | B2: Code | C2: Description | D2: Total Code | E2: Sum Insured/No. of insured items | F2: Rate | G2: Add To Sum Insured Discount | H2: Receive Sum Insured Discount | I2: Add To CW Discount | J2: Receive CW Discount | K2: Minimum Premium | L2: Has Fire Extension Discount | M2: Premium
B3: Fire
A4: Domestic Fire | B4: F1 | C4: Domestic Fire | D4: Fire | F4: =F1_Annual -> 3.63e-05 | G4: TRUE | H4: TRUE | I4: FALSE | J4: FALSE | K4: =F1_AnnualMin -> 30 | L4: FALSE | M4: =IF(E4 = 0, 0, MAX(((E4 * F4) * (IF(H4 = TRUE, 1 - 'Loss Limit Discount'!$D$93, 1)) ) * (1 - Voluntary_Deductible) * (1 - Co_insurance), K4)) -> 0
A5: Domestic Fire | B5: F1-MC | C5: Mayors and Councilors | D5: Fire | F5: =F1MC_Annual -> 54.47 | G5: FALSE | H5: FALSE | I5: FALSE | J5: FALSE | K5: =F1MC_AnnualMin -> 0 | L5: FALSE | M5: =IF(E5 = 0, 0, MAX((F5 * E5) * (IF(H5 = TRUE, 1 - 'Loss Limit Discount'!$L$11, 1)) * (IF(J5 = TRUE, 1 - 'Contract Works Discount'!$D$11, 1) * (1 - Co_insurance)), K5 * E5)) -> 0
A6: Extension | B6: Sasria Extensions
A7: Extension | B7: =IFERROR(RANK($P7, $P$7:$P$66, 1), "") ->  | C7: Rent | D7: Fire | F7: =$F$4 -> 3.63e-05 | G7: TRUE | H7: TRUE | I7: FALSE | J7: FALSE | K7: 0 | L7: TRUE | M7: =IF(E7 = 0, 0, MAX(((VLOOKUP($B7, DA_NonFreeExt, 60, FALSE) * F7) * (IF(H7 = TRUE, 1 - 'Loss Limit Discount'!$D$93, 1))) * (1 - Voluntary_Deductible), K7)) -> 0 | O7: =MyTimestamp(E7) ->  | P7: =IFERROR(VALUE(O7), "") -> 
A8: Extension | C8: Claims Preparation Costs | D8: Fire | F8: =$F$4 -> 3.63e-05 | G8: TRUE | H8: TRUE | I8: FALSE | J8: FALSE | K8: 0 | L8: TRUE | M8: =IF(E8 = 0, 0, MAX(((VLOOKUP($B8, DA_NonFreeExt, 60, FALSE) * F8) * (IF(H8 = TRUE, 1 - 'Loss Limit Discount'!$D$93, 1))) * (1 - Voluntary_Deductible), K8)) -> 0 | O8: =MyTimestamp(E8) ->  | P8: =IFERROR(VALUE(O8), "") -> 
A9: Extension | C9: Capital Additions | D9: Fire | F9: 3.63e-05 | G9: TRUE | H9: TRUE | I9: FALSE | J9: FALSE | K9: 0 | L9: TRUE | M9: =IF(E9 = 0, 0, MAX(((VLOOKUP($B9, DA_NonFreeExt, 60, FALSE) * F9) * (IF(H9 = TRUE, 1 - 'Loss Limit Discount'!$D$93, 1))) * (1 - Voluntary_Deductible), K9)) -> 0 | O9: =MyTimestamp(E9) -> 
A10: Extension | C10: Professional fees | D10: Fire | F10: 3.63e-05 | G10: TRUE | H10: TRUE | I10: FALSE | J10: FALSE | K10: 0 | L10: TRUE | M10: =IF(E10 = 0, 0, MAX(((VLOOKUP($B10, DA_NonFreeExt, 60, FALSE) * F10) * (IF(H10 = TRUE, 1 - 'Loss Limit Discount'!$D$93, 1))) * (1 - Voluntary_Deductible), K10)) -> 0 | O10: =MyTimestamp(E10) -> 
A11: Extension | C11: Clearance costs | D11: Fire | F11: 3.63e-05 | G11: TRUE | H11: TRUE | I11: FALSE | J11: FALSE | K11: 0 | L11: TRUE | M11: =IF(E11 = 0, 0, MAX(((VLOOKUP($B11, DA_NonFreeExt, 60, FALSE) * F11) * (IF(H11 = TRUE, 1 - 'Loss Limit Discount'!$D$93, 1))) * (1 - Voluntary_Deductible), K11)) -> 0 | O11: =MyTimestamp(E11) -> 
A12: Extension | C12: Security Costs (During and after a loss) | D12: Fire | F12: 3.63e-05 | G12: TRUE | H12: TRUE | I12: FALSE | J12: FALSE | K12: 0 | L12: TRUE | M12: =IF(E12 = 0, 0, MAX(((VLOOKUP($B12, DA_NonFreeExt, 60, FALSE) * F12) * (IF(H12 = TRUE, 1 - 'Loss Limit Discount'!$D$93, 1))) * (1 - Voluntary_Deductible), K12)) -> 0 | O12: =MyTimestamp(E12) -> 
A13: Extension | C13: Statutory Duties | D13: Fire | F13: 3.63e-05 | G13: TRUE | H13: TRUE | I13: FALSE | J13: FALSE | K13: 0 | L13: TRUE | M13: =IF(E13 = 0, 0, MAX(((VLOOKUP($B13, DA_NonFreeExt, 60, FALSE) * F13) * (IF(H13 = TRUE, 1 - 'Loss Limit Discount'!$D$93, 1))) * (1 - Voluntary_Deductible), K13)) -> 0 | O13: =MyTimestamp(E13) -> 
A14: Extension | C14: Additional Premises | D14: Fire | F14: 3.63e-05 | G14: TRUE | H14: TRUE | I14: FALSE | J14: FALSE | K14: 0 | L14: TRUE | M14: =IF(E14 = 0, 0, MAX(((VLOOKUP($B14, DA_NonFreeExt, 60, FALSE) * F14) * (IF(H14 = TRUE, 1 - 'Loss Limit Discount'!$D$93, 1))) * (1 - Voluntary_Deductible), K14)) -> 0 | O14: =MyTimestamp(E14) -> 
A15: Extension | C15: Acquisitions | D15: Fire | F15: 3.63e-05 | G15: TRUE | H15: TRUE | I15: FALSE | J15: FALSE | K15: 0 | L15: TRUE | M15: =IF(E15 = 0, 0, MAX(((VLOOKUP($B15, DA_NonFreeExt, 60, FALSE) * F15) * (IF(H15 = TRUE, 1 - 'Loss Limit Discount'!$D$93, 1))) * (1 - Voluntary_Deductible), K15)) -> 0 | O15: =MyTimestamp(E15) -> 
A16: Extension | C16: Import Surcharges | D16: Fire | F16: 3.63e-05 | G16: TRUE | H16: TRUE | I16: FALSE | J16: FALSE | K16: 0 | L16: TRUE | M16: =IF(E16 = 0, 0, MAX(((VLOOKUP($B16, DA_NonFreeExt, 60, FALSE) * F16) * (IF(H16 = TRUE, 1 - 'Loss Limit Discount'!$D$93, 1))) * (1 - Voluntary_Deductible), K16)) -> 0 | O16: =MyTimestamp(E16) -> 
A17: Extension | C17: Property in the course of Construction | D17: Fire | F17: 3.63e-05 | G17: FALSE | H17: FALSE | I17: FALSE | J17: FALSE | K17: 0 | L17: TRUE | M17: =IF(E17 = 0, 0, MAX(((VLOOKUP($B17, DA_NonFreeExt, 60, FALSE) * F17) * (IF(H17 = TRUE, 1 - 'Loss Limit Discount'!$D$93, 1))) * (1 - Voluntary_Deductible), K17)) -> 0 | O17: =MyTimestamp(E17) ->  | P17: =IFERROR(VALUE(O17), "") -> 
A18: Extension | C18: Fire Protection System Update | D18: Fire | F18: 3.63e-05 | G18: TRUE | H18: TRUE | I18: FALSE | J18: FALSE | K18: 0 | L18: TRUE | M18: =IF(E18 = 0, 0, MAX(((VLOOKUP($B18, DA_NonFreeExt, 60, FALSE) * F18) * (IF(H18 = TRUE, 1 - 'Loss Limit Discount'!$D$93, 1))) * (1 - Voluntary_Deductible), K18)) -> 0 | O18: =MyTimestamp(E18) -> 
A19: Extension | C19: Accumulation of Motor Vehicles/Static Risk | D19: Fire | F19: =StaticRisk_Annual -> 0.00081648 | G19: FALSE | H19: FALSE | I19: FALSE | J19: FALSE | K19: =StaticRisk_AnnualMin -> 500 | L19: TRUE | M19: =IF(E19 = 0, 0, MAX(((E19 * F19) * (IF(H19 = TRUE, 1 - 'Loss Limit Discount'!$D$93, 1))) * (1 - Voluntary_Deductible), K19)) -> 0
A20: Extension | C20: Goods in the open | D20: Fire | F20: 3.63e-05 | G20: TRUE | H20: TRUE | I20: FALSE | J20: FALSE | K20: 0 | L20: TRUE | M20: =IF(E20 = 0, 0, MAX(((VLOOKUP($B20, DA_NonFreeExt, 60, FALSE) * F20) * (IF(H20 = TRUE, 1 - 'Loss Limit Discount'!$D$93, 1))) * (1 - Voluntary_Deductible), K20)) -> 0 | O20: =MyTimestamp(E20) -> 
A21: Extension | C21: Fire Extinguishing | D21: Fire | F21: 3.63e-05 | G21: TRUE | H21: TRUE | I21: FALSE | J21: FALSE | K21: 0 | L21: TRUE | M21: =IF(E21 = 0, 0, MAX(((VLOOKUP($B21, DA_NonFreeExt, 60, FALSE) * F21) * (IF(H21 = TRUE, 1 - 'Loss Limit Discount'!$D$93, 1))) * (1 - Voluntary_Deductible), K21)) -> 0 | O21: =MyTimestamp(E21) -> 
A22: Extension | C22: Imminent Danger (Protection of property prior a loss) | D22: Fire | F22: 3.63e-05 | G22: TRUE | H22: TRUE | I22: FALSE | J22: FALSE | K22: 0 | L22: FALSE | M22: =IF(E22 = 0, 0, MAX(((E22 * F22) * (IF(H22 = TRUE, 1 - 'Loss Limit Discount'!$D$93, 1))) * (1 - Voluntary_Deductible), K22)) -> 0
A23: Other Extension | B23: Other Extensions
A24: Other Extension | B24: =IFERROR(RANK($P24, $P$7:$P$66, 1), "") ->  | C24: Other | D24: Fire | F24: =$F$4 -> 3.63e-05 | G24: TRUE | H24: TRUE | I24: FALSE | J24: FALSE | K24: 0 | L24: TRUE | M24: =IF(E24 = 0, 0, MAX(((VLOOKUP($B24, DA_NonFreeExt, 60, FALSE) * F24) * (IF(H24 = TRUE, 1 - 'Loss Limit Discount'!$D$93, 1))) * (1 - Voluntary_Deductible), K24)) -> 0 | O24: =MyTimestamp(E24) ->  | P24: =IFERROR(VALUE(O24), "") -> 
A25: Other Extension | C25: Other | D25: Fire | F25: 3.63e-05 | G25: TRUE | H25: TRUE | I25: FALSE | J25: FALSE | K25: 0 | L25: TRUE | M25: =IF(E25 = 0, 0, MAX(((VLOOKUP($B25, DA_NonFreeExt, 60, FALSE) * F25) * (IF(H25 = TRUE, 1 - 'Loss Limit Discount'!$D$93, 1))) * (1 - Voluntary_Deductible), K25)) -> 0 | O25: =MyTimestamp(E25) -> 
A26: Other Extension | C26: Other | D26: Fire | F26: 3.63e-05 | G26: TRUE | H26: TRUE | I26: FALSE | J26: FALSE | K26: 0 | L26: TRUE | M26: =IF(E26 = 0, 0, MAX(((VLOOKUP($B26, DA_NonFreeExt, 60, FALSE) * F26) * (IF(H26 = TRUE, 1 - 'Loss Limit Discount'!$D$93, 1))) * (1 - Voluntary_Deductible), K26)) -> 0 | O26: =MyTimestamp(E26) -> 
A27: Other Extension | C27: Other | D27: Fire | F27: 3.63e-05 | G27: TRUE | H27: TRUE | I27: FALSE | J27: FALSE | K27: 0 | L27: TRUE | M27: =IF(E27 = 0, 0, MAX(((VLOOKUP($B27, DA_NonFreeExt, 60, FALSE) * F27) * (IF(H27 = TRUE, 1 - 'Loss Limit Discount'!$D$93, 1))) * (1 - Voluntary_Deductible), K27)) -> 0 | O27: =MyTimestamp(E27) -> 
A28: Other Extension | C28: Other | D28: Fire | F28: 3.63e-05 | G28: TRUE | H28: TRUE | I28: FALSE | J28: FALSE | K28: 0 | L28: TRUE | M28: =IF(E28 = 0, 0, MAX(((VLOOKUP($B28, DA_NonFreeExt, 60, FALSE) * F28) * (IF(H28 = TRUE, 1 - 'Loss Limit Discount'!$D$93, 1))) * (1 - Voluntary_Deductible), K28)) -> 0 | O28: =MyTimestamp(E28) -> 
A29: Other Extension | C29: Other | D29: Fire | F29: 3.63e-05 | G29: TRUE | H29: TRUE | I29: FALSE | J29: FALSE | K29: 0 | L29: TRUE | M29: =IF(E29 = 0, 0, MAX(((VLOOKUP($B29, DA_NonFreeExt, 60, FALSE) * F29) * (IF(H29 = TRUE, 1 - 'Loss Limit Discount'!$D$93, 1))) * (1 - Voluntary_Deductible), K29)) -> 0 | O29: =MyTimestamp(E29) -> 
A30: Other Extension | C30: Other | D30: Fire | F30: 3.63e-05 | G30: TRUE | H30: TRUE | I30: FALSE | J30: FALSE | K30: 0 | L30: TRUE | M30: =IF(E30 = 0, 0, MAX(((VLOOKUP($B30, DA_NonFreeExt, 60, FALSE) * F30) * (IF(H30 = TRUE, 1 - 'Loss Limit Discount'!$D$93, 1))) * (1 - Voluntary_Deductible), K30)) -> 0 | O30: =MyTimestamp(E30) -> 
A31: Other Extension | C31: Other | D31: Fire | F31: 3.63e-05 | G31: TRUE | H31: TRUE | I31: FALSE | J31: FALSE | K31: 0 | L31: TRUE | M31: =IF(E31 = 0, 0, MAX(((VLOOKUP($B31, DA_NonFreeExt, 60, FALSE) * F31) * (IF(H31 = TRUE, 1 - 'Loss Limit Discount'!$D$93, 1))) * (1 - Voluntary_Deductible), K31)) -> 0 | O31: =MyTimestamp(E31) -> 
A32: Other Extension | C32: Other | D32: Fire | F32: 3.63e-05 | G32: TRUE | H32: TRUE | I32: FALSE | J32: FALSE | K32: 0 | L32: TRUE | M32: =IF(E32 = 0, 0, MAX(((VLOOKUP($B32, DA_NonFreeExt, 60, FALSE) * F32) * (IF(H32 = TRUE, 1 - 'Loss Limit Discount'!$D$93, 1))) * (1 - Voluntary_Deductible), K32)) -> 0 | O32: =MyTimestamp(E32) -> 
A33: Other Extension | C33: Other | D33: Fire | F33: 3.63e-05 | G33: TRUE | H33: TRUE | I33: FALSE | J33: FALSE | K33: 0 | L33: TRUE | M33: =IF(E33 = 0, 0, MAX(((VLOOKUP($B33, DA_NonFreeExt, 60, FALSE) * F33) * (IF(H33 = TRUE, 1 - 'Loss Limit Discount'!$D$93, 1))) * (1 - Voluntary_Deductible), K33)) -> 0 | O33: =MyTimestamp(E33) -> 
A34: Other Extension | C34: Other | D34: Fire | F34: 3.63e-05 | G34: TRUE | H34: TRUE | I34: FALSE | J34: FALSE | K34: 0 | L34: TRUE | M34: =IF(E34 = 0, 0, MAX(((VLOOKUP($B34, DA_NonFreeExt, 60, FALSE) * F34) * (IF(H34 = TRUE, 1 - 'Loss Limit Discount'!$D$93, 1))) * (1 - Voluntary_Deductible), K34)) -> 0 | O34: =MyTimestamp(E34) -> 
A35: Other Extension | C35: Other | D35: Fire | F35: 3.63e-05 | G35: TRUE | H35: TRUE | I35: FALSE | J35: FALSE | K35: 0 | L35: TRUE | M35: =IF(E35 = 0, 0, MAX(((VLOOKUP($B35, DA_NonFreeExt, 60, FALSE) * F35) * (IF(H35 = TRUE, 1 - 'Loss Limit Discount'!$D$93, 1))) * (1 - Voluntary_Deductible), K35)) -> 0 | O35: =MyTimestamp(E35) -> 
A36: Other Extension | C36: Other | D36: Fire | F36: 3.63e-05 | G36: TRUE | H36: TRUE | I36: FALSE | J36: FALSE | K36: 0 | L36: TRUE | M36: =IF(E36 = 0, 0, MAX(((VLOOKUP($B36, DA_NonFreeExt, 60, FALSE) * F36) * (IF(H36 = TRUE, 1 - 'Loss Limit Discount'!$D$93, 1))) * (1 - Voluntary_Deductible), K36)) -> 0 | O36: =MyTimestamp(E36) -> 
A37: Other Extension | C37: Other | D37: Fire | F37: 3.63e-05 | G37: TRUE | H37: TRUE | I37: FALSE | J37: FALSE | K37: 0 | L37: TRUE | M37: =IF(E37 = 0, 0, MAX(((VLOOKUP($B37, DA_NonFreeExt, 60, FALSE) * F37) * (IF(H37 = TRUE, 1 - 'Loss Limit Discount'!$D$93, 1))) * (1 - Voluntary_Deductible), K37)) -> 0 | O37: =MyTimestamp(E37) -> 
A38: Other Extension | C38: Other | D38: Fire | F38: 3.63e-05 | G38: TRUE | H38: TRUE | I38: FALSE | J38: FALSE | K38: 0 | L38: TRUE | M38: =IF(E38 = 0, 0, MAX(((VLOOKUP($B38, DA_NonFreeExt, 60, FALSE) * F38) * (IF(H38 = TRUE, 1 - 'Loss Limit Discount'!$D$93, 1))) * (1 - Voluntary_Deductible), K38)) -> 0 | O38: =MyTimestamp(E38) -> 
A39: Other Extension | C39: Other | D39: Fire | F39: 3.63e-05 | G39: TRUE | H39: TRUE | I39: FALSE | J39: FALSE | K39: 0 | L39: TRUE | M39: =IF(E39 = 0, 0, MAX(((VLOOKUP($B39, DA_NonFreeExt, 60, FALSE) * F39) * (IF(H39 = TRUE, 1 - 'Loss Limit Discount'!$D$93, 1))) * (1 - Voluntary_Deductible), K39)) -> 0 | O39: =MyTimestamp(E39) -> 
A40: Other Extension | C40: Other | D40: Fire | F40: 3.63e-05 | G40: TRUE | H40: TRUE | I40: FALSE | J40: FALSE | K40: 0 | L40: TRUE | M40: =IF(E40 = 0, 0, MAX(((VLOOKUP($B40, DA_NonFreeExt, 60, FALSE) * F40) * (IF(H40 = TRUE, 1 - 'Loss Limit Discount'!$D$93, 1))) * (1 - Voluntary_Deductible), K40)) -> 0 | O40: =MyTimestamp(E40) -> 
A41: Other Extension | C41: Other | D41: Fire | F41: 3.63e-05 | G41: TRUE | H41: TRUE | I41: FALSE | J41: FALSE | K41: 0 | L41: TRUE | M41: =IF(E41 = 0, 0, MAX(((VLOOKUP($B41, DA_NonFreeExt, 60, FALSE) * F41) * (IF(H41 = TRUE, 1 - 'Loss Limit Discount'!$D$93, 1))) * (1 - Voluntary_Deductible), K41)) -> 0 | O41: =MyTimestamp(E41) -> 
A42: Other Extension | C42: Other | D42: Fire | F42: 3.63e-05 | G42: TRUE | H42: TRUE | I42: FALSE | J42: FALSE | K42: 0 | L42: TRUE | M42: =IF(E42 = 0, 0, MAX(((VLOOKUP($B42, DA_NonFreeExt, 60, FALSE) * F42) * (IF(H42 = TRUE, 1 - 'Loss Limit Discount'!$D$93, 1))) * (1 - Voluntary_Deductible), K42)) -> 0 | O42: =MyTimestamp(E42) -> 
A43: Other Extension | C43: Other | D43: Fire | F43: 3.63e-05 | G43: TRUE | H43: TRUE | I43: FALSE | J43: FALSE | K43: 0 | L43: TRUE | M43: =IF(E43 = 0, 0, MAX(((VLOOKUP($B43, DA_NonFreeExt, 60, FALSE) * F43) * (IF(H43 = TRUE, 1 - 'Loss Limit Discount'!$D$93, 1))) * (1 - Voluntary_Deductible), K43)) -> 0 | O43: =MyTimestamp(E43) -> 
A44: Other Extension | C44: Other | D44: Fire | F44: 3.63e-05 | G44: TRUE | H44: TRUE | I44: FALSE | J44: FALSE | K44: 0 | L44: TRUE | M44: =IF(E44 = 0, 0, MAX(((VLOOKUP($B44, DA_NonFreeExt, 60, FALSE) * F44) * (IF(H44 = TRUE, 1 - 'Loss Limit Discount'!$D$93, 1))) * (1 - Voluntary_Deductible), K44)) -> 0 | O44: =MyTimestamp(E44) -> 
A45: Other Extension | C45: Other | D45: Fire | F45: 3.63e-05 | G45: TRUE | H45: TRUE | I45: FALSE | J45: FALSE | K45: 0 | L45: TRUE | M45: =IF(E45 = 0, 0, MAX(((VLOOKUP($B45, DA_NonFreeExt, 60, FALSE) * F45) * (IF(H45 = TRUE, 1 - 'Loss Limit Discount'!$D$93, 1))) * (1 - Voluntary_Deductible), K45)) -> 0 | O45: =MyTimestamp(E45) -> 
A46: Other Extension | C46: Other | D46: Fire | F46: 3.63e-05 | G46: TRUE | H46: TRUE | I46: FALSE | J46: FALSE | K46: 0 | L46: TRUE | M46: =IF(E46 = 0, 0, MAX(((VLOOKUP($B46, DA_NonFreeExt, 60, FALSE) * F46) * (IF(H46 = TRUE, 1 - 'Loss Limit Discount'!$D$93, 1))) * (1 - Voluntary_Deductible), K46)) -> 0 | O46: =MyTimestamp(E46) -> 
A47: Other Extension | C47: Other | D47: Fire | F47: 3.63e-05 | G47: TRUE | H47: TRUE | I47: FALSE | J47: FALSE | K47: 0 | L47: TRUE | M47: =IF(E47 = 0, 0, MAX(((VLOOKUP($B47, DA_NonFreeExt, 60, FALSE) * F47) * (IF(H47 = TRUE, 1 - 'Loss Limit Discount'!$D$93, 1))) * (1 - Voluntary_Deductible), K47)) -> 0 | O47: =MyTimestamp(E47) -> 
A48: Other Extension | C48: Other | D48: Fire | F48: 3.63e-05 | G48: TRUE | H48: TRUE | I48: FALSE | J48: FALSE | K48: 0 | L48: TRUE | M48: =IF(E48 = 0, 0, MAX(((VLOOKUP($B48, DA_NonFreeExt, 60, FALSE) * F48) * (IF(H48 = TRUE, 1 - 'Loss Limit Discount'!$D$93, 1))) * (1 - Voluntary_Deductible), K48)) -> 0 | O48: =MyTimestamp(E48) -> 
A49: Other Extension | C49: Other | D49: Fire | F49: 3.63e-05 | G49: TRUE | H49: TRUE | I49: FALSE | J49: FALSE | K49: 0 | L49: TRUE | M49: =IF(E49 = 0, 0, MAX(((VLOOKUP($B49, DA_NonFreeExt, 60, FALSE) * F49) * (IF(H49 = TRUE, 1 - 'Loss Limit Discount'!$D$93, 1))) * (1 - Voluntary_Deductible), K49)) -> 0 | O49: =MyTimestamp(E49) -> 
A50: Other Extension | C50: Other | D50: Fire | F50: 3.63e-05 | G50: TRUE | H50: TRUE | I50: FALSE | J50: FALSE | K50: 0 | L50: TRUE | M50: =IF(E50 = 0, 0, MAX(((VLOOKUP($B50, DA_NonFreeExt, 60, FALSE) * F50) * (IF(H50 = TRUE, 1 - 'Loss Limit Discount'!$D$93, 1))) * (1 - Voluntary_Deductible), K50)) -> 0 | O50: =MyTimestamp(E50) -> 
A51: Other Extension | C51: Other | D51: Fire | F51: 3.63e-05 | G51: TRUE | H51: TRUE | I51: FALSE | J51: FALSE | K51: 0 | L51: TRUE | M51: =IF(E51 = 0, 0, MAX(((VLOOKUP($B51, DA_NonFreeExt, 60, FALSE) * F51) * (IF(H51 = TRUE, 1 - 'Loss Limit Discount'!$D$93, 1))) * (1 - Voluntary_Deductible), K51)) -> 0 | O51: =MyTimestamp(E51) -> 
A52: Other Extension | C52: Other | D52: Fire | F52: 3.63e-05 | G52: TRUE | H52: TRUE | I52: FALSE | J52: FALSE | K52: 0 | L52: TRUE | M52: =IF(E52 = 0, 0, MAX(((VLOOKUP($B52, DA_NonFreeExt, 60, FALSE) * F52) * (IF(H52 = TRUE, 1 - 'Loss Limit Discount'!$D$93, 1))) * (1 - Voluntary_Deductible), K52)) -> 0 | O52: =MyTimestamp(E52) -> 
A53: Other Extension | C53: Other | D53: Fire | F53: 3.63e-05 | G53: TRUE | H53: TRUE | I53: FALSE | J53: FALSE | K53: 0 | L53: TRUE | M53: =IF(E53 = 0, 0, MAX(((VLOOKUP($B53, DA_NonFreeExt, 60, FALSE) * F53) * (IF(H53 = TRUE, 1 - 'Loss Limit Discount'!$D$93, 1))) * (1 - Voluntary_Deductible), K53)) -> 0 | O53: =MyTimestamp(E53) -> 
A54: Escalation | B54: Escalation and or Inflation
A55: Escalation UL | B55: Charge on U/L
A56: Escalation UL | B56: =IFERROR(RANK($P56, $P$7:$P$66, 1), "") ->  | C56: First Year (90-100%) | D56: Fire | F56: =IF(C56 = "", 0, VLOOKUP(C56, Escalation!$H$6:$I$50, 2, FALSE)) -> 3.63e-05 | G56: FALSE | H56: TRUE | I56: FALSE | J56: FALSE | K56: 0 | M56: =IF(E56 = 0, 0, MAX(((VLOOKUP($B56, DA_NonFreeExt, 60, FALSE) * F56) * (IF(H56 = TRUE, 1 - 'Loss Limit Discount'!$D$93, 1))) * (1 - Voluntary_Deductible), K56)) -> 0 | O56: =MyTimestamp(E56) ->  | P56: =IFERROR(VALUE(O56), "") -> 
A57: Escalation UL | C57: Second Year (90-100%) | D57: Fire | F57: =IF(C57 = "", 0, VLOOKUP(C57, Escalation!$H$6:$I$50, 2, FALSE)) -> 1.815e-05 | G57: FALSE | H57: TRUE | I57: FALSE | J57: FALSE | K57: 0 | M57: =IF(E57 = 0, 0, MAX(((VLOOKUP($B57, DA_NonFreeExt, 60, FALSE) * F57) * (IF(H57 = TRUE, 1 - 'Loss Limit Discount'!$D$93, 1))) * (1 - Voluntary_Deductible), K57)) -> 0 | O57: =MyTimestamp(E57) -> 
A58: Escalation UL | C58: Third Year (90-100%) | D58: Fire | F58: =IF(C58 = "", 0, VLOOKUP(C58, Escalation!$H$6:$I$50, 2, FALSE)) -> 9.075e-06 | G58: FALSE | H58: TRUE | I58: FALSE | J58: FALSE | K58: 0 | M58: =IF(E58 = 0, 0, MAX(((VLOOKUP($B58, DA_NonFreeExt, 60, FALSE) * F58) * (IF(H58 = TRUE, 1 - 'Loss Limit Discount'!$D$93, 1))) * (1 - Voluntary_Deductible), K58)) -> 0 | O58: =MyTimestamp(E58) -> 
A59: Escalation UL | C59: Fourth Year (90-100%) | D59: Fire | F59: =IF(C59 = "", 0, VLOOKUP(C59, Escalation!$H$6:$I$50, 2, FALSE)) -> 7.26e-06 | G59: FALSE | H59: TRUE | I59: FALSE | J59: FALSE | K59: 0 | M59: =IF(E59 = 0, 0, MAX(((VLOOKUP($B59, DA_NonFreeExt, 60, FALSE) * F59) * (IF(H59 = TRUE, 1 - 'Loss Limit Discount'!$D$93, 1))) * (1 - Voluntary_Deductible), K59)) -> 0 | O59: =MyTimestamp(E59) -> 
A60: Escalation UL | C60: Fifth Year (90-100%) | D60: Fire | F60: =IF(C60 = "", 0, VLOOKUP(C60, Escalation!$H$6:$I$50, 2, FALSE)) -> 5.445e-06 | G60: FALSE | H60: TRUE | I60: FALSE | J60: FALSE | K60: 0 | M60: =IF(E60 = 0, 0, MAX(((VLOOKUP($B60, DA_NonFreeExt, 60, FALSE) * F60) * (IF(H60 = TRUE, 1 - 'Loss Limit Discount'!$D$93, 1))) * (1 - Voluntary_Deductible), K60)) -> 0 | O60: =MyTimestamp(E60) -> 
A61: Escalation Not UL | B61: Not Charge on U/L
A62: Escalation Not UL | B62: =IFERROR(RANK($P62, $P$7:$P$66, 1), "") ->  | C62: First Year | D62: Fire | F62: =$F$4 -> 3.63e-05 | G62: FALSE | H62: TRUE | I62: FALSE | J62: FALSE | K62: 0 | M62: =IF(E62 = 0, 0, MAX(((VLOOKUP($B62, DA_NonFreeExt, 60, FALSE) * F62) * (IF(H62 = TRUE, 1 - 'Loss Limit Discount'!$D$93, 1))) * (1 - Voluntary_Deductible), K62)) -> 0 | O62: =MyTimestamp(E62) ->  | P62: =IFERROR(VALUE(O62), "") -> 
A63: Escalation Not UL | C63: Second Year | D63: Fire | F63: =$F$4 * 0.5 -> 1.815e-05 | G63: FALSE | H63: TRUE | I63: FALSE | J63: FALSE | K63: 0 | M63: =IF(E63 = 0, 0, MAX(((VLOOKUP($B63, DA_NonFreeExt, 60, FALSE) * F63) * (IF(H63 = TRUE, 1 - 'Loss Limit Discount'!$D$93, 1))) * (1 - Voluntary_Deductible), K63)) -> 0 | O63: =MyTimestamp(E63) -> 
A64: Escalation Not UL | C64: Third Year | D64: Fire | F64: =$F$4 * 0.25 -> 9.075e-06 | G64: FALSE | H64: TRUE | I64: FALSE | J64: FALSE | K64: 0 | M64: =IF(E64 = 0, 0, MAX(((VLOOKUP($B64, DA_NonFreeExt, 60, FALSE) * F64) * (IF(H64 = TRUE, 1 - 'Loss Limit Discount'!$D$93, 1))) * (1 - Voluntary_Deductible), K64)) -> 0 | O64: =MyTimestamp(E64) -> 
A65: Escalation Not UL | C65: Fourth Year | D65: Fire | F65: =$F$4 * 0.2 -> 7.26e-06 | G65: FALSE | H65: TRUE | I65: FALSE | J65: FALSE | K65: 0 | M65: =IF(E65 = 0, 0, MAX(((VLOOKUP($B65, DA_NonFreeExt, 60, FALSE) * F65) * (IF(H65 = TRUE, 1 - 'Loss Limit Discount'!$D$93, 1))) * (1 - Voluntary_Deductible), K65)) -> 0 | O65: =MyTimestamp(E65) -> 
A66: Escalation Not UL | C66: Fifth Year | D66: Fire | F66: =$F$4 * 0.15 -> 5.445e-06 | G66: FALSE | H66: TRUE | I66: FALSE | J66: FALSE | K66: 0 | M66: =IF(E66 = 0, 0, MAX(((VLOOKUP($B66, DA_NonFreeExt, 60, FALSE) * F66) * (IF(H66 = TRUE, 1 - 'Loss Limit Discount'!$D$93, 1))) * (1 - Voluntary_Deductible), K66)) -> 0 | O66: =MyTimestamp(E66) -> 
B68: Business Interruption
B69: Specified Standing Charges
A70: Business Interruption | B70: SC | C70: 12 Months | D70: Standing Charges | F70: =_xlfn.IFNA(VLOOKUP(C70, Metadata!$H$2:$I$8, 2, FALSE),0) -> 4.901e-05 | G70: TRUE | H70: TRUE | I70: FALSE | J70: FALSE | K70: =BI1_12M_AnnualMin -> 50 | L70: FALSE | M70: =IF(E70 = 0, 0, MAX((E70 * F70) * (IF(H70 = TRUE, 1 - 'Loss Limit Discount'!$D$93, 1)) * (IF(J70 = TRUE, 1 - 'Contract Works Discount'!$D$11, 1) * (1 - Voluntary_Deductible) * (1 - Co_insurance)), K70)) -> 0
A71: Business Interruption | B71: AICOW | C71: Additional Increase In Cost Of Working | D71: Standing Charges | F71: =F70 * 1.5 -> 7.3515e-05 | G71: TRUE | H71: TRUE | I71: FALSE | J71: FALSE | K71: 0 | L71: FALSE | M71: =IF(E71 = 0, 0, MAX((E71 * F71) * (IF(H71 = TRUE, 1 - 'Loss Limit Discount'!$D$93, 1)) * (IF(J71 = TRUE, 1 - 'Contract Works Discount'!$D$11, 1) * (1 - Voluntary_Deductible) * (1 - Co_insurance)), K71)) -> 0
B72: Working Expenses
A73: Business Interruption | B73: WE | C73: 12 Months | D73: Working Expenses | F73: =_xlfn.IFNA(VLOOKUP(C73, Metadata!$H$10:$I$16, 2, FALSE),0) -> 4.901e-05 | G73: TRUE | H73: TRUE | I73: FALSE | J73: FALSE | K73: =BI1_12M_AnnualMin -> 50 | L73: FALSE | M73: =IF(E73 = 0, 0, MAX((E73 * F73) * (IF(H73 = TRUE, 1 - 'Loss Limit Discount'!$D$93, 1)) * (IF(J73 = TRUE, 1 - 'Contract Works Discount'!$D$11, 1) * (1 - Voluntary_Deductible) * (1 - Co_insurance)), K73)) -> 0
A74: Business Interruption | B74: AICOW | C74: Additional Increase In Cost Of Working | D74: Working Expenses | F74: =F73 * 1.5 -> 7.3515e-05 | G74: TRUE | H74: TRUE | I74: FALSE | J74: FALSE | K74: 0 | L74: FALSE | M74: =IF(E74 = 0, 0, MAX((E74 * F74) * (IF(H74 = TRUE, 1 - 'Loss Limit Discount'!$D$93, 1)) * (IF(J74 = TRUE, 1 - 'Contract Works Discount'!$D$11, 1) * (1 - Voluntary_Deductible) * (1 - Co_insurance)), K74)) -> 0
B75: Revenue
A76: Business Interruption | B76: R | C76: 12 Months | D76: Revenue | F76: =_xlfn.IFNA(VLOOKUP(C76, Metadata!$H$34:$I$40, 2, FALSE),0) -> 4.901e-05 | G76: TRUE | H76: TRUE | I76: FALSE | J76: FALSE | K76: =BI1_12M_AnnualMin -> 50 | L76: FALSE | M76: =IF(E76 = 0, 0, MAX((E76 * F76) * (IF(H76 = TRUE, 1 - 'Loss Limit Discount'!$D$93, 1)) * (IF(J76 = TRUE, 1 - 'Contract Works Discount'!$D$11, 1) * (1 - Voluntary_Deductible) * (1 - Co_insurance)), K76)) -> 0
A77: Business Interruption | B77: AICOW | C77: Additional Increase In Cost Of Working | D77: Revenue | F77: =F76 * 1.5 -> 7.3515e-05 | G77: TRUE | H77: TRUE | I77: FALSE | J77: FALSE | K77: 0 | L77: FALSE | M77: =IF(E77 = 0, 0, MAX((E77 * F77) * (IF(H77 = TRUE, 1 - 'Loss Limit Discount'!$D$93, 1)) * (IF(J77 = TRUE, 1 - 'Contract Works Discount'!$D$11, 1) * (1 - Voluntary_Deductible) * (1 - Co_insurance)), K77)) -> 0
B78: Net Profit
A79: Business Interruption | B79: NP | C79: 12 Months | D79: Net Profit | F79: =_xlfn.IFNA(VLOOKUP(C79, Metadata!$H$18:$I$24, 2, FALSE),0) -> 4.901e-05 | G79: TRUE | H79: TRUE | I79: FALSE | J79: FALSE | K79: =BI1_12M_AnnualMin -> 50 | L79: FALSE | M79: =IF(E79 = 0, 0, MAX((E79 * F79) * (IF(H79 = TRUE, 1 - 'Loss Limit Discount'!$D$93, 1)) * (IF(J79 = TRUE, 1 - 'Contract Works Discount'!$D$11, 1) * (1 - Voluntary_Deductible) * (1 - Co_insurance)), K79)) -> 0
A80: Business Interruption | B80: AICOW | C80: Additional Increase In Cost Of Working | D80: Net Profit | F80: =F79 * 1.5 -> 7.3515e-05 | G80: TRUE | H80: TRUE | I80: FALSE | J80: FALSE | K80: 0 | L80: FALSE | M80: =IF(E80 = 0, 0, MAX((E80 * F80) * (IF(H80 = TRUE, 1 - 'Loss Limit Discount'!$D$93, 1)) * (IF(J80 = TRUE, 1 - 'Contract Works Discount'!$D$11, 1) * (1 - Voluntary_Deductible) * (1 - Co_insurance)), K80)) -> 0
B81: Gross Profit
A82: Business Interruption | B82: GP | C82: 12 Months | D82: Gross Profit | F82: =_xlfn.IFNA(VLOOKUP(C82, Metadata!$H$26:$I$32, 2, FALSE),0) -> 4.901e-05 | G82: TRUE | H82: TRUE | I82: FALSE | J82: FALSE | K82: =BI1_12M_AnnualMin -> 50 | L82: FALSE | M82: =IF(E82 = 0, 0, MAX((E82 * F82) * (IF(H82 = TRUE, 1 - 'Loss Limit Discount'!$D$93, 1)) * (IF(J82 = TRUE, 1 - 'Contract Works Discount'!$D$11, 1) * (1 - Voluntary_Deductible) * (1 - Co_insurance)), K82)) -> 0
A83: Business Interruption | B83: AICOW | C83: Additional Increase In Cost Of Working | D83: Gross Profit | F83: =F82 * 1.5 -> 7.3515e-05 | G83: TRUE | H83: TRUE | I83: FALSE | J83: FALSE | K83: 0 | L83: FALSE | M83: =IF(E83 = 0, 0, MAX((E83 * F83) * (IF(H83 = TRUE, 1 - 'Loss Limit Discount'!$D$93, 1)) * (IF(J83 = TRUE, 1 - 'Contract Works Discount'!$D$11, 1) * (1 - Voluntary_Deductible) * (1 - Co_insurance)), K83)) -> 0
B85: Motor
B86: Motor
A87: Motor | B87: M1 | C87: Cars (Primary use: Domestic/Private) | D87: Motor | F87: =M1_Annual -> 26.23 | G87: FALSE | H87: FALSE | I87: FALSE | J87: FALSE | K87: =M1_AnnualMin -> 26.23 | L87: FALSE | M87: =IF(E87 = 0, 0, MAX((F87 * E87) * (IF(H87 = TRUE, 1 - 'Loss Limit Discount'!$L$11, 1)) * (IF(J87 = TRUE, 1 - 'Contract Works Discount'!$D$11, 1) ), K87 * E87)) -> 0
A88: Motor | B88: M2 | C88: Light Commercial Vehicles (3500kg GVM or less) | D88: Motor | F88: =M2_Annual -> 0.00070621 | G88: FALSE | H88: FALSE | I88: FALSE | J88: FALSE | K88: =M2_AnnualMin -> 45.39 | L88: FALSE | M88: =IF(E88 = 0, 0, MAX((E88 * F88) * (IF(H88 = TRUE, 1 - 'Loss Limit Discount'!$D$93, 1)) * (IF(J88 = TRUE, 1 - 'Contract Works Discount'!$D$11, 1) ), K88)) -> 0
A89: Motor | B89: M3 | C89: Taxis | D89: Motor | F89: =M3_Annual -> 0.00035353 | G89: FALSE | H89: FALSE | I89: FALSE | J89: FALSE | K89: =M3_AnnualMin -> 45.39 | L89: FALSE | M89: =IF(E89 = 0, 0, MAX((E89 * F89) * (IF(H89 = TRUE, 1 - 'Loss Limit Discount'!$D$93, 1)) * (IF(J89 = TRUE, 1 - 'Contract Works Discount'!$D$11, 1) ), K89)) -> 0
A90: Motor | B90: M4 | C90: Ferries & Traders | D90: Motor | F90: =M4_Annual -> 8.68e-05 | G90: FALSE | H90: FALSE | I90: FALSE | J90: FALSE | K90: =M4_AnnualMin -> 100 | L90: FALSE | M90: =IF(E90 = 0, 0, MAX((E90 * F90) * (IF(H90 = TRUE, 1 - 'Loss Limit Discount'!$D$93, 1)) * (IF(J90 = TRUE, 1 - 'Contract Works Discount'!$L$11, 1) ), K90)) -> 0
A91: Motor | B91: M5 | C91: Buses | D91: Motor | F91: =M5_Annual -> 0.00751433 | G91: FALSE | H91: FALSE | I91: FALSE | J91: FALSE | K91: =M5_AnnualMin -> 2000 | L91: FALSE | M91: =IF(E91 = 0, 0, MAX((E91 * F91) * (IF(H91 = TRUE, 1 - 'Loss Limit Discount'!$D$93, 1)) * (IF(J91 = TRUE, 1 - 'Contract Works Discount'!$D$11, 1) ), K91)) -> 0
A92: Motor | B92: M6 | C92: Mobile Plant | D92: Motor | F92: =M6_Annual -> 0.00113256 | G92: FALSE | H92: FALSE | I92: FALSE | J92: FALSE | K92: =M6_AnnualMin -> 500 | L92: FALSE | M92: =IF(E92 = 0, 0, MAX((E92 * F92) * (IF(H92 = TRUE, 1 - 'Loss Limit Discount'!$D$93, 1)) * (IF(J92 = TRUE, 1 - 'Contract Works Discount'!$D$11, 1) ), K92)) -> 0
A93: Motor | B93: M8 | C93: Heavy Commercial Vehicles (>3500kg GVM) | D93: Motor | F93: =M8_Annual -> 0.00396816 | G93: FALSE | H93: FALSE | I93: FALSE | J93: FALSE | K93: =M8_AnnualMin -> 54.47 | L93: FALSE | M93: =IF(E93 = 0, 0, MAX((E93 * F93) * (IF(H93 = TRUE, 1 - 'Loss Limit Discount'!$D$93, 1)) * (IF(J93 = TRUE, 1 - 'Contract Works Discount'!$L$11, 1) * (1 - Voluntary_Deductible_M8) * (1 - Co_insurance_M8)), K93)) -> 0
B95: Contract Work / Construction Plant
B96: Contract Works
A97: Contract Works | B97: CW | C97: =Input!$I$16 -> Open | D97: Contract Works | F97: =CW_OnWorks_Annual -> 0.00011326 | G97: FALSE | H97: FALSE | I97: TRUE | J97: TRUE | K97: =CW_OnWorks_AnnualMinDomestic -> 50 | L97: FALSE | M97: =IF(E97 = 0, 0, MAX((E97 * F97) * (IF(H97 = TRUE, 1 - 'Loss Limit Discount'!$D$93, 1)) * (IF(J97 = TRUE, 1 - 'Contract Works Discount'!$D$102, 1) * (1 - Voluntary_Deductible) * (1 - Co_insurance)), K97)) -> 0
B98: Construction plant
A99: Contract Works | B99: CW | C99: On Fee Basis | D99: Contract Works | F99: =CW_OnFees_Annual -> 0.0038376 | G99: FALSE | H99: FALSE | I99: FALSE | J99: FALSE | K99: =CW_OnFees_AnnualMin -> 500 | L99: FALSE | M99: =IF(E99 = 0, 0, MAX((E99 * F99) * (IF(H99 = TRUE, 1 - 'Loss Limit Discount'!$D$93, 1)) * (IF(J99 = TRUE, 1 - 'Contract Works Discount'!$D$102, 1) * (1 - Voluntary_Deductible) * (1 - Co_insurance)), K99)) -> 0
A100: Contract Works | B100: CW | C100: On Value Basis | D100: Contract Works | F100: =CW_OnValue_Annual -> 0.00113256 | G100: FALSE | H100: FALSE | I100: FALSE | J100: FALSE | K100: =CW_OnValue_AnnualMin -> 500 | L100: FALSE | M100: =IF(E100 = 0, 0, MAX((E100 * F100) * (IF(H100 = TRUE, 1 - 'Loss Limit Discount'!$D$93, 1)) * (IF(J100 = TRUE, 1 - 'Contract Works Discount'!$D$102, 1) * (1 - Voluntary_Deductible) * (1 - Co_insurance)), K100)) -> 0
B101: Mobile plant
A102: Contract Works | B102: CW | C102: On Value Basis | D102: Contract Works | F102: =F100 -> 0.00113256 | G102: FALSE | H102: FALSE | I102: FALSE | J102: FALSE | K102: =CW_OnValue_AnnualMin -> 500 | L102: FALSE | M102: =IF(E102 = 0, 0, MAX((E102 * F102) * (IF(H102 = TRUE, 1 - 'Loss Limit Discount'!$D$93, 1)) * (IF(J102 = TRUE, 1 - 'Contract Works Discount'!$D$102, 1) * (1 - Voluntary_Deductible) * (1 - Co_insurance)), K102)) -> 0

Sheet Domestic (Tertiary) - Monthly
A1: Domestic (Tertiary) - Monthly | O1: Cells with green borders have a drop-down selection!
A2: Category | B2: Code | C2: Description | D2: Total Code | E2: Sum Insured/No. of insured items | F2: Rate | G2: Add To Sum Insured Discount | H2: Receive Sum Insured Discount | I2: Add To CW Discount | J2: Receive CW Discount | K2: Minimum Premium | L2: Has Fire Extension Discount | M2: Premium
B3: Fire
A4: Domestic Fire | B4: F1-T | C4: Tertiary Institutions | D4: Fire | F4: =F1T_Monthly -> 5.89e-06 | G4: TRUE | H4: TRUE | I4: FALSE | J4: FALSE | K4: =F1T_MonthlyMin -> 3 | L4: FALSE | M4: =IF(E4 = 0, 0, MAX(((E4 * F4) * (IF(H4 = TRUE, 1 - 'Loss Limit Discount'!$D$93, 1))) * (1 - Voluntary_Deductible) * (1 - Co_insurance), K4)) -> 0
A5: Extension | B5: Sasria Extensions
A6: Extension | B6: =IFERROR(RANK($P6, $P$6:$P$65, 1), "") ->  | C6: Rent | D6: Fire | F6: =$F$4 -> 5.89e-06 | G6: TRUE | H6: TRUE | I6: FALSE | J6: FALSE | K6: 0 | L6: TRUE | M6: =IF(E6 = 0, 0, MAX(((VLOOKUP($B6, TM_NonFreeExt, 60, FALSE) * F6) * (IF(H6 = TRUE, 1 - 'Loss Limit Discount'!$D$93, 1))) * (1 - Voluntary_Deductible), K6)) -> 0 | O6: =MyTimestamp(E6) ->  | P6: =IFERROR(VALUE(O6), "") -> 
A7: Extension | B7: =IFERROR(RANK($P7, $P$6:$P$65, 1), "") ->  | C7: Claims Preparation Costs | D7: Fire | F7: =$F$4 -> 5.89e-06 | G7: TRUE | H7: TRUE | I7: FALSE | J7: FALSE | K7: 0 | L7: TRUE | M7: =IF(E7 = 0, 0, MAX(((VLOOKUP($B7, TM_NonFreeExt, 60, FALSE) * F7) * (IF(H7 = TRUE, 1 - 'Loss Limit Discount'!$D$93, 1))) * (1 - Voluntary_Deductible), K7)) -> 0 | O7: =MyTimestamp(E7) ->  | P7: =IFERROR(VALUE(O7), "") -> 
A8: Extension | C8: Capital Additions | D8: Fire | F8: 5.89e-06 | G8: TRUE | H8: TRUE | I8: FALSE | J8: FALSE | K8: 0 | L8: TRUE | M8: =IF(E8 = 0, 0, MAX(((VLOOKUP($B8, TM_NonFreeExt, 60, FALSE) * F8) * (IF(H8 = TRUE, 1 - 'Loss Limit Discount'!$D$93, 1))) * (1 - Voluntary_Deductible), K8)) -> 0 | O8: =MyTimestamp(E8) -> 
A9: Extension | C9: Professional fees | D9: Fire | F9: 5.89e-06 | G9: TRUE | H9: TRUE | I9: FALSE | J9: FALSE | K9: 0 | L9: TRUE | M9: =IF(E9 = 0, 0, MAX(((VLOOKUP($B9, TM_NonFreeExt, 60, FALSE) * F9) * (IF(H9 = TRUE, 1 - 'Loss Limit Discount'!$D$93, 1))) * (1 - Voluntary_Deductible), K9)) -> 0 | O9: =MyTimestamp(E9) -> 
A10: Extension | C10: Clearance costs | D10: Fire | F10: 5.89e-06 | G10: TRUE | H10: TRUE | I10: FALSE | J10: FALSE | K10: 0 | L10: TRUE | M10: =IF(E10 = 0, 0, MAX(((VLOOKUP($B10, TM_NonFreeExt, 60, FALSE) * F10) * (IF(H10 = TRUE, 1 - 'Loss Limit Discount'!$D$93, 1))) * (1 - Voluntary_Deductible), K10)) -> 0 | O10: =MyTimestamp(E10) -> 
A11: Extension | C11: Security Costs (During and after a loss) | D11: Fire | F11: 5.89e-06 | G11: TRUE | H11: TRUE | I11: FALSE | J11: FALSE | K11: 0 | L11: TRUE | M11: =IF(E11 = 0, 0, MAX(((VLOOKUP($B11, TM_NonFreeExt, 60, FALSE) * F11) * (IF(H11 = TRUE, 1 - 'Loss Limit Discount'!$D$93, 1))) * (1 - Voluntary_Deductible), K11)) -> 0 | O11: =MyTimestamp(E11) -> 
A12: Extension | C12: Statutory Duties | D12: Fire | F12: 5.89e-06 | G12: TRUE | H12: TRUE | I12: FALSE | J12: FALSE | K12: 0 | L12: TRUE | M12: =IF(E12 = 0, 0, MAX(((VLOOKUP($B12, TM_NonFreeExt, 60, FALSE) * F12) * (IF(H12 = TRUE, 1 - 'Loss Limit Discount'!$D$93, 1))) * (1 - Voluntary_Deductible), K12)) -> 0 | O12: =MyTimestamp(E12) -> 
A13: Extension | C13: Additional Premises | D13: Fire | F13: 5.89e-06 | G13: TRUE | H13: TRUE | I13: FALSE | J13: FALSE | K13: 0 | L13: TRUE | M13: =IF(E13 = 0, 0, MAX(((VLOOKUP($B13, TM_NonFreeExt, 60, FALSE) * F13) * (IF(H13 = TRUE, 1 - 'Loss Limit Discount'!$D$93, 1))) * (1 - Voluntary_Deductible), K13)) -> 0 | O13: =MyTimestamp(E13) -> 
A14: Extension | C14: Acquisitions | D14: Fire | F14: 5.89e-06 | G14: TRUE | H14: TRUE | I14: FALSE | J14: FALSE | K14: 0 | L14: TRUE | M14: =IF(E14 = 0, 0, MAX(((VLOOKUP($B14, TM_NonFreeExt, 60, FALSE) * F14) * (IF(H14 = TRUE, 1 - 'Loss Limit Discount'!$D$93, 1))) * (1 - Voluntary_Deductible), K14)) -> 0 | O14: =MyTimestamp(E14) -> 
A15: Extension | C15: Import Surcharges | D15: Fire | F15: 5.89e-06 | G15: TRUE | H15: TRUE | I15: FALSE | J15: FALSE | K15: 0 | L15: TRUE | M15: =IF(E15 = 0, 0, MAX(((VLOOKUP($B15, TM_NonFreeExt, 60, FALSE) * F15) * (IF(H15 = TRUE, 1 - 'Loss Limit Discount'!$D$93, 1))) * (1 - Voluntary_Deductible), K15)) -> 0 | O15: =MyTimestamp(E15) -> 
A16: Extension | C16: Property in the course of Construction | D16: Fire | F16: 5.89e-06 | G16: FALSE | H16: FALSE | I16: FALSE | J16: FALSE | K16: 0 | L16: TRUE | M16: =IF(E16 = 0, 0, MAX(((VLOOKUP($B16, TM_NonFreeExt, 60, FALSE) * F16) * (IF(H16 = TRUE, 1 - 'Loss Limit Discount'!$D$93, 1))) * (1 - Voluntary_Deductible), K16)) -> 0 | O16: =MyTimestamp(E16) ->  | P16: =IFERROR(VALUE(O16), "") -> 
A17: Extension | C17: Fire Protection System Update | D17: Fire | F17: 5.89e-06 | G17: TRUE | H17: TRUE | I17: FALSE | J17: FALSE | K17: 0 | L17: TRUE | M17: =IF(E17 = 0, 0, MAX(((VLOOKUP($B17, TM_NonFreeExt, 60, FALSE) * F17) * (IF(H17 = TRUE, 1 - 'Loss Limit Discount'!$D$93, 1))) * (1 - Voluntary_Deductible), K17)) -> 0 | O17: =MyTimestamp(E17) -> 
A18: Extension | C18: Accumulation of Motor Vehicles/Static Risk | D18: Fire | F18: =StaticRisk_Monthly -> 8.165e-05 | G18: FALSE | H18: FALSE | I18: FALSE | J18: FALSE | K18: =StaticRisk_MonthlyMin -> 50 | L18: TRUE | M18: =IF(E18 = 0, 0, MAX(((E18 * F18) * (IF(H18 = TRUE, 1 - 'Loss Limit Discount'!$D$93, 1))) * (1 - Voluntary_Deductible), K18)) -> 0
A19: Extension | C19: Goods in the open | D19: Fire | F19: 5.89e-06 | G19: TRUE | H19: TRUE | I19: FALSE | J19: FALSE | K19: 0 | L19: TRUE | M19: =IF(E19 = 0, 0, MAX(((VLOOKUP($B19, TM_NonFreeExt, 60, FALSE) * F19) * (IF(H19 = TRUE, 1 - 'Loss Limit Discount'!$D$93, 1))) * (1 - Voluntary_Deductible), K19)) -> 0 | O19: =MyTimestamp(E19) -> 
A20: Extension | C20: Fire Extinguishing | D20: Fire | F20: 5.89e-06 | G20: TRUE | H20: TRUE | I20: FALSE | J20: FALSE | K20: 0 | L20: TRUE | M20: =IF(E20 = 0, 0, MAX(((VLOOKUP($B20, TM_NonFreeExt, 60, FALSE) * F20) * (IF(H20 = TRUE, 1 - 'Loss Limit Discount'!$D$93, 1))) * (1 - Voluntary_Deductible), K20)) -> 0 | O20: =MyTimestamp(E20) -> 
A21: Extension | C21: Imminent Danger (Protection of property prior a loss) | D21: Fire | F21: 5.89e-06 | G21: TRUE | H21: TRUE | I21: FALSE | J21: FALSE | K21: 0 | L21: FALSE | M21: =IF(E21 = 0, 0, MAX(((E21 * F21) * (IF(H21 = TRUE, 1 - 'Loss Limit Discount'!$D$93, 1))) * (1 - Voluntary_Deductible), K21)) -> 0
A22: Other Extension | B22: Other Extensions
A23: Other Extension | B23: =IFERROR(RANK($P23, $P$6:$P$65, 1), "") ->  | C23: Other | D23: Fire | F23: =$F$4 -> 5.89e-06 | G23: TRUE | H23: TRUE | I23: FALSE | J23: FALSE | K23: 0 | L23: TRUE | M23: =IF(E23 = 0, 0, MAX(((VLOOKUP($B23, TM_NonFreeExt, 60, FALSE) * F23) * (IF(H23 = TRUE, 1 - 'Loss Limit Discount'!$D$93, 1))) * (1 - Voluntary_Deductible), K23)) -> 0 | O23: =MyTimestamp(E23) ->  | P23: =IFERROR(VALUE(O23), "") -> 
A24: Other Extension | C24: Other | D24: Fire | F24: 5.89e-06 | G24: TRUE | H24: TRUE | I24: FALSE | J24: FALSE | K24: 0 | L24: TRUE | M24: =IF(E24 = 0, 0, MAX(((VLOOKUP($B24, TM_NonFreeExt, 60, FALSE) * F24) * (IF(H24 = TRUE, 1 - 'Loss Limit Discount'!$D$93, 1))) * (1 - Voluntary_Deductible), K24)) -> 0 | O24: =MyTimestamp(E24) -> 
A25: Other Extension | C25: Other | D25: Fire | F25: 5.89e-06 | G25: TRUE | H25: TRUE | I25: FALSE | J25: FALSE | K25: 0 | L25: TRUE | M25: =IF(E25 = 0, 0, MAX(((VLOOKUP($B25, TM_NonFreeExt, 60, FALSE) * F25) * (IF(H25 = TRUE, 1 - 'Loss Limit Discount'!$D$93, 1))) * (1 - Voluntary_Deductible), K25)) -> 0 | O25: =MyTimestamp(E25) -> 
A26: Other Extension | C26: Other | D26: Fire | F26: 5.89e-06 | G26: TRUE | H26: TRUE | I26: FALSE | J26: FALSE | K26: 0 | L26: TRUE | M26: =IF(E26 = 0, 0, MAX(((VLOOKUP($B26, TM_NonFreeExt, 60, FALSE) * F26) * (IF(H26 = TRUE, 1 - 'Loss Limit Discount'!$D$93, 1))) * (1 - Voluntary_Deductible), K26)) -> 0 | O26: =MyTimestamp(E26) -> 
A27: Other Extension | C27: Other | D27: Fire | F27: 5.89e-06 | G27: TRUE | H27: TRUE | I27: FALSE | J27: FALSE | K27: 0 | L27: TRUE | M27: =IF(E27 = 0, 0, MAX(((VLOOKUP($B27, TM_NonFreeExt, 60, FALSE) * F27) * (IF(H27 = TRUE, 1 - 'Loss Limit Discount'!$D$93, 1))) * (1 - Voluntary_Deductible), K27)) -> 0 | O27: =MyTimestamp(E27) -> 
A28: Other Extension | C28: Other | D28: Fire | F28: 5.89e-06 | G28: TRUE | H28: TRUE | I28: FALSE | J28: FALSE | K28: 0 | L28: TRUE | M28: =IF(E28 = 0, 0, MAX(((VLOOKUP($B28, TM_NonFreeExt, 60, FALSE) * F28) * (IF(H28 = TRUE, 1 - 'Loss Limit Discount'!$D$93, 1))) * (1 - Voluntary_Deductible), K28)) -> 0 | O28: =MyTimestamp(E28) -> 
A29: Other Extension | C29: Other | D29: Fire | F29: 5.89e-06 | G29: TRUE | H29: TRUE | I29: FALSE | J29: FALSE | K29: 0 | L29: TRUE | M29: =IF(E29 = 0, 0, MAX(((VLOOKUP($B29, TM_NonFreeExt, 60, FALSE) * F29) * (IF(H29 = TRUE, 1 - 'Loss Limit Discount'!$D$93, 1))) * (1 - Voluntary_Deductible), K29)) -> 0 | O29: =MyTimestamp(E29) -> 
A30: Other Extension | C30: Other | D30: Fire | F30: 5.89e-06 | G30: TRUE | H30: TRUE | I30: FALSE | J30: FALSE | K30: 0 | L30: TRUE | M30: =IF(E30 = 0, 0, MAX(((VLOOKUP($B30, TM_NonFreeExt, 60, FALSE) * F30) * (IF(H30 = TRUE, 1 - 'Loss Limit Discount'!$D$93, 1))) * (1 - Voluntary_Deductible), K30)) -> 0 | O30: =MyTimestamp(E30) -> 
A31: Other Extension | C31: Other | D31: Fire | F31: 5.89e-06 | G31: TRUE | H31: TRUE | I31: FALSE | J31: FALSE | K31: 0 | L31: TRUE | M31: =IF(E31 = 0, 0, MAX(((VLOOKUP($B31, TM_NonFreeExt, 60, FALSE) * F31) * (IF(H31 = TRUE, 1 - 'Loss Limit Discount'!$D$93, 1))) * (1 - Voluntary_Deductible), K31)) -> 0 | O31: =MyTimestamp(E31) -> 
A32: Other Extension | C32: Other | D32: Fire | F32: 5.89e-06 | G32: TRUE | H32: TRUE | I32: FALSE | J32: FALSE | K32: 0 | L32: TRUE | M32: =IF(E32 = 0, 0, MAX(((VLOOKUP($B32, TM_NonFreeExt, 60, FALSE) * F32) * (IF(H32 = TRUE, 1 - 'Loss Limit Discount'!$D$93, 1))) * (1 - Voluntary_Deductible), K32)) -> 0 | O32: =MyTimestamp(E32) -> 
A33: Other Extension | C33: Other | D33: Fire | F33: 5.89e-06 | G33: TRUE | H33: TRUE | I33: FALSE | J33: FALSE | K33: 0 | L33: TRUE | M33: =IF(E33 = 0, 0, MAX(((VLOOKUP($B33, TM_NonFreeExt, 60, FALSE) * F33) * (IF(H33 = TRUE, 1 - 'Loss Limit Discount'!$D$93, 1))) * (1 - Voluntary_Deductible), K33)) -> 0 | O33: =MyTimestamp(E33) -> 
A34: Other Extension | C34: Other | D34: Fire | F34: 5.89e-06 | G34: TRUE | H34: TRUE | I34: FALSE | J34: FALSE | K34: 0 | L34: TRUE | M34: =IF(E34 = 0, 0, MAX(((VLOOKUP($B34, TM_NonFreeExt, 60, FALSE) * F34) * (IF(H34 = TRUE, 1 - 'Loss Limit Discount'!$D$93, 1))) * (1 - Voluntary_Deductible), K34)) -> 0 | O34: =MyTimestamp(E34) -> 
A35: Other Extension | C35: Other | D35: Fire | F35: 5.89e-06 | G35: TRUE | H35: TRUE | I35: FALSE | J35: FALSE | K35: 0 | L35: TRUE | M35: =IF(E35 = 0, 0, MAX(((VLOOKUP($B35, TM_NonFreeExt, 60, FALSE) * F35) * (IF(H35 = TRUE, 1 - 'Loss Limit Discount'!$D$93, 1))) * (1 - Voluntary_Deductible), K35)) -> 0 | O35: =MyTimestamp(E35) -> 
A36: Other Extension | C36: Other | D36: Fire | F36: 5.89e-06 | G36: TRUE | H36: TRUE | I36: FALSE | J36: FALSE | K36: 0 | L36: TRUE | M36: =IF(E36 = 0, 0, MAX(((VLOOKUP($B36, TM_NonFreeExt, 60, FALSE) * F36) * (IF(H36 = TRUE, 1 - 'Loss Limit Discount'!$D$93, 1))) * (1 - Voluntary_Deductible), K36)) -> 0 | O36: =MyTimestamp(E36) -> 
A37: Other Extension | C37: Other | D37: Fire | F37: 5.89e-06 | G37: TRUE | H37: TRUE | I37: FALSE | J37: FALSE | K37: 0 | L37: TRUE | M37: =IF(E37 = 0, 0, MAX(((VLOOKUP($B37, TM_NonFreeExt, 60, FALSE) * F37) * (IF(H37 = TRUE, 1 - 'Loss Limit Discount'!$D$93, 1))) * (1 - Voluntary_Deductible), K37)) -> 0 | O37: =MyTimestamp(E37) -> 
A38: Other Extension | C38: Other | D38: Fire | F38: 5.89e-06 | G38: TRUE | H38: TRUE | I38: FALSE | J38: FALSE | K38: 0 | L38: TRUE | M38: =IF(E38 = 0, 0, MAX(((VLOOKUP($B38, TM_NonFreeExt, 60, FALSE) * F38) * (IF(H38 = TRUE, 1 - 'Loss Limit Discount'!$D$93, 1))) * (1 - Voluntary_Deductible), K38)) -> 0 | O38: =MyTimestamp(E38) -> 
A39: Other Extension | C39: Other | D39: Fire | F39: 5.89e-06 | G39: TRUE | H39: TRUE | I39: FALSE | J39: FALSE | K39: 0 | L39: TRUE | M39: =IF(E39 = 0, 0, MAX(((VLOOKUP($B39, TM_NonFreeExt, 60, FALSE) * F39) * (IF(H39 = TRUE, 1 - 'Loss Limit Discount'!$D$93, 1))) * (1 - Voluntary_Deductible), K39)) -> 0 | O39: =MyTimestamp(E39) -> 
A40: Other Extension | C40: Other | D40: Fire | F40: 5.89e-06 | G40: TRUE | H40: TRUE | I40: FALSE | J40: FALSE | K40: 0 | L40: TRUE | M40: =IF(E40 = 0, 0, MAX(((VLOOKUP($B40, TM_NonFreeExt, 60, FALSE) * F40) * (IF(H40 = TRUE, 1 - 'Loss Limit Discount'!$D$93, 1))) * (1 - Voluntary_Deductible), K40)) -> 0 | O40: =MyTimestamp(E40) -> 
A41: Other Extension | C41: Other | D41: Fire | F41: 5.89e-06 | G41: TRUE | H41: TRUE | I41: FALSE | J41: FALSE | K41: 0 | L41: TRUE | M41: =IF(E41 = 0, 0, MAX(((VLOOKUP($B41, TM_NonFreeExt, 60, FALSE) * F41) * (IF(H41 = TRUE, 1 - 'Loss Limit Discount'!$D$93, 1))) * (1 - Voluntary_Deductible), K41)) -> 0 | O41: =MyTimestamp(E41) -> 
A42: Other Extension | C42: Other | D42: Fire | F42: 5.89e-06 | G42: TRUE | H42: TRUE | I42: FALSE | J42: FALSE | K42: 0 | L42: TRUE | M42: =IF(E42 = 0, 0, MAX(((VLOOKUP($B42, TM_NonFreeExt, 60, FALSE) * F42) * (IF(H42 = TRUE, 1 - 'Loss Limit Discount'!$D$93, 1))) * (1 - Voluntary_Deductible), K42)) -> 0 | O42: =MyTimestamp(E42) -> 
A43: Other Extension | C43: Other | D43: Fire | F43: 5.89e-06 | G43: TRUE | H43: TRUE | I43: FALSE | J43: FALSE | K43: 0 | L43: TRUE | M43: =IF(E43 = 0, 0, MAX(((VLOOKUP($B43, TM_NonFreeExt, 60, FALSE) * F43) * (IF(H43 = TRUE, 1 - 'Loss Limit Discount'!$D$93, 1))) * (1 - Voluntary_Deductible), K43)) -> 0 | O43: =MyTimestamp(E43) -> 
A44: Other Extension | C44: Other | D44: Fire | F44: 5.89e-06 | G44: TRUE | H44: TRUE | I44: FALSE | J44: FALSE | K44: 0 | L44: TRUE | M44: =IF(E44 = 0, 0, MAX(((VLOOKUP($B44, TM_NonFreeExt, 60, FALSE) * F44) * (IF(H44 = TRUE, 1 - 'Loss Limit Discount'!$D$93, 1))) * (1 - Voluntary_Deductible), K44)) -> 0 | O44: =MyTimestamp(E44) -> 
A45: Other Extension | C45: Other | D45: Fire | F45: 5.89e-06 | G45: TRUE | H45: TRUE | I45: FALSE | J45: FALSE | K45: 0 | L45: TRUE | M45: =IF(E45 = 0, 0, MAX(((VLOOKUP($B45, TM_NonFreeExt, 60, FALSE) * F45) * (IF(H45 = TRUE, 1 - 'Loss Limit Discount'!$D$93, 1))) * (1 - Voluntary_Deductible), K45)) -> 0 | O45: =MyTimestamp(E45) -> 
A46: Other Extension | C46: Other | D46: Fire | F46: 5.89e-06 | G46: TRUE | H46: TRUE | I46: FALSE | J46: FALSE | K46: 0 | L46: TRUE | M46: =IF(E46 = 0, 0, MAX(((VLOOKUP($B46, TM_NonFreeExt, 60, FALSE) * F46) * (IF(H46 = TRUE, 1 - 'Loss Limit Discount'!$D$93, 1))) * (1 - Voluntary_Deductible), K46)) -> 0 | O46: =MyTimestamp(E46) -> 
A47: Other Extension | C47: Other | D47: Fire | F47: 5.89e-06 | G47: TRUE | H47: TRUE | I47: FALSE | J47: FALSE | K47: 0 | L47: TRUE | M47: =IF(E47 = 0, 0, MAX(((VLOOKUP($B47, TM_NonFreeExt, 60, FALSE) * F47) * (IF(H47 = TRUE, 1 - 'Loss Limit Discount'!$D$93, 1))) * (1 - Voluntary_Deductible), K47)) -> 0 | O47: =MyTimestamp(E47) -> 
A48: Other Extension | C48: Other | D48: Fire | F48: 5.89e-06 | G48: TRUE | H48: TRUE | I48: FALSE | J48: FALSE | K48: 0 | L48: TRUE | M48: =IF(E48 = 0, 0, MAX(((VLOOKUP($B48, TM_NonFreeExt, 60, FALSE) * F48) * (IF(H48 = TRUE, 1 - 'Loss Limit Discount'!$D$93, 1))) * (1 - Voluntary_Deductible), K48)) -> 0 | O48: =MyTimestamp(E48) -> 
A49: Other Extension | C49: Other | D49: Fire | F49: 5.89e-06 | G49: TRUE | H49: TRUE | I49: FALSE | J49: FALSE | K49: 0 | L49: TRUE | M49: =IF(E49 = 0, 0, MAX(((VLOOKUP($B49, TM_NonFreeExt, 60, FALSE) * F49) * (IF(H49 = TRUE, 1 - 'Loss Limit Discount'!$D$93, 1))) * (1 - Voluntary_Deductible), K49)) -> 0 | O49: =MyTimestamp(E49) -> 
A50: Other Extension | C50: Other | D50: Fire | F50: 5.89e-06 | G50: TRUE | H50: TRUE | I50: FALSE | J50: FALSE | K50: 0 | L50: TRUE | M50: =IF(E50 = 0, 0, MAX(((VLOOKUP($B50, TM_NonFreeExt, 60, FALSE) * F50) * (IF(H50 = TRUE, 1 - 'Loss Limit Discount'!$D$93, 1))) * (1 - Voluntary_Deductible), K50)) -> 0 | O50: =MyTimestamp(E50) -> 
A51: Other Extension | C51: Other | D51: Fire | F51: 5.89e-06 | G51: TRUE | H51: TRUE | I51: FALSE | J51: FALSE | K51: 0 | L51: TRUE | M51: =IF(E51 = 0, 0, MAX(((VLOOKUP($B51, TM_NonFreeExt, 60, FALSE) * F51) * (IF(H51 = TRUE, 1 - 'Loss Limit Discount'!$D$93, 1))) * (1 - Voluntary_Deductible), K51)) -> 0 | O51: =MyTimestamp(E51) -> 
A52: Other Extension | C52: Other | D52: Fire | F52: 5.89e-06 | G52: TRUE | H52: TRUE | I52: FALSE | J52: FALSE | K52: 0 | L52: TRUE | M52: =IF(E52 = 0, 0, MAX(((VLOOKUP($B52, TM_NonFreeExt, 60, FALSE) * F52) * (IF(H52 = TRUE, 1 - 'Loss Limit Discount'!$D$93, 1))) * (1 - Voluntary_Deductible), K52)) -> 0 | O52: =MyTimestamp(E52) -> 
A53: Escalation | B53: Escalation and or Inflation
A54: Escalation UL | B54: Charge on U/L
A55: Escalation UL | B55: =IFERROR(RANK($P55, $P$6:$P$65, 1), "") ->  | C55: First Year (90-100%) | D55: Fire | F55: =IF(C55 = "", 0, VLOOKUP(C55, Escalation!$C$163:$D$207, 2, FALSE)) -> 5.89e-06 | G55: FALSE | H55: TRUE | I55: FALSE | J55: FALSE | K55: 0 | M55: =IF(E55 = 0, 0, MAX(((VLOOKUP($B55, TM_NonFreeExt, 60, FALSE) * F55) * (IF(H55 = TRUE, 1 - 'Loss Limit Discount'!$D$93, 1))) * (1 - Voluntary_Deductible), K55)) -> 0 | O55: =MyTimestamp(E55) ->  | P55: =IFERROR(VALUE(O55), "") -> 
A56: Escalation UL | C56: Second Year (90-100%) | D56: Fire | F56: =IF(C56 = "", 0, VLOOKUP(C56, Escalation!$C$163:$D$207, 2, FALSE)) -> 2.945e-06 | G56: FALSE | H56: TRUE | I56: FALSE | J56: FALSE | K56: 0 | M56: =IF(E56 = 0, 0, MAX(((VLOOKUP($B56, TM_NonFreeExt, 60, FALSE) * F56) * (IF(H56 = TRUE, 1 - 'Loss Limit Discount'!$D$93, 1))) * (1 - Voluntary_Deductible), K56)) -> 0 | O56: =MyTimestamp(E56) -> 
A57: Escalation UL | C57: Third Year (90-100%) | D57: Fire | F57: =IF(C57 = "", 0, VLOOKUP(C57, Escalation!$C$163:$D$207, 2, FALSE)) -> 1.4725e-06 | G57: FALSE | H57: TRUE | I57: FALSE | J57: FALSE | K57: 0 | M57: =IF(E57 = 0, 0, MAX(((VLOOKUP($B57, TM_NonFreeExt, 60, FALSE) * F57) * (IF(H57 = TRUE, 1 - 'Loss Limit Discount'!$D$93, 1))) * (1 - Voluntary_Deductible), K57)) -> 0 | O57: =MyTimestamp(E57) -> 
A58: Escalation UL | C58: Fourth Year (90-100%) | D58: Fire | F58: =IF(C58 = "", 0, VLOOKUP(C58, Escalation!$C$163:$D$207, 2, FALSE)) -> 1.178e-06 | G58: FALSE | H58: TRUE | I58: FALSE | J58: FALSE | K58: 0 | M58: =IF(E58 = 0, 0, MAX(((VLOOKUP($B58, TM_NonFreeExt, 60, FALSE) * F58) * (IF(H58 = TRUE, 1 - 'Loss Limit Discount'!$D$93, 1))) * (1 - Voluntary_Deductible), K58)) -> 0 | O58: =MyTimestamp(E58) -> 
A59: Escalation UL | C59: Fifth Year (90-100%) | D59: Fire | F59: =IF(C59 = "", 0, VLOOKUP(C59, Escalation!$C$163:$D$207, 2, FALSE)) -> 8.835e-07 | G59: FALSE | H59: TRUE | I59: FALSE | J59: FALSE | K59: 0 | M59: =IF(E59 = 0, 0, MAX(((VLOOKUP($B59, TM_NonFreeExt, 60, FALSE) * F59) * (IF(H59 = TRUE, 1 - 'Loss Limit Discount'!$D$93, 1))) * (1 - Voluntary_Deductible), K59)) -> 0 | O59: =MyTimestamp(E59) -> 
A60: Escalation Not UL | B60: Not Charge on U/L
A61: Escalation Not UL | B61: =IFERROR(RANK($P61, $P$6:$P$65, 1), "") ->  | C61: First Year | D61: Fire | F61: =$F$4 -> 5.89e-06 | G61: FALSE | H61: TRUE | I61: FALSE | J61: FALSE | K61: 0 | M61: =IF(E61 = 0, 0, MAX(((VLOOKUP($B61, TM_NonFreeExt, 60, FALSE) * F61) * (IF(H61 = TRUE, 1 - 'Loss Limit Discount'!$D$93, 1))) * (1 - Voluntary_Deductible), K61)) -> 0 | O61: =MyTimestamp(E61) ->  | P61: =IFERROR(VALUE(O61), "") -> 
A62: Escalation Not UL | B62: =IFERROR(RANK($P62, $P$6:$P$65, 1), "") ->  | C62: Second Year | D62: Fire | F62: =$F$4 * 0.5 -> 2.945e-06 | G62: FALSE | H62: TRUE | I62: FALSE | J62: FALSE | K62: 0 | M62: =IF(E62 = 0, 0, MAX(((VLOOKUP($B62, TM_NonFreeExt, 60, FALSE) * F62) * (IF(H62 = TRUE, 1 - 'Loss Limit Discount'!$D$93, 1))) * (1 - Voluntary_Deductible), K62)) -> 0 | O62: =MyTimestamp(E62) -> 
A63: Escalation Not UL | C63: Third Year | D63: Fire | F63: =$F$4 * 0.25 -> 1.4725e-06 | G63: FALSE | H63: TRUE | I63: FALSE | J63: FALSE | K63: 0 | M63: =IF(E63 = 0, 0, MAX(((VLOOKUP($B63, TM_NonFreeExt, 60, FALSE) * F63) * (IF(H63 = TRUE, 1 - 'Loss Limit Discount'!$D$93, 1))) * (1 - Voluntary_Deductible), K63)) -> 0 | O63: =MyTimestamp(E63) -> 
A64: Escalation Not UL | C64: Fourth Year | D64: Fire | F64: =$F$4 * 0.2 -> 1.178e-06 | G64: FALSE | H64: TRUE | I64: FALSE | J64: FALSE | K64: 0 | M64: =IF(E64 = 0, 0, MAX(((VLOOKUP($B64, TM_NonFreeExt, 60, FALSE) * F64) * (IF(H64 = TRUE, 1 - 'Loss Limit Discount'!$D$93, 1))) * (1 - Voluntary_Deductible), K64)) -> 0 | O64: =MyTimestamp(E64) -> 
A65: Escalation Not UL | C65: Fifth Year | D65: Fire | F65: =$F$4 * 0.15 -> 8.835e-07 | G65: FALSE | H65: TRUE | I65: FALSE | J65: FALSE | K65: 0 | M65: =IF(E65 = 0, 0, MAX(((VLOOKUP($B65, TM_NonFreeExt, 60, FALSE) * F65) * (IF(H65 = TRUE, 1 - 'Loss Limit Discount'!$D$93, 1))) * (1 - Voluntary_Deductible), K65)) -> 0 | O65: =MyTimestamp(E65) -> 
B67: Business Interruption
B68: Specified Standing Charges
A69: Business Interruption | B69: SC | C69: 12 Months | D69: Standing Charges | F69: =_xlfn.IFNA(VLOOKUP(C69, Metadata!$D$2:$E$8, 2, FALSE),0) -> 4.9e-06 | G69: TRUE | H69: TRUE | I69: FALSE | J69: FALSE | K69: =BI1_12M_MonthlyMin -> 5 | L69: FALSE | M69: =IF(E69 = 0, 0, MAX((E69 * F69) * (IF(H69 = TRUE, 1 - 'Loss Limit Discount'!$D$93, 1) * (1 - Voluntary_Deductible) * (1 - Co_insurance)), K69)) -> 0
A70: Business Interruption | B70: AICOW | C70: Additional Increase In Cost Of Working | D70: Standing Charges | F70: =F69 * 1.5 -> 7.35e-06 | G70: TRUE | H70: TRUE | I70: FALSE | J70: FALSE | K70: 0 | L70: FALSE | M70: =IF(E70 = 0, 0, MAX((E70 * F70) * (IF(H70 = TRUE, 1 - 'Loss Limit Discount'!$D$93, 1) * (1 - Voluntary_Deductible) * (1 - Co_insurance)), K70)) -> 0
B71: Working Expenses
A72: Business Interruption | B72: WE | C72: 12 Months | D72: Working Expenses | F72: =_xlfn.IFNA(VLOOKUP(C72, Metadata!$D$10:$E$16, 2, FALSE),0) -> 4.9e-06 | G72: TRUE | H72: TRUE | I72: FALSE | J72: FALSE | K72: =BI1_12M_MonthlyMin -> 5 | L72: FALSE | M72: =IF(E72 = 0, 0, MAX((E72 * F72) * (IF(H72 = TRUE, 1 - 'Loss Limit Discount'!$D$93, 1) * (1 - Voluntary_Deductible) * (1 - Co_insurance)), K72)) -> 0
A73: Business Interruption | B73: AICOW | C73: Additional Increase In Cost Of Working | D73: Working Expenses | F73: =F72 * 1.5 -> 7.35e-06 | G73: TRUE | H73: TRUE | I73: FALSE | J73: FALSE | K73: 0 | L73: FALSE | M73: =IF(E73 = 0, 0, MAX((E73 * F73) * (IF(H73 = TRUE, 1 - 'Loss Limit Discount'!$D$93, 1) * (1 - Voluntary_Deductible) * (1 - Co_insurance)), K73)) -> 0
B74: Revenue
A75: Business Interruption | B75: R | C75: 12 Months | D75: Revenue | F75: =_xlfn.IFNA(VLOOKUP(C75, Metadata!$D$34:$E$40, 2, FALSE),0) -> 4.9e-06 | G75: TRUE | H75: TRUE | I75: FALSE | J75: FALSE | K75: =BI1_12M_MonthlyMin -> 5 | L75: FALSE | M75: =IF(E75 = 0, 0, MAX((E75 * F75) * (IF(H75 = TRUE, 1 - 'Loss Limit Discount'!$D$93, 1) * (1 - Voluntary_Deductible) * (1 - Co_insurance)), K75)) -> 0
A76: Business Interruption | B76: AICOW | C76: Additional Increase In Cost Of Working | D76: Revenue | F76: =F75 * 1.5 -> 7.35e-06 | G76: TRUE | H76: TRUE | I76: FALSE | J76: FALSE | K76: 0 | L76: FALSE | M76: =IF(E76 = 0, 0, MAX((E76 * F76) * (IF(H76 = TRUE, 1 - 'Loss Limit Discount'!$D$93, 1) * (1 - Voluntary_Deductible) * (1 - Co_insurance)), K76)) -> 0
B77: Net Profit
A78: Business Interruption | B78: NP | C78: 12 Months | D78: Net Profit | F78: =_xlfn.IFNA(VLOOKUP(C78, Metadata!$D$18:$E$24, 2, FALSE),0) -> 4.9e-06 | G78: TRUE | H78: TRUE | I78: FALSE | J78: FALSE | K78: =BI1_12M_MonthlyMin -> 5 | L78: FALSE | M78: =IF(E78 = 0, 0, MAX((E78 * F78) * (IF(H78 = TRUE, 1 - 'Loss Limit Discount'!$D$93, 1) * (1 - Voluntary_Deductible) * (1 - Co_insurance)), K78)) -> 0
A79: Business Interruption | B79: AICOW | C79: Additional Increase In Cost Of Working | D79: Net Profit | F79: =F78 * 1.5 -> 7.35e-06 | G79: TRUE | H79: TRUE | I79: FALSE | J79: FALSE | K79: 0 | L79: FALSE | M79: =IF(E79 = 0, 0, MAX((E79 * F79) * (IF(H79 = TRUE, 1 - 'Loss Limit Discount'!$D$93, 1) * (1 - Voluntary_Deductible) * (1 - Co_insurance)), K79)) -> 0
B80: Gross Profit
A81: Business Interruption | B81: GP | C81: 12 Months | D81: Gross Profit | F81: =_xlfn.IFNA(VLOOKUP(C81, Metadata!$D$26:$E$32, 2, FALSE),0) -> 4.9e-06 | G81: TRUE | H81: TRUE | I81: FALSE | J81: FALSE | K81: =BI1_12M_MonthlyMin -> 5 | L81: FALSE | M81: =IF(E81 = 0, 0, MAX((E81 * F81) * (IF(H81 = TRUE, 1 - 'Loss Limit Discount'!$D$93, 1) * (1 - Voluntary_Deductible) * (1 - Co_insurance)), K81)) -> 0
A82: Business Interruption | B82: AICOW | C82: Additional Increase In Cost Of Working | D82: Gross Profit | F82: =F81 * 1.5 -> 7.35e-06 | G82: TRUE | H82: TRUE | I82: FALSE | J82: FALSE | K82: 0 | L82: FALSE | M82: =IF(E82 = 0, 0, MAX((E82 * F82) * (IF(H82 = TRUE, 1 - 'Loss Limit Discount'!$D$93, 1) * (1 - Voluntary_Deductible) * (1 - Co_insurance)), K82)) -> 0
B84: Motor
B85: Motor
A86: Motor | B86: M1 | C86: Cars (Primary use: Domestic/Private) | D86: Motor | F86: =M1_Monthly -> 2.62 | G86: FALSE | H86: FALSE | I86: FALSE | J86: FALSE | K86: =M1_MonthlyMin -> 2.62 | L86: FALSE | M86: =IF(E86 = 0, 0, MAX((F86 * E86) * (IF(H86 = TRUE, 1 - 'Loss Limit Discount'!$D$93, 1)), K86 * E86)) -> 0
A87: Motor | B87: M2 | C87: Light Commercial Vehicles (3500kg GVM or less) | D87: Motor | F87: =M2_Monthly -> 7.062e-05 | G87: FALSE | H87: FALSE | I87: FALSE | J87: FALSE | K87: =M2_MonthlyMin -> 4.54 | L87: FALSE | M87: =IF(E87 = 0, 0, MAX((E87 * F87) * (IF(H87 = TRUE, 1 - 'Loss Limit Discount'!$D$93, 1) ), K87)) -> 0
A88: Motor | B88: M3 | C88: Taxis | D88: Motor | F88: =M3_Monthly -> 3.535e-05 | G88: FALSE | H88: FALSE | I88: FALSE | J88: FALSE | K88: =M3_MonthlyMin -> 4.54 | L88: FALSE | M88: =IF(E88 = 0, 0, MAX((E88 * F88) * (IF(H88 = TRUE, 1 - 'Loss Limit Discount'!$D$93, 1) ), K88)) -> 0
A89: Motor | B89: M4 | C89: Ferries & Traders | D89: Motor | F89: =M4_Monthly -> 8.68e-06 | G89: FALSE | H89: FALSE | I89: FALSE | J89: FALSE | K89: =M4_MonthlyMin -> 10 | L89: FALSE | M89: =IF(E89 = 0, 0, MAX((E89 * F89) * (IF(H89 = TRUE, 1 - 'Loss Limit Discount'!$D$93, 1) ), K89)) -> 0
A90: Motor | B90: M5 | C90: Buses | D90: Motor | F90: =M5_Monthly -> 0.00075143 | G90: FALSE | H90: FALSE | I90: FALSE | J90: FALSE | K90: =M5_MonthlyMin -> 200 | L90: FALSE | M90: =IF(E90 = 0, 0, MAX((E90 * F90) * (IF(H90 = TRUE, 1 - 'Loss Limit Discount'!$D$93, 1) ), K90)) -> 0
A91: Motor | B91: M6 | C91: Mobile Plant | D91: Motor | F91: =M6_Monthly -> 0.00011326 | G91: FALSE | H91: FALSE | I91: FALSE | J91: FALSE | K91: =M6_MonthlyMin -> 50 | L91: FALSE | M91: =IF(E91 = 0, 0, MAX((E91 * F91) * (IF(H91 = TRUE, 1 - 'Loss Limit Discount'!$D$93, 1)), K91)) -> 0
A92: Motor | B92: M8 | C92: Heavy Commercial Vehicles (>3500kg GVM) | D92: Motor | F92: =M8_Monthly -> 0.00039682 | G92: FALSE | H92: FALSE | I92: FALSE | J92: FALSE | K92: =M8_MonthlyMin -> 5.45 | L92: FALSE | M92: =IF(E92 = 0, 0, MAX((E92 * F92) * (IF(H92 = TRUE, 1 - 'Loss Limit Discount'!$D$93, 1) * (1 - Voluntary_Deductible_M8) * (1 - Co_insurance_M8)), K92)) -> 0
B94: Contract Work / Construction Plant
B95: Contract Works
A96: Contract Works | B96: CW | C96: =Input!$I$16 -> Open | D96: Contract Works | F96: =CW_OnWorks_Monthly -> 1.133e-05 | G96: FALSE | H96: FALSE | I96: TRUE | J96: TRUE | K96: =CW_OnWorks_Monthly -> 1.133e-05 | L96: FALSE | M96: =IF(E96 = 0, 0, MAX((E96 * F96) * (IF(H96 = TRUE, 1 - 'Loss Limit Discount'!$D$93, 1)) * (IF(J96 = TRUE, 1 - 'Contract Works Discount'!$D$102, 1) * (1 - Voluntary_Deductible) * (1 - Co_insurance)), K96)) -> 0
B97: Construction plant
A98: Contract Works | B98: CW | C98: On Fee Basis | D98: Contract Works | F98: =CW_OnFees_Monthly -> 0.00038376 | G98: FALSE | H98: FALSE | I98: FALSE | J98: FALSE | K98: =CW_OnFees_MonthlyMin -> 50 | L98: FALSE | M98: =IF(E98 = 0, 0, MAX((E98 * F98) * (IF(H98 = TRUE, 1 - 'Loss Limit Discount'!$D$93, 1)) * (IF(J98 = TRUE, 1 - 'Contract Works Discount'!$D$102, 1) * (1 - Voluntary_Deductible) * (1 - Co_insurance)), K98)) -> 0
A99: Contract Works | B99: CW | C99: On Value Basis | D99: Contract Works | F99: =CW_OnValue_Monthly -> 0.00011326 | G99: FALSE | H99: FALSE | I99: FALSE | J99: FALSE | K99: =CW_OnValue_MonthlyMin -> 50 | L99: FALSE | M99: =IF(E99 = 0, 0, MAX((E99 * F99) * (IF(H99 = TRUE, 1 - 'Loss Limit Discount'!$D$93, 1)) * (IF(J99 = TRUE, 1 - 'Contract Works Discount'!$D$102, 1) * (1 - Voluntary_Deductible) * (1 - Co_insurance)), K99)) -> 0
B100: Mobile plant
A101: Contract Works | B101: CW | C101: On Value Basis | D101: Contract Works | F101: =F99 -> 0.00011326 | G101: FALSE | H101: FALSE | I101: FALSE | J101: FALSE | K101: =CW_OnValue_MonthlyMin -> 50 | L101: FALSE | M101: =IF(E101 = 0, 0, MAX((E101 * F101) * (IF(H101 = TRUE, 1 - 'Loss Limit Discount'!$D$93, 1)) * (IF(J101 = TRUE, 1 - 'Contract Works Discount'!$D$102, 1) * (1 - Voluntary_Deductible) * (1 - Co_insurance)), K101)) -> 0

Sheet Domestic (Tertiary) - Annual
A1: Domestic (Tertiary) - Annual | O1: Cells with green borders have a drop-down selection!
A2: Category | B2: Code | C2: Description | D2: Total Code | E2: Sum Insured/No. of insured items | F2: Rate | G2: Add To Sum Insured Discount | H2: Receive Sum Insured Discount | I2: Add To CW Discount | J2: Receive CW Discount | K2: Minimum Premium | L2: Has Fire Extension Discount | M2: Premium
A3: Header | B3: Fire
A4: Domestic Fire | B4: F1-T | C4: Tertiary Institutions | D4: Fire | F4: =F1T_Annual -> 5.886e-05 | G4: TRUE | H4: TRUE | I4: FALSE | J4: FALSE | K4: =F1T_AnnualMin -> 30 | L4: FALSE | M4: =IF(E4 = 0, 0, MAX(((E4 * F4) * (IF(H4 = TRUE, 1 - 'Loss Limit Discount'!$D$93, 1))) * (1 - Voluntary_Deductible) * (1 - Co_insurance), K4)) -> 0
A5: Extension | B5: Sasria Extensions
A6: Extension | B6: =IFERROR(RANK($P6, $P$6:$P$65, 1), "") ->  | C6: Rent | D6: Fire | F6: =$F$4 -> 5.886e-05 | G6: TRUE | H6: TRUE | I6: FALSE | J6: FALSE | K6: 0 | L6: TRUE | M6: =IF(E6 = 0, 0, MAX(((VLOOKUP($B6, TA_NonFreeExt, 60, FALSE) * F6) * (IF(H6 = TRUE, 1 - 'Loss Limit Discount'!$D$93, 1))) * (1 - Voluntary_Deductible), K6)) -> 0 | O6: =MyTimestamp(E6) ->  | P6: =IFERROR(VALUE(O6), "") -> 
A7: Extension | B7: =IFERROR(RANK($P7, $P$6:$P$65, 1), "") ->  | C7: Claims Preparation Costs | D7: Fire | F7: =$F$4 -> 5.886e-05 | G7: TRUE | H7: TRUE | I7: FALSE | J7: FALSE | K7: 0 | L7: TRUE | M7: =IF(E7 = 0, 0, MAX(((VLOOKUP($B7, TA_NonFreeExt, 60, FALSE) * F7) * (IF(H7 = TRUE, 1 - 'Loss Limit Discount'!$D$93, 1))) * (1 - Voluntary_Deductible), K7)) -> 0 | O7: =MyTimestamp(E7) ->  | P7: =IFERROR(VALUE(O7), "") -> 
A8: Extension | C8: Capital Additions | D8: Fire | F8: 5.886e-05 | G8: TRUE | H8: TRUE | I8: FALSE | J8: FALSE | K8: 0 | L8: TRUE | M8: =IF(E8 = 0, 0, MAX(((VLOOKUP($B8, TA_NonFreeExt, 60, FALSE) * F8) * (IF(H8 = TRUE, 1 - 'Loss Limit Discount'!$D$93, 1))) * (1 - Voluntary_Deductible), K8)) -> 0 | O8: =MyTimestamp(E8) -> 
A9: Extension | C9: Professional fees | D9: Fire | F9: 5.886e-05 | G9: TRUE | H9: TRUE | I9: FALSE | J9: FALSE | K9: 0 | L9: TRUE | M9: =IF(E9 = 0, 0, MAX(((VLOOKUP($B9, TA_NonFreeExt, 60, FALSE) * F9) * (IF(H9 = TRUE, 1 - 'Loss Limit Discount'!$D$93, 1))) * (1 - Voluntary_Deductible), K9)) -> 0 | O9: =MyTimestamp(E9) -> 
A10: Extension | C10: Clearance costs | D10: Fire | F10: 5.886e-05 | G10: TRUE | H10: TRUE | I10: FALSE | J10: FALSE | K10: 0 | L10: TRUE | M10: =IF(E10 = 0, 0, MAX(((VLOOKUP($B10, TA_NonFreeExt, 60, FALSE) * F10) * (IF(H10 = TRUE, 1 - 'Loss Limit Discount'!$D$93, 1))) * (1 - Voluntary_Deductible), K10)) -> 0 | O10: =MyTimestamp(E10) -> 
A11: Extension | C11: Security Costs (During and after a loss) | D11: Fire | F11: 5.886e-05 | G11: TRUE | H11: TRUE | I11: FALSE | J11: FALSE | K11: 0 | L11: TRUE | M11: =IF(E11 = 0, 0, MAX(((VLOOKUP($B11, TA_NonFreeExt, 60, FALSE) * F11) * (IF(H11 = TRUE, 1 - 'Loss Limit Discount'!$D$93, 1))) * (1 - Voluntary_Deductible), K11)) -> 0 | O11: =MyTimestamp(E11) -> 
A12: Extension | C12: Statutory Duties | D12: Fire | F12: 5.886e-05 | G12: TRUE | H12: TRUE | I12: FALSE | J12: FALSE | K12: 0 | L12: TRUE | M12: =IF(E12 = 0, 0, MAX(((VLOOKUP($B12, TA_NonFreeExt, 60, FALSE) * F12) * (IF(H12 = TRUE, 1 - 'Loss Limit Discount'!$D$93, 1))) * (1 - Voluntary_Deductible), K12)) -> 0 | O12: =MyTimestamp(E12) -> 
A13: Extension | C13: Additional Premises | D13: Fire | F13: 5.886e-05 | G13: TRUE | H13: TRUE | I13: FALSE | J13: FALSE | K13: 0 | L13: TRUE | M13: =IF(E13 = 0, 0, MAX(((VLOOKUP($B13, TA_NonFreeExt, 60, FALSE) * F13) * (IF(H13 = TRUE, 1 - 'Loss Limit Discount'!$D$93, 1))) * (1 - Voluntary_Deductible), K13)) -> 0 | O13: =MyTimestamp(E13) -> 
A14: Extension | C14: Acquisitions | D14: Fire | F14: 5.886e-05 | G14: TRUE | H14: TRUE | I14: FALSE | J14: FALSE | K14: 0 | L14: TRUE | M14: =IF(E14 = 0, 0, MAX(((VLOOKUP($B14, TA_NonFreeExt, 60, FALSE) * F14) * (IF(H14 = TRUE, 1 - 'Loss Limit Discount'!$D$93, 1))) * (1 - Voluntary_Deductible), K14)) -> 0 | O14: =MyTimestamp(E14) -> 
A15: Extension | C15: Import Surcharges | D15: Fire | F15: 5.886e-05 | G15: TRUE | H15: TRUE | I15: FALSE | J15: FALSE | K15: 0 | L15: TRUE | M15: =IF(E15 = 0, 0, MAX(((VLOOKUP($B15, TA_NonFreeExt, 60, FALSE) * F15) * (IF(H15 = TRUE, 1 - 'Loss Limit Discount'!$D$93, 1))) * (1 - Voluntary_Deductible), K15)) -> 0 | O15: =MyTimestamp(E15) -> 
A16: Extension | C16: Property in the course of Construction | D16: Fire | F16: 5.886e-05 | G16: FALSE | H16: FALSE | I16: FALSE | J16: FALSE | K16: 0 | L16: TRUE | M16: =IF(E16 = 0, 0, MAX(((VLOOKUP($B16, TA_NonFreeExt, 60, FALSE) * F16) * (IF(H16 = TRUE, 1 - 'Loss Limit Discount'!$D$93, 1))) * (1 - Voluntary_Deductible), K16)) -> 0 | O16: =MyTimestamp(E16) ->  | P16: =IFERROR(VALUE(O16), "") -> 
A17: Extension | C17: Fire Protection System Update | D17: Fire | F17: 5.886e-05 | G17: TRUE | H17: TRUE | I17: FALSE | J17: FALSE | K17: 0 | L17: TRUE | M17: =IF(E17 = 0, 0, MAX(((VLOOKUP($B17, TA_NonFreeExt, 60, FALSE) * F17) * (IF(H17 = TRUE, 1 - 'Loss Limit Discount'!$D$93, 1))) * (1 - Voluntary_Deductible), K17)) -> 0 | O17: =MyTimestamp(E17) -> 
A18: Extension | C18: Accumulation of Motor Vehicles/Static Risk | D18: Fire | F18: =StaticRisk_Annual -> 0.00081648 | G18: FALSE | H18: FALSE | I18: FALSE | J18: FALSE | K18: =StaticRisk_AnnualMin -> 500 | L18: TRUE | M18: =IF(E18 = 0, 0, MAX(((E18 * F18) * (IF(H18 = TRUE, 1 - 'Loss Limit Discount'!$D$93, 1))) * (1 - Voluntary_Deductible), K18)) -> 0
A19: Extension | C19: Goods in the open | D19: Fire | F19: 5.886e-05 | G19: TRUE | H19: TRUE | I19: FALSE | J19: FALSE | K19: 0 | L19: TRUE | M19: =IF(E19 = 0, 0, MAX(((VLOOKUP($B19, TA_NonFreeExt, 60, FALSE) * F19) * (IF(H19 = TRUE, 1 - 'Loss Limit Discount'!$D$93, 1))) * (1 - Voluntary_Deductible), K19)) -> 0 | O19: =MyTimestamp(E19) -> 
A20: Extension | C20: Fire Extinguishing | D20: Fire | F20: 5.886e-05 | G20: TRUE | H20: TRUE | I20: FALSE | J20: FALSE | K20: 0 | L20: TRUE | M20: =IF(E20 = 0, 0, MAX(((VLOOKUP($B20, TA_NonFreeExt, 60, FALSE) * F20) * (IF(H20 = TRUE, 1 - 'Loss Limit Discount'!$D$93, 1))) * (1 - Voluntary_Deductible), K20)) -> 0 | O20: =MyTimestamp(E20) -> 
A21: Extension | C21: Imminent Danger (Protection of property prior a loss) | D21: Fire | F21: 5.886e-05 | G21: TRUE | H21: TRUE | I21: FALSE | J21: FALSE | K21: 0 | L21: FALSE | M21: =IF(E21 = 0, 0, MAX(((E21 * F21) * (IF(H21 = TRUE, 1 - 'Loss Limit Discount'!$D$93, 1))) * (1 - Voluntary_Deductible), K21)) -> 0
A22: Other Extension | B22: Other Extensions
A23: Other Extension | B23: =IFERROR(RANK($P23, $P$6:$P$65, 1), "") ->  | C23: Other | D23: Fire | F23: =$F$4 -> 5.886e-05 | G23: TRUE | H23: TRUE | I23: FALSE | J23: FALSE | K23: 0 | L23: TRUE | M23: =IF(E23 = 0, 0, MAX(((VLOOKUP($B23, TA_NonFreeExt, 60, FALSE) * F23) * (IF(H23 = TRUE, 1 - 'Loss Limit Discount'!$D$93, 1))) * (1 - Voluntary_Deductible), K23)) -> 0 | O23: =MyTimestamp(E23) ->  | P23: =IFERROR(VALUE(O23), "") -> 
A24: Other Extension | C24: Other | D24: Fire | F24: 5.886e-05 | G24: TRUE | H24: TRUE | I24: FALSE | J24: FALSE | K24: 0 | L24: TRUE | M24: =IF(E24 = 0, 0, MAX(((VLOOKUP($B24, TA_NonFreeExt, 60, FALSE) * F24) * (IF(H24 = TRUE, 1 - 'Loss Limit Discount'!$D$93, 1))) * (1 - Voluntary_Deductible), K24)) -> 0 | O24: =MyTimestamp(E24) -> 
A25: Other Extension | C25: Other | D25: Fire | F25: 5.886e-05 | G25: TRUE | H25: TRUE | I25: FALSE | J25: FALSE | K25: 0 | L25: TRUE | M25: =IF(E25 = 0, 0, MAX(((VLOOKUP($B25, TA_NonFreeExt, 60, FALSE) * F25) * (IF(H25 = TRUE, 1 - 'Loss Limit Discount'!$D$93, 1))) * (1 - Voluntary_Deductible), K25)) -> 0 | O25: =MyTimestamp(E25) -> 
A26: Other Extension | C26: Other | D26: Fire | F26: 5.886e-05 | G26: TRUE | H26: TRUE | I26: FALSE | J26: FALSE | K26: 0 | L26: TRUE | M26: =IF(E26 = 0, 0, MAX(((VLOOKUP($B26, TA_NonFreeExt, 60, FALSE) * F26) * (IF(H26 = TRUE, 1 - 'Loss Limit Discount'!$D$93, 1))) * (1 - Voluntary_Deductible), K26)) -> 0 | O26: =MyTimestamp(E26) -> 
A27: Other Extension | C27: Other | D27: Fire | F27: 5.886e-05 | G27: TRUE | H27: TRUE | I27: FALSE | J27: FALSE | K27: 0 | L27: TRUE | M27: =IF(E27 = 0, 0, MAX(((VLOOKUP($B27, TA_NonFreeExt, 60, FALSE) * F27) * (IF(H27 = TRUE, 1 - 'Loss Limit Discount'!$D$93, 1))) * (1 - Voluntary_Deductible), K27)) -> 0 | O27: =MyTimestamp(E27) -> 
A28: Other Extension | C28: Other | D28: Fire | F28: 5.886e-05 | G28: TRUE | H28: TRUE | I28: FALSE | J28: FALSE | K28: 0 | L28: TRUE | M28: =IF(E28 = 0, 0, MAX(((VLOOKUP($B28, TA_NonFreeExt, 60, FALSE) * F28) * (IF(H28 = TRUE, 1 - 'Loss Limit Discount'!$D$93, 1))) * (1 - Voluntary_Deductible), K28)) -> 0 | O28: =MyTimestamp(E28) -> 
A29: Other Extension | C29: Other | D29: Fire | F29: 5.886e-05 | G29: TRUE | H29: TRUE | I29: FALSE | J29: FALSE | K29: 0 | L29: TRUE | M29: =IF(E29 = 0, 0, MAX(((VLOOKUP($B29, TA_NonFreeExt, 60, FALSE) * F29) * (IF(H29 = TRUE, 1 - 'Loss Limit Discount'!$D$93, 1))) * (1 - Voluntary_Deductible), K29)) -> 0 | O29: =MyTimestamp(E29) -> 
A30: Other Extension | C30: Other | D30: Fire | F30: 5.886e-05 | G30: TRUE | H30: TRUE | I30: FALSE | J30: FALSE | K30: 0 | L30: TRUE | M30: =IF(E30 = 0, 0, MAX(((VLOOKUP($B30, TA_NonFreeExt, 60, FALSE) * F30) * (IF(H30 = TRUE, 1 - 'Loss Limit Discount'!$D$93, 1))) * (1 - Voluntary_Deductible), K30)) -> 0 | O30: =MyTimestamp(E30) -> 
A31: Other Extension | C31: Other | D31: Fire | F31: 5.886e-05 | G31: TRUE | H31: TRUE | I31: FALSE | J31: FALSE | K31: 0 | L31: TRUE | M31: =IF(E31 = 0, 0, MAX(((VLOOKUP($B31, TA_NonFreeExt, 60, FALSE) * F31) * (IF(H31 = TRUE, 1 - 'Loss Limit Discount'!$D$93, 1))) * (1 - Voluntary_Deductible), K31)) -> 0 | O31: =MyTimestamp(E31) -> 
A32: Other Extension | C32: Other | D32: Fire | F32: 5.886e-05 | G32: TRUE | H32: TRUE | I32: FALSE | J32: FALSE | K32: 0 | L32: TRUE | M32: =IF(E32 = 0, 0, MAX(((VLOOKUP($B32, TA_NonFreeExt, 60, FALSE) * F32) * (IF(H32 = TRUE, 1 - 'Loss Limit Discount'!$D$93, 1))) * (1 - Voluntary_Deductible), K32)) -> 0 | O32: =MyTimestamp(E32) -> 
A33: Other Extension | C33: Other | D33: Fire | F33: 5.886e-05 | G33: TRUE | H33: TRUE | I33: FALSE | J33: FALSE | K33: 0 | L33: TRUE | M33: =IF(E33 = 0, 0, MAX(((VLOOKUP($B33, TA_NonFreeExt, 60, FALSE) * F33) * (IF(H33 = TRUE, 1 - 'Loss Limit Discount'!$D$93, 1))) * (1 - Voluntary_Deductible), K33)) -> 0 | O33: =MyTimestamp(E33) -> 
A34: Other Extension | C34: Other | D34: Fire | F34: 5.886e-05 | G34: TRUE | H34: TRUE | I34: FALSE | J34: FALSE | K34: 0 | L34: TRUE | M34: =IF(E34 = 0, 0, MAX(((VLOOKUP($B34, TA_NonFreeExt, 60, FALSE) * F34) * (IF(H34 = TRUE, 1 - 'Loss Limit Discount'!$D$93, 1))) * (1 - Voluntary_Deductible), K34)) -> 0 | O34: =MyTimestamp(E34) -> 
A35: Other Extension | C35: Other | D35: Fire | F35: 5.886e-05 | G35: TRUE | H35: TRUE | I35: FALSE | J35: FALSE | K35: 0 | L35: TRUE | M35: =IF(E35 = 0, 0, MAX(((VLOOKUP($B35, TA_NonFreeExt, 60, FALSE) * F35) * (IF(H35 = TRUE, 1 - 'Loss Limit Discount'!$D$93, 1))) * (1 - Voluntary_Deductible), K35)) -> 0 | O35: =MyTimestamp(E35) -> 
A36: Other Extension | C36: Other | D36: Fire | F36: 5.886e-05 | G36: TRUE | H36: TRUE | I36: FALSE | J36: FALSE | K36: 0 | L36: TRUE | M36: =IF(E36 = 0, 0, MAX(((VLOOKUP($B36, TA_NonFreeExt, 60, FALSE) * F36) * (IF(H36 = TRUE, 1 - 'Loss Limit Discount'!$D$93, 1))) * (1 - Voluntary_Deductible), K36)) -> 0 | O36: =MyTimestamp(E36) -> 
A37: Other Extension | C37: Other | D37: Fire | F37: 5.886e-05 | G37: TRUE | H37: TRUE | I37: FALSE | J37: FALSE | K37: 0 | L37: TRUE | M37: =IF(E37 = 0, 0, MAX(((VLOOKUP($B37, TA_NonFreeExt, 60, FALSE) * F37) * (IF(H37 = TRUE, 1 - 'Loss Limit Discount'!$D$93, 1))) * (1 - Voluntary_Deductible), K37)) -> 0 | O37: =MyTimestamp(E37) -> 
A38: Other Extension | C38: Other | D38: Fire | F38: 5.886e-05 | G38: TRUE | H38: TRUE | I38: FALSE | J38: FALSE | K38: 0 | L38: TRUE | M38: =IF(E38 = 0, 0, MAX(((VLOOKUP($B38, TA_NonFreeExt, 60, FALSE) * F38) * (IF(H38 = TRUE, 1 - 'Loss Limit Discount'!$D$93, 1))) * (1 - Voluntary_Deductible), K38)) -> 0 | O38: =MyTimestamp(E38) -> 
A39: Other Extension | C39: Other | D39: Fire | F39: 5.886e-05 | G39: TRUE | H39: TRUE | I39: FALSE | J39: FALSE | K39: 0 | L39: TRUE | M39: =IF(E39 = 0, 0, MAX(((VLOOKUP($B39, TA_NonFreeExt, 60, FALSE) * F39) * (IF(H39 = TRUE, 1 - 'Loss Limit Discount'!$D$93, 1))) * (1 - Voluntary_Deductible), K39)) -> 0 | O39: =MyTimestamp(E39) -> 
A40: Other Extension | C40: Other | D40: Fire | F40: 5.886e-05 | G40: TRUE | H40: TRUE | I40: FALSE | J40: FALSE | K40: 0 | L40: TRUE | M40: =IF(E40 = 0, 0, MAX(((VLOOKUP($B40, TA_NonFreeExt, 60, FALSE) * F40) * (IF(H40 = TRUE, 1 - 'Loss Limit Discount'!$D$93, 1))) * (1 - Voluntary_Deductible), K40)) -> 0 | O40: =MyTimestamp(E40) -> 
A41: Other Extension | C41: Other | D41: Fire | F41: 5.886e-05 | G41: TRUE | H41: TRUE | I41: FALSE | J41: FALSE | K41: 0 | L41: TRUE | M41: =IF(E41 = 0, 0, MAX(((VLOOKUP($B41, TA_NonFreeExt, 60, FALSE) * F41) * (IF(H41 = TRUE, 1 - 'Loss Limit Discount'!$D$93, 1))) * (1 - Voluntary_Deductible), K41)) -> 0 | O41: =MyTimestamp(E41) -> 
A42: Other Extension | C42: Other | D42: Fire | F42: 5.886e-05 | G42: TRUE | H42: TRUE | I42: FALSE | J42: FALSE | K42: 0 | L42: TRUE | M42: =IF(E42 = 0, 0, MAX(((VLOOKUP($B42, TA_NonFreeExt, 60, FALSE) * F42) * (IF(H42 = TRUE, 1 - 'Loss Limit Discount'!$D$93, 1))) * (1 - Voluntary_Deductible), K42)) -> 0 | O42: =MyTimestamp(E42) -> 
A43: Other Extension | C43: Other | D43: Fire | F43: 5.886e-05 | G43: TRUE | H43: TRUE | I43: FALSE | J43: FALSE | K43: 0 | L43: TRUE | M43: =IF(E43 = 0, 0, MAX(((VLOOKUP($B43, TA_NonFreeExt, 60, FALSE) * F43) * (IF(H43 = TRUE, 1 - 'Loss Limit Discount'!$D$93, 1))) * (1 - Voluntary_Deductible), K43)) -> 0 | O43: =MyTimestamp(E43) -> 
A44: Other Extension | C44: Other | D44: Fire | F44: 5.886e-05 | G44: TRUE | H44: TRUE | I44: FALSE | J44: FALSE | K44: 0 | L44: TRUE | M44: =IF(E44 = 0, 0, MAX(((VLOOKUP($B44, TA_NonFreeExt, 60, FALSE) * F44) * (IF(H44 = TRUE, 1 - 'Loss Limit Discount'!$D$93, 1))) * (1 - Voluntary_Deductible), K44)) -> 0 | O44: =MyTimestamp(E44) -> 
A45: Other Extension | C45: Other | D45: Fire | F45: 5.886e-05 | G45: TRUE | H45: TRUE | I45: FALSE | J45: FALSE | K45: 0 | L45: TRUE | M45: =IF(E45 = 0, 0, MAX(((VLOOKUP($B45, TA_NonFreeExt, 60, FALSE) * F45) * (IF(H45 = TRUE, 1 - 'Loss Limit Discount'!$D$93, 1))) * (1 - Voluntary_Deductible), K45)) -> 0 | O45: =MyTimestamp(E45) -> 
A46: Other Extension | C46: Other | D46: Fire | F46: 5.886e-05 | G46: TRUE | H46: TRUE | I46: FALSE | J46: FALSE | K46: 0 | L46: TRUE | M46: =IF(E46 = 0, 0, MAX(((VLOOKUP($B46, TA_NonFreeExt, 60, FALSE) * F46) * (IF(H46 = TRUE, 1 - 'Loss Limit Discount'!$D$93, 1))) * (1 - Voluntary_Deductible), K46)) -> 0 | O46: =MyTimestamp(E46) -> 
A47: Other Extension | C47: Other | D47: Fire | F47: 5.886e-05 | G47: TRUE | H47: TRUE | I47: FALSE | J47: FALSE | K47: 0 | L47: TRUE | M47: =IF(E47 = 0, 0, MAX(((VLOOKUP($B47, TA_NonFreeExt, 60, FALSE) * F47) * (IF(H47 = TRUE, 1 - 'Loss Limit Discount'!$D$93, 1))) * (1 - Voluntary_Deductible), K47)) -> 0 | O47: =MyTimestamp(E47) -> 
A48: Other Extension | C48: Other | D48: Fire | F48: 5.886e-05 | G48: TRUE | H48: TRUE | I48: FALSE | J48: FALSE | K48: 0 | L48: TRUE | M48: =IF(E48 = 0, 0, MAX(((VLOOKUP($B48, TA_NonFreeExt, 60, FALSE) * F48) * (IF(H48 = TRUE, 1 - 'Loss Limit Discount'!$D$93, 1))) * (1 - Voluntary_Deductible), K48)) -> 0 | O48: =MyTimestamp(E48) -> 
A49: Other Extension | C49: Other | D49: Fire | F49: 5.886e-05 | G49: TRUE | H49: TRUE | I49: FALSE | J49: FALSE | K49: 0 | L49: TRUE | M49: =IF(E49 = 0, 0, MAX(((VLOOKUP($B49, TA_NonFreeExt, 60, FALSE) * F49) * (IF(H49 = TRUE, 1 - 'Loss Limit Discount'!$D$93, 1))) * (1 - Voluntary_Deductible), K49)) -> 0 | O49: =MyTimestamp(E49) -> 
A50: Other Extension | C50: Other | D50: Fire | F50: 5.886e-05 | G50: TRUE | H50: TRUE | I50: FALSE | J50: FALSE | K50: 0 | L50: TRUE | M50: =IF(E50 = 0, 0, MAX(((VLOOKUP($B50, TA_NonFreeExt, 60, FALSE) * F50) * (IF(H50 = TRUE, 1 - 'Loss Limit Discount'!$D$93, 1))) * (1 - Voluntary_Deductible), K50)) -> 0 | O50: =MyTimestamp(E50) -> 
A51: Other Extension | C51: Other | D51: Fire | F51: 5.886e-05 | G51: TRUE | H51: TRUE | I51: FALSE | J51: FALSE | K51: 0 | L51: TRUE | M51: =IF(E51 = 0, 0, MAX(((VLOOKUP($B51, TA_NonFreeExt, 60, FALSE) * F51) * (IF(H51 = TRUE, 1 - 'Loss Limit Discount'!$D$93, 1))) * (1 - Voluntary_Deductible), K51)) -> 0 | O51: =MyTimestamp(E51) -> 
A52: Other Extension | C52: Other | D52: Fire | F52: 5.886e-05 | G52: TRUE | H52: TRUE | I52: FALSE | J52: FALSE | K52: 0 | L52: TRUE | M52: =IF(E52 = 0, 0, MAX(((VLOOKUP($B52, TA_NonFreeExt, 60, FALSE) * F52) * (IF(H52 = TRUE, 1 - 'Loss Limit Discount'!$D$93, 1))) * (1 - Voluntary_Deductible), K52)) -> 0 | O52: =MyTimestamp(E52) -> 
A53: Escalation | B53: Escalation and or Inflation
A54: Escalation UL | B54: Charge on U/L
A55: Escalation UL | B55: =IFERROR(RANK($P55, $P$6:$P$65, 1), "") ->  | C55: First Year (90-100%) | D55: Fire | F55: =IF(C55 = "", 0, VLOOKUP(C55, Escalation!$H$163:$I$207, 2, FALSE)) -> 5.886e-05 | G55: FALSE | H55: TRUE | I55: FALSE | J55: FALSE | K55: 0 | M55: =IF(E55 = 0, 0, MAX(((VLOOKUP($B55, TA_NonFreeExt, 60, FALSE) * F55) * (IF(H55 = TRUE, 1 - 'Loss Limit Discount'!$D$93, 1))) * (1 - Voluntary_Deductible), K55)) -> 0 | O55: =MyTimestamp(E55) ->  | P55: =IFERROR(VALUE(O55), "") -> 
A56: Escalation UL | C56: Second Year (90-100%) | D56: Fire | F56: =IF(C56 = "", 0, VLOOKUP(C56, Escalation!$H$163:$I$207, 2, FALSE)) -> 2.943e-05 | G56: FALSE | H56: TRUE | I56: FALSE | J56: FALSE | K56: 0 | M56: =IF(E56 = 0, 0, MAX(((VLOOKUP($B56, TA_NonFreeExt, 60, FALSE) * F56) * (IF(H56 = TRUE, 1 - 'Loss Limit Discount'!$D$93, 1))) * (1 - Voluntary_Deductible), K56)) -> 0 | O56: =MyTimestamp(E56) -> 
A57: Escalation UL | C57: Third Year (90-100%) | D57: Fire | F57: =IF(C57 = "", 0, VLOOKUP(C57, Escalation!$H$163:$I$207, 2, FALSE)) -> 1.4715e-05 | G57: FALSE | H57: TRUE | I57: FALSE | J57: FALSE | K57: 0 | M57: =IF(E57 = 0, 0, MAX(((VLOOKUP($B57, TA_NonFreeExt, 60, FALSE) * F57) * (IF(H57 = TRUE, 1 - 'Loss Limit Discount'!$D$93, 1))) * (1 - Voluntary_Deductible), K57)) -> 0 | O57: =MyTimestamp(E57) -> 
A58: Escalation UL | C58: Fourth Year (90-100%) | D58: Fire | F58: =IF(C58 = "", 0, VLOOKUP(C58, Escalation!$H$163:$I$207, 2, FALSE)) -> 1.1772e-05 | G58: FALSE | H58: TRUE | I58: FALSE | J58: FALSE | K58: 0 | M58: =IF(E58 = 0, 0, MAX(((VLOOKUP($B58, TA_NonFreeExt, 60, FALSE) * F58) * (IF(H58 = TRUE, 1 - 'Loss Limit Discount'!$D$93, 1))) * (1 - Voluntary_Deductible), K58)) -> 0 | O58: =MyTimestamp(E58) -> 
A59: Escalation UL | C59: Fifth Year (90-100%) | D59: Fire | F59: =IF(C59 = "", 0, VLOOKUP(C59, Escalation!$H$163:$I$207, 2, FALSE)) -> 8.829e-06 | G59: FALSE | H59: TRUE | I59: FALSE | J59: FALSE | K59: 0 | M59: =IF(E59 = 0, 0, MAX(((VLOOKUP($B59, TA_NonFreeExt, 60, FALSE) * F59) * (IF(H59 = TRUE, 1 - 'Loss Limit Discount'!$D$93, 1))) * (1 - Voluntary_Deductible), K59)) -> 0 | O59: =MyTimestamp(E59) -> 
A60: Escalation Not UL | B60: Not Charge on U/L
A61: Escalation Not UL | B61: =IFERROR(RANK($P61, $P$6:$P$65, 1), "") ->  | C61: First Year | D61: Fire | F61: =$F$4 -> 5.886e-05 | G61: FALSE | H61: TRUE | I61: FALSE | J61: FALSE | K61: 0 | M61: =IF(E61 = 0, 0, MAX(((VLOOKUP($B61, TA_NonFreeExt, 60, FALSE) * F61) * (IF(H61 = TRUE, 1 - 'Loss Limit Discount'!$D$93, 1))) * (1 - Voluntary_Deductible), K61)) -> 0 | O61: =MyTimestamp(E61) ->  | P61: =IFERROR(VALUE(O61), "") -> 
A62: Escalation Not UL | C62: Second Year | D62: Fire | F62: =$F$4 * 0.5 -> 2.943e-05 | G62: FALSE | H62: TRUE | I62: FALSE | J62: FALSE | K62: 0 | M62: =IF(E62 = 0, 0, MAX(((VLOOKUP($B62, TA_NonFreeExt, 60, FALSE) * F62) * (IF(H62 = TRUE, 1 - 'Loss Limit Discount'!$D$93, 1))) * (1 - Voluntary_Deductible), K62)) -> 0 | O62: =MyTimestamp(E62) -> 
A63: Escalation Not UL | C63: Third Year | D63: Fire | F63: =$F$4 * 0.25 -> 1.4715e-05 | G63: FALSE | H63: TRUE | I63: FALSE | J63: FALSE | K63: 0 | M63: =IF(E63 = 0, 0, MAX(((VLOOKUP($B63, TA_NonFreeExt, 60, FALSE) * F63) * (IF(H63 = TRUE, 1 - 'Loss Limit Discount'!$D$93, 1))) * (1 - Voluntary_Deductible), K63)) -> 0 | O63: =MyTimestamp(E63) -> 
A64: Escalation Not UL | C64: Fourth Year | D64: Fire | F64: =$F$4 * 0.2 -> 1.1772e-05 | G64: FALSE | H64: TRUE | I64: FALSE | J64: FALSE | K64: 0 | M64: =IF(E64 = 0, 0, MAX(((VLOOKUP($B64, TA_NonFreeExt, 60, FALSE) * F64) * (IF(H64 = TRUE, 1 - 'Loss Limit Discount'!$D$93, 1))) * (1 - Voluntary_Deductible), K64)) -> 0 | O64: =MyTimestamp(E64) -> 
A65: Escalation Not UL | C65: Fifth Year | D65: Fire | F65: =$F$4 * 0.15 -> 8.829e-06 | G65: FALSE | H65: TRUE | I65: FALSE | J65: FALSE | K65: 0 | M65: =IF(E65 = 0, 0, MAX(((VLOOKUP($B65, TA_NonFreeExt, 60, FALSE) * F65) * (IF(H65 = TRUE, 1 - 'Loss Limit Discount'!$D$93, 1))) * (1 - Voluntary_Deductible), K65)) -> 0 | O65: =MyTimestamp(E65) -> 
B67: Business Interruption
B68: Specified Standing Charges
A69: Business Interruption | B69: SC | C69: 12 Months | D69: Standing Charges | F69: =_xlfn.IFNA(VLOOKUP(C69, Metadata!$H$2:$I$8, 2, FALSE),0) -> 4.901e-05 | G69: TRUE | H69: TRUE | I69: FALSE | J69: FALSE | K69: =BI1_12M_AnnualMin -> 50 | L69: FALSE | M69: =IF(E69 = 0, 0, MAX((E69 * F69) * (IF(H69 = TRUE, 1 - 'Loss Limit Discount'!$D$93, 1)) * (IF(J69 = TRUE, 1 - 'Contract Works Discount'!$D$11, 1) * (1 - Voluntary_Deductible) * (1 - Co_insurance)), K69)) -> 0
A70: Business Interruption | B70: AICOW | C70: Additional Increase In Cost Of Working | D70: Standing Charges | F70: =F69 * 1.5 -> 7.3515e-05 | G70: TRUE | H70: TRUE | I70: FALSE | J70: FALSE | K70: 0 | L70: FALSE | M70: =IF(E70 = 0, 0, MAX((E70 * F70) * (IF(H70 = TRUE, 1 - 'Loss Limit Discount'!$D$93, 1)) * (IF(J70 = TRUE, 1 - 'Contract Works Discount'!$D$11, 1) * (1 - Voluntary_Deductible) * (1 - Co_insurance)), K70)) -> 0
B71: Working Expenses
A72: Business Interruption | B72: WE | C72: 12 Months | D72: Working Expenses | F72: =_xlfn.IFNA(VLOOKUP(C72, Metadata!$H$10:$I$16, 2, FALSE),0) -> 4.901e-05 | G72: TRUE | H72: TRUE | I72: FALSE | J72: FALSE | K72: =BI1_12M_AnnualMin -> 50 | L72: FALSE | M72: =IF(E72 = 0, 0, MAX((E72 * F72) * (IF(H72 = TRUE, 1 - 'Loss Limit Discount'!$D$93, 1)) * (IF(J72 = TRUE, 1 - 'Contract Works Discount'!$D$11, 1) * (1 - Voluntary_Deductible) * (1 - Co_insurance)), K72)) -> 0
A73: Business Interruption | B73: AICOW | C73: Additional Increase In Cost Of Working | D73: Working Expenses | F73: =F72 * 1.5 -> 7.3515e-05 | G73: TRUE | H73: TRUE | I73: FALSE | J73: FALSE | K73: 0 | L73: FALSE | M73: =IF(E73 = 0, 0, MAX((E73 * F73) * (IF(H73 = TRUE, 1 - 'Loss Limit Discount'!$D$93, 1)) * (IF(J73 = TRUE, 1 - 'Contract Works Discount'!$D$11, 1) * (1 - Voluntary_Deductible) * (1 - Co_insurance)), K73)) -> 0
B74: Revenue
A75: Business Interruption | B75: R | C75: 12 Months | D75: Revenue | F75: =_xlfn.IFNA(VLOOKUP(C75, Metadata!$H$34:$I$40, 2, FALSE),0) -> 4.901e-05 | G75: TRUE | H75: TRUE | I75: FALSE | J75: FALSE | K75: =BI1_12M_AnnualMin -> 50 | L75: FALSE | M75: =IF(E75 = 0, 0, MAX((E75 * F75) * (IF(H75 = TRUE, 1 - 'Loss Limit Discount'!$D$93, 1)) * (IF(J75 = TRUE, 1 - 'Contract Works Discount'!$D$11, 1) * (1 - Voluntary_Deductible) * (1 - Co_insurance)), K75)) -> 0
A76: Business Interruption | B76: AICOW | C76: Additional Increase In Cost Of Working | D76: Revenue | F76: =F75 * 1.5 -> 7.3515e-05 | G76: TRUE | H76: TRUE | I76: FALSE | J76: FALSE | K76: 0 | L76: FALSE | M76: =IF(E76 = 0, 0, MAX((E76 * F76) * (IF(H76 = TRUE, 1 - 'Loss Limit Discount'!$D$93, 1)) * (IF(J76 = TRUE, 1 - 'Contract Works Discount'!$D$11, 1) * (1 - Voluntary_Deductible) * (1 - Co_insurance)), K76)) -> 0
B77: Net Profit
A78: Business Interruption | B78: NP | C78: 12 Months | D78: Net Profit | F78: =_xlfn.IFNA(VLOOKUP(C78, Metadata!$H$18:$I$24, 2, FALSE),0) -> 4.901e-05 | G78: TRUE | H78: TRUE | I78: FALSE | J78: FALSE | K78: =BI1_12M_AnnualMin -> 50 | L78: FALSE | M78: =IF(E78 = 0, 0, MAX((E78 * F78) * (IF(H78 = TRUE, 1 - 'Loss Limit Discount'!$D$93, 1)) * (IF(J78 = TRUE, 1 - 'Contract Works Discount'!$D$11, 1) * (1 - Voluntary_Deductible) * (1 - Co_insurance)), K78)) -> 0
A79: Business Interruption | B79: AICOW | C79: Additional Increase In Cost Of Working | D79: Net Profit | F79: =F78 * 1.5 -> 7.3515e-05 | G79: TRUE | H79: TRUE | I79: FALSE | J79: FALSE | K79: 0 | L79: FALSE | M79: =IF(E79 = 0, 0, MAX((E79 * F79) * (IF(H79 = TRUE, 1 - 'Loss Limit Discount'!$D$93, 1)) * (IF(J79 = TRUE, 1 - 'Contract Works Discount'!$D$11, 1) * (1 - Voluntary_Deductible) * (1 - Co_insurance)), K79)) -> 0
B80: Gross Profit
A81: Business Interruption | B81: GP | C81: 12 Months | D81: Gross Profit | F81: =_xlfn.IFNA(VLOOKUP(C81, Metadata!$H$26:$I$32, 2, FALSE),0) -> 4.901e-05 | G81: TRUE | H81: TRUE | I81: FALSE | J81: FALSE | K81: =BI1_12M_AnnualMin -> 50 | L81: FALSE | M81: =IF(E81 = 0, 0, MAX((E81 * F81) * (IF(H81 = TRUE, 1 - 'Loss Limit Discount'!$D$93, 1)) * (IF(J81 = TRUE, 1 - 'Contract Works Discount'!$D$11, 1) * (1 - Voluntary_Deductible) * (1 - Co_insurance)), K81)) -> 0
A82: Business Interruption | B82: AICOW | C82: Additional Increase In Cost Of Working | D82: Gross Profit | F82: =F81 * 1.5 -> 7.3515e-05 | G82: TRUE | H82: TRUE | I82: FALSE | J82: FALSE | K82: 0 | L82: FALSE | M82: =IF(E82 = 0, 0, MAX((E82 * F82) * (IF(H82 = TRUE, 1 - 'Loss Limit Discount'!$D$93, 1)) * (IF(J82 = TRUE, 1 - 'Contract Works Discount'!$D$11, 1) * (1 - Voluntary_Deductible) * (1 - Co_insurance)), K82)) -> 0
B85: Motor
A86: Motor | B86: M1 | C86: Cars (Primary use: Domestic/Private) | D86: Motor | F86: =M1_Annual -> 26.23 | G86: FALSE | H86: FALSE | I86: FALSE | J86: FALSE | K86: =M1_AnnualMin -> 26.23 | L86: FALSE | M86: =IF(E86 = 0, 0, MAX((F86 * E86) * (IF(H86 = TRUE, 1 - 'Loss Limit Discount'!$L$65, 1)) * (IF(J86 = TRUE, 1 - 'Contract Works Discount'!$D$11, 1) ), K86 * E86)) -> 0
A87: Motor | B87: M2 | C87: Light Commercial Vehicles (3500kg GVM or less) | D87: Motor | F87: =M2_Annual -> 0.00070621 | G87: FALSE | H87: FALSE | I87: FALSE | J87: FALSE | K87: =M2_AnnualMin -> 45.39 | L87: FALSE | M87: =IF(E87 = 0, 0, MAX((E87 * F87) * (IF(H87 = TRUE, 1 - 'Loss Limit Discount'!$D$93, 1)) * (IF(J87 = TRUE, 1 - 'Contract Works Discount'!$D$11, 1) ), K87)) -> 0
A88: Motor | B88: M3 | C88: Taxis | D88: Motor | F88: =M3_Annual -> 0.00035353 | G88: FALSE | H88: FALSE | I88: FALSE | J88: FALSE | K88: =M3_AnnualMin -> 45.39 | L88: FALSE | M88: =IF(E88 = 0, 0, MAX((E88 * F88) * (IF(H88 = TRUE, 1 - 'Loss Limit Discount'!$D$93, 1)) * (IF(J88 = TRUE, 1 - 'Contract Works Discount'!$D$11, 1) ), K88)) -> 0
A89: Motor | B89: M4 | C89: Ferries & Traders | D89: Motor | F89: =M4_Annual -> 8.68e-05 | G89: FALSE | H89: FALSE | I89: FALSE | J89: FALSE | K89: =M4_AnnualMin -> 100 | L89: FALSE | M89: =IF(E89 = 0, 0, MAX((E89 * F89) * (IF(H89 = TRUE, 1 - 'Loss Limit Discount'!$D$93, 1)) * (IF(J89 = TRUE, 1 - 'Contract Works Discount'!$L$11, 1) ), K89)) -> 0
A90: Motor | B90: M5 | C90: Buses | D90: Motor | F90: =M5_Annual -> 0.00751433 | G90: FALSE | H90: FALSE | I90: FALSE | J90: FALSE | K90: =M5_AnnualMin -> 2000 | L90: FALSE | M90: =IF(E90 = 0, 0, MAX((E90 * F90) * (IF(H90 = TRUE, 1 - 'Loss Limit Discount'!$D$93, 1)) * (IF(J90 = TRUE, 1 - 'Contract Works Discount'!$D$11, 1) ), K90)) -> 0
A91: Motor | B91: M6 | C91: Mobile Plant | D91: Motor | F91: =M6_Annual -> 0.00113256 | G91: FALSE | H91: FALSE | I91: FALSE | J91: FALSE | K91: =M6_AnnualMin -> 500 | L91: FALSE | M91: =IF(E91 = 0, 0, MAX((E91 * F91) * (IF(H91 = TRUE, 1 - 'Loss Limit Discount'!$D$93, 1)) * (IF(J91 = TRUE, 1 - 'Contract Works Discount'!$D$11, 1) ), K91)) -> 0
A92: Motor | B92: M8 | C92: Heavy Commercial Vehicles (>3500kg GVM) | D92: Motor | F92: =M8_Annual -> 0.00396816 | G92: FALSE | H92: FALSE | I92: FALSE | J92: FALSE | K92: =M8_AnnualMin -> 54.47 | L92: FALSE | M92: =IF(E92 = 0, 0, MAX((E92 * F92) * (IF(H92 = TRUE, 1 - 'Loss Limit Discount'!$D$93, 1)) * (IF(J92 = TRUE, 1 - 'Contract Works Discount'!$L$11, 1) * (1 - Voluntary_Deductible_M8) * (1 - Co_insurance_M8)), K92)) -> 0
B94: Contract Work / Construction Plant
B95: Contract Works
A96: Contract Works | B96: CW | C96: =Input!$I$16 -> Open | D96: Contract Works | F96: =CW_OnWorks_Annual -> 0.00011326 | G96: FALSE | H96: FALSE | I96: TRUE | J96: TRUE | K96: =CW_OnWorks_AnnualMin -> 500 | L96: FALSE | M96: =IF(E96 = 0, 0, MAX((E96 * F96) * (IF(H96 = TRUE, 1 - 'Loss Limit Discount'!$D$93, 1)) * (IF(J96 = TRUE, 1 - 'Contract Works Discount'!$D$102, 1) * (1 - Voluntary_Deductible) * (1 - Co_insurance)), K96)) -> 0
B97: Construction plant
A98: Contract Works | B98: CW | C98: On Fee Basis | D98: Contract Works | F98: =CW_OnFees_Annual -> 0.0038376 | G98: FALSE | H98: FALSE | I98: FALSE | J98: FALSE | K98: =CW_OnFees_AnnualMin -> 500 | L98: FALSE | M98: =IF(E98 = 0, 0, MAX((E98 * F98) * (IF(H98 = TRUE, 1 - 'Loss Limit Discount'!$D$93, 1)) * (IF(J98 = TRUE, 1 - 'Contract Works Discount'!$D$102, 1) * (1 - Voluntary_Deductible) * (1 - Co_insurance)), K98)) -> 0
A99: Contract Works | B99: CW | C99: On Value Basis | D99: Contract Works | F99: =CW_OnValue_Annual -> 0.00113256 | G99: FALSE | H99: FALSE | I99: FALSE | J99: FALSE | K99: =CW_OnValue_AnnualMin -> 500 | L99: FALSE | M99: =IF(E99 = 0, 0, MAX((E99 * F99) * (IF(H99 = TRUE, 1 - 'Loss Limit Discount'!$D$93, 1)) * (IF(J99 = TRUE, 1 - 'Contract Works Discount'!$D$102, 1) * (1 - Voluntary_Deductible) * (1 - Co_insurance)), K99)) -> 0
B100: Mobile plant
A101: Contract Works | B101: CW | C101: On Value Basis | D101: Contract Works | F101: =F99 -> 0.00113256 | G101: FALSE | H101: FALSE | I101: FALSE | J101: FALSE | K101: =CW_OnValue_AnnualMin -> 500 | L101: FALSE | M101: =IF(E101 = 0, 0, MAX((E101 * F101) * (IF(H101 = TRUE, 1 - 'Loss Limit Discount'!$D$93, 1)) * (IF(J101 = TRUE, 1 - 'Contract Works Discount'!$D$102, 1) * (1 - Voluntary_Deductible) * (1 - Co_insurance)), K101)) -> 0

Sheet Commercial - Monthly
A1: Commercial - Monthly | O1: Cells with green borders have a drop-down selection!
A2: Category | B2: Code | C2: Description | D2: Total Code | E2: Sum Insured/No. of insured items | F2: Rate | G2: Add To Sum Insured Discount | H2: Receive Sum Insured Discount | I2: Add To CW Discount | J2: Receive CW Discount | K2: Minimum Premium | L2: Has Fire Extension Discount | M2: Premium
B3: Fire
A4: Commercial Fire | B4: F2 | C4: Commercial Fire | D4: Fire | F4: =F2_Monthly -> 3.923e-05 | G4: TRUE | H4: TRUE | I4: FALSE | J4: FALSE | K4: =F2O_MonthlyMin -> 50 | L4: FALSE | M4: =IF(E4 = 0, 0, MAX(((E4 * F4) * (IF(H4 = TRUE, 1 - 'Loss Limit Discount'!$D$93, 1))) * (1 - Voluntary_Deductible) * (1 - Co_insurance), K4)) -> 0
A5: Commercial Fire | B5: F4 | C5: Fire - SME | D5: Fire | F5: =_xlfn.IFNA(VLOOKUP(E5, Metadata!$L$43:$M$46, 2, FALSE), 0) -> 0 | G5: FALSE | H5: FALSE | I5: FALSE | J5: FALSE | K5: =F5 -> 0 | M5: =F5 -> 0
A6: Extension | B6: Sasria Extensions
A7: Extension | B7: =IFERROR(RANK($P7, $P$7:$P$66, 1), "") ->  | C7: Rent | D7: Fire | F7: =$F$4 -> 3.923e-05 | G7: TRUE | H7: TRUE | I7: FALSE | J7: FALSE | K7: 0 | L7: TRUE | M7: =IF(E7 = 0, 0, MAX(((VLOOKUP($B7, CM_NonFreeExt, 60, FALSE) * F7) * (IF(H7 = TRUE, 1 - 'Loss Limit Discount'!$D$93, 1))) * (1 - Voluntary_Deductible), K7)) -> 0 | O7: =MyTimestamp(E7) ->  | P7: =IFERROR(VALUE(O7), "") -> 
A8: Extension | C8: Claims Preparation Costs | D8: Fire | F8: =$F$4 -> 3.923e-05 | G8: TRUE | H8: TRUE | I8: FALSE | J8: FALSE | K8: 0 | L8: TRUE | M8: =IF(E8 = 0, 0, MAX(((VLOOKUP($B8, CM_NonFreeExt, 60, FALSE) * F8) * (IF(H8 = TRUE, 1 - 'Loss Limit Discount'!$D$93, 1))) * (1 - Voluntary_Deductible), K8)) -> 0 | O8: =MyTimestamp(E8) ->  | P8: =IFERROR(VALUE(O8), "") -> 
A9: Extension | C9: Capital Additions | D9: Fire | F9: 3.923e-05 | G9: TRUE | H9: TRUE | I9: FALSE | J9: FALSE | K9: 0 | L9: TRUE | M9: =IF(E9 = 0, 0, MAX(((VLOOKUP($B9, CM_NonFreeExt, 60, FALSE) * F9) * (IF(H9 = TRUE, 1 - 'Loss Limit Discount'!$D$93, 1))) * (1 - Voluntary_Deductible), K9)) -> 0 | O9: =MyTimestamp(E9) -> 
A10: Extension | C10: Professional fees | D10: Fire | F10: 3.923e-05 | G10: TRUE | H10: TRUE | I10: FALSE | J10: FALSE | K10: 0 | L10: TRUE | M10: =IF(E10 = 0, 0, MAX(((VLOOKUP($B10, CM_NonFreeExt, 60, FALSE) * F10) * (IF(H10 = TRUE, 1 - 'Loss Limit Discount'!$D$93, 1))) * (1 - Voluntary_Deductible), K10)) -> 0 | O10: =MyTimestamp(E10) -> 
A11: Extension | C11: Clearance costs | D11: Fire | F11: 3.923e-05 | G11: TRUE | H11: TRUE | I11: FALSE | J11: FALSE | K11: 0 | L11: TRUE | M11: =IF(E11 = 0, 0, MAX(((VLOOKUP($B11, CM_NonFreeExt, 60, FALSE) * F11) * (IF(H11 = TRUE, 1 - 'Loss Limit Discount'!$D$93, 1))) * (1 - Voluntary_Deductible), K11)) -> 0 | O11: =MyTimestamp(E11) -> 
A12: Extension | C12: Security Costs (During and after a loss) | D12: Fire | F12: 3.923e-05 | G12: TRUE | H12: TRUE | I12: FALSE | J12: FALSE | K12: 0 | L12: TRUE | M12: =IF(E12 = 0, 0, MAX(((VLOOKUP($B12, CM_NonFreeExt, 60, FALSE) * F12) * (IF(H12 = TRUE, 1 - 'Loss Limit Discount'!$D$93, 1))) * (1 - Voluntary_Deductible), K12)) -> 0 | O12: =MyTimestamp(E12) -> 
A13: Extension | C13: Statutory Duties | D13: Fire | F13: 3.923e-05 | G13: TRUE | H13: TRUE | I13: FALSE | J13: FALSE | K13: 0 | L13: TRUE | M13: =IF(E13 = 0, 0, MAX(((VLOOKUP($B13, CM_NonFreeExt, 60, FALSE) * F13) * (IF(H13 = TRUE, 1 - 'Loss Limit Discount'!$D$93, 1))) * (1 - Voluntary_Deductible), K13)) -> 0 | O13: =MyTimestamp(E13) -> 
A14: Extension | C14: Additional Premises | D14: Fire | F14: 3.923e-05 | G14: TRUE | H14: TRUE | I14: FALSE | J14: FALSE | K14: 0 | L14: TRUE | M14: =IF(E14 = 0, 0, MAX(((VLOOKUP($B14, CM_NonFreeExt, 60, FALSE) * F14) * (IF(H14 = TRUE, 1 - 'Loss Limit Discount'!$D$93, 1))) * (1 - Voluntary_Deductible), K14)) -> 0 | O14: =MyTimestamp(E14) -> 
A15: Extension | C15: Acquisitions | D15: Fire | F15: 3.923e-05 | G15: TRUE | H15: TRUE | I15: FALSE | J15: FALSE | K15: 0 | L15: TRUE | M15: =IF(E15 = 0, 0, MAX(((VLOOKUP($B15, CM_NonFreeExt, 60, FALSE) * F15) * (IF(H15 = TRUE, 1 - 'Loss Limit Discount'!$D$93, 1))) * (1 - Voluntary_Deductible), K15)) -> 0 | O15: =MyTimestamp(E15) -> 
A16: Extension | C16: Import Surcharges | D16: Fire | F16: 3.923e-05 | G16: TRUE | H16: TRUE | I16: FALSE | J16: FALSE | K16: 0 | L16: TRUE | M16: =IF(E16 = 0, 0, MAX(((VLOOKUP($B16, CM_NonFreeExt, 60, FALSE) * F16) * (IF(H16 = TRUE, 1 - 'Loss Limit Discount'!$D$93, 1))) * (1 - Voluntary_Deductible), K16)) -> 0 | O16: =MyTimestamp(E16) -> 
A17: Extension | C17: Property in the course of Construction | D17: Fire | F17: 3.923e-05 | G17: FALSE | H17: FALSE | I17: FALSE | J17: FALSE | K17: 0 | L17: TRUE | M17: =IF(E17 = 0, 0, MAX(((VLOOKUP($B17, CM_NonFreeExt, 60, FALSE) * F17) * (IF(H17 = TRUE, 1 - 'Loss Limit Discount'!$D$93, 1))) * (1 - Voluntary_Deductible), K17)) -> 0 | O17: =MyTimestamp(E17) ->  | P17: =IFERROR(VALUE(O17), "") -> 
A18: Extension | C18: Fire Protection System Update | D18: Fire | F18: 3.923e-05 | G18: TRUE | H18: TRUE | I18: FALSE | J18: FALSE | K18: 0 | L18: TRUE | M18: =IF(E18 = 0, 0, MAX(((VLOOKUP($B18, CM_NonFreeExt, 60, FALSE) * F18) * (IF(H18 = TRUE, 1 - 'Loss Limit Discount'!$D$93, 1))) * (1 - Voluntary_Deductible), K18)) -> 0 | O18: =MyTimestamp(E18) -> 
A19: Extension | C19: Accumulation of Motor Vehicles/Static Risk | D19: Fire | F19: =StaticRisk_Monthly -> 8.165e-05 | G19: FALSE | H19: FALSE | I19: FALSE | J19: FALSE | K19: =StaticRisk_MonthlyMin -> 50 | L19: TRUE | M19: =IF(E19 = 0, 0, MAX(((E19 * F19) * (IF(H19 = TRUE, 1 - 'Loss Limit Discount'!$D$93, 1))) * (1 - Voluntary_Deductible), K19)) -> 0
A20: Extension | C20: Goods in the open | D20: Fire | F20: 3.923e-05 | G20: TRUE | H20: TRUE | I20: FALSE | J20: FALSE | K20: 0 | L20: TRUE | M20: =IF(E20 = 0, 0, MAX(((VLOOKUP($B20, CM_NonFreeExt, 60, FALSE) * F20) * (IF(H20 = TRUE, 1 - 'Loss Limit Discount'!$D$93, 1))) * (1 - Voluntary_Deductible), K20)) -> 0 | O20: =MyTimestamp(E20) -> 
A21: Extension | C21: Fire Extinguishing | D21: Fire | F21: 3.923e-05 | G21: TRUE | H21: TRUE | I21: FALSE | J21: FALSE | K21: 0 | L21: TRUE | M21: =IF(E21 = 0, 0, MAX(((VLOOKUP($B21, CM_NonFreeExt, 60, FALSE) * F21) * (IF(H21 = TRUE, 1 - 'Loss Limit Discount'!$D$93, 1))) * (1 - Voluntary_Deductible), K21)) -> 0 | O21: =MyTimestamp(E21) -> 
A22: Extension | C22: Imminent Danger (Protection of property prior a loss) | D22: Fire | F22: 3.923e-05 | G22: TRUE | H22: TRUE | I22: FALSE | J22: FALSE | K22: 0 | L22: FALSE | M22: =IF(E22 = 0, 0, MAX(((E22 * F22) * (IF(H22 = TRUE, 1 - 'Loss Limit Discount'!$D$93, 1))) * (1 - Voluntary_Deductible), K22)) -> 0
A23: Other Extension | B23: Other Extensions
A24: Other Extension | B24: =IFERROR(RANK($P24, $P$7:$P$66, 1), "") ->  | C24: Other | D24: Fire | F24: =$F$4 -> 3.923e-05 | G24: TRUE | H24: TRUE | I24: FALSE | J24: FALSE | K24: 0 | L24: TRUE | M24: =IF(E24 = 0, 0, MAX(((VLOOKUP($B24, CM_NonFreeExt, 60, FALSE) * F24) * (IF(H24 = TRUE, 1 - 'Loss Limit Discount'!$D$93, 1))) * (1 - Voluntary_Deductible), K24)) -> 0 | O24: =MyTimestamp(E24) ->  | P24: =IFERROR(VALUE(O24), "") -> 
A25: Other Extension | C25: Other | D25: Fire | F25: 3.923e-05 | G25: TRUE | H25: TRUE | I25: FALSE | J25: FALSE | K25: 0 | L25: TRUE | M25: =IF(E25 = 0, 0, MAX(((VLOOKUP($B25, CM_NonFreeExt, 60, FALSE) * F25) * (IF(H25 = TRUE, 1 - 'Loss Limit Discount'!$D$93, 1))) * (1 - Voluntary_Deductible), K25)) -> 0 | O25: =MyTimestamp(E25) -> 
A26: Other Extension | C26: Other | D26: Fire | F26: 3.923e-05 | G26: TRUE | H26: TRUE | I26: FALSE | J26: FALSE | K26: 0 | L26: TRUE | M26: =IF(E26 = 0, 0, MAX(((VLOOKUP($B26, CM_NonFreeExt, 60, FALSE) * F26) * (IF(H26 = TRUE, 1 - 'Loss Limit Discount'!$D$93, 1))) * (1 - Voluntary_Deductible), K26)) -> 0 | O26: =MyTimestamp(E26) -> 
A27: Other Extension | C27: Other | D27: Fire | F27: 3.923e-05 | G27: TRUE | H27: TRUE | I27: FALSE | J27: FALSE | K27: 0 | L27: TRUE | M27: =IF(E27 = 0, 0, MAX(((VLOOKUP($B27, CM_NonFreeExt, 60, FALSE) * F27) * (IF(H27 = TRUE, 1 - 'Loss Limit Discount'!$D$93, 1))) * (1 - Voluntary_Deductible), K27)) -> 0 | O27: =MyTimestamp(E27) -> 
A28: Other Extension | C28: Other | D28: Fire | F28: 3.923e-05 | G28: TRUE | H28: TRUE | I28: FALSE | J28: FALSE | K28: 0 | L28: TRUE | M28: =IF(E28 = 0, 0, MAX(((VLOOKUP($B28, CM_NonFreeExt, 60, FALSE) * F28) * (IF(H28 = TRUE, 1 - 'Loss Limit Discount'!$D$93, 1))) * (1 - Voluntary_Deductible), K28)) -> 0 | O28: =MyTimestamp(E28) -> 
A29: Other Extension | C29: Other | D29: Fire | F29: 3.923e-05 | G29: TRUE | H29: TRUE | I29: FALSE | J29: FALSE | K29: 0 | L29: TRUE | M29: =IF(E29 = 0, 0, MAX(((VLOOKUP($B29, CM_NonFreeExt, 60, FALSE) * F29) * (IF(H29 = TRUE, 1 - 'Loss Limit Discount'!$D$93, 1))) * (1 - Voluntary_Deductible), K29)) -> 0 | O29: =MyTimestamp(E29) -> 
A30: Other Extension | C30: Other | D30: Fire | F30: 3.923e-05 | G30: TRUE | H30: TRUE | I30: FALSE | J30: FALSE | K30: 0 | L30: TRUE | M30: =IF(E30 = 0, 0, MAX(((VLOOKUP($B30, CM_NonFreeExt, 60, FALSE) * F30) * (IF(H30 = TRUE, 1 - 'Loss Limit Discount'!$D$93, 1))) * (1 - Voluntary_Deductible), K30)) -> 0 | O30: =MyTimestamp(E30) -> 
A31: Other Extension | C31: Other | D31: Fire | F31: 3.923e-05 | G31: TRUE | H31: TRUE | I31: FALSE | J31: FALSE | K31: 0 | L31: TRUE | M31: =IF(E31 = 0, 0, MAX(((VLOOKUP($B31, CM_NonFreeExt, 60, FALSE) * F31) * (IF(H31 = TRUE, 1 - 'Loss Limit Discount'!$D$93, 1))) * (1 - Voluntary_Deductible), K31)) -> 0 | O31: =MyTimestamp(E31) -> 
A32: Other Extension | C32: Other | D32: Fire | F32: 3.923e-05 | G32: TRUE | H32: TRUE | I32: FALSE | J32: FALSE | K32: 0 | L32: TRUE | M32: =IF(E32 = 0, 0, MAX(((VLOOKUP($B32, CM_NonFreeExt, 60, FALSE) * F32) * (IF(H32 = TRUE, 1 - 'Loss Limit Discount'!$D$93, 1))) * (1 - Voluntary_Deductible), K32)) -> 0 | O32: =MyTimestamp(E32) -> 
A33: Other Extension | C33: Other | D33: Fire | F33: 3.923e-05 | G33: TRUE | H33: TRUE | I33: FALSE | J33: FALSE | K33: 0 | L33: TRUE | M33: =IF(E33 = 0, 0, MAX(((VLOOKUP($B33, CM_NonFreeExt, 60, FALSE) * F33) * (IF(H33 = TRUE, 1 - 'Loss Limit Discount'!$D$93, 1))) * (1 - Voluntary_Deductible), K33)) -> 0 | O33: =MyTimestamp(E33) -> 
A34: Other Extension | C34: Other | D34: Fire | F34: 3.923e-05 | G34: TRUE | H34: TRUE | I34: FALSE | J34: FALSE | K34: 0 | L34: TRUE | M34: =IF(E34 = 0, 0, MAX(((VLOOKUP($B34, CM_NonFreeExt, 60, FALSE) * F34) * (IF(H34 = TRUE, 1 - 'Loss Limit Discount'!$D$93, 1))) * (1 - Voluntary_Deductible), K34)) -> 0 | O34: =MyTimestamp(E34) -> 
A35: Other Extension | C35: Other | D35: Fire | F35: 3.923e-05 | G35: TRUE | H35: TRUE | I35: FALSE | J35: FALSE | K35: 0 | L35: TRUE | M35: =IF(E35 = 0, 0, MAX(((VLOOKUP($B35, CM_NonFreeExt, 60, FALSE) * F35) * (IF(H35 = TRUE, 1 - 'Loss Limit Discount'!$D$93, 1))) * (1 - Voluntary_Deductible), K35)) -> 0 | O35: =MyTimestamp(E35) -> 
A36: Other Extension | C36: Other | D36: Fire | F36: 3.923e-05 | G36: TRUE | H36: TRUE | I36: FALSE | J36: FALSE | K36: 0 | L36: TRUE | M36: =IF(E36 = 0, 0, MAX(((VLOOKUP($B36, CM_NonFreeExt, 60, FALSE) * F36) * (IF(H36 = TRUE, 1 - 'Loss Limit Discount'!$D$93, 1))) * (1 - Voluntary_Deductible), K36)) -> 0 | O36: =MyTimestamp(E36) -> 
A37: Other Extension | C37: Other | D37: Fire | F37: 3.923e-05 | G37: TRUE | H37: TRUE | I37: FALSE | J37: FALSE | K37: 0 | L37: TRUE | M37: =IF(E37 = 0, 0, MAX(((VLOOKUP($B37, CM_NonFreeExt, 60, FALSE) * F37) * (IF(H37 = TRUE, 1 - 'Loss Limit Discount'!$D$93, 1))) * (1 - Voluntary_Deductible), K37)) -> 0 | O37: =MyTimestamp(E37) -> 
A38: Other Extension | C38: Other | D38: Fire | F38: 3.923e-05 | G38: TRUE | H38: TRUE | I38: FALSE | J38: FALSE | K38: 0 | L38: TRUE | M38: =IF(E38 = 0, 0, MAX(((VLOOKUP($B38, CM_NonFreeExt, 60, FALSE) * F38) * (IF(H38 = TRUE, 1 - 'Loss Limit Discount'!$D$93, 1))) * (1 - Voluntary_Deductible), K38)) -> 0 | O38: =MyTimestamp(E38) -> 
A39: Other Extension | C39: Other | D39: Fire | F39: 3.923e-05 | G39: TRUE | H39: TRUE | I39: FALSE | J39: FALSE | K39: 0 | L39: TRUE | M39: =IF(E39 = 0, 0, MAX(((VLOOKUP($B39, CM_NonFreeExt, 60, FALSE) * F39) * (IF(H39 = TRUE, 1 - 'Loss Limit Discount'!$D$93, 1))) * (1 - Voluntary_Deductible), K39)) -> 0 | O39: =MyTimestamp(E39) -> 
A40: Other Extension | C40: Other | D40: Fire | F40: 3.923e-05 | G40: TRUE | H40: TRUE | I40: FALSE | J40: FALSE | K40: 0 | L40: TRUE | M40: =IF(E40 = 0, 0, MAX(((VLOOKUP($B40, CM_NonFreeExt, 60, FALSE) * F40) * (IF(H40 = TRUE, 1 - 'Loss Limit Discount'!$D$93, 1))) * (1 - Voluntary_Deductible), K40)) -> 0 | O40: =MyTimestamp(E40) -> 
A41: Other Extension | C41: Other | D41: Fire | F41: 3.923e-05 | G41: TRUE | H41: TRUE | I41: FALSE | J41: FALSE | K41: 0 | L41: TRUE | M41: =IF(E41 = 0, 0, MAX(((VLOOKUP($B41, CM_NonFreeExt, 60, FALSE) * F41) * (IF(H41 = TRUE, 1 - 'Loss Limit Discount'!$D$93, 1))) * (1 - Voluntary_Deductible), K41)) -> 0 | O41: =MyTimestamp(E41) -> 
A42: Other Extension | C42: Other | D42: Fire | F42: 3.923e-05 | G42: TRUE | H42: TRUE | I42: FALSE | J42: FALSE | K42: 0 | L42: TRUE | M42: =IF(E42 = 0, 0, MAX(((VLOOKUP($B42, CM_NonFreeExt, 60, FALSE) * F42) * (IF(H42 = TRUE, 1 - 'Loss Limit Discount'!$D$93, 1))) * (1 - Voluntary_Deductible), K42)) -> 0 | O42: =MyTimestamp(E42) -> 
A43: Other Extension | C43: Other | D43: Fire | F43: 3.923e-05 | G43: TRUE | H43: TRUE | I43: FALSE | J43: FALSE | K43: 0 | L43: TRUE | M43: =IF(E43 = 0, 0, MAX(((VLOOKUP($B43, CM_NonFreeExt, 60, FALSE) * F43) * (IF(H43 = TRUE, 1 - 'Loss Limit Discount'!$D$93, 1))) * (1 - Voluntary_Deductible), K43)) -> 0 | O43: =MyTimestamp(E43) -> 
A44: Other Extension | C44: Other | D44: Fire | F44: 3.923e-05 | G44: TRUE | H44: TRUE | I44: FALSE | J44: FALSE | K44: 0 | L44: TRUE | M44: =IF(E44 = 0, 0, MAX(((VLOOKUP($B44, CM_NonFreeExt, 60, FALSE) * F44) * (IF(H44 = TRUE, 1 - 'Loss Limit Discount'!$D$93, 1))) * (1 - Voluntary_Deductible), K44)) -> 0 | O44: =MyTimestamp(E44) -> 
A45: Other Extension | C45: Other | D45: Fire | F45: 3.923e-05 | G45: TRUE | H45: TRUE | I45: FALSE | J45: FALSE | K45: 0 | L45: TRUE | M45: =IF(E45 = 0, 0, MAX(((VLOOKUP($B45, CM_NonFreeExt, 60, FALSE) * F45) * (IF(H45 = TRUE, 1 - 'Loss Limit Discount'!$D$93, 1))) * (1 - Voluntary_Deductible), K45)) -> 0 | O45: =MyTimestamp(E45) -> 
A46: Other Extension | C46: Other | D46: Fire | F46: 3.923e-05 | G46: TRUE | H46: TRUE | I46: FALSE | J46: FALSE | K46: 0 | L46: TRUE | M46: =IF(E46 = 0, 0, MAX(((VLOOKUP($B46, CM_NonFreeExt, 60, FALSE) * F46) * (IF(H46 = TRUE, 1 - 'Loss Limit Discount'!$D$93, 1))) * (1 - Voluntary_Deductible), K46)) -> 0 | O46: =MyTimestamp(E46) -> 
A47: Other Extension | C47: Other | D47: Fire | F47: 3.923e-05 | G47: TRUE | H47: TRUE | I47: FALSE | J47: FALSE | K47: 0 | L47: TRUE | M47: =IF(E47 = 0, 0, MAX(((VLOOKUP($B47, CM_NonFreeExt, 60, FALSE) * F47) * (IF(H47 = TRUE, 1 - 'Loss Limit Discount'!$D$93, 1))) * (1 - Voluntary_Deductible), K47)) -> 0 | O47: =MyTimestamp(E47) -> 
A48: Other Extension | C48: Other | D48: Fire | F48: 3.923e-05 | G48: TRUE | H48: TRUE | I48: FALSE | J48: FALSE | K48: 0 | L48: TRUE | M48: =IF(E48 = 0, 0, MAX(((VLOOKUP($B48, CM_NonFreeExt, 60, FALSE) * F48) * (IF(H48 = TRUE, 1 - 'Loss Limit Discount'!$D$93, 1))) * (1 - Voluntary_Deductible), K48)) -> 0 | O48: =MyTimestamp(E48) -> 
A49: Other Extension | C49: Other | D49: Fire | F49: 3.923e-05 | G49: TRUE | H49: TRUE | I49: FALSE | J49: FALSE | K49: 0 | L49: TRUE | M49: =IF(E49 = 0, 0, MAX(((VLOOKUP($B49, CM_NonFreeExt, 60, FALSE) * F49) * (IF(H49 = TRUE, 1 - 'Loss Limit Discount'!$D$93, 1))) * (1 - Voluntary_Deductible), K49)) -> 0 | O49: =MyTimestamp(E49) -> 
A50: Other Extension | C50: Other | D50: Fire | F50: 3.923e-05 | G50: TRUE | H50: TRUE | I50: FALSE | J50: FALSE | K50: 0 | L50: TRUE | M50: =IF(E50 = 0, 0, MAX(((VLOOKUP($B50, CM_NonFreeExt, 60, FALSE) * F50) * (IF(H50 = TRUE, 1 - 'Loss Limit Discount'!$D$93, 1))) * (1 - Voluntary_Deductible), K50)) -> 0 | O50: =MyTimestamp(E50) -> 
A51: Other Extension | C51: Other | D51: Fire | F51: 3.923e-05 | G51: TRUE | H51: TRUE | I51: FALSE | J51: FALSE | K51: 0 | L51: TRUE | M51: =IF(E51 = 0, 0, MAX(((VLOOKUP($B51, CM_NonFreeExt, 60, FALSE) * F51) * (IF(H51 = TRUE, 1 - 'Loss Limit Discount'!$D$93, 1))) * (1 - Voluntary_Deductible), K51)) -> 0 | O51: =MyTimestamp(E51) -> 
A52: Other Extension | C52: Other | D52: Fire | F52: 3.923e-05 | G52: TRUE | H52: TRUE | I52: FALSE | J52: FALSE | K52: 0 | L52: TRUE | M52: =IF(E52 = 0, 0, MAX(((VLOOKUP($B52, CM_NonFreeExt, 60, FALSE) * F52) * (IF(H52 = TRUE, 1 - 'Loss Limit Discount'!$D$93, 1))) * (1 - Voluntary_Deductible), K52)) -> 0 | O52: =MyTimestamp(E52) -> 
A53: Other Extension | C53: Other | D53: Fire | F53: 3.923e-05 | G53: TRUE | H53: TRUE | I53: FALSE | J53: FALSE | K53: 0 | L53: TRUE | M53: =IF(E53 = 0, 0, MAX(((VLOOKUP($B53, CM_NonFreeExt, 60, FALSE) * F53) * (IF(H53 = TRUE, 1 - 'Loss Limit Discount'!$D$93, 1))) * (1 - Voluntary_Deductible), K53)) -> 0 | O53: =MyTimestamp(E53) -> 
B54: Escalation and or Inflation
A55: Escalation UL | B55: Charge on U/L
A56: Escalation UL | B56: =IFERROR(RANK($P56, $P$7:$P$66, 1), "") ->  | C56: First Year (90-100%) | D56: Fire | F56: =IF(C56 = "", 0, VLOOKUP(C56, Escalation!$C$59:$D$103, 2, FALSE)) -> 3.923e-05 | G56: FALSE | H56: TRUE | I56: FALSE | J56: FALSE | K56: 0 | M56: =IF(E56 = 0, 0, MAX(((VLOOKUP($B56, CM_NonFreeExt, 60, FALSE) * F56) * (IF(H56 = TRUE, 1 - 'Loss Limit Discount'!$D$93, 1))) * (1 - Voluntary_Deductible), K56)) -> 0 | O56: =MyTimestamp(E56) ->  | P56: =IFERROR(VALUE(O56), "") -> 
A57: Escalation UL | C57: Second Year (90-100%) | D57: Fire | F57: =IF(C57 = "", 0, VLOOKUP(C57, Escalation!$C$59:$D$103, 2, FALSE)) -> 1.9615e-05 | G57: FALSE | H57: TRUE | I57: FALSE | J57: FALSE | K57: 0 | M57: =IF(E57 = 0, 0, MAX(((VLOOKUP($B57, CM_NonFreeExt, 60, FALSE) * F57) * (IF(H57 = TRUE, 1 - 'Loss Limit Discount'!$D$93, 1))) * (1 - Voluntary_Deductible), K57)) -> 0 | O57: =MyTimestamp(E57) -> 
A58: Escalation UL | C58: Third Year (90-100%) | D58: Fire | F58: =IF(C58 = "", 0, VLOOKUP(C58, Escalation!$C$59:$D$103, 2, FALSE)) -> 9.8075e-06 | G58: FALSE | H58: TRUE | I58: FALSE | J58: FALSE | K58: 0 | M58: =IF(E58 = 0, 0, MAX(((VLOOKUP($B58, CM_NonFreeExt, 60, FALSE) * F58) * (IF(H58 = TRUE, 1 - 'Loss Limit Discount'!$D$93, 1))) * (1 - Voluntary_Deductible), K58)) -> 0 | O58: =MyTimestamp(E58) -> 
A59: Escalation UL | C59: Fourth Year (90-100%) | D59: Fire | F59: =IF(C59 = "", 0, VLOOKUP(C59, Escalation!$C$59:$D$103, 2, FALSE)) -> 7.846e-06 | G59: FALSE | H59: TRUE | I59: FALSE | J59: FALSE | K59: 0 | M59: =IF(E59 = 0, 0, MAX(((VLOOKUP($B59, CM_NonFreeExt, 60, FALSE) * F59) * (IF(H59 = TRUE, 1 - 'Loss Limit Discount'!$D$93, 1))) * (1 - Voluntary_Deductible), K59)) -> 0 | O59: =MyTimestamp(E59) -> 
A60: Escalation UL | C60: Fifth Year (90-100%) | D60: Fire | F60: =IF(C60 = "", 0, VLOOKUP(C60, Escalation!$C$59:$D$103, 2, FALSE)) -> 5.8845e-06 | G60: FALSE | H60: TRUE | I60: FALSE | J60: FALSE | K60: 0 | M60: =IF(E60 = 0, 0, MAX(((VLOOKUP($B60, CM_NonFreeExt, 60, FALSE) * F60) * (IF(H60 = TRUE, 1 - 'Loss Limit Discount'!$D$93, 1))) * (1 - Voluntary_Deductible), K60)) -> 0 | O60: =MyTimestamp(E60) -> 
A61: Escalation Not UL | B61: Not Charge on U/L
A62: Escalation Not UL | B62: =IFERROR(RANK($P62, $P$7:$P$66, 1), "") ->  | C62: First Year | D62: Fire | F62: =$F$4 -> 3.923e-05 | G62: FALSE | H62: TRUE | I62: FALSE | J62: FALSE | K62: 0 | M62: =IF(E62 = 0, 0, MAX(((VLOOKUP($B62, CM_NonFreeExt, 60, FALSE) * F62) * (IF(H62 = TRUE, 1 - 'Loss Limit Discount'!$D$93, 1))) * (1 - Voluntary_Deductible), K62)) -> 0 | O62: =MyTimestamp(E62) ->  | P62: =IFERROR(VALUE(O62), "") -> 
A63: Escalation Not UL | C63: Second Year | D63: Fire | F63: =$F$4 * 0.5 -> 1.9615e-05 | G63: FALSE | H63: TRUE | I63: FALSE | J63: FALSE | K63: 0 | M63: =IF(E63 = 0, 0, MAX(((VLOOKUP($B63, CM_NonFreeExt, 60, FALSE) * F63) * (IF(H63 = TRUE, 1 - 'Loss Limit Discount'!$D$93, 1))) * (1 - Voluntary_Deductible), K63)) -> 0 | O63: =MyTimestamp(E63) -> 
A64: Escalation Not UL | C64: Third Year | D64: Fire | F64: =$F$4 * 0.25 -> 9.8075e-06 | G64: FALSE | H64: TRUE | I64: FALSE | J64: FALSE | K64: 0 | M64: =IF(E64 = 0, 0, MAX(((VLOOKUP($B64, CM_NonFreeExt, 60, FALSE) * F64) * (IF(H64 = TRUE, 1 - 'Loss Limit Discount'!$D$93, 1))) * (1 - Voluntary_Deductible), K64)) -> 0 | O64: =MyTimestamp(E64) -> 
A65: Escalation Not UL | C65: Fourth Year | D65: Fire | F65: =$F$4 * 0.2 -> 7.846e-06 | G65: FALSE | H65: TRUE | I65: FALSE | J65: FALSE | K65: 0 | M65: =IF(E65 = 0, 0, MAX(((VLOOKUP($B65, CM_NonFreeExt, 60, FALSE) * F65) * (IF(H65 = TRUE, 1 - 'Loss Limit Discount'!$D$93, 1))) * (1 - Voluntary_Deductible), K65)) -> 0 | O65: =MyTimestamp(E65) -> 
A66: Escalation Not UL | C66: Fifth Year | D66: Fire | F66: =$F$4 * 0.15 -> 5.8845e-06 | G66: FALSE | H66: TRUE | I66: FALSE | J66: FALSE | K66: 0 | M66: =IF(E66 = 0, 0, MAX(((VLOOKUP($B66, CM_NonFreeExt, 60, FALSE) * F66) * (IF(H66 = TRUE, 1 - 'Loss Limit Discount'!$D$93, 1))) * (1 - Voluntary_Deductible), K66)) -> 0 | O66: =MyTimestamp(E66) -> 
B68: Business Interruption
B69: Advance Specified Standing Charges
A70: Business Interruption | B70: ASC | C70: 12 Months | D70: Advance Standing Charges | F70: =_xlfn.IFNA(VLOOKUP(C70, Metadata!$L$2:$M$5, 2, FALSE),0) -> 8.64e-05 | G70: FALSE | H70: FALSE | I70: TRUE | J70: TRUE | K70: =BI2_12M_MonthlyMin -> 5 | L70: FALSE | M70: =IF(E70 = 0, 0, MAX((E70 * F70) * (IF(H70 = TRUE, 1 - 'Loss Limit Discount'!$D$93, 1)) * (IF(J70 = TRUE, 1 - 'Contract Works Discount'!$D$102, 1) * (1 - Voluntary_Deductible) * (1 - Co_insurance)), K70)) -> 0
B71: Specified Standing Charges
A72: Business Interruption | B72: SC | C72: 12 Months | D72: Standing Charges | F72: =_xlfn.IFNA(VLOOKUP(C72, Metadata!$L$7:$M$14, 2, FALSE),0) -> 8.64e-05 | G72: TRUE | H72: TRUE | I72: FALSE | J72: FALSE | K72: =BI2_12M_MonthlyMin -> 5 | L72: FALSE | M72: =IF(E72 = 0, 0, MAX((E72 * F72) * (IF(H72 = TRUE, 1 - 'Loss Limit Discount'!$D$93, 1)) * (IF(J72 = TRUE, 1 - 'Contract Works Discount'!$D$102, 1) * (1 - Voluntary_Deductible) * (1 - Co_insurance)), K72)) -> 0
A73: Business Interruption | B73: AICOW | C73: Additional Increase In Cost Of Working | D73: Standing Charges | F73: =F72 * 1.5 -> 0.0001296 | G73: TRUE | H73: TRUE | I73: FALSE | J73: FALSE | K73: 0 | L73: FALSE | M73: =IF(E73 = 0, 0, MAX((E73 * F73) * (IF(H73 = TRUE, 1 - 'Loss Limit Discount'!$D$93, 1)) * (IF(J73 = TRUE, 1 - 'Contract Works Discount'!$D$102, 1) * (1 - Voluntary_Deductible) * (1 - Co_insurance)), K73)) -> 0
B74: Working Expenses
A75: Business Interruption | B75: WE | C75: 12 Months | D75: Working Expenses | F75: =_xlfn.IFNA(VLOOKUP(C75, Metadata!L16:M23, 2, FALSE),0) -> 8.64e-05 | G75: TRUE | H75: TRUE | I75: FALSE | J75: FALSE | K75: =BI2_12M_MonthlyMin -> 5 | L75: FALSE | M75: =IF(E75 = 0, 0, MAX((E75 * F75) * (IF(H75 = TRUE, 1 - 'Loss Limit Discount'!$D$93, 1)) * (IF(J75 = TRUE, 1 - 'Contract Works Discount'!$D$102, 1) * (1 - Voluntary_Deductible) * (1 - Co_insurance)), K75)) -> 0
A76: Business Interruption | B76: AICOW | C76: Additional Increase In Cost Of Working | D76: Working Expenses | F76: =F75 * 1.5 -> 0.0001296 | G76: TRUE | H76: TRUE | I76: FALSE | J76: FALSE | K76: 0 | L76: FALSE | M76: =IF(E76 = 0, 0, MAX((E76 * F76) * (IF(H76 = TRUE, 1 - 'Loss Limit Discount'!$D$93, 1)) * (IF(J76 = TRUE, 1 - 'Contract Works Discount'!$D$102, 1) * (1 - Voluntary_Deductible) * (1 - Co_insurance)), K76)) -> 0
B77: Revenue
A78: Business Interruption | B78: R | C78: 12 Months | D78: Revenue | F78: =_xlfn.IFNA(VLOOKUP(C78, Metadata!$L$48:$M$55, 2, FALSE),0) -> 8.64e-05 | G78: TRUE | H78: TRUE | I78: FALSE | J78: FALSE | K78: =BI2_12M_MonthlyMin -> 5 | L78: FALSE | M78: =IF(E78 = 0, 0, MAX((E78 * F78) * (IF(H78 = TRUE, 1 - 'Loss Limit Discount'!$D$93, 1)) * (IF(J78 = TRUE, 1 - 'Contract Works Discount'!$D$102, 1) * (1 - Voluntary_Deductible) * (1 - Co_insurance)), K78)) -> 0
A79: Business Interruption | B79: AICOW | C79: Additional Increase In Cost Of Working | D79: Revenue | F79: =F78 * 1.5 -> 0.0001296 | G79: TRUE | H79: TRUE | I79: FALSE | J79: FALSE | K79: 0 | L79: FALSE | M79: =IF(E79 = 0, 0, MAX((E79 * F79) * (IF(H79 = TRUE, 1 - 'Loss Limit Discount'!$D$93, 1)) * (IF(J79 = TRUE, 1 - 'Contract Works Discount'!$D$102, 1) * (1 - Voluntary_Deductible) * (1 - Co_insurance)), K79)) -> 0
B80: Net Profit
A81: Business Interruption | B81: NP | C81: 12 Months | D81: Net Profit | F81: =_xlfn.IFNA(VLOOKUP(C81, Metadata!$L$25:$M$32, 2, FALSE),0) -> 8.64e-05 | G81: TRUE | H81: TRUE | I81: FALSE | J81: FALSE | K81: =BI2_12M_MonthlyMin -> 5 | L81: FALSE | M81: =IF(E81 = 0, 0, MAX((E81 * F81) * (IF(H81 = TRUE, 1 - 'Loss Limit Discount'!$D$93, 1)) * (IF(J81 = TRUE, 1 - 'Contract Works Discount'!$D$102, 1) * (1 - Voluntary_Deductible) * (1 - Co_insurance)), K81)) -> 0
A82: Business Interruption | B82: AICOW | C82: Additional Increase In Cost Of Working | D82: Net Profit | F82: =F81 * 1.5 -> 0.0001296 | G82: TRUE | H82: TRUE | I82: FALSE | J82: FALSE | K82: 0 | L82: FALSE | M82: =IF(E82 = 0, 0, MAX((E82 * F82) * (IF(H82 = TRUE, 1 - 'Loss Limit Discount'!$D$93, 1)) * (IF(J82 = TRUE, 1 - 'Contract Works Discount'!$D$102, 1) * (1 - Voluntary_Deductible) * (1 - Co_insurance)), K82)) -> 0
B83: Gross Profit
A84: Business Interruption | B84: GP | C84: 12 Months | D84: Gross Profit | F84: =_xlfn.IFNA(VLOOKUP(C84, Metadata!$L$34:$M$41, 2, FALSE),0) -> 8.64e-05 | G84: TRUE | H84: TRUE | I84: FALSE | J84: FALSE | K84: =BI2_12M_MonthlyMin -> 5 | L84: FALSE | M84: =IF(E84 = 0, 0, MAX((E84 * F84) * (IF(H84 = TRUE, 1 - 'Loss Limit Discount'!$D$93, 1)) * (IF(J84 = TRUE, 1 - 'Contract Works Discount'!$D$102, 1) * (1 - Voluntary_Deductible) * (1 - Co_insurance)), K84)) -> 0
A85: Business Interruption | B85: AICOW | C85: Additional Increase In Cost Of Working | D85: Gross Profit | F85: =F84 * 1.5 -> 0.0001296 | G85: TRUE | H85: TRUE | I85: FALSE | J85: FALSE | K85: 0 | L85: FALSE | M85: =IF(E85 = 0, 0, MAX((E85 * F85) * (IF(H85 = TRUE, 1 - 'Loss Limit Discount'!$D$93, 1)) * (IF(J85 = TRUE, 1 - 'Contract Works Discount'!$D$102, 1) * (1 - Voluntary_Deductible) * (1 - Co_insurance)), K85)) -> 0
B88: Motor
A89: Motor | B89: M1 | C89: Cars (Primary use: Domestic/Private) | D89: Motor | F89: =M1_Monthly -> 2.62 | G89: FALSE | H89: FALSE | I89: FALSE | J89: FALSE | K89: =M1_MonthlyMin -> 2.62 | L89: FALSE | M89: =IF(E89 = 0, 0, MAX((F89 * E89) * (IF(H89 = TRUE, 1 - 'Loss Limit Discount'!$D$93, 1)), K89 * E89)) -> 0
A90: Motor | B90: M2 | C90: Light Commercial Vehicles (3500kg GVM or less) | D90: Motor | F90: =M2_Monthly -> 7.062e-05 | G90: FALSE | H90: FALSE | I90: FALSE | J90: FALSE | K90: =M2_MonthlyMin -> 4.54 | L90: FALSE | M90: =IF(E90 = 0, 0, MAX((E90 * F90) * (IF(H90 = TRUE, 1 - 'Loss Limit Discount'!$D$93, 1) ), K90)) -> 0
A91: Motor | B91: M3 | C91: Taxis | D91: Motor | F91: =M3_Monthly -> 3.535e-05 | G91: FALSE | H91: FALSE | I91: FALSE | J91: FALSE | K91: =M3_MonthlyMin -> 4.54 | L91: FALSE | M91: =IF(E91 = 0, 0, MAX((E91 * F91) * (IF(H91 = TRUE, 1 - 'Loss Limit Discount'!$D$93, 1) ), K91)) -> 0
A92: Motor | B92: M4 | C92: Ferries & Traders | D92: Motor | F92: =M4_Monthly -> 8.68e-06 | G92: FALSE | H92: FALSE | I92: FALSE | J92: FALSE | K92: =M4_MonthlyMin -> 10 | L92: FALSE | M92: =IF(E92 = 0, 0, MAX((E92 * F92) * (IF(H92 = TRUE, 1 - 'Loss Limit Discount'!$D$93, 1) ), K92)) -> 0
A93: Motor | B93: M5 | C93: Buses | D93: Motor | F93: =M5_Monthly -> 0.00075143 | G93: FALSE | H93: FALSE | I93: FALSE | J93: FALSE | K93: =M5_MonthlyMin -> 200 | L93: FALSE | M93: =IF(E93 = 0, 0, MAX((E93 * F93) * (IF(H93 = TRUE, 1 - 'Loss Limit Discount'!$D$93, 1) ), K93)) -> 0
A94: Motor | B94: M6 | C94: Mobile Plant | D94: Motor | F94: =M6_Monthly -> 0.00011326 | G94: FALSE | H94: FALSE | I94: FALSE | J94: FALSE | K94: =M6_MonthlyMin -> 50 | L94: FALSE | M94: =IF(E94 = 0, 0, MAX((E94 * F94) * (IF(H94 = TRUE, 1 - 'Loss Limit Discount'!$D$93, 1) ), K94)) -> 0
A95: Motor | B95: M8 | C95: Heavy Commercial Vehicles (>3500kg GVM) | D95: Motor | F95: =M8_Monthly -> 0.00039682 | G95: FALSE | H95: FALSE | I95: FALSE | J95: FALSE | K95: =M8_MonthlyMin -> 5.45 | L95: FALSE | M95: =IF(E95 = 0, 0, MAX((E95 * F95) * (IF(H95 = TRUE, 1 - 'Loss Limit Discount'!$D$93, 1) * (1 - Voluntary_Deductible_M8) * (1 - Co_insurance_M8)), K95)) -> 0
A96: Motor | B96: A1 | C96: Agricultural Vehicles | D96: Motor | F96: =A1_Monthly -> 6e-06 | G96: FALSE | H96: FALSE | I96: FALSE | J96: FALSE | K96: =A1_MonthlyMin -> 6 | L96: FALSE | M96: =IF(E96 = 0, 0, MAX((E96 * F96) * (IF(H96 = TRUE, 1 - 'Loss Limit Discount'!$D$93, 1) ), K96)) -> 0
B98: Money
A99: Money | B99: MON | C99: Money | D99: Money | F99: =Mon_Monthly -> 0.011979 | G99: FALSE | H99: TRUE | I99: FALSE | J99: FALSE | K99: =Mon_MonthlyMin -> 5 | L99: FALSE | M99: =IF(E99 = 0, 0, MAX((E99 * F99) * (IF(H99 = TRUE, 1 - 'Loss Limit Discount'!$D$93, 1) * (1 - Voluntary_Deductible) * (1 - Co_insurance)), K99)) -> 0
B101: Goods In Transit & Marine Cargo
B102: Without RSCC
B103: ="Marine " & B102 -> Marine Without RSCC
A104: Goods In Transit | B104: GIT | C104: Marine Cargo & Goods in Transit | D104: Goods In Transit | F104: =IF($B$102 = "With RSCC", VLOOKUP($C104, Metadata!$W$4:$Y$16, 2, FALSE), VLOOKUP($C104, Metadata!$W$4:$Y$16, 3, FALSE)) -> 3.42e-06 | G104: FALSE | H104: TRUE | I104: FALSE | J104: FALSE | K104: =GITmarine_a_MonthlyMinWithout -> 50 | L104: FALSE | M104: =IF(E104 = 0, 0, MAX((E104 * F104) * (IF(H104 = TRUE, 1 - 'Loss Limit Discount'!$D$93, 1) * (1 - Voluntary_Deductible) * (1 - Co_insurance)), K104)) -> 0
A105: Goods In Transit | B105: =IF($B$102 = "With RSCC", "", "GIT") -> GIT | C105: =IF($B$102 = "With RSCC", "N/A", "Storage at final w/house or depot") -> Storage at final w/house or depot | D105: =IF($B$102 = "With RSCC", "", "Goods In Transit") -> Goods In Transit | F105: =_xlfn.IFNA(IF($B$102 = "With RSCC", VLOOKUP($C105, Metadata!$W$4:$Y$16, 2, FALSE), VLOOKUP($C105, Metadata!$W$4:$Y$16, 3, FALSE)), "N/A") -> 3.424e-05 | G105: FALSE | H105: TRUE | I105: FALSE | J105: FALSE | K105: =GITmarine_b_MonthlyMinWithout -> 50 | M105: =IFERROR(IF(E105 = 0, 0, MAX((E105 * F105) * (IF(H105 = TRUE, 1 - 'Loss Limit Discount'!$D$93, 1) * (1 - Voluntary_Deductible) * (1 - Co_insurance)), K105)), 0) -> 0
A106: Goods In Transit | B106: GIT | C106: Estimated Gross Annual Turnover | D106: Goods In Transit | F106: =IF($B$102 = "With RSCC", VLOOKUP($C106, Metadata!$W$4:$Y$16, 2, FALSE), VLOOKUP($C106, Metadata!$W$4:$Y$16, 3, FALSE)) -> 2.86e-06 | G106: FALSE | H106: TRUE | I106: FALSE | J106: FALSE | K106: =GITmarine_c_MonthlyMinWithout -> 50 | M106: =IF(E106 = 0, 0, MAX((E106 * F106) * (IF(H106 = TRUE, 1 - 'Loss Limit Discount'!$D$93, 1) * (1 - Voluntary_Deductible) * (1 - Co_insurance)), K106)) -> 0
A107: Goods In Transit | B107: =IF($B$102 = "With RSCC", "", "GIT") -> GIT | C107: =IF($B$102 = "With RSCC", "N/A", "Stock and Storage Limits") -> Stock and Storage Limits | D107: =IF($B$102 = "With RSCC", "", "Goods In Transit") -> Goods In Transit | F107: =_xlfn.IFNA(IF($B$102 = "With RSCC", VLOOKUP($C107, Metadata!$W$4:$Y$16, 2, FALSE), VLOOKUP($C107, Metadata!$W$4:$Y$16, 3, FALSE)), "N/A") -> 3.424e-05 | G107: FALSE | H107: TRUE | I107: FALSE | J107: FALSE | K107: =GITmarine_d_MonthlyMinWithout -> 50 | M107: =IFERROR(IF(E107 = 0, 0, MAX((E107 * F107) * (IF(H107 = TRUE, 1 - 'Loss Limit Discount'!$D$93, 1) * (1 - Voluntary_Deductible) * (1 - Co_insurance)), K107)), 0) -> 0
A108: Goods In Transit | B108: GIT | C108: Haulage Fees/Earnings | D108: Goods In Transit | F108: =IF($B$102 = "With RSCC", VLOOKUP($C108, Metadata!$W$4:$Y$16, 2, FALSE), VLOOKUP($C108, Metadata!$W$4:$Y$16, 3, FALSE)) -> 3.424e-05 | G108: FALSE | H108: TRUE | I108: FALSE | J108: FALSE | K108: =GITmarine_e_MonthlyMinWithout -> 50 | M108: =IF(E108 = 0, 0, MAX((E108 * F108) * (IF(H108 = TRUE, 1 - 'Loss Limit Discount'!$D$93, 1) * (1 - Voluntary_Deductible) * (1 - Co_insurance)), K108)) -> 0
A109: Goods In Transit | B109: GIT | C109: Fixed and Non-adjustable Underlying Policy Premiums | D109: Goods In Transit | F109: =IF($B$102 = "With RSCC", VLOOKUP($C109, Metadata!$W$4:$Y$16, 2, FALSE), VLOOKUP($C109, Metadata!$W$4:$Y$16, 3, FALSE)) -> 0.02904768 | G109: FALSE | H109: TRUE | I109: FALSE | J109: FALSE | K109: =GITmarine_f_MonthlyMinWithout -> 50 | M109: =IF(E109 = 0, 0, MAX((E109 * F109) * (IF(H109 = TRUE, 1 - 'Loss Limit Discount'!$D$93, 1) * (1 - Voluntary_Deductible) * (1 - Co_insurance)), K109)) -> 0
A110: Goods In Transit | B110: =IF($B$102 = "With RSCC", "", "GIT") -> GIT | C110: =IF($B$102 = "With RSCC", "N/A", "Deliberate Storage") -> Deliberate Storage | D110: =IF($B$102 = "With RSCC", "", "Goods In Transit") -> Goods In Transit | F110: =_xlfn.IFNA(IF($B$102 = "With RSCC", VLOOKUP($C110, Metadata!$W$4:$Y$16, 2, FALSE), VLOOKUP($C110, Metadata!$W$4:$Y$16, 3, FALSE)), "N/A") -> 0 | G110: FALSE | H110: TRUE | I110: FALSE | J110: FALSE | K110: =GITmarine_g_MonthlyMinWithout -> 0 | M110: =IFERROR(IF(E110 = 0, 0, MAX((E110 * F110) * (IF(H110 = TRUE, 1 - 'Loss Limit Discount'!$D$93, 1) * (1 - Voluntary_Deductible) * (1 - Co_insurance)), K110)), 0) -> 0
B111: Without RSCC
B112: ="Hull " & B111 -> Hull Without RSCC
A113: Goods In Transit | B113: GIT | C113: Pleasure Craft | D113: Goods In Transit | F113: =IF($B$111 = "With RSCC", VLOOKUP($C113, Metadata!$W$4:$Y$16, 2, FALSE), VLOOKUP($C113, Metadata!$W$4:$Y$16, 3, FALSE)) -> 2.574e-05 | G113: FALSE | H113: TRUE | I113: FALSE | J113: FALSE | K113: =GIThull_a_MonthlyMinWith -> 50 | L113: FALSE | M113: =IF(E113 = 0, 0, MAX((E113 * F113) * (IF(H113 = TRUE, 1 - 'Loss Limit Discount'!$D$93, 1) * (1 - Voluntary_Deductible) * (1 - Co_insurance)), K113)) -> 0
A114: Goods In Transit | B114: GIT | C114: Commercial Vessels | D114: Goods In Transit | F114: =IF($B$111 = "With RSCC", VLOOKUP($C114, Metadata!$W$4:$Y$16, 2, FALSE), VLOOKUP($C114, Metadata!$W$4:$Y$16, 3, FALSE)) -> 3.424e-05 | G114: FALSE | H114: TRUE | I114: FALSE | J114: FALSE | K114: =GIThull_b_MonthlyMinWith -> 50 | M114: =IF(E114 = 0, 0, MAX((E114 * F114) * (IF(H114 = TRUE, 1 - 'Loss Limit Discount'!$D$93, 1) * (1 - Voluntary_Deductible) * (1 - Co_insurance)), K114)) -> 0
A115: Goods In Transit | B115: GIT | C115: Builders Risk | D115: Goods In Transit | F115: =IF($B$111 = "With RSCC", VLOOKUP($C115, Metadata!$W$4:$Y$16, 2, FALSE), VLOOKUP($C115, Metadata!$W$4:$Y$16, 3, FALSE)) -> 2.905e-05 | G115: FALSE | H115: TRUE | I115: FALSE | J115: FALSE | K115: =GIThull_c_MonthlyMinWith -> 50 | M115: =IF(E115 = 0, 0, MAX((E115 * F115) * (IF(H115 = TRUE, 1 - 'Loss Limit Discount'!$D$93, 1) * (1 - Voluntary_Deductible) * (1 - Co_insurance)), K115)) -> 0
A116: Goods In Transit | B116: GIT | C116: Single Bouy Moorings | D116: Goods In Transit | F116: =IF($B$111 = "With RSCC", VLOOKUP($C116, Metadata!$W$4:$Y$16, 2, FALSE), VLOOKUP($C116, Metadata!$W$4:$Y$16, 3, FALSE)) -> 3.424e-05 | G116: FALSE | H116: TRUE | I116: FALSE | J116: FALSE | K116: =GIThull_d_MonthlyMinWith -> 50 | M116: =IF(E116 = 0, 0, MAX((E116 * F116) * (IF(H116 = TRUE, 1 - 'Loss Limit Discount'!$D$93, 1) * (1 - Voluntary_Deductible) * (1 - Co_insurance)), K116)) -> 0
B118: Contract Work / Construction Plant
B119: Contract Works
A120: Contract Works | B120: CW | C120: =Input!$I$16 -> Open | D120: Contract Works | F120: =CW_OnWorks_Monthly -> 1.133e-05 | G120: FALSE | H120: FALSE | I120: TRUE | J120: TRUE | K120: =CW_OnWorks_MonthlyMin -> 50 | L120: FALSE | M120: =IF(E120 = 0, 0, MAX((E120 * F120) * (IF(H120 = TRUE, 1 - 'Loss Limit Discount'!$D$93, 1)) * (IF(J120 = TRUE, 1 - 'Contract Works Discount'!$D$102, 1) * (1 - Voluntary_Deductible) * (1 - Co_insurance)), K120)) -> 0
B121: Construction plant
A122: Contract Works | B122: CW | C122: On Fee Basis | D122: Contract Works | F122: =CW_OnFees_Monthly -> 0.00038376 | G122: FALSE | H122: FALSE | I122: FALSE | J122: FALSE | K122: =CW_OnFees_MonthlyMin -> 50 | L122: FALSE | M122: =IF(E122 = 0, 0, MAX((E122 * F122) * (IF(H122 = TRUE, 1 - 'Loss Limit Discount'!$D$93, 1)) * (IF(J122 = TRUE, 1 - 'Contract Works Discount'!$D$102, 1) * (1 - Voluntary_Deductible) * (1 - Co_insurance)), K122)) -> 0
A123: Contract Works | B123: CW | C123: On Value Basis | D123: Contract Works | F123: =CW_OnValue_Monthly -> 0.00011326 | G123: FALSE | H123: FALSE | I123: FALSE | J123: FALSE | K123: =CW_OnValue_MonthlyMin -> 50 | L123: FALSE | M123: =IF(E123 = 0, 0, MAX((E123 * F123) * (IF(H123 = TRUE, 1 - 'Loss Limit Discount'!$D$93, 1)) * (IF(J123 = TRUE, 1 - 'Contract Works Discount'!$D$102, 1) * (1 - Voluntary_Deductible) * (1 - Co_insurance)), K123)) -> 0
B124: Mobile plant
A125: Contract Works | B125: CW | C125: On Value Basis | D125: Contract Works | F125: =$F$123 -> 0.00011326 | G125: FALSE | H125: FALSE | I125: FALSE | J125: FALSE | K125: =CW_OnValue_MonthlyMin -> 50 | L125: FALSE | M125: =IF(E125 = 0, 0, MAX((E125 * F125) * (IF(H125 = TRUE, 1 - 'Loss Limit Discount'!$D$93, 1)) * (IF(J125 = TRUE, 1 - 'Contract Works Discount'!$D$102, 1) * (1 - Voluntary_Deductible) * (1 - Co_insurance)), K125)) -> 0

Sheet Commercial - Annual
A1: Commercial Annual | O1: Cells with green borders have a dropdown selection!
A2: Category | B2: Code | C2: Description | D2: Total Code | E2: Sum Insured/No. of insured items | F2: Rate | G2: Add To Sum Insured Discount | H2: Receive Sum Insured Discount | I2: Add To CW Discount | J2: Receive CW Discount | K2: Minimum Premium | L2: Has Fire Extension Discount | M2: Premium
B3: Fire
A4: Commercial Fire | B4: F2 | C4: Commercial Fire | D4: Fire | F4: =F2_Annual -> 0.00039228 | G4: TRUE | H4: TRUE | I4: FALSE | J4: FALSE | K4: =F2_AnnualMin -> 500 | L4: FALSE | M4: =IF(E4 = 0, 0, MAX(((E4 * F4) * (IF(H4 = TRUE, 1 - 'Loss Limit Discount'!$D$93, 1))) * (1 - Voluntary_Deductible) * (1 - Co_insurance), K4)) -> 0
A5: Commercial Fire | B5: F4 | C5: Fire - SME | D5: Fire | F5: =_xlfn.IFNA(VLOOKUP(E5, Metadata!$P$43:$Q$46, 2, FALSE), 0) -> 0 | G5: FALSE | H5: FALSE | I5: FALSE | J5: FALSE | K5: =F5 -> 0 | M5: =F5 -> 0
A6: Extensions | B6: Sasria Extensions
A7: Extensions | B7: =IFERROR(RANK($P7, $P$7:$P$66, 1), "") ->  | C7: Rent | D7: Fire | F7: =$F$4 -> 0.00039228 | G7: TRUE | H7: TRUE | I7: FALSE | J7: FALSE | K7: 0 | L7: TRUE | M7: =IF(E7 = 0, 0, MAX(((VLOOKUP($B7, CA_NonFreeExt, 60, FALSE) * F7) * (IF(H7 = TRUE, 1 - 'Loss Limit Discount'!$D$93, 1))) * (1 - Voluntary_Deductible), K7)) -> 0 | O7: =MyTimestamp(E7) ->  | P7: =IFERROR(VALUE(O7), "") -> 
A8: Extensions | C8: Claims Preparation Costs | D8: Fire | F8: =$F$4 -> 0.00039228 | G8: TRUE | H8: TRUE | I8: FALSE | J8: FALSE | K8: 0 | L8: TRUE | M8: =IF(E8 = 0, 0, MAX(((VLOOKUP($B8, CA_NonFreeExt, 60, FALSE) * F8) * (IF(H8 = TRUE, 1 - 'Loss Limit Discount'!$D$93, 1))) * (1 - Voluntary_Deductible), K8)) -> 0 | O8: =MyTimestamp(E8) ->  | P8: =IFERROR(VALUE(O8), "") -> 
A9: Extensions | C9: Capital Additions | D9: Fire | F9: 0.00039228 | G9: TRUE | H9: TRUE | I9: FALSE | J9: FALSE | K9: 0 | L9: TRUE | M9: =IF(E9 = 0, 0, MAX(((VLOOKUP($B9, CA_NonFreeExt, 60, FALSE) * F9) * (IF(H9 = TRUE, 1 - 'Loss Limit Discount'!$D$93, 1))) * (1 - Voluntary_Deductible), K9)) -> 0 | O9: =MyTimestamp(E9) -> 
A10: Extensions | C10: Professional fees | D10: Fire | F10: 0.00039228 | G10: TRUE | H10: TRUE | I10: FALSE | J10: FALSE | K10: 0 | L10: TRUE | M10: =IF(E10 = 0, 0, MAX(((VLOOKUP($B10, CA_NonFreeExt, 60, FALSE) * F10) * (IF(H10 = TRUE, 1 - 'Loss Limit Discount'!$D$93, 1))) * (1 - Voluntary_Deductible), K10)) -> 0 | O10: =MyTimestamp(E10) -> 
A11: Extensions | C11: Clearance costs | D11: Fire | F11: 0.00039228 | G11: TRUE | H11: TRUE | I11: FALSE | J11: FALSE | K11: 0 | L11: TRUE | M11: =IF(E11 = 0, 0, MAX(((VLOOKUP($B11, CA_NonFreeExt, 60, FALSE) * F11) * (IF(H11 = TRUE, 1 - 'Loss Limit Discount'!$D$93, 1))) * (1 - Voluntary_Deductible), K11)) -> 0 | O11: =MyTimestamp(E11) -> 
A12: Extensions | C12: Security Costs (During and after a loss) | D12: Fire | F12: 0.00039228 | G12: TRUE | H12: TRUE | I12: FALSE | J12: FALSE | K12: 0 | L12: TRUE | M12: =IF(E12 = 0, 0, MAX(((VLOOKUP($B12, CA_NonFreeExt, 60, FALSE) * F12) * (IF(H12 = TRUE, 1 - 'Loss Limit Discount'!$D$93, 1))) * (1 - Voluntary_Deductible), K12)) -> 0 | O12: =MyTimestamp(E12) -> 
A13: Extensions | C13: Statutory Duties | D13: Fire | F13: 0.00039228 | G13: TRUE | H13: TRUE | I13: FALSE | J13: FALSE | K13: 0 | L13: TRUE | M13: =IF(E13 = 0, 0, MAX(((VLOOKUP($B13, CA_NonFreeExt, 60, FALSE) * F13) * (IF(H13 = TRUE, 1 - 'Loss Limit Discount'!$D$93, 1))) * (1 - Voluntary_Deductible), K13)) -> 0 | O13: =MyTimestamp(E13) -> 
A14: Extensions | C14: Additional Premises | D14: Fire | F14: 0.00039228 | G14: TRUE | H14: TRUE | I14: FALSE | J14: FALSE | K14: 0 | L14: TRUE | M14: =IF(E14 = 0, 0, MAX(((VLOOKUP($B14, CA_NonFreeExt, 60, FALSE) * F14) * (IF(H14 = TRUE, 1 - 'Loss Limit Discount'!$D$93, 1))) * (1 - Voluntary_Deductible), K14)) -> 0 | O14: =MyTimestamp(E14) -> 
A15: Extensions | C15: Acquisitions | D15: Fire | F15: 0.00039228 | G15: TRUE | H15: TRUE | I15: FALSE | J15: FALSE | K15: 0 | L15: TRUE | M15: =IF(E15 = 0, 0, MAX(((VLOOKUP($B15, CA_NonFreeExt, 60, FALSE) * F15) * (IF(H15 = TRUE, 1 - 'Loss Limit Discount'!$D$93, 1))) * (1 - Voluntary_Deductible), K15)) -> 0 | O15: =MyTimestamp(E15) -> 
A16: Extensions | C16: Import Surcharges | D16: Fire | F16: 0.00039228 | G16: TRUE | H16: TRUE | I16: FALSE | J16: FALSE | K16: 0 | L16: TRUE | M16: =IF(E16 = 0, 0, MAX(((VLOOKUP($B16, CA_NonFreeExt, 60, FALSE) * F16) * (IF(H16 = TRUE, 1 - 'Loss Limit Discount'!$D$93, 1))) * (1 - Voluntary_Deductible), K16)) -> 0 | O16: =MyTimestamp(E16) -> 
A17: Extensions | C17: Property in the course of Construction | D17: Fire | F17: 0.00039228 | G17: FALSE | H17: FALSE | I17: FALSE | J17: FALSE | K17: 0 | L17: TRUE | M17: =IF(E17 = 0, 0, MAX(((VLOOKUP($B17, CA_NonFreeExt, 60, FALSE) * F17) * (IF(H17 = TRUE, 1 - 'Loss Limit Discount'!$D$93, 1))) * (1 - Voluntary_Deductible), K17)) -> 0 | O17: =MyTimestamp(E17) ->  | P17: =IFERROR(VALUE(O17), "") -> 
A18: Extensions | C18: Fire Protection System Update | D18: Fire | F18: 0.00039228 | G18: TRUE | H18: TRUE | I18: FALSE | J18: FALSE | K18: 0 | L18: TRUE | M18: =IF(E18 = 0, 0, MAX(((VLOOKUP($B18, CA_NonFreeExt, 60, FALSE) * F18) * (IF(H18 = TRUE, 1 - 'Loss Limit Discount'!$D$93, 1))) * (1 - Voluntary_Deductible), K18)) -> 0 | O18: =MyTimestamp(E18) -> 
A19: Extensions | C19: Accumulation of Motor Vehicles/Static Risk | D19: Fire | F19: =StaticRisk_Annual -> 0.00081648 | G19: FALSE | H19: FALSE | I19: FALSE | J19: FALSE | K19: =StaticRisk_AnnualMin -> 500 | L19: TRUE | M19: =IF(E19 = 0, 0, MAX(((E19 * F19) * (IF(H19 = TRUE, 1 - 'Loss Limit Discount'!$D$93, 1))) * (1 - Voluntary_Deductible), K19)) -> 0
A20: Extensions | C20: Goods in the open | D20: Fire | F20: =$F$4 -> 0.00039228 | G20: TRUE | H20: TRUE | I20: FALSE | J20: FALSE | K20: 0 | L20: TRUE | M20: =IF(E20 = 0, 0, MAX(((VLOOKUP($B20, CA_NonFreeExt, 60, FALSE) * F20) * (IF(H20 = TRUE, 1 - 'Loss Limit Discount'!$D$93, 1))) * (1 - Voluntary_Deductible), K20)) -> 0 | O20: =MyTimestamp(E20) -> 
A21: Extensions | C21: Fire Extinguishing | D21: Fire | F21: 0.00039228 | G21: TRUE | H21: TRUE | I21: FALSE | J21: FALSE | K21: 0 | L21: TRUE | M21: =IF(E21 = 0, 0, MAX(((VLOOKUP($B21, CA_NonFreeExt, 60, FALSE) * F21) * (IF(H21 = TRUE, 1 - 'Loss Limit Discount'!$D$93, 1))) * (1 - Voluntary_Deductible), K21)) -> 0 | O21: =MyTimestamp(E21) -> 
A22: Extensions | C22: Imminent Danger (Protection of property prior a loss) | D22: Fire | F22: 0.00039228 | G22: TRUE | H22: TRUE | I22: FALSE | J22: FALSE | K22: 0 | L22: FALSE | M22: =IF(E22 = 0, 0, MAX(((E22 * F22) * (IF(H22 = TRUE, 1 - 'Loss Limit Discount'!$D$93, 1))) * (1 - Voluntary_Deductible), K22)) -> 0
A23: Extensions | B23: Other Extensions
A24: Other Extension | B24: =IFERROR(RANK($P24, $P$7:$P$66, 1), "") ->  | C24: Other | D24: Fire | F24: =$F$4 -> 0.00039228 | G24: TRUE | H24: TRUE | I24: FALSE | J24: FALSE | K24: 0 | L24: TRUE | M24: =IF(E24 = 0, 0, MAX(((VLOOKUP($B24, CA_NonFreeExt, 60, FALSE) * F24) * (IF(H24 = TRUE, 1 - 'Loss Limit Discount'!$D$93, 1))) * (1 - Voluntary_Deductible), K24)) -> 0 | O24: =MyTimestamp(E24) -> 
A25: Other Extension | C25: Other | D25: Fire | F25: 0.00039228 | G25: TRUE | H25: TRUE | I25: FALSE | J25: FALSE | K25: 0 | L25: TRUE | M25: =IF(E25 = 0, 0, MAX(((VLOOKUP($B25, CA_NonFreeExt, 60, FALSE) * F25) * (IF(H25 = TRUE, 1 - 'Loss Limit Discount'!$D$93, 1))) * (1 - Voluntary_Deductible), K25)) -> 0 | O25: =MyTimestamp(E25) -> 
A26: Other Extension | C26: Other | D26: Fire | F26: 0.00039228 | G26: TRUE | H26: TRUE | I26: FALSE | J26: FALSE | K26: 0 | L26: TRUE | M26: =IF(E26 = 0, 0, MAX(((VLOOKUP($B26, CA_NonFreeExt, 60, FALSE) * F26) * (IF(H26 = TRUE, 1 - 'Loss Limit Discount'!$D$93, 1))) * (1 - Voluntary_Deductible), K26)) -> 0 | O26: =MyTimestamp(E26) -> 
A27: Other Extension | C27: Other | D27: Fire | F27: 0.00039228 | G27: TRUE | H27: TRUE | I27: FALSE | J27: FALSE | K27: 0 | L27: TRUE | M27: =IF(E27 = 0, 0, MAX(((VLOOKUP($B27, CA_NonFreeExt, 60, FALSE) * F27) * (IF(H27 = TRUE, 1 - 'Loss Limit Discount'!$D$93, 1))) * (1 - Voluntary_Deductible), K27)) -> 0 | O27: =MyTimestamp(E27) -> 
A28: Other Extension | C28: Other | D28: Fire | F28: 0.00039228 | G28: TRUE | H28: TRUE | I28: FALSE | J28: FALSE | K28: 0 | L28: TRUE | M28: =IF(E28 = 0, 0, MAX(((VLOOKUP($B28, CA_NonFreeExt, 60, FALSE) * F28) * (IF(H28 = TRUE, 1 - 'Loss Limit Discount'!$D$93, 1))) * (1 - Voluntary_Deductible), K28)) -> 0 | O28: =MyTimestamp(E28) -> 
A29: Other Extension | C29: Other | D29: Fire | F29: 0.00039228 | G29: TRUE | H29: TRUE | I29: FALSE | J29: FALSE | K29: 0 | L29: TRUE | M29: =IF(E29 = 0, 0, MAX(((VLOOKUP($B29, CA_NonFreeExt, 60, FALSE) * F29) * (IF(H29 = TRUE, 1 - 'Loss Limit Discount'!$D$93, 1))) * (1 - Voluntary_Deductible), K29)) -> 0 | O29: =MyTimestamp(E29) -> 
A30: Other Extension | C30: Other | D30: Fire | F30: 0.00039228 | G30: TRUE | H30: TRUE | I30: FALSE | J30: FALSE | K30: 0 | L30: TRUE | M30: =IF(E30 = 0, 0, MAX(((VLOOKUP($B30, CA_NonFreeExt, 60, FALSE) * F30) * (IF(H30 = TRUE, 1 - 'Loss Limit Discount'!$D$93, 1))) * (1 - Voluntary_Deductible), K30)) -> 0 | O30: =MyTimestamp(E30) -> 
A31: Other Extension | C31: Other | D31: Fire | F31: 0.00039228 | G31: TRUE | H31: TRUE | I31: FALSE | J31: FALSE | K31: 0 | L31: TRUE | M31: =IF(E31 = 0, 0, MAX(((VLOOKUP($B31, CA_NonFreeExt, 60, FALSE) * F31) * (IF(H31 = TRUE, 1 - 'Loss Limit Discount'!$D$93, 1))) * (1 - Voluntary_Deductible), K31)) -> 0 | O31: =MyTimestamp(E31) -> 
A32: Other Extension | C32: Other | D32: Fire | F32: 0.00039228 | G32: TRUE | H32: TRUE | I32: FALSE | J32: FALSE | K32: 0 | L32: TRUE | M32: =IF(E32 = 0, 0, MAX(((VLOOKUP($B32, CA_NonFreeExt, 60, FALSE) * F32) * (IF(H32 = TRUE, 1 - 'Loss Limit Discount'!$D$93, 1))) * (1 - Voluntary_Deductible), K32)) -> 0 | O32: =MyTimestamp(E32) -> 
A33: Other Extension | C33: Other | D33: Fire | F33: 0.00039228 | G33: TRUE | H33: TRUE | I33: FALSE | J33: FALSE | K33: 0 | L33: TRUE | M33: =IF(E33 = 0, 0, MAX(((VLOOKUP($B33, CA_NonFreeExt, 60, FALSE) * F33) * (IF(H33 = TRUE, 1 - 'Loss Limit Discount'!$D$93, 1))) * (1 - Voluntary_Deductible), K33)) -> 0 | O33: =MyTimestamp(E33) -> 
A34: Other Extension | C34: Other | D34: Fire | F34: 0.00039228 | G34: TRUE | H34: TRUE | I34: FALSE | J34: FALSE | K34: 0 | L34: TRUE | M34: =IF(E34 = 0, 0, MAX(((VLOOKUP($B34, CA_NonFreeExt, 60, FALSE) * F34) * (IF(H34 = TRUE, 1 - 'Loss Limit Discount'!$D$93, 1))) * (1 - Voluntary_Deductible), K34)) -> 0 | O34: =MyTimestamp(E34) -> 
A35: Other Extension | C35: Other | D35: Fire | F35: 0.00039228 | G35: TRUE | H35: TRUE | I35: FALSE | J35: FALSE | K35: 0 | L35: TRUE | M35: =IF(E35 = 0, 0, MAX(((VLOOKUP($B35, CA_NonFreeExt, 60, FALSE) * F35) * (IF(H35 = TRUE, 1 - 'Loss Limit Discount'!$D$93, 1))) * (1 - Voluntary_Deductible), K35)) -> 0 | O35: =MyTimestamp(E35) -> 
A36: Other Extension | C36: Other | D36: Fire | F36: 0.00039228 | G36: TRUE | H36: TRUE | I36: FALSE | J36: FALSE | K36: 0 | L36: TRUE | M36: =IF(E36 = 0, 0, MAX(((VLOOKUP($B36, CA_NonFreeExt, 60, FALSE) * F36) * (IF(H36 = TRUE, 1 - 'Loss Limit Discount'!$D$93, 1))) * (1 - Voluntary_Deductible), K36)) -> 0 | O36: =MyTimestamp(E36) -> 
A37: Other Extension | C37: Other | D37: Fire | F37: 0.00039228 | G37: TRUE | H37: TRUE | I37: FALSE | J37: FALSE | K37: 0 | L37: TRUE | M37: =IF(E37 = 0, 0, MAX(((VLOOKUP($B37, CA_NonFreeExt, 60, FALSE) * F37) * (IF(H37 = TRUE, 1 - 'Loss Limit Discount'!$D$93, 1))) * (1 - Voluntary_Deductible), K37)) -> 0 | O37: =MyTimestamp(E37) -> 
A38: Other Extension | C38: Other | D38: Fire | F38: 0.00039228 | G38: TRUE | H38: TRUE | I38: FALSE | J38: FALSE | K38: 0 | L38: TRUE | M38: =IF(E38 = 0, 0, MAX(((VLOOKUP($B38, CA_NonFreeExt, 60, FALSE) * F38) * (IF(H38 = TRUE, 1 - 'Loss Limit Discount'!$D$93, 1))) * (1 - Voluntary_Deductible), K38)) -> 0 | O38: =MyTimestamp(E38) -> 
A39: Other Extension | C39: Other | D39: Fire | F39: 0.00039228 | G39: TRUE | H39: TRUE | I39: FALSE | J39: FALSE | K39: 0 | L39: TRUE | M39: =IF(E39 = 0, 0, MAX(((VLOOKUP($B39, CA_NonFreeExt, 60, FALSE) * F39) * (IF(H39 = TRUE, 1 - 'Loss Limit Discount'!$D$93, 1))) * (1 - Voluntary_Deductible), K39)) -> 0 | O39: =MyTimestamp(E39) -> 
A40: Other Extension | C40: Other | D40: Fire | F40: 0.00039228 | G40: TRUE | H40: TRUE | I40: FALSE | J40: FALSE | K40: 0 | L40: TRUE | M40: =IF(E40 = 0, 0, MAX(((VLOOKUP($B40, CA_NonFreeExt, 60, FALSE) * F40) * (IF(H40 = TRUE, 1 - 'Loss Limit Discount'!$D$93, 1))) * (1 - Voluntary_Deductible), K40)) -> 0 | O40: =MyTimestamp(E40) -> 
A41: Other Extension | C41: Other | D41: Fire | F41: 0.00039228 | G41: TRUE | H41: TRUE | I41: FALSE | J41: FALSE | K41: 0 | L41: TRUE | M41: =IF(E41 = 0, 0, MAX(((VLOOKUP($B41, CA_NonFreeExt, 60, FALSE) * F41) * (IF(H41 = TRUE, 1 - 'Loss Limit Discount'!$D$93, 1))) * (1 - Voluntary_Deductible), K41)) -> 0 | O41: =MyTimestamp(E41) -> 
A42: Other Extension | C42: Other | D42: Fire | F42: 0.00039228 | G42: TRUE | H42: TRUE | I42: FALSE | J42: FALSE | K42: 0 | L42: TRUE | M42: =IF(E42 = 0, 0, MAX(((VLOOKUP($B42, CA_NonFreeExt, 60, FALSE) * F42) * (IF(H42 = TRUE, 1 - 'Loss Limit Discount'!$D$93, 1))) * (1 - Voluntary_Deductible), K42)) -> 0 | O42: =MyTimestamp(E42) -> 
A43: Other Extension | C43: Other | D43: Fire | F43: 0.00039228 | G43: TRUE | H43: TRUE | I43: FALSE | J43: FALSE | K43: 0 | L43: TRUE | M43: =IF(E43 = 0, 0, MAX(((VLOOKUP($B43, CA_NonFreeExt, 60, FALSE) * F43) * (IF(H43 = TRUE, 1 - 'Loss Limit Discount'!$D$93, 1))) * (1 - Voluntary_Deductible), K43)) -> 0 | O43: =MyTimestamp(E43) -> 
A44: Other Extension | C44: Other | D44: Fire | F44: 0.00039228 | G44: TRUE | H44: TRUE | I44: FALSE | J44: FALSE | K44: 0 | L44: TRUE | M44: =IF(E44 = 0, 0, MAX(((VLOOKUP($B44, CA_NonFreeExt, 60, FALSE) * F44) * (IF(H44 = TRUE, 1 - 'Loss Limit Discount'!$D$93, 1))) * (1 - Voluntary_Deductible), K44)) -> 0 | O44: =MyTimestamp(E44) -> 
A45: Other Extension | C45: Other | D45: Fire | F45: 0.00039228 | G45: TRUE | H45: TRUE | I45: FALSE | J45: FALSE | K45: 0 | L45: TRUE | M45: =IF(E45 = 0, 0, MAX(((VLOOKUP($B45, CA_NonFreeExt, 60, FALSE) * F45) * (IF(H45 = TRUE, 1 - 'Loss Limit Discount'!$D$93, 1))) * (1 - Voluntary_Deductible), K45)) -> 0 | O45: =MyTimestamp(E45) -> 
A46: Other Extension | C46: Other | D46: Fire | F46: 0.00039228 | G46: TRUE | H46: TRUE | I46: FALSE | J46: FALSE | K46: 0 | L46: TRUE | M46: =IF(E46 = 0, 0, MAX(((VLOOKUP($B46, CA_NonFreeExt, 60, FALSE) * F46) * (IF(H46 = TRUE, 1 - 'Loss Limit Discount'!$D$93, 1))) * (1 - Voluntary_Deductible), K46)) -> 0 | O46: =MyTimestamp(E46) -> 
A47: Other Extension | C47: Other | D47: Fire | F47: 0.00039228 | G47: TRUE | H47: TRUE | I47: FALSE | J47: FALSE | K47: 0 | L47: TRUE | M47: =IF(E47 = 0, 0, MAX(((VLOOKUP($B47, CA_NonFreeExt, 60, FALSE) * F47) * (IF(H47 = TRUE, 1 - 'Loss Limit Discount'!$D$93, 1))) * (1 - Voluntary_Deductible), K47)) -> 0 | O47: =MyTimestamp(E47) -> 
A48: Other Extension | C48: Other | D48: Fire | F48: 0.00039228 | G48: TRUE | H48: TRUE | I48: FALSE | J48: FALSE | K48: 0 | L48: TRUE | M48: =IF(E48 = 0, 0, MAX(((VLOOKUP($B48, CA_NonFreeExt, 60, FALSE) * F48) * (IF(H48 = TRUE, 1 - 'Loss Limit Discount'!$D$93, 1))) * (1 - Voluntary_Deductible), K48)) -> 0 | O48: =MyTimestamp(E48) -> 
A49: Other Extension | C49: Other | D49: Fire | F49: 0.00039228 | G49: TRUE | H49: TRUE | I49: FALSE | J49: FALSE | K49: 0 | L49: TRUE | M49: =IF(E49 = 0, 0, MAX(((VLOOKUP($B49, CA_NonFreeExt, 60, FALSE) * F49) * (IF(H49 = TRUE, 1 - 'Loss Limit Discount'!$D$93, 1))) * (1 - Voluntary_Deductible), K49)) -> 0 | O49: =MyTimestamp(E49) -> 
A50: Other Extension | C50: Other | D50: Fire | F50: 0.00039228 | G50: TRUE | H50: TRUE | I50: FALSE | J50: FALSE | K50: 0 | L50: TRUE | M50: =IF(E50 = 0, 0, MAX(((VLOOKUP($B50, CA_NonFreeExt, 60, FALSE) * F50) * (IF(H50 = TRUE, 1 - 'Loss Limit Discount'!$D$93, 1))) * (1 - Voluntary_Deductible), K50)) -> 0 | O50: =MyTimestamp(E50) -> 
A51: Other Extension | C51: Other | D51: Fire | F51: 0.00039228 | G51: TRUE | H51: TRUE | I51: FALSE | J51: FALSE | K51: 0 | L51: TRUE | M51: =IF(E51 = 0, 0, MAX(((VLOOKUP($B51, CA_NonFreeExt, 60, FALSE) * F51) * (IF(H51 = TRUE, 1 - 'Loss Limit Discount'!$D$93, 1))) * (1 - Voluntary_Deductible), K51)) -> 0 | O51: =MyTimestamp(E51) -> 
A52: Other Extension | C52: Other | D52: Fire | F52: 0.00039228 | G52: TRUE | H52: TRUE | I52: FALSE | J52: FALSE | K52: 0 | L52: TRUE | M52: =IF(E52 = 0, 0, MAX(((VLOOKUP($B52, CA_NonFreeExt, 60, FALSE) * F52) * (IF(H52 = TRUE, 1 - 'Loss Limit Discount'!$D$93, 1))) * (1 - Voluntary_Deductible), K52)) -> 0 | O52: =MyTimestamp(E52) -> 
A53: Other Extension | C53: Other | D53: Fire | F53: 0.00039228 | G53: TRUE | H53: TRUE | I53: FALSE | J53: FALSE | K53: 0 | L53: TRUE | M53: =IF(E53 = 0, 0, MAX(((VLOOKUP($B53, CA_NonFreeExt, 60, FALSE) * F53) * (IF(H53 = TRUE, 1 - 'Loss Limit Discount'!$D$93, 1))) * (1 - Voluntary_Deductible), K53)) -> 0 | O53: =MyTimestamp(E53) -> 
B54: Escalation and or Inflation
A55: Escalation UL | B55: Charge on U/L
A56: Escalation UL | B56: =IFERROR(RANK($P56, $P$7:$P$66, 1), "") ->  | C56: First Year (90-100%) | D56: Fire | F56: =IF(C56 = "", 0, VLOOKUP(C56, Escalation!$H$59:$I$103, 2, FALSE)) -> 0.00039228 | G56: FALSE | H56: TRUE | I56: FALSE | J56: FALSE | K56: 0 | L56: TRUE | M56: =IF(E56 = 0, 0, MAX(((VLOOKUP($B56, CA_NonFreeExt, 60, FALSE) * F56) * (IF(H56 = TRUE, 1 - 'Loss Limit Discount'!$D$93, 1))) * (1 - Voluntary_Deductible), K56)) -> 0 | O56: =MyTimestamp(E56) -> 
A57: Escalation UL | B57: =IFERROR(RANK($P57, $P$7:$P$66, 1), "") ->  | C57: Second Year (90-100%) | D57: Fire | F57: =IF(C57 = "", 0, VLOOKUP(C57, Escalation!$H$59:$I$103, 2, FALSE)) -> 0.00019614 | G57: FALSE | H57: TRUE | I57: FALSE | J57: FALSE | K57: 0 | L57: TRUE | M57: =IF(E57 = 0, 0, MAX(((VLOOKUP($B57, CA_NonFreeExt, 60, FALSE) * F57) * (IF(H57 = TRUE, 1 - 'Loss Limit Discount'!$D$93, 1))) * (1 - Voluntary_Deductible), K57)) -> 0 | O57: =MyTimestamp(E57) -> 
A58: Escalation UL | B58: =IFERROR(RANK($P58, $P$7:$P$66, 1), "") ->  | C58: Third Year (90-100%) | D58: Fire | F58: =IF(C58 = "", 0, VLOOKUP(C58, Escalation!$H$59:$I$103, 2, FALSE)) -> 9.807e-05 | G58: FALSE | H58: TRUE | I58: FALSE | J58: FALSE | K58: 0 | L58: TRUE | M58: =IF(E58 = 0, 0, MAX(((VLOOKUP($B58, CA_NonFreeExt, 60, FALSE) * F58) * (IF(H58 = TRUE, 1 - 'Loss Limit Discount'!$D$93, 1))) * (1 - Voluntary_Deductible), K58)) -> 0 | O58: =MyTimestamp(E58) -> 
A59: Escalation UL | B59: =IFERROR(RANK($P59, $P$7:$P$66, 1), "") ->  | C59: Fourth Year (90-100%) | D59: Fire | F59: =IF(C59 = "", 0, VLOOKUP(C59, Escalation!$H$59:$I$103, 2, FALSE)) -> 7.8456e-05 | G59: FALSE | H59: TRUE | I59: FALSE | J59: FALSE | K59: 0 | L59: TRUE | M59: =IF(E59 = 0, 0, MAX(((VLOOKUP($B59, CA_NonFreeExt, 60, FALSE) * F59) * (IF(H59 = TRUE, 1 - 'Loss Limit Discount'!$D$93, 1))) * (1 - Voluntary_Deductible), K59)) -> 0 | O59: =MyTimestamp(E59) -> 
A60: Escalation UL | B60: =IFERROR(RANK($P60, $P$7:$P$66, 1), "") ->  | C60: Fifth Year (90-100%) | D60: Fire | F60: =IF(C60 = "", 0, VLOOKUP(C60, Escalation!$H$59:$I$103, 2, FALSE)) -> 5.8842e-05 | G60: FALSE | H60: TRUE | I60: FALSE | J60: FALSE | K60: 0 | L60: TRUE | M60: =IF(E60 = 0, 0, MAX(((VLOOKUP($B60, CA_NonFreeExt, 60, FALSE) * F60) * (IF(H60 = TRUE, 1 - 'Loss Limit Discount'!$D$93, 1))) * (1 - Voluntary_Deductible), K60)) -> 0 | O60: =MyTimestamp(E60) -> 
A61: Escalation Not UL | B61: Not Charge on U/L
A62: Escalation Not UL | B62: =IFERROR(RANK($P62, $P$7:$P$66, 1), "") ->  | C62: First Year | D62: Fire | F62: =$F$4 -> 0.00039228 | G62: FALSE | H62: TRUE | I62: FALSE | J62: FALSE | K62: 0 | L62: TRUE | M62: =IF(E62 = 0, 0, MAX(((VLOOKUP($B62, CA_NonFreeExt, 60, FALSE) * F62) * (IF(H62 = TRUE, 1 - 'Loss Limit Discount'!$D$93, 1))) * (1 - Voluntary_Deductible), K62)) -> 0 | O62: =MyTimestamp(E62) -> 
A63: Escalation Not UL | B63: =IFERROR(RANK($P63, $P$7:$P$66, 1), "") ->  | C63: Second Year | D63: Fire | F63: =$F$4 * 0.5 -> 0.00019614 | G63: FALSE | H63: TRUE | I63: FALSE | J63: FALSE | K63: 0 | L63: TRUE | M63: =IF(E63 = 0, 0, MAX(((VLOOKUP($B63, CA_NonFreeExt, 60, FALSE) * F63) * (IF(H63 = TRUE, 1 - 'Loss Limit Discount'!$D$93, 1))) * (1 - Voluntary_Deductible), K63)) -> 0 | O63: =MyTimestamp(E63) -> 
A64: Escalation Not UL | B64: =IFERROR(RANK($P64, $P$7:$P$66, 1), "") ->  | C64: Third Year | D64: Fire | F64: =$F$4 * 0.25 -> 9.807e-05 | G64: FALSE | H64: TRUE | I64: FALSE | J64: FALSE | K64: 0 | L64: TRUE | M64: =IF(E64 = 0, 0, MAX(((VLOOKUP($B64, CA_NonFreeExt, 60, FALSE) * F64) * (IF(H64 = TRUE, 1 - 'Loss Limit Discount'!$D$93, 1))) * (1 - Voluntary_Deductible), K64)) -> 0 | O64: =MyTimestamp(E64) -> 
A65: Escalation Not UL | B65: =IFERROR(RANK($P65, $P$7:$P$66, 1), "") ->  | C65: Fourth Year | D65: Fire | F65: =$F$4 * 0.2 -> 7.8456e-05 | G65: FALSE | H65: TRUE | I65: FALSE | J65: FALSE | K65: 0 | L65: TRUE | M65: =IF(E65 = 0, 0, MAX(((VLOOKUP($B65, CA_NonFreeExt, 60, FALSE) * F65) * (IF(H65 = TRUE, 1 - 'Loss Limit Discount'!$D$93, 1))) * (1 - Voluntary_Deductible), K65)) -> 0 | O65: =MyTimestamp(E65) -> 
A66: Escalation Not UL | B66: =IFERROR(RANK($P66, $P$7:$P$66, 1), "") ->  | C66: Fifth Year | D66: Fire | F66: =$F$4 * 0.15 -> 5.8842e-05 | G66: FALSE | H66: TRUE | I66: FALSE | J66: FALSE | K66: 0 | L66: TRUE | M66: =IF(E66 = 0, 0, MAX(((VLOOKUP($B66, CA_NonFreeExt, 60, FALSE) * F66) * (IF(H66 = TRUE, 1 - 'Loss Limit Discount'!$D$93, 1))) * (1 - Voluntary_Deductible), K66)) -> 0 | O66: =MyTimestamp(E66) -> 
B68: Business Interruption
B69: Advance Specified Standing Charges
A70: Business Interruption | B70: ASC | C70: 12 Months | D70: Advance Standing Charges | F70: =_xlfn.IFNA(VLOOKUP(C70, Metadata!$P$2:$Q$5, 2, FALSE),0) -> 0.000864 | G70: FALSE | H70: FALSE | I70: TRUE | J70: TRUE | K70: =BI2_12M_AnnualMin -> 50 | L70: FALSE | M70: =IF(E70 = 0, 0, MAX((E70 * F70) * (IF(H70 = TRUE, 1 - 'Loss Limit Discount'!$D$93, 1)) * (IF(J70 = TRUE, 1 - 'Contract Works Discount'!$D$102, 1) * (1 - Voluntary_Deductible) * (1 - Co_insurance)), K70)) -> 0
B71: Specified Standing Charges
A72: Business Interruption | B72: SC | C72: 12 Months | D72: Standing Charges | F72: =_xlfn.IFNA(VLOOKUP(C72, Metadata!$P$7:$Q$14, 2, FALSE),0) -> 0.000864 | G72: TRUE | H72: TRUE | I72: FALSE | J72: FALSE | K72: =BI2_12M_AnnualMin -> 50 | L72: FALSE | M72: =IF(E72 = 0, 0, MAX((E72 * F72) * (IF(H72 = TRUE, 1 - 'Loss Limit Discount'!$D$93, 1)) * (IF(J72 = TRUE, 1 - 'Contract Works Discount'!$D$102, 1) * (1 - Voluntary_Deductible) * (1 - Co_insurance)), K72)) -> 0
A73: Business Interruption | B73: AICOW | C73: Additional Increase In Cost Of Working | D73: Standing Charges | F73: =F72 * 1.5 -> 0.001296 | G73: TRUE | H73: TRUE | I73: FALSE | J73: FALSE | K73: 0 | L73: FALSE | M73: =IF(E73 = 0, 0, MAX((E73 * F73) * (IF(H73 = TRUE, 1 - 'Loss Limit Discount'!$D$93, 1)) * (IF(J73 = TRUE, 1 - 'Contract Works Discount'!$D$102, 1) * (1 - Voluntary_Deductible) * (1 - Co_insurance)), K73)) -> 0
B74: Working Expenses
A75: Business Interruption | B75: WE | C75: 12 Months | D75: Working Expenses | F75: =_xlfn.IFNA(VLOOKUP(C75, Metadata!$P$16:$Q$23, 2, FALSE),0) -> 0.000864 | G75: TRUE | H75: TRUE | I75: FALSE | J75: FALSE | K75: =BI2_12M_AnnualMin -> 50 | L75: FALSE | M75: =IF(E75 = 0, 0, MAX((E75 * F75) * (IF(H75 = TRUE, 1 - 'Loss Limit Discount'!$D$93, 1)) * (IF(J75 = TRUE, 1 - 'Contract Works Discount'!$D$102, 1) * (1 - Voluntary_Deductible) * (1 - Co_insurance)), K75)) -> 0
A76: Business Interruption | B76: AICOW | C76: Additional Increase In Cost Of Working | D76: Working Expenses | F76: =F75 * 1.5 -> 0.001296 | G76: TRUE | H76: TRUE | I76: FALSE | J76: FALSE | K76: 0 | L76: FALSE | M76: =IF(E76 = 0, 0, MAX((E76 * F76) * (IF(H76 = TRUE, 1 - 'Loss Limit Discount'!$D$93, 1)) * (IF(J76 = TRUE, 1 - 'Contract Works Discount'!$D$102, 1) * (1 - Voluntary_Deductible) * (1 - Co_insurance)), K76)) -> 0
B77: Revenue
A78: Business Interruption | B78: R | C78: 12 Months | D78: Revenue | F78: =_xlfn.IFNA(VLOOKUP(C78, Metadata!$P$48:$Q$55, 2, FALSE),0) -> 0.000864 | G78: TRUE | H78: TRUE | I78: FALSE | J78: FALSE | K78: =BI2_12M_AnnualMin -> 50 | L78: FALSE | M78: =IF(E78 = 0, 0, MAX((E78 * F78) * (IF(H78 = TRUE, 1 - 'Loss Limit Discount'!$D$93, 1)) * (IF(J78 = TRUE, 1 - 'Contract Works Discount'!$D$102, 1) * (1 - Voluntary_Deductible) * (1 - Co_insurance)), K78)) -> 0
A79: Business Interruption | B79: AICOW | C79: Additional Increase In Cost Of Working | D79: Revenue | F79: =F78 * 1.5 -> 0.001296 | G79: TRUE | H79: TRUE | I79: FALSE | J79: FALSE | K79: 0 | L79: FALSE | M79: =IF(E79 = 0, 0, MAX((E79 * F79) * (IF(H79 = TRUE, 1 - 'Loss Limit Discount'!$D$93, 1)) * (IF(J79 = TRUE, 1 - 'Contract Works Discount'!$D$102, 1) * (1 - Voluntary_Deductible) * (1 - Co_insurance)), K79)) -> 0
B80: Net Profit
A81: Business Interruption | B81: NP | C81: 12 Months | D81: Net Profit | F81: =_xlfn.IFNA(VLOOKUP(C81, Metadata!$P$25:$Q$32, 2, FALSE),0) -> 0.000864 | G81: TRUE | H81: TRUE | I81: FALSE | J81: FALSE | K81: =BI2_12M_AnnualMin -> 50 | L81: FALSE | M81: =IF(E81 = 0, 0, MAX((E81 * F81) * (IF(H81 = TRUE, 1 - 'Loss Limit Discount'!$D$93, 1)) * (IF(J81 = TRUE, 1 - 'Contract Works Discount'!$D$102, 1) * (1 - Voluntary_Deductible) * (1 - Co_insurance)), K81)) -> 0
A82: Business Interruption | B82: AICOW | C82: Additional Increase In Cost Of Working | D82: Net Profit | F82: =F81 * 1.5 -> 0.001296 | G82: TRUE | H82: TRUE | I82: FALSE | J82: FALSE | K82: 0 | L82: FALSE | M82: =IF(E82 = 0, 0, MAX((E82 * F82) * (IF(H82 = TRUE, 1 - 'Loss Limit Discount'!$D$93, 1)) * (IF(J82 = TRUE, 1 - 'Contract Works Discount'!$D$102, 1) * (1 - Voluntary_Deductible) * (1 - Co_insurance)), K82)) -> 0
B83: Gross Profit
A84: Business Interruption | B84: GP | C84: 12 Months | D84: Gross Profit | F84: =_xlfn.IFNA(VLOOKUP(C84, Metadata!$P$34:$Q$41, 2, FALSE),0) -> 0.000864 | G84: TRUE | H84: TRUE | I84: FALSE | J84: FALSE | K84: =BI2_12M_AnnualMin -> 50 | L84: FALSE | M84: =IF(E84 = 0, 0, MAX((E84 * F84) * (IF(H84 = TRUE, 1 - 'Loss Limit Discount'!$D$93, 1)) * (IF(J84 = TRUE, 1 - 'Contract Works Discount'!$D$102, 1) * (1 - Voluntary_Deductible) * (1 - Co_insurance)), K84)) -> 0
A85: Business Interruption | B85: AICOW | C85: Additional Increase In Cost Of Working | D85: Gross Profit | F85: =F84 * 1.5 -> 0.001296 | G85: TRUE | H85: TRUE | I85: FALSE | J85: FALSE | K85: 0 | L85: FALSE | M85: =IF(E85 = 0, 0, MAX((E85 * F85) * (IF(H85 = TRUE, 1 - 'Loss Limit Discount'!$D$93, 1)) * (IF(J85 = TRUE, 1 - 'Contract Works Discount'!$D$102, 1) * (1 - Voluntary_Deductible) * (1 - Co_insurance)), K85)) -> 0
B88: Motor
A89: Motor | B89: M1 | C89: Cars (Primary use: Domestic/Private) | D89: Motor | F89: =M1_Annual -> 26.23 | G89: FALSE | H89: FALSE | I89: FALSE | J89: FALSE | K89: =M1_AnnualMin -> 26.23 | L89: FALSE | M89: =IF(E89 = 0, 0, MAX((F89 * E89) * (IF(H89 = TRUE, 1 - 'Loss Limit Discount'!$D$93, 1)) * (IF(J89 = TRUE, 1 - 'Contract Works Discount'!$L$11, 1) ), K89 * E89)) -> 0
A90: Motor | B90: M2 | C90: Light Commercial Vehicles (3500kg GVM or less) | D90: Motor | F90: =M2_Annual -> 0.00070621 | G90: FALSE | H90: FALSE | I90: FALSE | J90: FALSE | K90: =M2_AnnualMin -> 45.39 | L90: FALSE | M90: =IF(E90 = 0, 0, MAX((F90 * E90) * (IF(H90 = TRUE, 1 - 'Loss Limit Discount'!$D$93, 1)) * (IF(J90 = TRUE, 1 - 'Contract Works Discount'!$L$11, 1) ), K90)) -> 0
A91: Motor | B91: M3 | C91: Taxis | D91: Motor | F91: =M3_Annual -> 0.00035353 | G91: FALSE | H91: FALSE | I91: FALSE | J91: FALSE | K91: =M3_AnnualMin -> 45.39 | L91: FALSE | M91: =IF(E91 = 0, 0, MAX((F91 * E91) * (IF(H91 = TRUE, 1 - 'Loss Limit Discount'!$D$93, 1)) * (IF(J91 = TRUE, 1 - 'Contract Works Discount'!$L$11, 1) ), K91)) -> 0
A92: Motor | B92: M4 | C92: Ferries & Traders | D92: Motor | F92: =M4_Annual -> 8.68e-05 | G92: FALSE | H92: FALSE | I92: FALSE | J92: FALSE | K92: =M4_AnnualMin -> 100 | L92: FALSE | M92: =IF(E92 = 0, 0, MAX((E92 * F92) * (IF(H92 = TRUE, 1 - 'Loss Limit Discount'!$D$93, 1)) * (IF(J92 = TRUE, 1 - 'Contract Works Discount'!$L$11, 1) ), K92)) -> 0
A93: Motor | B93: M5 | C93: Buses | D93: Motor | F93: =M5_Annual -> 0.00751433 | G93: FALSE | H93: FALSE | I93: FALSE | J93: FALSE | K93: =M5_AnnualMin -> 2000 | L93: FALSE | M93: =IF(E93 = 0, 0, MAX((E93 * F93) * (IF(H93 = TRUE, 1 - 'Loss Limit Discount'!$D$93, 1)) * (IF(J93 = TRUE, 1 - 'Contract Works Discount'!$L$11, 1) ), K93)) -> 0
A94: Motor | B94: M6 | C94: Mobile Plant | D94: Motor | F94: =M6_Annual -> 0.00113256 | G94: FALSE | H94: FALSE | I94: FALSE | J94: FALSE | K94: =M6_AnnualMin -> 500 | L94: FALSE | M94: =IF(E94 = 0, 0, MAX((E94 * F94) * (IF(H94 = TRUE, 1 - 'Loss Limit Discount'!$D$93, 1)) * (IF(J94 = TRUE, 1 - 'Contract Works Discount'!$L$11, 1) ), K94)) -> 0
A95: Motor | B95: M8 | C95: Heavy Commercial Vehicles (>3500kg GVM) | D95: Motor | F95: =M8_Annual -> 0.00396816 | G95: FALSE | H95: FALSE | I95: FALSE | J95: FALSE | K95: =M8_AnnualMin -> 54.47 | L95: FALSE | M95: =IF(E95 = 0, 0, MAX((E95 * F95) * (IF(H95 = TRUE, 1 - 'Loss Limit Discount'!$D$93, 1)) * (IF(J95 = TRUE, 1 - 'Contract Works Discount'!$L$11, 1) * (1 - Voluntary_Deductible_M8) * (1 - Co_insurance_M8)), K95)) -> 0
A96: Motor | B96: A1 | C96: Agricultural Vehicles | D96: Motor | F96: =A1_Annual -> 6e-05 | G96: FALSE | H96: FALSE | I96: FALSE | J96: FALSE | K96: =A1_AnnualMin -> 60 | L96: FALSE | M96: =IF(E96 = 0, 0, MAX((E96 * F96) * (IF(H96 = TRUE, 1 - 'Loss Limit Discount'!$D$93, 1)) * (IF(J96 = TRUE, 1 - 'Contract Works Discount'!$L$11, 1) ), K96)) -> 0
B98: Money
A99: Money | B99: MON | C99: Money | D99: Money | F99: =Mon_Annual -> 0.011979 | G99: FALSE | H99: TRUE | I99: FALSE | J99: FALSE | K99: =Mon_AnnualMin -> 50 | L99: FALSE | M99: =IF(E99 = 0, 0, MAX((E99 * F99) * (IF(H99 = TRUE, 1 - 'Loss Limit Discount'!$D$93, 1)) * (IF(J99 = TRUE, 1 - 'Contract Works Discount'!$L$11, 1) * (1 - Voluntary_Deductible) * (1 - Co_insurance)), K99)) -> 0
B101: Goods In Transit & Marine Cargo
B102: Without RSCC
B103: ="Marine " & B102 -> Marine Without RSCC
A104: Goods In Transit | B104: GIT | C104: Marine Cargo & Goods in Transit | D104: Goods In Transit | F104: =IF($B$102 = "With RSCC", VLOOKUP($C104, Metadata!$AA$4:$AC$16, 2, FALSE), VLOOKUP($C104, Metadata!$AA$4:$AC$16, 3, FALSE)) -> 3.424e-05 | G104: FALSE | H104: TRUE | I104: FALSE | J104: FALSE | K104: =GITmarine_a_AnnualMinWith -> 500 | L104: FALSE | M104: =IF(E104 = 0, 0, MAX((E104 * F104) * (IF(H104 = TRUE, 1 - 'Loss Limit Discount'!$D$93, 1)) * (IF(J104 = TRUE, 1 - 'Contract Works Discount'!$L$11, 1) * (1 - Voluntary_Deductible) * (1 - Co_insurance)), K104)) -> 0
A105: Goods In Transit | B105: =IF($B$102 = "With RSCC", "", "GIT") -> GIT | C105: =IF($B$102 = "With RSCC", "N/A", "Storage at final w/house or depot") -> Storage at final w/house or depot | D105: Goods In Transit | F105: =_xlfn.IFNA(IF($B$102 = "With RSCC", VLOOKUP($C105, Metadata!$AA$4:$AC$16, 2, FALSE), VLOOKUP($C105, Metadata!$AA$4:$AC$16, 3, FALSE)), "N/A") -> 0.00034243 | G105: FALSE | H105: TRUE | I105: FALSE | J105: FALSE | K105: =GITmarine_b_AnnualMinWithout -> 500 | M105: =IFERROR(IF(E105 = 0, 0, MAX((E105 * F105) * (IF(H105 = TRUE, 1 - 'Loss Limit Discount'!$D$93, 1)) * (IF(J105 = TRUE, 1 - 'Contract Works Discount'!$L$11, 1) * (1 - Voluntary_Deductible) * (1 - Co_insurance)), K105)), 0) -> 0
A106: Goods In Transit | B106: GIT | C106: Estimated Gross Annual Turnover | D106: Goods In Transit | F106: =IF($B$102 = "With RSCC", VLOOKUP($C106, Metadata!$AA$4:$AC$16, 2, FALSE), VLOOKUP($C106, Metadata!$AA$4:$AC$16, 3, FALSE)) -> 2.857e-05 | G106: FALSE | H106: TRUE | I106: FALSE | J106: FALSE | K106: =GITmarine_c_AnnualMinWith -> 500 | M106: =IF(E106 = 0, 0, MAX((E106 * F106) * (IF(H106 = TRUE, 1 - 'Loss Limit Discount'!$D$93, 1)) * (IF(J106 = TRUE, 1 - 'Contract Works Discount'!$L$11, 1) * (1 - Voluntary_Deductible) * (1 - Co_insurance)), K106)) -> 0
A107: Goods In Transit | B107: =IF($B$102 = "With RSCC", "", "GIT") -> GIT | C107: =IF($B$102 = "With RSCC", "N/A", "Stock and Storage Limits") -> Stock and Storage Limits | D107: Goods In Transit | F107: =_xlfn.IFNA(IF($B$102 = "With RSCC", VLOOKUP($C107, Metadata!$AA$4:$AC$16, 2, FALSE), VLOOKUP($C107, Metadata!$AA$4:$AC$16, 3, FALSE)), "N/A") -> 0.00034243 | G107: FALSE | H107: TRUE | I107: FALSE | J107: FALSE | K107: =GITmarine_d_AnnualMinWithout -> 500 | M107: =IFERROR(IF(E107 = 0, 0, MAX((E107 * F107) * (IF(H107 = TRUE, 1 - 'Loss Limit Discount'!$D$93, 1)) * (IF(J107 = TRUE, 1 - 'Contract Works Discount'!$L$11, 1) * (1 - Voluntary_Deductible) * (1 - Co_insurance)), K107)), 0) -> 0
A108: Goods In Transit | B108: GIT | C108: Haulage Fees/Earnings | D108: Goods In Transit | F108: =IF($B$102 = "With RSCC", VLOOKUP($C108, Metadata!$AA$4:$AC$16, 2, FALSE), VLOOKUP($C108, Metadata!$AA$4:$AC$16, 3, FALSE)) -> 0.00034243 | G108: FALSE | H108: TRUE | I108: FALSE | J108: FALSE | K108: =GITmarine_e_AnnualMinWith -> 500 | M108: =IF(E108 = 0, 0, MAX((E108 * F108) * (IF(H108 = TRUE, 1 - 'Loss Limit Discount'!$D$93, 1)) * (IF(J108 = TRUE, 1 - 'Contract Works Discount'!$L$11, 1) * (1 - Voluntary_Deductible) * (1 - Co_insurance)), K108)) -> 0
A109: Goods In Transit | B109: GIT | C109: Fixed and Non-adjustable Underlying Policy Premiums | D109: Goods In Transit | F109: =IF($B$102 = "With RSCC", VLOOKUP($C109, Metadata!$AA$4:$AC$16, 2, FALSE), VLOOKUP($C109, Metadata!$AA$4:$AC$16, 3, FALSE)) -> 0.02904768 | G109: FALSE | H109: TRUE | I109: FALSE | J109: FALSE | K109: =GITmarine_f_AnnualMinWith -> 500 | M109: =IF(E109 = 0, 0, MAX((E109 * F109) * (IF(H109 = TRUE, 1 - 'Loss Limit Discount'!$D$93, 1)) * (IF(J109 = TRUE, 1 - 'Contract Works Discount'!$L$11, 1) * (1 - Voluntary_Deductible) * (1 - Co_insurance)), K109)) -> 0
A110: Goods In Transit | B110: =IF($B$102 = "With RSCC", "", "GIT") -> GIT | C110: =IF($B$102 = "With RSCC", "N/A", "Deliberate Storage") -> Deliberate Storage | D110: Goods In Transit | F110: =_xlfn.IFNA(IF($B$102 = "With RSCC", VLOOKUP($C110, Metadata!$AA$4:$AC$16, 2, FALSE), VLOOKUP($C110, Metadata!$AA$4:$AC$16, 3, FALSE)), "N/A") -> 3.424e-05 | G110: FALSE | H110: TRUE | I110: FALSE | J110: FALSE | K110: =GITmarine_g_AnnualMinWithout -> 500 | M110: =IFERROR(IF(E110 = 0, 0, MAX((E110 * F110) * (IF(H110 = TRUE, 1 - 'Loss Limit Discount'!$D$93, 1)) * (IF(J110 = TRUE, 1 - 'Contract Works Discount'!$L$11, 1) * (1 - Voluntary_Deductible) * (1 - Co_insurance)), K110)), 0) -> 0
B111: Without RSCC
B112: ="Hull " & B111 -> Hull Without RSCC
A113: Goods In Transit | B113: GIT | C113: Pleasure Craft | D113: Goods In Transit | F113: =IF($B$111 = "With RSCC", VLOOKUP($C113, Metadata!$AA$4:$AC$16, 2, FALSE), VLOOKUP($C113, Metadata!$AA$4:$AC$16, 3, FALSE)) -> 0.00025741 | G113: FALSE | H113: TRUE | I113: FALSE | J113: FALSE | K113: =GIThull_a_AnnualMinWith -> 500 | L113: FALSE | M113: =IF(E113 = 0, 0, MAX((E113 * F113) * (IF(H113 = TRUE, 1 - 'Loss Limit Discount'!$D$93, 1)) * (IF(J113 = TRUE, 1 - 'Contract Works Discount'!$L$11, 1) * (1 - Voluntary_Deductible) * (1 - Co_insurance)), K113)) -> 0
A114: Goods In Transit | B114: GIT | C114: Commercial Vessels | D114: Goods In Transit | F114: =IF($B$111 = "With RSCC", VLOOKUP($C114, Metadata!$AA$4:$AC$16, 2, FALSE), VLOOKUP($C114, Metadata!$AA$4:$AC$16, 3, FALSE)) -> 0.00034243 | G114: FALSE | H114: TRUE | I114: FALSE | J114: FALSE | K114: =GIThull_b_AnnualMinWith -> 500 | M114: =IF(E114 = 0, 0, MAX((E114 * F114) * (IF(H114 = TRUE, 1 - 'Loss Limit Discount'!$D$93, 1)) * (IF(J114 = TRUE, 1 - 'Contract Works Discount'!$L$11, 1) * (1 - Voluntary_Deductible) * (1 - Co_insurance)), K114)) -> 0
A115: Goods In Transit | B115: GIT | C115: Builders Risk | D115: Goods In Transit | F115: =IF($B$111 = "With RSCC", VLOOKUP($C115, Metadata!$AA$4:$AC$16, 2, FALSE), VLOOKUP($C115, Metadata!$AA$4:$AC$16, 3, FALSE)) -> 0.00029048 | G115: FALSE | H115: TRUE | I115: FALSE | J115: FALSE | K115: =GIThull_c_AnnualMinWith -> 500 | M115: =IF(E115 = 0, 0, MAX((E115 * F115) * (IF(H115 = TRUE, 1 - 'Loss Limit Discount'!$D$93, 1)) * (IF(J115 = TRUE, 1 - 'Contract Works Discount'!$L$11, 1) * (1 - Voluntary_Deductible) * (1 - Co_insurance)), K115)) -> 0
A116: Goods In Transit | B116: GIT | C116: Single Bouy Moorings | D116: Goods In Transit | F116: =IF($B$111 = "With RSCC", VLOOKUP($C116, Metadata!$AA$4:$AC$16, 2, FALSE), VLOOKUP($C116, Metadata!$AA$4:$AC$16, 3, FALSE)) -> 0.00034243 | G116: FALSE | H116: TRUE | I116: FALSE | J116: FALSE | K116: =GIThull_d_AnnualMinWith -> 500 | M116: =IF(E116 = 0, 0, MAX((E116 * F116) * (IF(H116 = TRUE, 1 - 'Loss Limit Discount'!$D$93, 1)) * (IF(J116 = TRUE, 1 - 'Contract Works Discount'!$L$11, 1) * (1 - Voluntary_Deductible) * (1 - Co_insurance)), K116)) -> 0
B118: Contract Work / Construction Plant
B119: Contract Works
A120: Contract Works | B120: CW | C120: =Input!I16 -> Open | D120: Contract Works | F120: =CW_OnWorks_Annual -> 0.00011326 | G120: FALSE | H120: FALSE | I120: TRUE | J120: TRUE | K120: =CW_OnWorks_AnnualMin -> 500 | L120: FALSE | M120: =IF(E120 = 0, 0, MAX((E120 * F120) * (IF(H120 = TRUE, 1 - 'Loss Limit Discount'!$D$93, 1)) * (IF(J120 = TRUE, 1 - 'Contract Works Discount'!$D$102, 1) * (1 - Voluntary_Deductible) * (1 - Co_insurance)), K120)) -> 0
B121: Construction plant
A122: Contract Works | B122: CW | C122: On Fee Basis | D122: Contract Works | F122: =CW_OnFees_Annual -> 0.0038376 | G122: FALSE | H122: FALSE | I122: FALSE | J122: FALSE | K122: =CW_OnFees_AnnualMin -> 500 | L122: FALSE | M122: =IF(E122 = 0, 0, MAX((E122 * F122) * (IF(H122 = TRUE, 1 - 'Loss Limit Discount'!$D$93, 1)) * (IF(J122 = TRUE, 1 - 'Contract Works Discount'!$D$102, 1) * (1 - Voluntary_Deductible) * (1 - Co_insurance)), K122)) -> 0
A123: Contract Works | B123: CW | C123: On Value Basis | D123: Contract Works | F123: =CW_OnValue_Annual -> 0.00113256 | G123: FALSE | H123: FALSE | I123: FALSE | J123: FALSE | K123: =CW_OnValue_AnnualMin -> 500 | L123: FALSE | M123: =IF(E123 = 0, 0, MAX((E123 * F123) * (IF(H123 = TRUE, 1 - 'Loss Limit Discount'!$D$93, 1)) * (IF(J123 = TRUE, 1 - 'Contract Works Discount'!$D$102, 1) * (1 - Voluntary_Deductible) * (1 - Co_insurance)), K123)) -> 0
B124: Mobile plant
A125: Contract Works | B125: CW | C125: On Value Basis | D125: Contract Works | F125: =$F$123 -> 0.00113256 | G125: FALSE | H125: FALSE | I125: FALSE | J125: FALSE | K125: =CW_OnValue_AnnualMin -> 500 | L125: FALSE | M125: =IF(E125 = 0, 0, MAX((E125 * F125) * (IF(H125 = TRUE, 1 - 'Loss Limit Discount'!$D$93, 1)) * (IF(J125 = TRUE, 1 - 'Contract Works Discount'!$D$102, 1) * (1 - Voluntary_Deductible) * (1 - Co_insurance)), K125)) -> 0

Sheet Fire (Office) - Monthly
A1: Commercial (Office) - Monthly | O1: Cells with green borders have a drop-down selection!
A2: Category | B2: Code | C2: Description | D2: Total Code | E2: Sum Insured/No. of insured items | F2: Rate | G2: Add To Sum Insured Discount | H2: Receive Sum Insured Discount | I2: Add To CW Discount | J2: Receive CW Discount | K2: Minimum Premium | L2: Has Fire Extension Discount | M2: Premium
B3: Fire
A4: Commercial Fire | B4: F2(O) | C4: Commercial Fire (Office) | D4: Fire | F4: =F2O_Monthly -> 2.819e-05 | G4: TRUE | H4: TRUE | I4: FALSE | J4: FALSE | K4: =F2O_MonthlyMin -> 50 | M4: =IF(E4 = 0, 0, MAX(((E4 * F4) * (IF(H4 = TRUE, 1 - 'Loss Limit Discount'!$D$93, 1))) * (1 - Voluntary_Deductible) * (1 - Co_insurance), K4)) -> 0
A5: Extension | B5: Sasria Extensions
A6: Extension | B6: =IFERROR(RANK($P6, $P$6:$P$65, 1), "") ->  | C6: Rent | D6: Fire | F6: =$F$4 -> 2.819e-05 | G6: TRUE | H6: TRUE | I6: FALSE | J6: FALSE | K6: 0 | L6: TRUE | M6: =IF(E6 = 0, 0, MAX(((VLOOKUP($B6, OM_NonFreeExt, 60, FALSE) * F6) * (IF(H6 = TRUE, 1 - 'Loss Limit Discount'!$D$93, 1))) * (1 - Voluntary_Deductible), K6)) -> 0 | O6: =MyTimestamp(E6) ->  | P6: =IFERROR(VALUE(O6), "") -> 
A7: Extension | B7: =IFERROR(RANK($P7, $P$6:$P$65, 1), "") ->  | C7: Claims Preparation Costs | D7: Fire | F7: =$F$4 -> 2.819e-05 | G7: TRUE | H7: TRUE | I7: FALSE | J7: FALSE | K7: 0 | L7: TRUE | M7: =IF(E7 = 0, 0, MAX(((VLOOKUP($B7, OM_NonFreeExt, 60, FALSE) * F7) * (IF(H7 = TRUE, 1 - 'Loss Limit Discount'!$D$93, 1))) * (1 - Voluntary_Deductible), K7)) -> 0 | O7: =MyTimestamp(E7) ->  | P7: =IFERROR(VALUE(O7), "") -> 
A8: Extension | C8: Capital Additions | D8: Fire | F8: 2.819e-05 | G8: TRUE | H8: TRUE | I8: FALSE | J8: FALSE | K8: 0 | L8: TRUE | M8: =IF(E8 = 0, 0, MAX(((VLOOKUP($B8, OM_NonFreeExt, 60, FALSE) * F8) * (IF(H8 = TRUE, 1 - 'Loss Limit Discount'!$D$93, 1))) * (1 - Voluntary_Deductible), K8)) -> 0 | O8: =MyTimestamp(E8) -> 
A9: Extension | C9: Professional fees | D9: Fire | F9: 2.819e-05 | G9: TRUE | H9: TRUE | I9: FALSE | J9: FALSE | K9: 0 | L9: TRUE | M9: =IF(E9 = 0, 0, MAX(((VLOOKUP($B9, OM_NonFreeExt, 60, FALSE) * F9) * (IF(H9 = TRUE, 1 - 'Loss Limit Discount'!$D$93, 1))) * (1 - Voluntary_Deductible), K9)) -> 0 | O9: =MyTimestamp(E9) -> 
A10: Extension | C10: Clearance costs | D10: Fire | F10: 2.819e-05 | G10: TRUE | H10: TRUE | I10: FALSE | J10: FALSE | K10: 0 | L10: TRUE | M10: =IF(E10 = 0, 0, MAX(((VLOOKUP($B10, OM_NonFreeExt, 60, FALSE) * F10) * (IF(H10 = TRUE, 1 - 'Loss Limit Discount'!$D$93, 1))) * (1 - Voluntary_Deductible), K10)) -> 0 | O10: =MyTimestamp(E10) -> 
A11: Extension | C11: Security Costs (During and after a loss) | D11: Fire | F11: 2.819e-05 | G11: TRUE | H11: TRUE | I11: FALSE | J11: FALSE | K11: 0 | L11: TRUE | M11: =IF(E11 = 0, 0, MAX(((VLOOKUP($B11, OM_NonFreeExt, 60, FALSE) * F11) * (IF(H11 = TRUE, 1 - 'Loss Limit Discount'!$D$93, 1))) * (1 - Voluntary_Deductible), K11)) -> 0 | O11: =MyTimestamp(E11) -> 
A12: Extension | C12: Statutory Duties | D12: Fire | F12: 2.819e-05 | G12: TRUE | H12: TRUE | I12: FALSE | J12: FALSE | K12: 0 | L12: TRUE | M12: =IF(E12 = 0, 0, MAX(((VLOOKUP($B12, OM_NonFreeExt, 60, FALSE) * F12) * (IF(H12 = TRUE, 1 - 'Loss Limit Discount'!$D$93, 1))) * (1 - Voluntary_Deductible), K12)) -> 0 | O12: =MyTimestamp(E12) -> 
A13: Extension | C13: Additional Premises | D13: Fire | F13: 2.819e-05 | G13: TRUE | H13: TRUE | I13: FALSE | J13: FALSE | K13: 0 | L13: TRUE | M13: =IF(E13 = 0, 0, MAX(((VLOOKUP($B13, OM_NonFreeExt, 60, FALSE) * F13) * (IF(H13 = TRUE, 1 - 'Loss Limit Discount'!$D$93, 1))) * (1 - Voluntary_Deductible), K13)) -> 0 | O13: =MyTimestamp(E13) -> 
A14: Extension | C14: Acquisitions | D14: Fire | F14: 2.819e-05 | G14: TRUE | H14: TRUE | I14: FALSE | J14: FALSE | K14: 0 | L14: TRUE | M14: =IF(E14 = 0, 0, MAX(((VLOOKUP($B14, OM_NonFreeExt, 60, FALSE) * F14) * (IF(H14 = TRUE, 1 - 'Loss Limit Discount'!$D$93, 1))) * (1 - Voluntary_Deductible), K14)) -> 0 | O14: =MyTimestamp(E14) -> 
A15: Extension | C15: Import Surcharges | D15: Fire | F15: 2.819e-05 | G15: TRUE | H15: TRUE | I15: FALSE | J15: FALSE | K15: 0 | L15: TRUE | M15: =IF(E15 = 0, 0, MAX(((VLOOKUP($B15, OM_NonFreeExt, 60, FALSE) * F15) * (IF(H15 = TRUE, 1 - 'Loss Limit Discount'!$D$93, 1))) * (1 - Voluntary_Deductible), K15)) -> 0 | O15: =MyTimestamp(E15) -> 
A16: Extension | C16: Property in the course of Construction | D16: Fire | F16: 2.819e-05 | G16: FALSE | H16: FALSE | I16: FALSE | J16: FALSE | K16: 0 | L16: TRUE | M16: =IF(E16 = 0, 0, MAX(((VLOOKUP($B16, OM_NonFreeExt, 60, FALSE) * F16) * (IF(H16 = TRUE, 1 - 'Loss Limit Discount'!$D$93, 1))) * (1 - Voluntary_Deductible), K16)) -> 0 | O16: =MyTimestamp(E16) ->  | P16: =IFERROR(VALUE(O16), "") -> 
A17: Extension | C17: Fire Protection System Update | D17: Fire | F17: 2.819e-05 | G17: TRUE | H17: TRUE | I17: FALSE | J17: FALSE | K17: 0 | L17: TRUE | M17: =IF(E17 = 0, 0, MAX(((VLOOKUP($B17, OM_NonFreeExt, 60, FALSE) * F17) * (IF(H17 = TRUE, 1 - 'Loss Limit Discount'!$D$93, 1))) * (1 - Voluntary_Deductible), K17)) -> 0 | O17: =MyTimestamp(E17) -> 
A18: Extension | C18: Accumulation of Motor Vehicles/Static Risk | D18: Fire | F18: =StaticRisk_Monthly -> 8.165e-05 | G18: FALSE | H18: FALSE | I18: FALSE | J18: FALSE | K18: =StaticRisk_MonthlyMin -> 50 | L18: TRUE | M18: =IF(E18 = 0, 0, MAX(((E18 * F18) * (IF(H18 = TRUE, 1 - 'Loss Limit Discount'!$D$93, 1))) * (1 - Voluntary_Deductible), K18)) -> 0
A19: Extension | C19: Goods in the open | D19: Fire | F19: 2.819e-05 | G19: TRUE | H19: TRUE | I19: FALSE | J19: FALSE | K19: 0 | L19: TRUE | M19: =IF(E19 = 0, 0, MAX(((VLOOKUP($B19, OM_NonFreeExt, 60, FALSE) * F19) * (IF(H19 = TRUE, 1 - 'Loss Limit Discount'!$D$93, 1))) * (1 - Voluntary_Deductible), K19)) -> 0 | O19: =MyTimestamp(E19) -> 
A20: Extension | C20: Fire Extinguishing | D20: Fire | F20: 2.819e-05 | G20: TRUE | H20: TRUE | I20: FALSE | J20: FALSE | K20: 0 | L20: TRUE | M20: =IF(E20 = 0, 0, MAX(((VLOOKUP($B20, OM_NonFreeExt, 60, FALSE) * F20) * (IF(H20 = TRUE, 1 - 'Loss Limit Discount'!$D$93, 1))) * (1 - Voluntary_Deductible), K20)) -> 0 | O20: =MyTimestamp(E20) -> 
A21: Extension | C21: Imminent Danger (Protection of property prior a loss) | D21: Fire | F21: 2.819e-05 | G21: TRUE | H21: TRUE | I21: FALSE | J21: FALSE | K21: 0 | L21: FALSE | M21: =IF(E21 = 0, 0, MAX(((E21 * F21) * (IF(H21 = TRUE, 1 - 'Loss Limit Discount'!$D$93, 1))) * (1 - Voluntary_Deductible), K21)) -> 0
A22: Other Extension | B22: Other Extensions
A23: Other Extension | B23: =IFERROR(RANK($P23, $P$6:$P$65, 1), "") ->  | C23: Other | D23: Fire | F23: =$F$4 -> 2.819e-05 | G23: TRUE | H23: TRUE | I23: FALSE | J23: FALSE | K23: 0 | L23: TRUE | M23: =IF(E23 = 0, 0, MAX(((VLOOKUP($B23, OM_NonFreeExt, 60, FALSE) * F23) * (IF(H23 = TRUE, 1 - 'Loss Limit Discount'!$D$93, 1))) * (1 - Voluntary_Deductible), K23)) -> 0 | O23: =MyTimestamp(E23) ->  | P23: =IFERROR(VALUE(O23), "") -> 
A24: Other Extension | C24: Other | D24: Fire | F24: 2.819e-05 | G24: TRUE | H24: TRUE | I24: FALSE | J24: FALSE | K24: 0 | L24: TRUE | M24: =IF(E24 = 0, 0, MAX(((VLOOKUP($B24, OM_NonFreeExt, 60, FALSE) * F24) * (IF(H24 = TRUE, 1 - 'Loss Limit Discount'!$D$93, 1))) * (1 - Voluntary_Deductible), K24)) -> 0 | O24: =MyTimestamp(E24) -> 
A25: Other Extension | C25: Other | D25: Fire | F25: 2.819e-05 | G25: TRUE | H25: TRUE | I25: FALSE | J25: FALSE | K25: 0 | L25: TRUE | M25: =IF(E25 = 0, 0, MAX(((VLOOKUP($B25, OM_NonFreeExt, 60, FALSE) * F25) * (IF(H25 = TRUE, 1 - 'Loss Limit Discount'!$D$93, 1))) * (1 - Voluntary_Deductible), K25)) -> 0 | O25: =MyTimestamp(E25) -> 
A26: Other Extension | C26: Other | D26: Fire | F26: 2.819e-05 | G26: TRUE | H26: TRUE | I26: FALSE | J26: FALSE | K26: 0 | L26: TRUE | M26: =IF(E26 = 0, 0, MAX(((VLOOKUP($B26, OM_NonFreeExt, 60, FALSE) * F26) * (IF(H26 = TRUE, 1 - 'Loss Limit Discount'!$D$93, 1))) * (1 - Voluntary_Deductible), K26)) -> 0 | O26: =MyTimestamp(E26) -> 
A27: Other Extension | C27: Other | D27: Fire | F27: 2.819e-05 | G27: TRUE | H27: TRUE | I27: FALSE | J27: FALSE | K27: 0 | L27: TRUE | M27: =IF(E27 = 0, 0, MAX(((VLOOKUP($B27, OM_NonFreeExt, 60, FALSE) * F27) * (IF(H27 = TRUE, 1 - 'Loss Limit Discount'!$D$93, 1))) * (1 - Voluntary_Deductible), K27)) -> 0 | O27: =MyTimestamp(E27) -> 
A28: Other Extension | C28: Other | D28: Fire | F28: 2.819e-05 | G28: TRUE | H28: TRUE | I28: FALSE | J28: FALSE | K28: 0 | L28: TRUE | M28: =IF(E28 = 0, 0, MAX(((VLOOKUP($B28, OM_NonFreeExt, 60, FALSE) * F28) * (IF(H28 = TRUE, 1 - 'Loss Limit Discount'!$D$93, 1))) * (1 - Voluntary_Deductible), K28)) -> 0 | O28: =MyTimestamp(E28) -> 
A29: Other Extension | C29: Other | D29: Fire | F29: 2.819e-05 | G29: TRUE | H29: TRUE | I29: FALSE | J29: FALSE | K29: 0 | L29: TRUE | M29: =IF(E29 = 0, 0, MAX(((VLOOKUP($B29, OM_NonFreeExt, 60, FALSE) * F29) * (IF(H29 = TRUE, 1 - 'Loss Limit Discount'!$D$93, 1))) * (1 - Voluntary_Deductible), K29)) -> 0 | O29: =MyTimestamp(E29) -> 
A30: Other Extension | C30: Other | D30: Fire | F30: 2.819e-05 | G30: TRUE | H30: TRUE | I30: FALSE | J30: FALSE | K30: 0 | L30: TRUE | M30: =IF(E30 = 0, 0, MAX(((VLOOKUP($B30, OM_NonFreeExt, 60, FALSE) * F30) * (IF(H30 = TRUE, 1 - 'Loss Limit Discount'!$D$93, 1))) * (1 - Voluntary_Deductible), K30)) -> 0 | O30: =MyTimestamp(E30) -> 
A31: Other Extension | C31: Other | D31: Fire | F31: 2.819e-05 | G31: TRUE | H31: TRUE | I31: FALSE | J31: FALSE | K31: 0 | L31: TRUE | M31: =IF(E31 = 0, 0, MAX(((VLOOKUP($B31, OM_NonFreeExt, 60, FALSE) * F31) * (IF(H31 = TRUE, 1 - 'Loss Limit Discount'!$D$93, 1))) * (1 - Voluntary_Deductible), K31)) -> 0 | O31: =MyTimestamp(E31) -> 
A32: Other Extension | C32: Other | D32: Fire | F32: 2.819e-05 | G32: TRUE | H32: TRUE | I32: FALSE | J32: FALSE | K32: 0 | L32: TRUE | M32: =IF(E32 = 0, 0, MAX(((VLOOKUP($B32, OM_NonFreeExt, 60, FALSE) * F32) * (IF(H32 = TRUE, 1 - 'Loss Limit Discount'!$D$93, 1))) * (1 - Voluntary_Deductible), K32)) -> 0 | O32: =MyTimestamp(E32) -> 
A33: Other Extension | C33: Other | D33: Fire | F33: 2.819e-05 | G33: TRUE | H33: TRUE | I33: FALSE | J33: FALSE | K33: 0 | L33: TRUE | M33: =IF(E33 = 0, 0, MAX(((VLOOKUP($B33, OM_NonFreeExt, 60, FALSE) * F33) * (IF(H33 = TRUE, 1 - 'Loss Limit Discount'!$D$93, 1))) * (1 - Voluntary_Deductible), K33)) -> 0 | O33: =MyTimestamp(E33) -> 
A34: Other Extension | C34: Other | D34: Fire | F34: 2.819e-05 | G34: TRUE | H34: TRUE | I34: FALSE | J34: FALSE | K34: 0 | L34: TRUE | M34: =IF(E34 = 0, 0, MAX(((VLOOKUP($B34, OM_NonFreeExt, 60, FALSE) * F34) * (IF(H34 = TRUE, 1 - 'Loss Limit Discount'!$D$93, 1))) * (1 - Voluntary_Deductible), K34)) -> 0 | O34: =MyTimestamp(E34) -> 
A35: Other Extension | C35: Other | D35: Fire | F35: 2.819e-05 | G35: TRUE | H35: TRUE | I35: FALSE | J35: FALSE | K35: 0 | L35: TRUE | M35: =IF(E35 = 0, 0, MAX(((VLOOKUP($B35, OM_NonFreeExt, 60, FALSE) * F35) * (IF(H35 = TRUE, 1 - 'Loss Limit Discount'!$D$93, 1))) * (1 - Voluntary_Deductible), K35)) -> 0 | O35: =MyTimestamp(E35) -> 
A36: Other Extension | C36: Other | D36: Fire | F36: 2.819e-05 | G36: TRUE | H36: TRUE | I36: FALSE | J36: FALSE | K36: 0 | L36: TRUE | M36: =IF(E36 = 0, 0, MAX(((VLOOKUP($B36, OM_NonFreeExt, 60, FALSE) * F36) * (IF(H36 = TRUE, 1 - 'Loss Limit Discount'!$D$93, 1))) * (1 - Voluntary_Deductible), K36)) -> 0 | O36: =MyTimestamp(E36) -> 
A37: Other Extension | C37: Other | D37: Fire | F37: 2.819e-05 | G37: TRUE | H37: TRUE | I37: FALSE | J37: FALSE | K37: 0 | L37: TRUE | M37: =IF(E37 = 0, 0, MAX(((VLOOKUP($B37, OM_NonFreeExt, 60, FALSE) * F37) * (IF(H37 = TRUE, 1 - 'Loss Limit Discount'!$D$93, 1))) * (1 - Voluntary_Deductible), K37)) -> 0 | O37: =MyTimestamp(E37) -> 
A38: Other Extension | C38: Other | D38: Fire | F38: 2.819e-05 | G38: TRUE | H38: TRUE | I38: FALSE | J38: FALSE | K38: 0 | L38: TRUE | M38: =IF(E38 = 0, 0, MAX(((VLOOKUP($B38, OM_NonFreeExt, 60, FALSE) * F38) * (IF(H38 = TRUE, 1 - 'Loss Limit Discount'!$D$93, 1))) * (1 - Voluntary_Deductible), K38)) -> 0 | O38: =MyTimestamp(E38) -> 
A39: Other Extension | C39: Other | D39: Fire | F39: 2.819e-05 | G39: TRUE | H39: TRUE | I39: FALSE | J39: FALSE | K39: 0 | L39: TRUE | M39: =IF(E39 = 0, 0, MAX(((VLOOKUP($B39, OM_NonFreeExt, 60, FALSE) * F39) * (IF(H39 = TRUE, 1 - 'Loss Limit Discount'!$D$93, 1))) * (1 - Voluntary_Deductible), K39)) -> 0 | O39: =MyTimestamp(E39) -> 
A40: Other Extension | C40: Other | D40: Fire | F40: 2.819e-05 | G40: TRUE | H40: TRUE | I40: FALSE | J40: FALSE | K40: 0 | L40: TRUE | M40: =IF(E40 = 0, 0, MAX(((VLOOKUP($B40, OM_NonFreeExt, 60, FALSE) * F40) * (IF(H40 = TRUE, 1 - 'Loss Limit Discount'!$D$93, 1))) * (1 - Voluntary_Deductible), K40)) -> 0 | O40: =MyTimestamp(E40) -> 
A41: Other Extension | C41: Other | D41: Fire | F41: 2.819e-05 | G41: TRUE | H41: TRUE | I41: FALSE | J41: FALSE | K41: 0 | L41: TRUE | M41: =IF(E41 = 0, 0, MAX(((VLOOKUP($B41, OM_NonFreeExt, 60, FALSE) * F41) * (IF(H41 = TRUE, 1 - 'Loss Limit Discount'!$D$93, 1))) * (1 - Voluntary_Deductible), K41)) -> 0 | O41: =MyTimestamp(E41) -> 
A42: Other Extension | C42: Other | D42: Fire | F42: 2.819e-05 | G42: TRUE | H42: TRUE | I42: FALSE | J42: FALSE | K42: 0 | L42: TRUE | M42: =IF(E42 = 0, 0, MAX(((VLOOKUP($B42, OM_NonFreeExt, 60, FALSE) * F42) * (IF(H42 = TRUE, 1 - 'Loss Limit Discount'!$D$93, 1))) * (1 - Voluntary_Deductible), K42)) -> 0 | O42: =MyTimestamp(E42) -> 
A43: Other Extension | C43: Other | D43: Fire | F43: 2.819e-05 | G43: TRUE | H43: TRUE | I43: FALSE | J43: FALSE | K43: 0 | L43: TRUE | M43: =IF(E43 = 0, 0, MAX(((VLOOKUP($B43, OM_NonFreeExt, 60, FALSE) * F43) * (IF(H43 = TRUE, 1 - 'Loss Limit Discount'!$D$93, 1))) * (1 - Voluntary_Deductible), K43)) -> 0 | O43: =MyTimestamp(E43) -> 
A44: Other Extension | C44: Other | D44: Fire | F44: 2.819e-05 | G44: TRUE | H44: TRUE | I44: FALSE | J44: FALSE | K44: 0 | L44: TRUE | M44: =IF(E44 = 0, 0, MAX(((VLOOKUP($B44, OM_NonFreeExt, 60, FALSE) * F44) * (IF(H44 = TRUE, 1 - 'Loss Limit Discount'!$D$93, 1))) * (1 - Voluntary_Deductible), K44)) -> 0 | O44: =MyTimestamp(E44) -> 
A45: Other Extension | C45: Other | D45: Fire | F45: 2.819e-05 | G45: TRUE | H45: TRUE | I45: FALSE | J45: FALSE | K45: 0 | L45: TRUE | M45: =IF(E45 = 0, 0, MAX(((VLOOKUP($B45, OM_NonFreeExt, 60, FALSE) * F45) * (IF(H45 = TRUE, 1 - 'Loss Limit Discount'!$D$93, 1))) * (1 - Voluntary_Deductible), K45)) -> 0 | O45: =MyTimestamp(E45) -> 
A46: Other Extension | C46: Other | D46: Fire | F46: 2.819e-05 | G46: TRUE | H46: TRUE | I46: FALSE | J46: FALSE | K46: 0 | L46: TRUE | M46: =IF(E46 = 0, 0, MAX(((VLOOKUP($B46, OM_NonFreeExt, 60, FALSE) * F46) * (IF(H46 = TRUE, 1 - 'Loss Limit Discount'!$D$93, 1))) * (1 - Voluntary_Deductible), K46)) -> 0 | O46: =MyTimestamp(E46) -> 
A47: Other Extension | C47: Other | D47: Fire | F47: 2.819e-05 | G47: TRUE | H47: TRUE | I47: FALSE | J47: FALSE | K47: 0 | L47: TRUE | M47: =IF(E47 = 0, 0, MAX(((VLOOKUP($B47, OM_NonFreeExt, 60, FALSE) * F47) * (IF(H47 = TRUE, 1 - 'Loss Limit Discount'!$D$93, 1))) * (1 - Voluntary_Deductible), K47)) -> 0 | O47: =MyTimestamp(E47) -> 
A48: Other Extension | C48: Other | D48: Fire | F48: 2.819e-05 | G48: TRUE | H48: TRUE | I48: FALSE | J48: FALSE | K48: 0 | L48: TRUE | M48: =IF(E48 = 0, 0, MAX(((VLOOKUP($B48, OM_NonFreeExt, 60, FALSE) * F48) * (IF(H48 = TRUE, 1 - 'Loss Limit Discount'!$D$93, 1))) * (1 - Voluntary_Deductible), K48)) -> 0 | O48: =MyTimestamp(E48) -> 
A49: Other Extension | C49: Other | D49: Fire | F49: 2.819e-05 | G49: TRUE | H49: TRUE | I49: FALSE | J49: FALSE | K49: 0 | L49: TRUE | M49: =IF(E49 = 0, 0, MAX(((VLOOKUP($B49, OM_NonFreeExt, 60, FALSE) * F49) * (IF(H49 = TRUE, 1 - 'Loss Limit Discount'!$D$93, 1))) * (1 - Voluntary_Deductible), K49)) -> 0 | O49: =MyTimestamp(E49) -> 
A50: Other Extension | C50: Other | D50: Fire | F50: 2.819e-05 | G50: TRUE | H50: TRUE | I50: FALSE | J50: FALSE | K50: 0 | L50: TRUE | M50: =IF(E50 = 0, 0, MAX(((VLOOKUP($B50, OM_NonFreeExt, 60, FALSE) * F50) * (IF(H50 = TRUE, 1 - 'Loss Limit Discount'!$D$93, 1))) * (1 - Voluntary_Deductible), K50)) -> 0 | O50: =MyTimestamp(E50) -> 
A51: Other Extension | C51: Other | D51: Fire | F51: 2.819e-05 | G51: TRUE | H51: TRUE | I51: FALSE | J51: FALSE | K51: 0 | L51: TRUE | M51: =IF(E51 = 0, 0, MAX(((VLOOKUP($B51, OM_NonFreeExt, 60, FALSE) * F51) * (IF(H51 = TRUE, 1 - 'Loss Limit Discount'!$D$93, 1))) * (1 - Voluntary_Deductible), K51)) -> 0 | O51: =MyTimestamp(E51) -> 
A52: Other Extension | C52: Other | D52: Fire | F52: 2.819e-05 | G52: TRUE | H52: TRUE | I52: FALSE | J52: FALSE | K52: 0 | L52: TRUE | M52: =IF(E52 = 0, 0, MAX(((VLOOKUP($B52, OM_NonFreeExt, 60, FALSE) * F52) * (IF(H52 = TRUE, 1 - 'Loss Limit Discount'!$D$93, 1))) * (1 - Voluntary_Deductible), K52)) -> 0 | O52: =MyTimestamp(E52) -> 
B53: Escalation and or Inflation
A54: Escalation UL | B54: Charge on U/L
A55: Escalation UL | B55: =IFERROR(RANK($P55, $P$6:$P$65, 1), "") ->  | C55: First Year (90-100%) | D55: Fire | F55: =IF(C55 = "", 0, VLOOKUP(C55, Escalation!$C$111:$D$155, 2, FALSE)) -> 2.819e-05 | G55: FALSE | H55: TRUE | I55: FALSE | J55: FALSE | K55: 0 | M55: =IF(E55 = 0, 0, MAX(((VLOOKUP($B55, OM_NonFreeExt, 60, FALSE) * F55) * (IF(H55 = TRUE, 1 - 'Loss Limit Discount'!$D$93, 1))) * (1 - Voluntary_Deductible), K55)) -> 0 | O55: =MyTimestamp(E55) ->  | P55: =IFERROR(VALUE(O55), "") -> 
A56: Escalation UL | C56: Second Year (90-100%) | D56: Fire | F56: =IF(C56 = "", 0, VLOOKUP(C56, Escalation!$C$111:$D$155, 2, FALSE)) -> 1.4095e-05 | G56: FALSE | H56: TRUE | I56: FALSE | J56: FALSE | K56: 0 | M56: =IF(E56 = 0, 0, MAX(((VLOOKUP($B56, OM_NonFreeExt, 60, FALSE) * F56) * (IF(H56 = TRUE, 1 - 'Loss Limit Discount'!$D$93, 1))) * (1 - Voluntary_Deductible), K56)) -> 0 | O56: =MyTimestamp(E56) -> 
A57: Escalation UL | C57: Third Year (90-100%) | D57: Fire | F57: =IF(C57 = "", 0, VLOOKUP(C57, Escalation!$C$111:$D$155, 2, FALSE)) -> 7.0475e-06 | G57: FALSE | H57: TRUE | I57: FALSE | J57: FALSE | K57: 0 | M57: =IF(E57 = 0, 0, MAX(((VLOOKUP($B57, OM_NonFreeExt, 60, FALSE) * F57) * (IF(H57 = TRUE, 1 - 'Loss Limit Discount'!$D$93, 1))) * (1 - Voluntary_Deductible), K57)) -> 0 | O57: =MyTimestamp(E57) -> 
A58: Escalation UL | C58: Fourth Year (90-100%) | D58: Fire | F58: =IF(C58 = "", 0, VLOOKUP(C58, Escalation!$C$111:$D$155, 2, FALSE)) -> 5.638e-06 | G58: FALSE | H58: TRUE | I58: FALSE | J58: FALSE | K58: 0 | M58: =IF(E58 = 0, 0, MAX(((VLOOKUP($B58, OM_NonFreeExt, 60, FALSE) * F58) * (IF(H58 = TRUE, 1 - 'Loss Limit Discount'!$D$93, 1))) * (1 - Voluntary_Deductible), K58)) -> 0 | O58: =MyTimestamp(E58) -> 
A59: Escalation UL | C59: Fifth Year (90-100%) | D59: Fire | F59: =IF(C59 = "", 0, VLOOKUP(C59, Escalation!$C$111:$D$155, 2, FALSE)) -> 4.2285e-06 | G59: FALSE | H59: TRUE | I59: FALSE | J59: FALSE | K59: 0 | M59: =IF(E59 = 0, 0, MAX(((VLOOKUP($B59, OM_NonFreeExt, 60, FALSE) * F59) * (IF(H59 = TRUE, 1 - 'Loss Limit Discount'!$D$93, 1))) * (1 - Voluntary_Deductible), K59)) -> 0 | O59: =MyTimestamp(E59) -> 
A60: Escalation Not UL | B60: Not Charge on U/L
A61: Escalation Not UL | B61: =IFERROR(RANK($P61, $P$6:$P$65, 1), "") ->  | C61: First Year | D61: Fire | F61: =$F$4 -> 2.819e-05 | G61: FALSE | H61: TRUE | I61: FALSE | J61: FALSE | K61: 0 | M61: =IF(E61 = 0, 0, MAX(((VLOOKUP($B61, OM_NonFreeExt, 60, FALSE) * F61) * (IF(H61 = TRUE, 1 - 'Loss Limit Discount'!$D$93, 1))) * (1 - Voluntary_Deductible), K61)) -> 0 | O61: =MyTimestamp(E61) ->  | P61: =IFERROR(VALUE(O61), "") -> 
A62: Escalation Not UL | C62: Second Year | D62: Fire | F62: =$F$4 * 0.5 -> 1.4095e-05 | G62: FALSE | H62: TRUE | I62: FALSE | J62: FALSE | K62: 0 | M62: =IF(E62 = 0, 0, MAX(((VLOOKUP($B62, OM_NonFreeExt, 60, FALSE) * F62) * (IF(H62 = TRUE, 1 - 'Loss Limit Discount'!$D$93, 1))) * (1 - Voluntary_Deductible), K62)) -> 0 | O62: =MyTimestamp(E62) -> 
A63: Escalation Not UL | C63: Third Year | D63: Fire | F63: =$F$4 * 0.25 -> 7.0475e-06 | G63: FALSE | H63: TRUE | I63: FALSE | J63: FALSE | K63: 0 | M63: =IF(E63 = 0, 0, MAX(((VLOOKUP($B63, OM_NonFreeExt, 60, FALSE) * F63) * (IF(H63 = TRUE, 1 - 'Loss Limit Discount'!$D$93, 1))) * (1 - Voluntary_Deductible), K63)) -> 0 | O63: =MyTimestamp(E63) -> 
A64: Escalation Not UL | C64: Fourth Year | D64: Fire | F64: =$F$4 * 0.2 -> 5.638e-06 | G64: FALSE | H64: TRUE | I64: FALSE | J64: FALSE | K64: 0 | M64: =IF(E64 = 0, 0, MAX(((VLOOKUP($B64, OM_NonFreeExt, 60, FALSE) * F64) * (IF(H64 = TRUE, 1 - 'Loss Limit Discount'!$D$93, 1))) * (1 - Voluntary_Deductible), K64)) -> 0 | O64: =MyTimestamp(E64) -> 
A65: Escalation Not UL | B65: =IFERROR(RANK($P65, $P$6:$P$65, 1), "") ->  | C65: Fifth Year | D65: Fire | F65: =$F$4 * 0.15 -> 4.2285e-06 | G65: FALSE | H65: TRUE | I65: FALSE | J65: FALSE | K65: 0 | M65: =IF(E65 = 0, 0, MAX(((VLOOKUP($B65, OM_NonFreeExt, 60, FALSE) * F65) * (IF(H65 = TRUE, 1 - 'Loss Limit Discount'!$D$93, 1))) * (1 - Voluntary_Deductible), K65)) -> 0 | O65: =MyTimestamp(E65) -> 
B67: Business Interruption
B68: Advance Specified Standing Charges
A69: Business Interruption | B69: ASC | C69: 12 Months | D69: Advance Standing Charges | F69: =_xlfn.IFNA(VLOOKUP(C69, Metadata!$L$2:$M$5, 2, FALSE),0) -> 8.64e-05 | G69: FALSE | H69: FALSE | I69: TRUE | J69: TRUE | K69: =BI2_12M_MonthlyMin -> 5 | L69: FALSE | M69: =IF(E69 = 0, 0, MAX((E69 * F69) * (IF(H69 = TRUE, 1 - 'Loss Limit Discount'!$D$93, 1)) * (IF(J69 = TRUE, 1 - 'Contract Works Discount'!$D$102, 1) * (1 - Voluntary_Deductible) * (1 - Co_insurance)), K69)) -> 0
B70: Specified Standing Charges
A71: Business Interruption | B71: SC | C71: 12 Months | D71: Standing Charges | F71: =_xlfn.IFNA(VLOOKUP(C71, Metadata!$L$7:$M$14, 2, FALSE),0) -> 8.64e-05 | G71: TRUE | H71: TRUE | I71: FALSE | J71: FALSE | K71: =BI2_12M_MonthlyMin -> 5 | L71: FALSE | M71: =IF(E71 = 0, 0, MAX((E71 * F71) * (IF(H71 = TRUE, 1 - 'Loss Limit Discount'!$D$93, 1)) * (IF(J71 = TRUE, 1 - 'Contract Works Discount'!$D$102, 1) * (1 - Voluntary_Deductible) * (1 - Co_insurance)), K71)) -> 0
A72: Business Interruption | B72: AICOW | C72: Additional Increase In Cost Of Working | D72: Standing Charges | F72: =F71 * 1.5 -> 0.0001296 | G72: TRUE | H72: TRUE | I72: FALSE | J72: FALSE | K72: 0 | L72: FALSE | M72: =IF(E72 = 0, 0, MAX((E72 * F72) * (IF(H72 = TRUE, 1 - 'Loss Limit Discount'!$D$93, 1)) * (IF(J72 = TRUE, 1 - 'Contract Works Discount'!$D$102, 1) * (1 - Voluntary_Deductible) * (1 - Co_insurance)), K72)) -> 0
B73: Working Expenses
A74: Business Interruption | B74: WE | C74: 12 Months | D74: Working Expenses | F74: =_xlfn.IFNA(VLOOKUP(C74, Metadata!L16:M23, 2, FALSE),0) -> 8.64e-05 | G74: TRUE | H74: TRUE | I74: FALSE | J74: FALSE | K74: =BI2_12M_MonthlyMin -> 5 | L74: FALSE | M74: =IF(E74 = 0, 0, MAX((E74 * F74) * (IF(H74 = TRUE, 1 - 'Loss Limit Discount'!$D$93, 1)) * (IF(J74 = TRUE, 1 - 'Contract Works Discount'!$D$102, 1) * (1 - Voluntary_Deductible) * (1 - Co_insurance)), K74)) -> 0
A75: Business Interruption | B75: AICOW | C75: Additional Increase In Cost Of Working | D75: Working Expenses | F75: =F74 * 1.5 -> 0.0001296 | G75: TRUE | H75: TRUE | I75: FALSE | J75: FALSE | K75: 0 | L75: FALSE | M75: =IF(E75 = 0, 0, MAX((E75 * F75) * (IF(H75 = TRUE, 1 - 'Loss Limit Discount'!$D$93, 1)) * (IF(J75 = TRUE, 1 - 'Contract Works Discount'!$D$102, 1) * (1 - Voluntary_Deductible) * (1 - Co_insurance)), K75)) -> 0
B76: Revenue
A77: Business Interruption | B77: R | C77: 12 Months | D77: Revenue | F77: =_xlfn.IFNA(VLOOKUP(C77, Metadata!$L$48:$M$55, 2, FALSE),0) -> 8.64e-05 | G77: TRUE | H77: TRUE | I77: FALSE | J77: FALSE | K77: =BI2_12M_MonthlyMin -> 5 | L77: FALSE | M77: =IF(E77 = 0, 0, MAX((E77 * F77) * (IF(H77 = TRUE, 1 - 'Loss Limit Discount'!$D$93, 1)) * (IF(J77 = TRUE, 1 - 'Contract Works Discount'!$D$102, 1) * (1 - Voluntary_Deductible) * (1 - Co_insurance)), K77)) -> 0
A78: Business Interruption | B78: AICOW | C78: Additional Increase In Cost Of Working | D78: Revenue | F78: =F77 * 1.5 -> 0.0001296 | G78: TRUE | H78: TRUE | I78: FALSE | J78: FALSE | K78: 0 | L78: FALSE | M78: =IF(E78 = 0, 0, MAX((E78 * F78) * (IF(H78 = TRUE, 1 - 'Loss Limit Discount'!$D$93, 1)) * (IF(J78 = TRUE, 1 - 'Contract Works Discount'!$D$102, 1) * (1 - Voluntary_Deductible) * (1 - Co_insurance)), K78)) -> 0
B79: Net Profit
A80: Business Interruption | B80: NP | C80: 12 Months | D80: Net Profit | F80: =_xlfn.IFNA(VLOOKUP(C80, Metadata!$L$25:$M$32, 2, FALSE),0) -> 8.64e-05 | G80: TRUE | H80: TRUE | I80: FALSE | J80: FALSE | K80: =BI2_12M_MonthlyMin -> 5 | L80: FALSE | M80: =IF(E80 = 0, 0, MAX((E80 * F80) * (IF(H80 = TRUE, 1 - 'Loss Limit Discount'!$D$93, 1)) * (IF(J80 = TRUE, 1 - 'Contract Works Discount'!$D$102, 1) * (1 - Voluntary_Deductible) * (1 - Co_insurance)), K80)) -> 0
A81: Business Interruption | B81: AICOW | C81: Additional Increase In Cost Of Working | D81: Net Profit | F81: =F80 * 1.5 -> 0.0001296 | G81: TRUE | H81: TRUE | I81: FALSE | J81: FALSE | K81: 0 | L81: FALSE | M81: =IF(E81 = 0, 0, MAX((E81 * F81) * (IF(H81 = TRUE, 1 - 'Loss Limit Discount'!$D$93, 1)) * (IF(J81 = TRUE, 1 - 'Contract Works Discount'!$D$102, 1) * (1 - Voluntary_Deductible) * (1 - Co_insurance)), K81)) -> 0
B82: Gross Profit
A83: Business Interruption | B83: GP | C83: 12 Months | D83: Gross Profit | F83: =_xlfn.IFNA(VLOOKUP(C83, Metadata!$L$34:$M$41, 2, FALSE),0) -> 8.64e-05 | G83: TRUE | H83: TRUE | I83: FALSE | J83: FALSE | K83: =BI2_12M_MonthlyMin -> 5 | L83: FALSE | M83: =IF(E83 = 0, 0, MAX((E83 * F83) * (IF(H83 = TRUE, 1 - 'Loss Limit Discount'!$D$93, 1)) * (IF(J83 = TRUE, 1 - 'Contract Works Discount'!$D$102, 1) * (1 - Voluntary_Deductible) * (1 - Co_insurance)), K83)) -> 0
A84: Business Interruption | B84: AICOW | C84: Additional Increase In Cost Of Working | D84: Gross Profit | F84: =F83 * 1.5 -> 0.0001296 | G84: TRUE | H84: TRUE | I84: FALSE | J84: FALSE | K84: 0 | L84: FALSE | M84: =IF(E84 = 0, 0, MAX((E84 * F84) * (IF(H84 = TRUE, 1 - 'Loss Limit Discount'!$D$93, 1)) * (IF(J84 = TRUE, 1 - 'Contract Works Discount'!$D$102, 1) * (1 - Voluntary_Deductible) * (1 - Co_insurance)), K84)) -> 0

Sheet Fire (Office) - Annual
A1: Commercial (Office) - Annual | O1: Cells with green borders have a drop-down selection!
A2: Category | B2: Code | C2: Description | D2: Total Code | E2: Sum Insured/No. of insured items | F2: Rate | G2: Add To Sum Insured Discount | H2: Receive Sum Insured Discount | I2: Add To CW Discount | J2: Receive CW Discount | K2: Minimum Premium | L2: Has Fire Extension Discount | M2: Premium
B3: Fire
A4: Commercial Fire | B4: F2(O) | C4: Commercial Fire (Office) | D4: Fire | F4: =F2O_Annual -> 0.00028188 | G4: TRUE | H4: TRUE | I4: FALSE | J4: FALSE | K4: =F2O_AnnualMin -> 500 | M4: =IF(E4 = 0, 0, MAX(((E4 * F4) * (IF(H4 = TRUE, 1 - 'Loss Limit Discount'!$D$93, 1))) * (1 - Voluntary_Deductible) * (1 - Co_insurance), K4)) -> 0
A5: Extensions | B5: Sasria Extensions
A6: Extensions | B6: =IFERROR(RANK($P6, $P$6:$P$65, 1), "") ->  | C6: Rent | D6: Fire | F6: =$F$4 -> 0.00028188 | G6: TRUE | H6: TRUE | I6: FALSE | J6: FALSE | K6: 0 | L6: TRUE | M6: =IF(E6 = 0, 0, MAX(((VLOOKUP($B6, OA_NonFreeExt, 60, FALSE) * F6) * (IF(H6 = TRUE, 1 - 'Loss Limit Discount'!$D$93, 1))) * (1 - Voluntary_Deductible), K6)) -> 0 | O6: =MyTimestamp(E6) ->  | P6: =IFERROR(VALUE(O6), "") -> 
A7: Extensions | B7: =IFERROR(RANK($P7, $P$6:$P$65, 1), "") ->  | C7: Claims Preparation Costs | D7: Fire | F7: =$F$4 -> 0.00028188 | G7: TRUE | H7: TRUE | I7: FALSE | J7: FALSE | K7: 0 | L7: TRUE | M7: =IF(E7 = 0, 0, MAX(((VLOOKUP($B7, OA_NonFreeExt, 60, FALSE) * F7) * (IF(H7 = TRUE, 1 - 'Loss Limit Discount'!$D$93, 1))) * (1 - Voluntary_Deductible), K7)) -> 0 | O7: =MyTimestamp(E7) ->  | P7: =IFERROR(VALUE(O7), "") -> 
A8: Extensions | C8: Capital Additions | D8: Fire | F8: 0.00028188 | G8: TRUE | H8: TRUE | I8: FALSE | J8: FALSE | K8: 0 | L8: TRUE | M8: =IF(E8 = 0, 0, MAX(((VLOOKUP($B8, OA_NonFreeExt, 60, FALSE) * F8) * (IF(H8 = TRUE, 1 - 'Loss Limit Discount'!$D$93, 1))) * (1 - Voluntary_Deductible), K8)) -> 0 | O8: =MyTimestamp(E8) -> 
A9: Extensions | C9: Professional fees | D9: Fire | F9: 0.00028188 | G9: TRUE | H9: TRUE | I9: FALSE | J9: FALSE | K9: 0 | L9: TRUE | M9: =IF(E9 = 0, 0, MAX(((VLOOKUP($B9, OA_NonFreeExt, 60, FALSE) * F9) * (IF(H9 = TRUE, 1 - 'Loss Limit Discount'!$D$93, 1))) * (1 - Voluntary_Deductible), K9)) -> 0 | O9: =MyTimestamp(E9) -> 
A10: Extensions | C10: Clearance costs | D10: Fire | F10: 0.00028188 | G10: TRUE | H10: TRUE | I10: FALSE | J10: FALSE | K10: 0 | L10: TRUE | M10: =IF(E10 = 0, 0, MAX(((VLOOKUP($B10, OA_NonFreeExt, 60, FALSE) * F10) * (IF(H10 = TRUE, 1 - 'Loss Limit Discount'!$D$93, 1))) * (1 - Voluntary_Deductible), K10)) -> 0 | O10: =MyTimestamp(E10) -> 
A11: Extensions | C11: Security Costs (During and after a loss) | D11: Fire | F11: 0.00028188 | G11: TRUE | H11: TRUE | I11: FALSE | J11: FALSE | K11: 0 | L11: TRUE | M11: =IF(E11 = 0, 0, MAX(((VLOOKUP($B11, OA_NonFreeExt, 60, FALSE) * F11) * (IF(H11 = TRUE, 1 - 'Loss Limit Discount'!$D$93, 1))) * (1 - Voluntary_Deductible), K11)) -> 0 | O11: =MyTimestamp(E11) -> 
A12: Extensions | C12: Statutory Duties | D12: Fire | F12: 0.00028188 | G12: TRUE | H12: TRUE | I12: FALSE | J12: FALSE | K12: 0 | L12: TRUE | M12: =IF(E12 = 0, 0, MAX(((VLOOKUP($B12, OA_NonFreeExt, 60, FALSE) * F12) * (IF(H12 = TRUE, 1 - 'Loss Limit Discount'!$D$93, 1))) * (1 - Voluntary_Deductible), K12)) -> 0 | O12: =MyTimestamp(E12) -> 
A13: Extensions | C13: Additional Premises | D13: Fire | F13: 0.00028188 | G13: TRUE | H13: TRUE | I13: FALSE | J13: FALSE | K13: 0 | L13: TRUE | M13: =IF(E13 = 0, 0, MAX(((VLOOKUP($B13, OA_NonFreeExt, 60, FALSE) * F13) * (IF(H13 = TRUE, 1 - 'Loss Limit Discount'!$D$93, 1))) * (1 - Voluntary_Deductible), K13)) -> 0 | O13: =MyTimestamp(E13) -> 
A14: Extensions | C14: Acquisitions | D14: Fire | F14: 0.00028188 | G14: TRUE | H14: TRUE | I14: FALSE | J14: FALSE | K14: 0 | L14: TRUE | M14: =IF(E14 = 0, 0, MAX(((VLOOKUP($B14, OA_NonFreeExt, 60, FALSE) * F14) * (IF(H14 = TRUE, 1 - 'Loss Limit Discount'!$D$93, 1))) * (1 - Voluntary_Deductible), K14)) -> 0 | O14: =MyTimestamp(E14) -> 
A15: Extensions | C15: Import Surcharges | D15: Fire | F15: 0.00028188 | G15: TRUE | H15: TRUE | I15: FALSE | J15: FALSE | K15: 0 | L15: TRUE | M15: =IF(E15 = 0, 0, MAX(((VLOOKUP($B15, OA_NonFreeExt, 60, FALSE) * F15) * (IF(H15 = TRUE, 1 - 'Loss Limit Discount'!$D$93, 1))) * (1 - Voluntary_Deductible), K15)) -> 0 | O15: =MyTimestamp(E15) -> 
A16: Extensions | C16: Property in the course of Construction | D16: Fire | F16: 0.00028188 | G16: FALSE | H16: FALSE | I16: FALSE | J16: FALSE | K16: 0 | L16: TRUE | M16: =IF(E16 = 0, 0, MAX(((VLOOKUP($B16, OA_NonFreeExt, 60, FALSE) * F16) * (IF(H16 = TRUE, 1 - 'Loss Limit Discount'!$D$93, 1))) * (1 - Voluntary_Deductible), K16)) -> 0 | O16: =MyTimestamp(E16) ->  | P16: =IFERROR(VALUE(O16), "") -> 
A17: Extensions | C17: Fire Protection System Update | D17: Fire | F17: 0.00028188 | G17: TRUE | H17: TRUE | I17: FALSE | J17: FALSE | K17: 0 | L17: TRUE | M17: =IF(E17 = 0, 0, MAX(((VLOOKUP($B17, OA_NonFreeExt, 60, FALSE) * F17) * (IF(H17 = TRUE, 1 - 'Loss Limit Discount'!$D$93, 1))) * (1 - Voluntary_Deductible), K17)) -> 0 | O17: =MyTimestamp(E17) -> 
A18: Extensions | C18: Accumulation of Motor Vehicles/Static Risk | D18: Fire | F18: =StaticRisk_Annual -> 0.00081648 | G18: FALSE | H18: FALSE | I18: FALSE | J18: FALSE | K18: =StaticRisk_AnnualMin -> 500 | L18: TRUE | M18: =IF(E18 = 0, 0, MAX(((E18 * F18) * (IF(H18 = TRUE, 1 - 'Loss Limit Discount'!$D$93, 1))) * (1 - Voluntary_Deductible), K18)) -> 0
A19: Extensions | C19: Goods in the open | D19: Fire | F19: 0.00028188 | G19: TRUE | H19: TRUE | I19: FALSE | J19: FALSE | K19: 0 | L19: TRUE | M19: =IF(E19 = 0, 0, MAX(((VLOOKUP($B19, OA_NonFreeExt, 60, FALSE) * F19) * (IF(H19 = TRUE, 1 - 'Loss Limit Discount'!$D$93, 1))) * (1 - Voluntary_Deductible), K19)) -> 0 | O19: =MyTimestamp(E19) -> 
A20: Extensions | C20: Fire Extinguishing | D20: Fire | F20: 0.00028188 | G20: TRUE | H20: TRUE | I20: FALSE | J20: FALSE | K20: 0 | L20: TRUE | M20: =IF(E20 = 0, 0, MAX(((VLOOKUP($B20, OA_NonFreeExt, 60, FALSE) * F20) * (IF(H20 = TRUE, 1 - 'Loss Limit Discount'!$D$93, 1))) * (1 - Voluntary_Deductible), K20)) -> 0 | O20: =MyTimestamp(E20) -> 
A21: Extensions | C21: Imminent Danger (Protection of property prior a loss) | D21: Fire | F21: 0.00028188 | G21: TRUE | H21: TRUE | I21: FALSE | J21: FALSE | K21: 0 | L21: FALSE | M21: =IF(E21 = 0, 0, MAX(((E21 * F21) * (IF(H21 = TRUE, 1 - 'Loss Limit Discount'!$D$93, 1))) * (1 - Voluntary_Deductible), K21)) -> 0
A22: Extensions | B22: Other Extensions
A23: Other Extension | B23: =IFERROR(RANK($P23, $P$6:$P$65, 1), "") ->  | C23: Other | D23: Fire | F23: =$F$4 -> 0.00028188 | G23: TRUE | H23: TRUE | I23: FALSE | J23: FALSE | K23: 0 | L23: TRUE | M23: =IF(E23 = 0, 0, MAX(((VLOOKUP($B23, OA_NonFreeExt, 60, FALSE) * F23) * (IF(H23 = TRUE, 1 - 'Loss Limit Discount'!$D$93, 1))) * (1 - Voluntary_Deductible), K23)) -> 0 | O23: =MyTimestamp(E23) ->  | P23: =IFERROR(VALUE(O23), "") -> 
A24: Other Extension | C24: Other | D24: Fire | F24: 0.00028188 | G24: TRUE | H24: TRUE | I24: FALSE | J24: FALSE | K24: 0 | L24: TRUE | M24: =IF(E24 = 0, 0, MAX(((VLOOKUP($B24, OA_NonFreeExt, 60, FALSE) * F24) * (IF(H24 = TRUE, 1 - 'Loss Limit Discount'!$D$93, 1))) * (1 - Voluntary_Deductible), K24)) -> 0 | O24: =MyTimestamp(E24) -> 
A25: Other Extension | C25: Other | D25: Fire | F25: 0.00028188 | G25: TRUE | H25: TRUE | I25: FALSE | J25: FALSE | K25: 0 | L25: TRUE | M25: =IF(E25 = 0, 0, MAX(((VLOOKUP($B25, OA_NonFreeExt, 60, FALSE) * F25) * (IF(H25 = TRUE, 1 - 'Loss Limit Discount'!$D$93, 1))) * (1 - Voluntary_Deductible), K25)) -> 0 | O25: =MyTimestamp(E25) -> 
A26: Other Extension | C26: Other | D26: Fire | F26: 0.00028188 | G26: TRUE | H26: TRUE | I26: FALSE | J26: FALSE | K26: 0 | L26: TRUE | M26: =IF(E26 = 0, 0, MAX(((VLOOKUP($B26, OA_NonFreeExt, 60, FALSE) * F26) * (IF(H26 = TRUE, 1 - 'Loss Limit Discount'!$D$93, 1))) * (1 - Voluntary_Deductible), K26)) -> 0 | O26: =MyTimestamp(E26) -> 
A27: Other Extension | C27: Other | D27: Fire | F27: 0.00028188 | G27: TRUE | H27: TRUE | I27: FALSE | J27: FALSE | K27: 0 | L27: TRUE | M27: =IF(E27 = 0, 0, MAX(((VLOOKUP($B27, OA_NonFreeExt, 60, FALSE) * F27) * (IF(H27 = TRUE, 1 - 'Loss Limit Discount'!$D$93, 1))) * (1 - Voluntary_Deductible), K27)) -> 0 | O27: =MyTimestamp(E27) -> 
A28: Other Extension | C28: Other | D28: Fire | F28: 0.00028188 | G28: TRUE | H28: TRUE | I28: FALSE | J28: FALSE | K28: 0 | L28: TRUE | M28: =IF(E28 = 0, 0, MAX(((VLOOKUP($B28, OA_NonFreeExt, 60, FALSE) * F28) * (IF(H28 = TRUE, 1 - 'Loss Limit Discount'!$D$93, 1))) * (1 - Voluntary_Deductible), K28)) -> 0 | O28: =MyTimestamp(E28) -> 
A29: Other Extension | C29: Other | D29: Fire | F29: 0.00028188 | G29: TRUE | H29: TRUE | I29: FALSE | J29: FALSE | K29: 0 | L29: TRUE | M29: =IF(E29 = 0, 0, MAX(((VLOOKUP($B29, OA_NonFreeExt, 60, FALSE) * F29) * (IF(H29 = TRUE, 1 - 'Loss Limit Discount'!$D$93, 1))) * (1 - Voluntary_Deductible), K29)) -> 0 | O29: =MyTimestamp(E29) -> 
A30: Other Extension | C30: Other | D30: Fire | F30: 0.00028188 | G30: TRUE | H30: TRUE | I30: FALSE | J30: FALSE | K30: 0 | L30: TRUE | M30: =IF(E30 = 0, 0, MAX(((VLOOKUP($B30, OA_NonFreeExt, 60, FALSE) * F30) * (IF(H30 = TRUE, 1 - 'Loss Limit Discount'!$D$93, 1))) * (1 - Voluntary_Deductible), K30)) -> 0 | O30: =MyTimestamp(E30) -> 
A31: Other Extension | C31: Other | D31: Fire | F31: 0.00028188 | G31: TRUE | H31: TRUE | I31: FALSE | J31: FALSE | K31: 0 | L31: TRUE | M31: =IF(E31 = 0, 0, MAX(((VLOOKUP($B31, OA_NonFreeExt, 60, FALSE) * F31) * (IF(H31 = TRUE, 1 - 'Loss Limit Discount'!$D$93, 1))) * (1 - Voluntary_Deductible), K31)) -> 0 | O31: =MyTimestamp(E31) -> 
A32: Other Extension | C32: Other | D32: Fire | F32: 0.00028188 | G32: TRUE | H32: TRUE | I32: FALSE | J32: FALSE | K32: 0 | L32: TRUE | M32: =IF(E32 = 0, 0, MAX(((VLOOKUP($B32, OA_NonFreeExt, 60, FALSE) * F32) * (IF(H32 = TRUE, 1 - 'Loss Limit Discount'!$D$93, 1))) * (1 - Voluntary_Deductible), K32)) -> 0 | O32: =MyTimestamp(E32) -> 
A33: Other Extension | C33: Other | D33: Fire | F33: 0.00028188 | G33: TRUE | H33: TRUE | I33: FALSE | J33: FALSE | K33: 0 | L33: TRUE | M33: =IF(E33 = 0, 0, MAX(((VLOOKUP($B33, OA_NonFreeExt, 60, FALSE) * F33) * (IF(H33 = TRUE, 1 - 'Loss Limit Discount'!$D$93, 1))) * (1 - Voluntary_Deductible), K33)) -> 0 | O33: =MyTimestamp(E33) -> 
A34: Other Extension | C34: Other | D34: Fire | F34: 0.00028188 | G34: TRUE | H34: TRUE | I34: FALSE | J34: FALSE | K34: 0 | L34: TRUE | M34: =IF(E34 = 0, 0, MAX(((VLOOKUP($B34, OA_NonFreeExt, 60, FALSE) * F34) * (IF(H34 = TRUE, 1 - 'Loss Limit Discount'!$D$93, 1))) * (1 - Voluntary_Deductible), K34)) -> 0 | O34: =MyTimestamp(E34) -> 
A35: Other Extension | C35: Other | D35: Fire | F35: 0.00028188 | G35: TRUE | H35: TRUE | I35: FALSE | J35: FALSE | K35: 0 | L35: TRUE | M35: =IF(E35 = 0, 0, MAX(((VLOOKUP($B35, OA_NonFreeExt, 60, FALSE) * F35) * (IF(H35 = TRUE, 1 - 'Loss Limit Discount'!$D$93, 1))) * (1 - Voluntary_Deductible), K35)) -> 0 | O35: =MyTimestamp(E35) -> 
A36: Other Extension | C36: Other | D36: Fire | F36: 0.00028188 | G36: TRUE | H36: TRUE | I36: FALSE | J36: FALSE | K36: 0 | L36: TRUE | M36: =IF(E36 = 0, 0, MAX(((VLOOKUP($B36, OA_NonFreeExt, 60, FALSE) * F36) * (IF(H36 = TRUE, 1 - 'Loss Limit Discount'!$D$93, 1))) * (1 - Voluntary_Deductible), K36)) -> 0 | O36: =MyTimestamp(E36) -> 
A37: Other Extension | C37: Other | D37: Fire | F37: 0.00028188 | G37: TRUE | H37: TRUE | I37: FALSE | J37: FALSE | K37: 0 | L37: TRUE | M37: =IF(E37 = 0, 0, MAX(((VLOOKUP($B37, OA_NonFreeExt, 60, FALSE) * F37) * (IF(H37 = TRUE, 1 - 'Loss Limit Discount'!$D$93, 1))) * (1 - Voluntary_Deductible), K37)) -> 0 | O37: =MyTimestamp(E37) -> 
A38: Other Extension | C38: Other | D38: Fire | F38: 0.00028188 | G38: TRUE | H38: TRUE | I38: FALSE | J38: FALSE | K38: 0 | L38: TRUE | M38: =IF(E38 = 0, 0, MAX(((VLOOKUP($B38, OA_NonFreeExt, 60, FALSE) * F38) * (IF(H38 = TRUE, 1 - 'Loss Limit Discount'!$D$93, 1))) * (1 - Voluntary_Deductible), K38)) -> 0 | O38: =MyTimestamp(E38) -> 
A39: Other Extension | C39: Other | D39: Fire | F39: 0.00028188 | G39: TRUE | H39: TRUE | I39: FALSE | J39: FALSE | K39: 0 | L39: TRUE | M39: =IF(E39 = 0, 0, MAX(((VLOOKUP($B39, OA_NonFreeExt, 60, FALSE) * F39) * (IF(H39 = TRUE, 1 - 'Loss Limit Discount'!$D$93, 1))) * (1 - Voluntary_Deductible), K39)) -> 0 | O39: =MyTimestamp(E39) -> 
A40: Other Extension | C40: Other | D40: Fire | F40: 0.00028188 | G40: TRUE | H40: TRUE | I40: FALSE | J40: FALSE | K40: 0 | L40: TRUE | M40: =IF(E40 = 0, 0, MAX(((VLOOKUP($B40, OA_NonFreeExt, 60, FALSE) * F40) * (IF(H40 = TRUE, 1 - 'Loss Limit Discount'!$D$93, 1))) * (1 - Voluntary_Deductible), K40)) -> 0 | O40: =MyTimestamp(E40) -> 
A41: Other Extension | C41: Other | D41: Fire | F41: 0.00028188 | G41: TRUE | H41: TRUE | I41: FALSE | J41: FALSE | K41: 0 | L41: TRUE | M41: =IF(E41 = 0, 0, MAX(((VLOOKUP($B41, OA_NonFreeExt, 60, FALSE) * F41) * (IF(H41 = TRUE, 1 - 'Loss Limit Discount'!$D$93, 1))) * (1 - Voluntary_Deductible), K41)) -> 0 | O41: =MyTimestamp(E41) -> 
A42: Other Extension | C42: Other | D42: Fire | F42: 0.00028188 | G42: TRUE | H42: TRUE | I42: FALSE | J42: FALSE | K42: 0 | L42: TRUE | M42: =IF(E42 = 0, 0, MAX(((VLOOKUP($B42, OA_NonFreeExt, 60, FALSE) * F42) * (IF(H42 = TRUE, 1 - 'Loss Limit Discount'!$D$93, 1))) * (1 - Voluntary_Deductible), K42)) -> 0 | O42: =MyTimestamp(E42) -> 
A43: Other Extension | C43: Other | D43: Fire | F43: 0.00028188 | G43: TRUE | H43: TRUE | I43: FALSE | J43: FALSE | K43: 0 | L43: TRUE | M43: =IF(E43 = 0, 0, MAX(((VLOOKUP($B43, OA_NonFreeExt, 60, FALSE) * F43) * (IF(H43 = TRUE, 1 - 'Loss Limit Discount'!$D$93, 1))) * (1 - Voluntary_Deductible), K43)) -> 0 | O43: =MyTimestamp(E43) -> 
A44: Other Extension | C44: Other | D44: Fire | F44: 0.00028188 | G44: TRUE | H44: TRUE | I44: FALSE | J44: FALSE | K44: 0 | L44: TRUE | M44: =IF(E44 = 0, 0, MAX(((VLOOKUP($B44, OA_NonFreeExt, 60, FALSE) * F44) * (IF(H44 = TRUE, 1 - 'Loss Limit Discount'!$D$93, 1))) * (1 - Voluntary_Deductible), K44)) -> 0 | O44: =MyTimestamp(E44) -> 
A45: Other Extension | C45: Other | D45: Fire | F45: 0.00028188 | G45: TRUE | H45: TRUE | I45: FALSE | J45: FALSE | K45: 0 | L45: TRUE | M45: =IF(E45 = 0, 0, MAX(((VLOOKUP($B45, OA_NonFreeExt, 60, FALSE) * F45) * (IF(H45 = TRUE, 1 - 'Loss Limit Discount'!$D$93, 1))) * (1 - Voluntary_Deductible), K45)) -> 0 | O45: =MyTimestamp(E45) -> 
A46: Other Extension | C46: Other | D46: Fire | F46: 0.00028188 | G46: TRUE | H46: TRUE | I46: FALSE | J46: FALSE | K46: 0 | L46: TRUE | M46: =IF(E46 = 0, 0, MAX(((VLOOKUP($B46, OA_NonFreeExt, 60, FALSE) * F46) * (IF(H46 = TRUE, 1 - 'Loss Limit Discount'!$D$93, 1))) * (1 - Voluntary_Deductible), K46)) -> 0 | O46: =MyTimestamp(E46) -> 
A47: Other Extension | C47: Other | D47: Fire | F47: 0.00028188 | G47: TRUE | H47: TRUE | I47: FALSE | J47: FALSE | K47: 0 | L47: TRUE | M47: =IF(E47 = 0, 0, MAX(((VLOOKUP($B47, OA_NonFreeExt, 60, FALSE) * F47) * (IF(H47 = TRUE, 1 - 'Loss Limit Discount'!$D$93, 1))) * (1 - Voluntary_Deductible), K47)) -> 0 | O47: =MyTimestamp(E47) -> 
A48: Other Extension | C48: Other | D48: Fire | F48: 0.00028188 | G48: TRUE | H48: TRUE | I48: FALSE | J48: FALSE | K48: 0 | L48: TRUE | M48: =IF(E48 = 0, 0, MAX(((VLOOKUP($B48, OA_NonFreeExt, 60, FALSE) * F48) * (IF(H48 = TRUE, 1 - 'Loss Limit Discount'!$D$93, 1))) * (1 - Voluntary_Deductible), K48)) -> 0 | O48: =MyTimestamp(E48) -> 
A49: Other Extension | C49: Other | D49: Fire | F49: 0.00028188 | G49: TRUE | H49: TRUE | I49: FALSE | J49: FALSE | K49: 0 | L49: TRUE | M49: =IF(E49 = 0, 0, MAX(((VLOOKUP($B49, OA_NonFreeExt, 60, FALSE) * F49) * (IF(H49 = TRUE, 1 - 'Loss Limit Discount'!$D$93, 1))) * (1 - Voluntary_Deductible), K49)) -> 0 | O49: =MyTimestamp(E49) -> 
A50: Other Extension | C50: Other | D50: Fire | F50: 0.00028188 | G50: TRUE | H50: TRUE | I50: FALSE | J50: FALSE | K50: 0 | L50: TRUE | M50: =IF(E50 = 0, 0, MAX(((VLOOKUP($B50, OA_NonFreeExt, 60, FALSE) * F50) * (IF(H50 = TRUE, 1 - 'Loss Limit Discount'!$D$93, 1))) * (1 - Voluntary_Deductible), K50)) -> 0 | O50: =MyTimestamp(E50) -> 
A51: Other Extension | C51: Other | D51: Fire | F51: 0.00028188 | G51: TRUE | H51: TRUE | I51: FALSE | J51: FALSE | K51: 0 | L51: TRUE | M51: =IF(E51 = 0, 0, MAX(((VLOOKUP($B51, OA_NonFreeExt, 60, FALSE) * F51) * (IF(H51 = TRUE, 1 - 'Loss Limit Discount'!$D$93, 1))) * (1 - Voluntary_Deductible), K51)) -> 0 | O51: =MyTimestamp(E51) -> 
A52: Other Extension | C52: Other | D52: Fire | F52: 0.00028188 | G52: TRUE | H52: TRUE | I52: FALSE | J52: FALSE | K52: 0 | L52: TRUE | M52: =IF(E52 = 0, 0, MAX(((VLOOKUP($B52, OA_NonFreeExt, 60, FALSE) * F52) * (IF(H52 = TRUE, 1 - 'Loss Limit Discount'!$D$93, 1))) * (1 - Voluntary_Deductible), K52)) -> 0 | O52: =MyTimestamp(E52) -> 
B53: Escalation and or Inflation
A54: Escalation UL | B54: Charge on U/L
A55: Escalation UL | B55: =IFERROR(RANK($P55, $P$6:$P$65, 1), "") ->  | C55: First Year (90-100%) | D55: Fire | F55: =IF(C55 = "", 0, VLOOKUP(C55, Escalation!$H$111:$I$155, 2, FALSE)) -> 0.00028188 | G55: FALSE | H55: TRUE | I55: FALSE | J55: FALSE | K55: 0 | M55: =IF(E55 = 0, 0, MAX(((VLOOKUP($B55, OA_NonFreeExt, 60, FALSE) * F55) * (IF(H55 = TRUE, 1 - 'Loss Limit Discount'!$D$93, 1))) * (1 - Voluntary_Deductible), K55)) -> 0 | O55: =MyTimestamp(E55) ->  | P55: =IFERROR(VALUE(O55), "") -> 
A56: Escalation UL | C56: Second Year (90-100%) | D56: Fire | F56: =IF(C56 = "", 0, VLOOKUP(C56, Escalation!$H$111:$I$155, 2, FALSE)) -> 0.00014094 | G56: FALSE | H56: TRUE | I56: FALSE | J56: FALSE | K56: 0 | M56: =IF(E56 = 0, 0, MAX(((VLOOKUP($B56, OA_NonFreeExt, 60, FALSE) * F56) * (IF(H56 = TRUE, 1 - 'Loss Limit Discount'!$D$93, 1))) * (1 - Voluntary_Deductible), K56)) -> 0 | O56: =MyTimestamp(E56) -> 
A57: Escalation UL | C57: Third Year (90-100%) | D57: Fire | F57: =IF(C57 = "", 0, VLOOKUP(C57, Escalation!$H$111:$I$155, 2, FALSE)) -> 7.047e-05 | G57: FALSE | H57: TRUE | I57: FALSE | J57: FALSE | K57: 0 | M57: =IF(E57 = 0, 0, MAX(((VLOOKUP($B57, OA_NonFreeExt, 60, FALSE) * F57) * (IF(H57 = TRUE, 1 - 'Loss Limit Discount'!$D$93, 1))) * (1 - Voluntary_Deductible), K57)) -> 0 | O57: =MyTimestamp(E57) -> 
A58: Escalation UL | C58: Fourth Year (90-100%) | D58: Fire | F58: =IF(C58 = "", 0, VLOOKUP(C58, Escalation!$H$111:$I$155, 2, FALSE)) -> 5.6376e-05 | G58: FALSE | H58: TRUE | I58: FALSE | J58: FALSE | K58: 0 | M58: =IF(E58 = 0, 0, MAX(((VLOOKUP($B58, OA_NonFreeExt, 60, FALSE) * F58) * (IF(H58 = TRUE, 1 - 'Loss Limit Discount'!$D$93, 1))) * (1 - Voluntary_Deductible), K58)) -> 0 | O58: =MyTimestamp(E58) -> 
A59: Escalation UL | C59: Fifth Year (90-100%) | D59: Fire | F59: =IF(C59 = "", 0, VLOOKUP(C59, Escalation!$H$111:$I$155, 2, FALSE)) -> 4.2282e-05 | G59: FALSE | H59: TRUE | I59: FALSE | J59: FALSE | K59: 0 | M59: =IF(E59 = 0, 0, MAX(((VLOOKUP($B59, OA_NonFreeExt, 60, FALSE) * F59) * (IF(H59 = TRUE, 1 - 'Loss Limit Discount'!$D$93, 1))) * (1 - Voluntary_Deductible), K59)) -> 0 | O59: =MyTimestamp(E59) -> 
A60: Escalation Not UL | B60: Not Charge on U/L
A61: Escalation Not UL | B61: =IFERROR(RANK($P61, $P$6:$P$65, 1), "") ->  | C61: First Year | D61: Fire | F61: =$F$4 -> 0.00028188 | G61: FALSE | H61: TRUE | I61: FALSE | J61: FALSE | K61: 0 | M61: =IF(E61 = 0, 0, MAX(((VLOOKUP($B61, OA_NonFreeExt, 60, FALSE) * F61) * (IF(H61 = TRUE, 1 - 'Loss Limit Discount'!$D$93, 1))) * (1 - Voluntary_Deductible), K61)) -> 0 | O61: =MyTimestamp(E61) ->  | P61: =IFERROR(VALUE(O61), "") -> 
A62: Escalation Not UL | C62: Second Year | D62: Fire | F62: =$F$4 * 0.5 -> 0.00014094 | G62: FALSE | H62: TRUE | I62: FALSE | J62: FALSE | K62: 0 | M62: =IF(E62 = 0, 0, MAX(((VLOOKUP($B62, OA_NonFreeExt, 60, FALSE) * F62) * (IF(H62 = TRUE, 1 - 'Loss Limit Discount'!$D$93, 1))) * (1 - Voluntary_Deductible), K62)) -> 0 | O62: =MyTimestamp(E62) -> 
A63: Escalation Not UL | C63: Third Year | D63: Fire | F63: =$F$4 * 0.25 -> 7.047e-05 | G63: FALSE | H63: TRUE | I63: FALSE | J63: FALSE | K63: 0 | M63: =IF(E63 = 0, 0, MAX(((VLOOKUP($B63, OA_NonFreeExt, 60, FALSE) * F63) * (IF(H63 = TRUE, 1 - 'Loss Limit Discount'!$D$93, 1))) * (1 - Voluntary_Deductible), K63)) -> 0 | O63: =MyTimestamp(E63) -> 
A64: Escalation Not UL | C64: Fourth Year | D64: Fire | F64: =$F$4 * 0.2 -> 5.6376e-05 | G64: FALSE | H64: TRUE | I64: FALSE | J64: FALSE | K64: 0 | M64: =IF(E64 = 0, 0, MAX(((VLOOKUP($B64, OA_NonFreeExt, 60, FALSE) * F64) * (IF(H64 = TRUE, 1 - 'Loss Limit Discount'!$D$93, 1))) * (1 - Voluntary_Deductible), K64)) -> 0 | O64: =MyTimestamp(E64) -> 
A65: Escalation Not UL | C65: Fifth Year | D65: Fire | F65: =$F$4 * 0.15 -> 4.2282e-05 | G65: FALSE | H65: TRUE | I65: FALSE | J65: FALSE | K65: 0 | M65: =IF(E65 = 0, 0, MAX(((VLOOKUP($B65, OA_NonFreeExt, 60, FALSE) * F65) * (IF(H65 = TRUE, 1 - 'Loss Limit Discount'!$D$93, 1))) * (1 - Voluntary_Deductible), K65)) -> 0 | O65: =MyTimestamp(E65) -> 
B67: Business Interruption
B68: Advance Specified Standing Charges
A69: Business Interruption | B69: ASC | C69: 12 Months | D69: Advance Standing Charges | F69: =_xlfn.IFNA(VLOOKUP(C69, Metadata!$P$2:$Q$5, 2, FALSE),0) -> 0.000864 | G69: FALSE | H69: FALSE | I69: TRUE | J69: TRUE | K69: =BI2_12M_AnnualMin -> 50 | L69: FALSE | M69: =IF(E69 = 0, 0, MAX((E69 * F69) * (IF(H69 = TRUE, 1 - 'Loss Limit Discount'!$D$93, 1)) * (IF(J69 = TRUE, 1 - 'Contract Works Discount'!$L$102, 1) * (1 - Voluntary_Deductible) * (1 - Co_insurance)), K69)) -> 0
B70: Specified Standing Charges
A71: Business Interruption | B71: SC | C71: 12 Months | D71: Standing Charges | F71: =_xlfn.IFNA(VLOOKUP(C71, Metadata!$P$7:$Q$14, 2, FALSE),0) -> 0.000864 | G71: TRUE | H71: TRUE | I71: FALSE | J71: FALSE | K71: =BI2_12M_AnnualMin -> 50 | L71: FALSE | M71: =IF(E71 = 0, 0, MAX((E71 * F71) * (IF(H71 = TRUE, 1 - 'Loss Limit Discount'!$D$93, 1)) * (IF(J71 = TRUE, 1 - 'Contract Works Discount'!$L$102, 1) * (1 - Voluntary_Deductible) * (1 - Co_insurance)), K71)) -> 0
A72: Business Interruption | B72: AICOW | C72: Additional Increase In Cost Of Working | D72: Standing Charges | F72: =F71 * 1.5 -> 0.001296 | G72: TRUE | H72: TRUE | I72: FALSE | J72: FALSE | K72: 0 | L72: FALSE | M72: =IF(E72 = 0, 0, MAX((E72 * F72) * (IF(H72 = TRUE, 1 - 'Loss Limit Discount'!$D$93, 1)) * (IF(J72 = TRUE, 1 - 'Contract Works Discount'!$L$102, 1) * (1 - Voluntary_Deductible) * (1 - Co_insurance)), K72)) -> 0
B73: Working Expenses
A74: Business Interruption | B74: WE | C74: 12 Months | D74: Working Expenses | F74: =_xlfn.IFNA(VLOOKUP(C74, Metadata!$P$16:$Q$23, 2, FALSE),0) -> 0.000864 | G74: TRUE | H74: TRUE | I74: FALSE | J74: FALSE | K74: =BI2_12M_AnnualMin -> 50 | L74: FALSE | M74: =IF(E74 = 0, 0, MAX((E74 * F74) * (IF(H74 = TRUE, 1 - 'Loss Limit Discount'!$D$93, 1)) * (IF(J74 = TRUE, 1 - 'Contract Works Discount'!$L$102, 1) * (1 - Voluntary_Deductible) * (1 - Co_insurance)), K74)) -> 0
A75: Business Interruption | B75: AICOW | C75: Additional Increase In Cost Of Working | D75: Working Expenses | F75: =F74 * 1.5 -> 0.001296 | G75: TRUE | H75: TRUE | I75: FALSE | J75: FALSE | K75: 0 | L75: FALSE | M75: =IF(E75 = 0, 0, MAX((E75 * F75) * (IF(H75 = TRUE, 1 - 'Loss Limit Discount'!$D$93, 1)) * (IF(J75 = TRUE, 1 - 'Contract Works Discount'!$L$102, 1) * (1 - Voluntary_Deductible) * (1 - Co_insurance)), K75)) -> 0
B76: Revenue
A77: Business Interruption | B77: R | C77: 12 Months | D77: Revenue | F77: =_xlfn.IFNA(VLOOKUP(C77, Metadata!$P$48:$Q$55, 2, FALSE),0) -> 0.000864 | G77: TRUE | H77: TRUE | I77: FALSE | J77: FALSE | K77: =BI2_12M_AnnualMin -> 50 | L77: FALSE | M77: =IF(E77 = 0, 0, MAX((E77 * F77) * (IF(H77 = TRUE, 1 - 'Loss Limit Discount'!$D$93, 1)) * (IF(J77 = TRUE, 1 - 'Contract Works Discount'!$L$102, 1) * (1 - Voluntary_Deductible) * (1 - Co_insurance)), K77)) -> 0
A78: Business Interruption | B78: AICOW | C78: Additional Increase In Cost Of Working | D78: Revenue | F78: =F77 * 1.5 -> 0.001296 | G78: TRUE | H78: TRUE | I78: FALSE | J78: FALSE | K78: 0 | L78: FALSE | M78: =IF(E78 = 0, 0, MAX((E78 * F78) * (IF(H78 = TRUE, 1 - 'Loss Limit Discount'!$D$93, 1)) * (IF(J78 = TRUE, 1 - 'Contract Works Discount'!$L$102, 1) * (1 - Voluntary_Deductible) * (1 - Co_insurance)), K78)) -> 0
B79: Net Profit
A80: Business Interruption | B80: NP | C80: 12 Months | D80: Net Profit | F80: =_xlfn.IFNA(VLOOKUP(C80, Metadata!$P$25:$Q$32, 2, FALSE),0) -> 0.000864 | G80: TRUE | H80: TRUE | I80: FALSE | J80: FALSE | K80: =BI2_12M_AnnualMin -> 50 | L80: FALSE | M80: =IF(E80 = 0, 0, MAX((E80 * F80) * (IF(H80 = TRUE, 1 - 'Loss Limit Discount'!$D$93, 1)) * (IF(J80 = TRUE, 1 - 'Contract Works Discount'!$L$102, 1) * (1 - Voluntary_Deductible) * (1 - Co_insurance)), K80)) -> 0
A81: Business Interruption | B81: AICOW | C81: Additional Increase In Cost Of Working | D81: Net Profit | F81: =F80 * 1.5 -> 0.001296 | G81: TRUE | H81: TRUE | I81: FALSE | J81: FALSE | K81: 0 | L81: FALSE | M81: =IF(E81 = 0, 0, MAX((E81 * F81) * (IF(H81 = TRUE, 1 - 'Loss Limit Discount'!$D$93, 1)) * (IF(J81 = TRUE, 1 - 'Contract Works Discount'!$L$102, 1) * (1 - Voluntary_Deductible) * (1 - Co_insurance)), K81)) -> 0
B82: Gross Profit
A83: Business Interruption | B83: GP | C83: 12 Months | D83: Gross Profit | F83: =_xlfn.IFNA(VLOOKUP(C83, Metadata!$P$34:$Q$41, 2, FALSE),0) -> 0.000864 | G83: TRUE | H83: TRUE | I83: FALSE | J83: FALSE | K83: =BI2_12M_AnnualMin -> 50 | L83: FALSE | M83: =IF(E83 = 0, 0, MAX((E83 * F83) * (IF(H83 = TRUE, 1 - 'Loss Limit Discount'!$D$93, 1)) * (IF(J83 = TRUE, 1 - 'Contract Works Discount'!$L$102, 1) * (1 - Voluntary_Deductible) * (1 - Co_insurance)), K83)) -> 0
A84: Business Interruption | B84: AICOW | C84: Additional Increase In Cost Of Working | D84: Gross Profit | F84: =F83 * 1.5 -> 0.001296 | G84: TRUE | H84: TRUE | I84: FALSE | J84: FALSE | K84: 0 | L84: FALSE | M84: =IF(E84 = 0, 0, MAX((E84 * F84) * (IF(H84 = TRUE, 1 - 'Loss Limit Discount'!$D$93, 1)) * (IF(J84 = TRUE, 1 - 'Contract Works Discount'!$L$102, 1) * (1 - Voluntary_Deductible) * (1 - Co_insurance)), K84)) -> 0

Sheet Municipalities - Monthly
A1: Municipalities - Monthly | O1: Cells with green borders have a drop-down selection!
A2: Category | B2: Code | C2: Description | D2: Total Code | E2: Sum Insured/No. of insured items | F2: Rate | G2: Add To Sum Insured Discount | H2: Receive Sum Insured Discount | I2: Add To CW Discount | J2: Receive CW Discount | K2: Minimum Premium | L2: Has Fire Extension Discount | M2: Premium
B3: Fire
A4: Commercial Fire | B4: Mun | C4: Municipalities | D4: Fire | F4: =Mun_Monthly -> 3.993e-05 | G4: TRUE | H4: TRUE | I4: FALSE | J4: FALSE | K4: =Mun_MonthlyMin -> 50 | M4: =IF(E4 = 0, 0, MAX(((E4 * F4) * (IF(H4 = TRUE, 1 - 'Loss Limit Discount'!$D$93, 1))) * (1 - Voluntary_Deductible) * (1 - Co_insurance), K4)) -> 0
A5: Extension | B5: Sasria Extensions
A6: Extension | B6: =IFERROR(RANK($P6, $P$6:$P$65, 1), "") ->  | C6: Rent | D6: Fire | F6: =$F$4 -> 3.993e-05 | G6: TRUE | H6: TRUE | I6: FALSE | J6: FALSE | K6: 0 | L6: TRUE | M6: =IF(E6 = 0, 0, MAX(((VLOOKUP($B6, MM_NonFreeExt, 60, FALSE) * F6) * (IF(H6 = TRUE, 1 - 'Loss Limit Discount'!$D$93, 1))) * (1 - Voluntary_Deductible), K6)) -> 0 | O6: =MyTimestamp(E6) ->  | P6: =IFERROR(VALUE(O6), "") -> 
A7: Extension | B7: =IFERROR(RANK($P7, $P$6:$P$65, 1), "") ->  | C7: Claims Preparation Costs | D7: Fire | F7: =$F$4 -> 3.993e-05 | G7: TRUE | H7: TRUE | I7: FALSE | J7: FALSE | K7: 0 | L7: TRUE | M7: =IF(E7 = 0, 0, MAX(((VLOOKUP($B7, MM_NonFreeExt, 60, FALSE) * F7) * (IF(H7 = TRUE, 1 - 'Loss Limit Discount'!$D$93, 1))) * (1 - Voluntary_Deductible), K7)) -> 0 | O7: =MyTimestamp(E7) ->  | P7: =IFERROR(VALUE(O7), "") -> 
A8: Extension | C8: Capital Additions | D8: Fire | F8: 3.993e-05 | G8: TRUE | H8: TRUE | I8: FALSE | J8: FALSE | K8: 0 | L8: TRUE | M8: =IF(E8 = 0, 0, MAX(((VLOOKUP($B8, MM_NonFreeExt, 60, FALSE) * F8) * (IF(H8 = TRUE, 1 - 'Loss Limit Discount'!$D$93, 1))) * (1 - Voluntary_Deductible), K8)) -> 0 | O8: =MyTimestamp(E8) -> 
A9: Extension | C9: Professional fees | D9: Fire | F9: 3.993e-05 | G9: TRUE | H9: TRUE | I9: FALSE | J9: FALSE | K9: 0 | L9: TRUE | M9: =IF(E9 = 0, 0, MAX(((VLOOKUP($B9, MM_NonFreeExt, 60, FALSE) * F9) * (IF(H9 = TRUE, 1 - 'Loss Limit Discount'!$D$93, 1))) * (1 - Voluntary_Deductible), K9)) -> 0 | O9: =MyTimestamp(E9) -> 
A10: Extension | C10: Clearance costs | D10: Fire | F10: 3.993e-05 | G10: TRUE | H10: TRUE | I10: FALSE | J10: FALSE | K10: 0 | L10: TRUE | M10: =IF(E10 = 0, 0, MAX(((VLOOKUP($B10, MM_NonFreeExt, 60, FALSE) * F10) * (IF(H10 = TRUE, 1 - 'Loss Limit Discount'!$D$93, 1))) * (1 - Voluntary_Deductible), K10)) -> 0 | O10: =MyTimestamp(E10) -> 
A11: Extension | C11: Security Costs (During and after a loss) | D11: Fire | F11: 3.993e-05 | G11: TRUE | H11: TRUE | I11: FALSE | J11: FALSE | K11: 0 | L11: TRUE | M11: =IF(E11 = 0, 0, MAX(((VLOOKUP($B11, MM_NonFreeExt, 60, FALSE) * F11) * (IF(H11 = TRUE, 1 - 'Loss Limit Discount'!$D$93, 1))) * (1 - Voluntary_Deductible), K11)) -> 0 | O11: =MyTimestamp(E11) -> 
A12: Extension | C12: Statutory Duties | D12: Fire | F12: 3.993e-05 | G12: TRUE | H12: TRUE | I12: FALSE | J12: FALSE | K12: 0 | L12: TRUE | M12: =IF(E12 = 0, 0, MAX(((VLOOKUP($B12, MM_NonFreeExt, 60, FALSE) * F12) * (IF(H12 = TRUE, 1 - 'Loss Limit Discount'!$D$93, 1))) * (1 - Voluntary_Deductible), K12)) -> 0 | O12: =MyTimestamp(E12) -> 
A13: Extension | C13: Additional Premises | D13: Fire | F13: 3.993e-05 | G13: TRUE | H13: TRUE | I13: FALSE | J13: FALSE | K13: 0 | L13: TRUE | M13: =IF(E13 = 0, 0, MAX(((VLOOKUP($B13, MM_NonFreeExt, 60, FALSE) * F13) * (IF(H13 = TRUE, 1 - 'Loss Limit Discount'!$D$93, 1))) * (1 - Voluntary_Deductible), K13)) -> 0 | O13: =MyTimestamp(E13) -> 
A14: Extension | C14: Acquisitions | D14: Fire | F14: 3.993e-05 | G14: TRUE | H14: TRUE | I14: FALSE | J14: FALSE | K14: 0 | L14: TRUE | M14: =IF(E14 = 0, 0, MAX(((VLOOKUP($B14, MM_NonFreeExt, 60, FALSE) * F14) * (IF(H14 = TRUE, 1 - 'Loss Limit Discount'!$D$93, 1))) * (1 - Voluntary_Deductible), K14)) -> 0 | O14: =MyTimestamp(E14) -> 
A15: Extension | C15: Import Surcharges | D15: Fire | F15: 3.993e-05 | G15: TRUE | H15: TRUE | I15: FALSE | J15: FALSE | K15: 0 | L15: TRUE | M15: =IF(E15 = 0, 0, MAX(((VLOOKUP($B15, MM_NonFreeExt, 60, FALSE) * F15) * (IF(H15 = TRUE, 1 - 'Loss Limit Discount'!$D$93, 1))) * (1 - Voluntary_Deductible), K15)) -> 0 | O15: =MyTimestamp(E15) -> 
A16: Extension | C16: Property in the course of Construction | D16: Fire | F16: 3.993e-05 | G16: FALSE | H16: FALSE | I16: FALSE | J16: FALSE | K16: 0 | L16: TRUE | M16: =IF(E16 = 0, 0, MAX(((VLOOKUP($B16, MM_NonFreeExt, 60, FALSE) * F16) * (IF(H16 = TRUE, 1 - 'Loss Limit Discount'!$D$93, 1))) * (1 - Voluntary_Deductible), K16)) -> 0 | O16: =MyTimestamp(E16) ->  | P16: =IFERROR(VALUE(O16), "") -> 
A17: Extension | C17: Fire Protection System Update | D17: Fire | F17: 3.993e-05 | G17: TRUE | H17: TRUE | I17: FALSE | J17: FALSE | K17: 0 | L17: TRUE | M17: =IF(E17 = 0, 0, MAX(((VLOOKUP($B17, MM_NonFreeExt, 60, FALSE) * F17) * (IF(H17 = TRUE, 1 - 'Loss Limit Discount'!$D$93, 1))) * (1 - Voluntary_Deductible), K17)) -> 0 | O17: =MyTimestamp(E17) -> 
A18: Extension | C18: Accumulation of Motor Vehicles/Static Risk | D18: Fire | F18: =StaticRisk_Monthly -> 8.165e-05 | G18: FALSE | H18: FALSE | I18: FALSE | J18: FALSE | K18: =StaticRisk_MonthlyMin -> 50 | L18: TRUE | M18: =IF(E18 = 0, 0, MAX(((E18 * F18) * (IF(H18 = TRUE, 1 - 'Loss Limit Discount'!$D$93, 1))) * (1 - Voluntary_Deductible), K18)) -> 0
A19: Extension | C19: Goods in the open | D19: Fire | F19: 3.993e-05 | G19: TRUE | H19: TRUE | I19: FALSE | J19: FALSE | K19: 0 | L19: TRUE | M19: =IF(E19 = 0, 0, MAX(((VLOOKUP($B19, MM_NonFreeExt, 60, FALSE) * F19) * (IF(H19 = TRUE, 1 - 'Loss Limit Discount'!$D$93, 1))) * (1 - Voluntary_Deductible), K19)) -> 0 | O19: =MyTimestamp(E19) -> 
A20: Extension | C20: Fire Extinguishing | D20: Fire | F20: 3.993e-05 | G20: TRUE | H20: TRUE | I20: FALSE | J20: FALSE | K20: 0 | L20: TRUE | M20: =IF(E20 = 0, 0, MAX(((VLOOKUP($B20, MM_NonFreeExt, 60, FALSE) * F20) * (IF(H20 = TRUE, 1 - 'Loss Limit Discount'!$D$93, 1))) * (1 - Voluntary_Deductible), K20)) -> 0 | O20: =MyTimestamp(E20) -> 
A21: Extension | C21: Imminent Danger (Protection of property prior a loss) | D21: Fire | F21: 3.993e-05 | G21: TRUE | H21: TRUE | I21: FALSE | J21: FALSE | K21: 0 | L21: FALSE | M21: =IF(E21 = 0, 0, MAX(((E21 * F21) * (IF(H21 = TRUE, 1 - 'Loss Limit Discount'!$D$93, 1))) * (1 - Voluntary_Deductible), K21)) -> 0
A22: Other Extension | B22: Other Extensions
A23: Other Extension | B23: =IFERROR(RANK($P23, $P$6:$P$65, 1), "") ->  | C23: Other | D23: Fire | F23: =$F$4 -> 3.993e-05 | G23: TRUE | H23: TRUE | I23: FALSE | J23: FALSE | K23: 0 | L23: TRUE | M23: =IF(E23 = 0, 0, MAX(((VLOOKUP($B23, MM_NonFreeExt, 60, FALSE) * F23) * (IF(H23 = TRUE, 1 - 'Loss Limit Discount'!$D$93, 1))) * (1 - Voluntary_Deductible), K23)) -> 0 | O23: =MyTimestamp(E23) ->  | P23: =IFERROR(VALUE(O23), "") -> 
A24: Other Extension | C24: Other | D24: Fire | F24: 3.993e-05 | G24: TRUE | H24: TRUE | I24: FALSE | J24: FALSE | K24: 0 | L24: TRUE | M24: =IF(E24 = 0, 0, MAX(((VLOOKUP($B24, MM_NonFreeExt, 60, FALSE) * F24) * (IF(H24 = TRUE, 1 - 'Loss Limit Discount'!$D$93, 1))) * (1 - Voluntary_Deductible), K24)) -> 0 | O24: =MyTimestamp(E24) -> 
A25: Other Extension | C25: Other | D25: Fire | F25: 3.993e-05 | G25: TRUE | H25: TRUE | I25: FALSE | J25: FALSE | K25: 0 | L25: TRUE | M25: =IF(E25 = 0, 0, MAX(((VLOOKUP($B25, MM_NonFreeExt, 60, FALSE) * F25) * (IF(H25 = TRUE, 1 - 'Loss Limit Discount'!$D$93, 1))) * (1 - Voluntary_Deductible), K25)) -> 0 | O25: =MyTimestamp(E25) -> 
A26: Other Extension | C26: Other | D26: Fire | F26: 3.993e-05 | G26: TRUE | H26: TRUE | I26: FALSE | J26: FALSE | K26: 0 | L26: TRUE | M26: =IF(E26 = 0, 0, MAX(((VLOOKUP($B26, MM_NonFreeExt, 60, FALSE) * F26) * (IF(H26 = TRUE, 1 - 'Loss Limit Discount'!$D$93, 1))) * (1 - Voluntary_Deductible), K26)) -> 0 | O26: =MyTimestamp(E26) -> 
A27: Other Extension | C27: Other | D27: Fire | F27: 3.993e-05 | G27: TRUE | H27: TRUE | I27: FALSE | J27: FALSE | K27: 0 | L27: TRUE | M27: =IF(E27 = 0, 0, MAX(((VLOOKUP($B27, MM_NonFreeExt, 60, FALSE) * F27) * (IF(H27 = TRUE, 1 - 'Loss Limit Discount'!$D$93, 1))) * (1 - Voluntary_Deductible), K27)) -> 0 | O27: =MyTimestamp(E27) -> 
A28: Other Extension | C28: Other | D28: Fire | F28: 3.993e-05 | G28: TRUE | H28: TRUE | I28: FALSE | J28: FALSE | K28: 0 | L28: TRUE | M28: =IF(E28 = 0, 0, MAX(((VLOOKUP($B28, MM_NonFreeExt, 60, FALSE) * F28) * (IF(H28 = TRUE, 1 - 'Loss Limit Discount'!$D$93, 1))) * (1 - Voluntary_Deductible), K28)) -> 0 | O28: =MyTimestamp(E28) -> 
A29: Other Extension | C29: Other | D29: Fire | F29: 3.993e-05 | G29: TRUE | H29: TRUE | I29: FALSE | J29: FALSE | K29: 0 | L29: TRUE | M29: =IF(E29 = 0, 0, MAX(((VLOOKUP($B29, MM_NonFreeExt, 60, FALSE) * F29) * (IF(H29 = TRUE, 1 - 'Loss Limit Discount'!$D$93, 1))) * (1 - Voluntary_Deductible), K29)) -> 0 | O29: =MyTimestamp(E29) -> 
A30: Other Extension | C30: Other | D30: Fire | F30: 3.993e-05 | G30: TRUE | H30: TRUE | I30: FALSE | J30: FALSE | K30: 0 | L30: TRUE | M30: =IF(E30 = 0, 0, MAX(((VLOOKUP($B30, MM_NonFreeExt, 60, FALSE) * F30) * (IF(H30 = TRUE, 1 - 'Loss Limit Discount'!$D$93, 1))) * (1 - Voluntary_Deductible), K30)) -> 0 | O30: =MyTimestamp(E30) -> 
A31: Other Extension | C31: Other | D31: Fire | F31: 3.993e-05 | G31: TRUE | H31: TRUE | I31: FALSE | J31: FALSE | K31: 0 | L31: TRUE | M31: =IF(E31 = 0, 0, MAX(((VLOOKUP($B31, MM_NonFreeExt, 60, FALSE) * F31) * (IF(H31 = TRUE, 1 - 'Loss Limit Discount'!$D$93, 1))) * (1 - Voluntary_Deductible), K31)) -> 0 | O31: =MyTimestamp(E31) -> 
A32: Other Extension | C32: Other | D32: Fire | F32: 3.993e-05 | G32: TRUE | H32: TRUE | I32: FALSE | J32: FALSE | K32: 0 | L32: TRUE | M32: =IF(E32 = 0, 0, MAX(((VLOOKUP($B32, MM_NonFreeExt, 60, FALSE) * F32) * (IF(H32 = TRUE, 1 - 'Loss Limit Discount'!$D$93, 1))) * (1 - Voluntary_Deductible), K32)) -> 0 | O32: =MyTimestamp(E32) -> 
A33: Other Extension | C33: Other | D33: Fire | F33: 3.993e-05 | G33: TRUE | H33: TRUE | I33: FALSE | J33: FALSE | K33: 0 | L33: TRUE | M33: =IF(E33 = 0, 0, MAX(((VLOOKUP($B33, MM_NonFreeExt, 60, FALSE) * F33) * (IF(H33 = TRUE, 1 - 'Loss Limit Discount'!$D$93, 1))) * (1 - Voluntary_Deductible), K33)) -> 0 | O33: =MyTimestamp(E33) -> 
A34: Other Extension | C34: Other | D34: Fire | F34: 3.993e-05 | G34: TRUE | H34: TRUE | I34: FALSE | J34: FALSE | K34: 0 | L34: TRUE | M34: =IF(E34 = 0, 0, MAX(((VLOOKUP($B34, MM_NonFreeExt, 60, FALSE) * F34) * (IF(H34 = TRUE, 1 - 'Loss Limit Discount'!$D$93, 1))) * (1 - Voluntary_Deductible), K34)) -> 0 | O34: =MyTimestamp(E34) -> 
A35: Other Extension | C35: Other | D35: Fire | F35: 3.993e-05 | G35: TRUE | H35: TRUE | I35: FALSE | J35: FALSE | K35: 0 | L35: TRUE | M35: =IF(E35 = 0, 0, MAX(((VLOOKUP($B35, MM_NonFreeExt, 60, FALSE) * F35) * (IF(H35 = TRUE, 1 - 'Loss Limit Discount'!$D$93, 1))) * (1 - Voluntary_Deductible), K35)) -> 0 | O35: =MyTimestamp(E35) -> 
A36: Other Extension | C36: Other | D36: Fire | F36: 3.993e-05 | G36: TRUE | H36: TRUE | I36: FALSE | J36: FALSE | K36: 0 | L36: TRUE | M36: =IF(E36 = 0, 0, MAX(((VLOOKUP($B36, MM_NonFreeExt, 60, FALSE) * F36) * (IF(H36 = TRUE, 1 - 'Loss Limit Discount'!$D$93, 1))) * (1 - Voluntary_Deductible), K36)) -> 0 | O36: =MyTimestamp(E36) -> 
A37: Other Extension | C37: Other | D37: Fire | F37: 3.993e-05 | G37: TRUE | H37: TRUE | I37: FALSE | J37: FALSE | K37: 0 | L37: TRUE | M37: =IF(E37 = 0, 0, MAX(((VLOOKUP($B37, MM_NonFreeExt, 60, FALSE) * F37) * (IF(H37 = TRUE, 1 - 'Loss Limit Discount'!$D$93, 1))) * (1 - Voluntary_Deductible), K37)) -> 0 | O37: =MyTimestamp(E37) -> 
A38: Other Extension | C38: Other | D38: Fire | F38: 3.993e-05 | G38: TRUE | H38: TRUE | I38: FALSE | J38: FALSE | K38: 0 | L38: TRUE | M38: =IF(E38 = 0, 0, MAX(((VLOOKUP($B38, MM_NonFreeExt, 60, FALSE) * F38) * (IF(H38 = TRUE, 1 - 'Loss Limit Discount'!$D$93, 1))) * (1 - Voluntary_Deductible), K38)) -> 0 | O38: =MyTimestamp(E38) -> 
A39: Other Extension | C39: Other | D39: Fire | F39: 3.993e-05 | G39: TRUE | H39: TRUE | I39: FALSE | J39: FALSE | K39: 0 | L39: TRUE | M39: =IF(E39 = 0, 0, MAX(((VLOOKUP($B39, MM_NonFreeExt, 60, FALSE) * F39) * (IF(H39 = TRUE, 1 - 'Loss Limit Discount'!$D$93, 1))) * (1 - Voluntary_Deductible), K39)) -> 0 | O39: =MyTimestamp(E39) -> 
A40: Other Extension | C40: Other | D40: Fire | F40: 3.993e-05 | G40: TRUE | H40: TRUE | I40: FALSE | J40: FALSE | K40: 0 | L40: TRUE | M40: =IF(E40 = 0, 0, MAX(((VLOOKUP($B40, MM_NonFreeExt, 60, FALSE) * F40) * (IF(H40 = TRUE, 1 - 'Loss Limit Discount'!$D$93, 1))) * (1 - Voluntary_Deductible), K40)) -> 0 | O40: =MyTimestamp(E40) -> 
A41: Other Extension | C41: Other | D41: Fire | F41: 3.993e-05 | G41: TRUE | H41: TRUE | I41: FALSE | J41: FALSE | K41: 0 | L41: TRUE | M41: =IF(E41 = 0, 0, MAX(((VLOOKUP($B41, MM_NonFreeExt, 60, FALSE) * F41) * (IF(H41 = TRUE, 1 - 'Loss Limit Discount'!$D$93, 1))) * (1 - Voluntary_Deductible), K41)) -> 0 | O41: =MyTimestamp(E41) -> 
A42: Other Extension | C42: Other | D42: Fire | F42: 3.993e-05 | G42: TRUE | H42: TRUE | I42: FALSE | J42: FALSE | K42: 0 | L42: TRUE | M42: =IF(E42 = 0, 0, MAX(((VLOOKUP($B42, MM_NonFreeExt, 60, FALSE) * F42) * (IF(H42 = TRUE, 1 - 'Loss Limit Discount'!$D$93, 1))) * (1 - Voluntary_Deductible), K42)) -> 0 | O42: =MyTimestamp(E42) -> 
A43: Other Extension | C43: Other | D43: Fire | F43: 3.993e-05 | G43: TRUE | H43: TRUE | I43: FALSE | J43: FALSE | K43: 0 | L43: TRUE | M43: =IF(E43 = 0, 0, MAX(((VLOOKUP($B43, MM_NonFreeExt, 60, FALSE) * F43) * (IF(H43 = TRUE, 1 - 'Loss Limit Discount'!$D$93, 1))) * (1 - Voluntary_Deductible), K43)) -> 0 | O43: =MyTimestamp(E43) -> 
A44: Other Extension | C44: Other | D44: Fire | F44: 3.993e-05 | G44: TRUE | H44: TRUE | I44: FALSE | J44: FALSE | K44: 0 | L44: TRUE | M44: =IF(E44 = 0, 0, MAX(((VLOOKUP($B44, MM_NonFreeExt, 60, FALSE) * F44) * (IF(H44 = TRUE, 1 - 'Loss Limit Discount'!$D$93, 1))) * (1 - Voluntary_Deductible), K44)) -> 0 | O44: =MyTimestamp(E44) -> 
A45: Other Extension | C45: Other | D45: Fire | F45: 3.993e-05 | G45: TRUE | H45: TRUE | I45: FALSE | J45: FALSE | K45: 0 | L45: TRUE | M45: =IF(E45 = 0, 0, MAX(((VLOOKUP($B45, MM_NonFreeExt, 60, FALSE) * F45) * (IF(H45 = TRUE, 1 - 'Loss Limit Discount'!$D$93, 1))) * (1 - Voluntary_Deductible), K45)) -> 0 | O45: =MyTimestamp(E45) -> 
A46: Other Extension | C46: Other | D46: Fire | F46: 3.993e-05 | G46: TRUE | H46: TRUE | I46: FALSE | J46: FALSE | K46: 0 | L46: TRUE | M46: =IF(E46 = 0, 0, MAX(((VLOOKUP($B46, MM_NonFreeExt, 60, FALSE) * F46) * (IF(H46 = TRUE, 1 - 'Loss Limit Discount'!$D$93, 1))) * (1 - Voluntary_Deductible), K46)) -> 0 | O46: =MyTimestamp(E46) -> 
A47: Other Extension | C47: Other | D47: Fire | F47: 3.993e-05 | G47: TRUE | H47: TRUE | I47: FALSE | J47: FALSE | K47: 0 | L47: TRUE | M47: =IF(E47 = 0, 0, MAX(((VLOOKUP($B47, MM_NonFreeExt, 60, FALSE) * F47) * (IF(H47 = TRUE, 1 - 'Loss Limit Discount'!$D$93, 1))) * (1 - Voluntary_Deductible), K47)) -> 0 | O47: =MyTimestamp(E47) -> 
A48: Other Extension | C48: Other | D48: Fire | F48: 3.993e-05 | G48: TRUE | H48: TRUE | I48: FALSE | J48: FALSE | K48: 0 | L48: TRUE | M48: =IF(E48 = 0, 0, MAX(((VLOOKUP($B48, MM_NonFreeExt, 60, FALSE) * F48) * (IF(H48 = TRUE, 1 - 'Loss Limit Discount'!$D$93, 1))) * (1 - Voluntary_Deductible), K48)) -> 0 | O48: =MyTimestamp(E48) -> 
A49: Other Extension | C49: Other | D49: Fire | F49: 3.993e-05 | G49: TRUE | H49: TRUE | I49: FALSE | J49: FALSE | K49: 0 | L49: TRUE | M49: =IF(E49 = 0, 0, MAX(((VLOOKUP($B49, MM_NonFreeExt, 60, FALSE) * F49) * (IF(H49 = TRUE, 1 - 'Loss Limit Discount'!$D$93, 1))) * (1 - Voluntary_Deductible), K49)) -> 0 | O49: =MyTimestamp(E49) -> 
A50: Other Extension | C50: Other | D50: Fire | F50: 3.993e-05 | G50: TRUE | H50: TRUE | I50: FALSE | J50: FALSE | K50: 0 | L50: TRUE | M50: =IF(E50 = 0, 0, MAX(((VLOOKUP($B50, MM_NonFreeExt, 60, FALSE) * F50) * (IF(H50 = TRUE, 1 - 'Loss Limit Discount'!$D$93, 1))) * (1 - Voluntary_Deductible), K50)) -> 0 | O50: =MyTimestamp(E50) -> 
A51: Other Extension | C51: Other | D51: Fire | F51: 3.993e-05 | G51: TRUE | H51: TRUE | I51: FALSE | J51: FALSE | K51: 0 | L51: TRUE | M51: =IF(E51 = 0, 0, MAX(((VLOOKUP($B51, MM_NonFreeExt, 60, FALSE) * F51) * (IF(H51 = TRUE, 1 - 'Loss Limit Discount'!$D$93, 1))) * (1 - Voluntary_Deductible), K51)) -> 0 | O51: =MyTimestamp(E51) -> 
A52: Other Extension | C52: Other | D52: Fire | F52: 3.993e-05 | G52: TRUE | H52: TRUE | I52: FALSE | J52: FALSE | K52: 0 | L52: TRUE | M52: =IF(E52 = 0, 0, MAX(((VLOOKUP($B52, MM_NonFreeExt, 60, FALSE) * F52) * (IF(H52 = TRUE, 1 - 'Loss Limit Discount'!$D$93, 1))) * (1 - Voluntary_Deductible), K52)) -> 0 | O52: =MyTimestamp(E52) -> 
B53: Escalation and or Inflation
A54: Escalation UL | B54: Charge on U/L
A55: Escalation UL | B55: =IFERROR(RANK($P55, $P$6:$P$65, 1), "") ->  | C55: First Year (90-100%) | D55: Fire | F55: =IF(C55 = "", 0, VLOOKUP(C55, Escalation!$C$216:$D$260, 2, FALSE)) -> 3.993e-05 | G55: FALSE | H55: TRUE | I55: FALSE | J55: FALSE | K55: 0 | M55: =IF(E55 = 0, 0, MAX(((VLOOKUP($B55, MM_NonFreeExt, 60, FALSE) * F55) * (IF(H55 = TRUE, 1 - 'Loss Limit Discount'!$D$93, 1))) * (1 - Voluntary_Deductible), K55)) -> 0 | O55: =MyTimestamp(E55) ->  | P55: =IFERROR(VALUE(O55), "") -> 
A56: Escalation UL | C56: Second Year (90-100%) | D56: Fire | F56: =IF(C56 = "", 0, VLOOKUP(C56, Escalation!$C$216:$D$260, 2, FALSE)) -> 1.9965e-05 | G56: FALSE | H56: TRUE | I56: FALSE | J56: FALSE | K56: 0 | M56: =IF(E56 = 0, 0, MAX(((VLOOKUP($B56, MM_NonFreeExt, 60, FALSE) * F56) * (IF(H56 = TRUE, 1 - 'Loss Limit Discount'!$D$93, 1))) * (1 - Voluntary_Deductible), K56)) -> 0 | O56: =MyTimestamp(E56) -> 
A57: Escalation UL | C57: Third Year (90-100%) | D57: Fire | F57: =IF(C57 = "", 0, VLOOKUP(C57, Escalation!$C$216:$D$260, 2, FALSE)) -> 9.9825e-06 | G57: FALSE | H57: TRUE | I57: FALSE | J57: FALSE | K57: 0 | M57: =IF(E57 = 0, 0, MAX(((VLOOKUP($B57, MM_NonFreeExt, 60, FALSE) * F57) * (IF(H57 = TRUE, 1 - 'Loss Limit Discount'!$D$93, 1))) * (1 - Voluntary_Deductible), K57)) -> 0 | O57: =MyTimestamp(E57) -> 
A58: Escalation UL | C58: Fourth Year (90-100%) | D58: Fire | F58: =IF(C58 = "", 0, VLOOKUP(C58, Escalation!$C$216:$D$260, 2, FALSE)) -> 7.986e-06 | G58: FALSE | H58: TRUE | I58: FALSE | J58: FALSE | K58: 0 | M58: =IF(E58 = 0, 0, MAX(((VLOOKUP($B58, MM_NonFreeExt, 60, FALSE) * F58) * (IF(H58 = TRUE, 1 - 'Loss Limit Discount'!$D$93, 1))) * (1 - Voluntary_Deductible), K58)) -> 0 | O58: =MyTimestamp(E58) -> 
A59: Escalation UL | C59: Fifth Year (90-100%) | D59: Fire | F59: =IF(C59 = "", 0, VLOOKUP(C59, Escalation!$C$216:$D$260, 2, FALSE)) -> 5.9895e-06 | G59: FALSE | H59: TRUE | I59: FALSE | J59: FALSE | K59: 0 | M59: =IF(E59 = 0, 0, MAX(((VLOOKUP($B59, MM_NonFreeExt, 60, FALSE) * F59) * (IF(H59 = TRUE, 1 - 'Loss Limit Discount'!$D$93, 1))) * (1 - Voluntary_Deductible), K59)) -> 0 | O59: =MyTimestamp(E59) -> 
A60: Escalation Not UL | B60: Not Charge on U/L
A61: Escalation Not UL | B61: =IFERROR(RANK($P61, $P$6:$P$65, 1), "") ->  | C61: First Year | D61: Fire | F61: =$F$4 -> 3.993e-05 | G61: FALSE | H61: TRUE | I61: FALSE | J61: FALSE | K61: 0 | M61: =IF(E61 = 0, 0, MAX(((VLOOKUP($B61, MM_NonFreeExt, 60, FALSE) * F61) * (IF(H61 = TRUE, 1 - 'Loss Limit Discount'!$D$93, 1))) * (1 - Voluntary_Deductible), K61)) -> 0 | O61: =MyTimestamp(E61) ->  | P61: =IFERROR(VALUE(O61), "") -> 
A62: Escalation Not UL | C62: Second Year | D62: Fire | F62: =$F$4 * 0.5 -> 1.9965e-05 | G62: FALSE | H62: TRUE | I62: FALSE | J62: FALSE | K62: 0 | M62: =IF(E62 = 0, 0, MAX(((VLOOKUP($B62, MM_NonFreeExt, 60, FALSE) * F62) * (IF(H62 = TRUE, 1 - 'Loss Limit Discount'!$D$93, 1))) * (1 - Voluntary_Deductible), K62)) -> 0 | O62: =MyTimestamp(E62) -> 
A63: Escalation Not UL | C63: Third Year | D63: Fire | F63: =$F$4 * 0.25 -> 9.9825e-06 | G63: FALSE | H63: TRUE | I63: FALSE | J63: FALSE | K63: 0 | M63: =IF(E63 = 0, 0, MAX(((VLOOKUP($B63, MM_NonFreeExt, 60, FALSE) * F63) * (IF(H63 = TRUE, 1 - 'Loss Limit Discount'!$D$93, 1))) * (1 - Voluntary_Deductible), K63)) -> 0 | O63: =MyTimestamp(E63) -> 
A64: Escalation Not UL | C64: Fourth Year | D64: Fire | F64: =$F$4 * 0.2 -> 7.986e-06 | G64: FALSE | H64: TRUE | I64: FALSE | J64: FALSE | K64: 0 | M64: =IF(E64 = 0, 0, MAX(((VLOOKUP($B64, MM_NonFreeExt, 60, FALSE) * F64) * (IF(H64 = TRUE, 1 - 'Loss Limit Discount'!$D$93, 1))) * (1 - Voluntary_Deductible), K64)) -> 0 | O64: =MyTimestamp(E64) -> 
A65: Escalation Not UL | C65: Fifth Year | D65: Fire | F65: =$F$4 * 0.15 -> 5.9895e-06 | G65: FALSE | H65: TRUE | I65: FALSE | J65: FALSE | K65: 0 | M65: =IF(E65 = 0, 0, MAX(((VLOOKUP($B65, MM_NonFreeExt, 60, FALSE) * F65) * (IF(H65 = TRUE, 1 - 'Loss Limit Discount'!$D$93, 1))) * (1 - Voluntary_Deductible), K65)) -> 0 | O65: =MyTimestamp(E65) -> 
B67: Business Interruption
B68: Advance Specified Standing Charges
A69: Business Interruption | B69: ASC | C69: 12 Months | D69: Advance Standing Charges | F69: =_xlfn.IFNA(VLOOKUP(C69, Metadata!$L$2:$M$5, 2, FALSE),0) -> 8.64e-05 | G69: FALSE | H69: FALSE | I69: TRUE | J69: TRUE | K69: =BI2_12M_MonthlyMin -> 5 | L69: FALSE | M69: =IF(E69 = 0, 0, MAX((E69 * F69) * (IF(H69 = TRUE, 1 - 'Loss Limit Discount'!$D$93, 1)) * (IF(J69 = TRUE, 1 - 'Contract Works Discount'!$D$102, 1) * (1 - Voluntary_Deductible) * (1 - Co_insurance)), K69)) -> 0
B70: Specified Standing Charges
A71: Business Interruption | B71: SC | C71: 12 Months | D71: Standing Charges | F71: =_xlfn.IFNA(VLOOKUP(C71, Metadata!$L$7:$M$14, 2, FALSE),0) -> 8.64e-05 | G71: TRUE | H71: TRUE | I71: FALSE | J71: FALSE | K71: =BI2_12M_MonthlyMin -> 5 | L71: FALSE | M71: =IF(E71 = 0, 0, MAX((E71 * F71) * (IF(H71 = TRUE, 1 - 'Loss Limit Discount'!$D$93, 1)) * (IF(J71 = TRUE, 1 - 'Contract Works Discount'!$D$102, 1) * (1 - Voluntary_Deductible) * (1 - Co_insurance)), K71)) -> 0
A72: Business Interruption | B72: AICOW | C72: Additional Increase In Cost Of Working | D72: Standing Charges | F72: =F71 * 1.5 -> 0.0001296 | G72: TRUE | H72: TRUE | I72: FALSE | J72: FALSE | K72: 0 | L72: FALSE | M72: =IF(E72 = 0, 0, MAX((E72 * F72) * (IF(H72 = TRUE, 1 - 'Loss Limit Discount'!$D$93, 1)) * (IF(J72 = TRUE, 1 - 'Contract Works Discount'!$D$102, 1) * (1 - Voluntary_Deductible) * (1 - Co_insurance)), K72)) -> 0
B73: Working Expenses
A74: Business Interruption | B74: WE | C74: 12 Months | D74: Working Expenses | F74: =_xlfn.IFNA(VLOOKUP(C74, Metadata!L16:M23, 2, FALSE),0) -> 8.64e-05 | G74: TRUE | H74: TRUE | I74: FALSE | J74: FALSE | K74: =BI2_12M_MonthlyMin -> 5 | L74: FALSE | M74: =IF(E74 = 0, 0, MAX((E74 * F74) * (IF(H74 = TRUE, 1 - 'Loss Limit Discount'!$D$93, 1)) * (IF(J74 = TRUE, 1 - 'Contract Works Discount'!$D$102, 1) * (1 - Voluntary_Deductible) * (1 - Co_insurance)), K74)) -> 0
A75: Business Interruption | B75: AICOW | C75: Additional Increase In Cost Of Working | D75: Working Expenses | F75: =F74 * 1.5 -> 0.0001296 | G75: TRUE | H75: TRUE | I75: FALSE | J75: FALSE | K75: 0 | L75: FALSE | M75: =IF(E75 = 0, 0, MAX((E75 * F75) * (IF(H75 = TRUE, 1 - 'Loss Limit Discount'!$D$93, 1)) * (IF(J75 = TRUE, 1 - 'Contract Works Discount'!$D$102, 1) * (1 - Voluntary_Deductible) * (1 - Co_insurance)), K75)) -> 0
B76: Revenue
A77: Business Interruption | B77: R | C77: 12 Months | D77: Revenue | F77: =_xlfn.IFNA(VLOOKUP(C77, Metadata!$L$48:$M$55, 2, FALSE),0) -> 8.64e-05 | G77: TRUE | H77: TRUE | I77: FALSE | J77: FALSE | K77: =BI2_12M_MonthlyMin -> 5 | L77: FALSE | M77: =IF(E77 = 0, 0, MAX((E77 * F77) * (IF(H77 = TRUE, 1 - 'Loss Limit Discount'!$D$93, 1)) * (IF(J77 = TRUE, 1 - 'Contract Works Discount'!$D$102, 1) * (1 - Voluntary_Deductible) * (1 - Co_insurance)), K77)) -> 0
A78: Business Interruption | B78: AICOW | C78: Additional Increase In Cost Of Working | D78: Revenue | F78: =F77 * 1.5 -> 0.0001296 | G78: TRUE | H78: TRUE | I78: FALSE | J78: FALSE | K78: 0 | L78: FALSE | M78: =IF(E78 = 0, 0, MAX((E78 * F78) * (IF(H78 = TRUE, 1 - 'Loss Limit Discount'!$D$93, 1)) * (IF(J78 = TRUE, 1 - 'Contract Works Discount'!$D$102, 1) * (1 - Voluntary_Deductible) * (1 - Co_insurance)), K78)) -> 0
B79: Net Profit
A80: Business Interruption | B80: NP | C80: 12 Months | D80: Net Profit | F80: =_xlfn.IFNA(VLOOKUP(C80, Metadata!$L$25:$M$32, 2, FALSE),0) -> 8.64e-05 | G80: TRUE | H80: TRUE | I80: FALSE | J80: FALSE | K80: =BI2_12M_MonthlyMin -> 5 | L80: FALSE | M80: =IF(E80 = 0, 0, MAX((E80 * F80) * (IF(H80 = TRUE, 1 - 'Loss Limit Discount'!$D$93, 1)) * (IF(J80 = TRUE, 1 - 'Contract Works Discount'!$D$102, 1) * (1 - Voluntary_Deductible) * (1 - Co_insurance)), K80)) -> 0
A81: Business Interruption | B81: AICOW | C81: Additional Increase In Cost Of Working | D81: Net Profit | F81: =F80 * 1.5 -> 0.0001296 | G81: TRUE | H81: TRUE | I81: FALSE | J81: FALSE | K81: 0 | L81: FALSE | M81: =IF(E81 = 0, 0, MAX((E81 * F81) * (IF(H81 = TRUE, 1 - 'Loss Limit Discount'!$D$93, 1)) * (IF(J81 = TRUE, 1 - 'Contract Works Discount'!$D$102, 1) * (1 - Voluntary_Deductible) * (1 - Co_insurance)), K81)) -> 0
B82: Gross Profit
A83: Business Interruption | B83: GP | C83: 12 Months | D83: Gross Profit | F83: =_xlfn.IFNA(VLOOKUP(C83, Metadata!$L$34:$M$41, 2, FALSE),0) -> 8.64e-05 | G83: TRUE | H83: TRUE | I83: FALSE | J83: FALSE | K83: =BI2_12M_MonthlyMin -> 5 | L83: FALSE | M83: =IF(E83 = 0, 0, MAX((E83 * F83) * (IF(H83 = TRUE, 1 - 'Loss Limit Discount'!$D$93, 1)) * (IF(J83 = TRUE, 1 - 'Contract Works Discount'!$D$102, 1) * (1 - Voluntary_Deductible) * (1 - Co_insurance)), K83)) -> 0
A84: Business Interruption | B84: AICOW | C84: Additional Increase In Cost Of Working | D84: Gross Profit | F84: =F83 * 1.5 -> 0.0001296 | G84: TRUE | H84: TRUE | I84: FALSE | J84: FALSE | K84: 0 | L84: FALSE | M84: =IF(E84 = 0, 0, MAX((E84 * F84) * (IF(H84 = TRUE, 1 - 'Loss Limit Discount'!$D$93, 1)) * (IF(J84 = TRUE, 1 - 'Contract Works Discount'!$D$102, 1) * (1 - Voluntary_Deductible) * (1 - Co_insurance)), K84)) -> 0

Sheet Municipalities - Annual
A1: Municipalities - Annual | O1: Cells with green borders have a drop-down selection!
A2: Category | B2: Code | C2: Description | D2: Total Code | E2: Sum Insured/No. of insured items | F2: Rate | G2: Add To Sum Insured Discount | H2: Receive Sum Insured Discount | I2: Add To CW Discount | J2: Receive CW Discount | K2: Minimum Premium | L2: Has Fire Extension Discount | M2: Premium
B3: Fire
A4: Commercial Fire | B4: Mun | C4: Municipalities | D4: Fire | F4: =Mun_Annual -> 0.00039933 | G4: TRUE | H4: TRUE | I4: FALSE | J4: FALSE | K4: =Mun_AnnualMin -> 500 | M4: =IF(E4 = 0, 0, MAX(((E4 * F4) * (IF(H4 = TRUE, 1 - 'Loss Limit Discount'!$D$93, 1))) * (1 - Voluntary_Deductible) * (1 - Co_insurance), K4)) -> 0
A5: Extensions | B5: Sasria Extensions
